Workbook

Sheet Introduction
A1: IDES Model
B2: The Interactive petroleum Demand EStimation (IDES) model enables a user to project future oil demand based on past behavior and assumptions about future demographics, economic growth, and technological change.
B3: The IDES model was used to generate the analysis for the following paper: Brandt, A.R., Millard-Ball, A. Ganser, M., Gorelick, S. (2013) Peak oil demand: The role of fuel efficiency and alternative fuels in a global oil production decline. Environmental Science & Technology. DOI: 10.1021/es401419t
B4: The IDES model is meant to be interactive and fully usable by any interested parties.
B5: This work is distributed under the Creative Commons Attribution-ShareAlike 3.0 License. The user is allowed to share, copy, and distribute the work as they see fit. Users should attribute any derivative works to this original model, and should share such works under similar licenses. Any modified versions should clearly note modification authors in "modified by" below.
B7: - For more information: | D7: http://creativecommons.org/
B9: - Modified by:
B10: IDES was developed at Stanford University from December 2010 to January 2012, with minor modifications in 2012 and 2013.
B11: - Model version date: | D11: May 30th, 2013
A13: Directions
B14: 1) Go to the 'Controls & Results' tab
B15: 2) Users can load a standardized scenario using the buttons at the top of the page. Alternatively, users can modify the inputs by manipulating the sliders or drop-down menus.
B16: 3) By modifying the inputs, users can change projections for population, GDP, travel and freight activity, modal energy efficiency, alternative fuel penetrations, and non-liquid energy technologies.
B17: 4) Results from the standardized scenarios or user modifications appear in the five supporting graphs.
A20: About the Authors
B21: Name | D21: Position during authorship | G21: Institution | K21: Current affiliation
B22: Matthew Ganser | D22: PhD Candidate | G22: Stanford University | K22: Director of Engineering, Carbon Lighthouse
B23: Adam Millard-Ball | D23: Assistant Professor | G23: McGill University and University of California, Santa Cruz | K23: Environmental Studies Department, University of California, Santa Cruz
B24: Adam Brandt | D24: Assistant Professor | G24: Stanford University | K24: Department of Energy Resources Engineering, Stanford University
B25: Steve Gorelick | D25: Professor | G25: Stanford University | K25: Department of Environmental Earth System Science
A28: Data Sources
B29: Supporting data relationships are shown in the relevant worksheet tabs.
B30: For a complete listing of all sources, please consult publication and supporting information.

Sheet Controls & Results
B1: Controls | H1: Results
B6: Socioeconomic Inputs
C7: Population/GDP scenario
B9: Demand Inputs
B10: Air Travel
C11: Increase/Decrease from historical passenger travel | D11: ='Scenario Mngr'!H4 -> 1
C12: Max load factor (% of seats filled) | D12: ='Scenario Mngr'!H5 -> 0.8
C13: Annual energy intensity improvement | D13: ='Scenario Mngr'!H6 -> 0.017
B14: Land Travel | T14: `
C15: Land travel saturation (% of estimated ceiling) | D15: ='Scenario Mngr'!H7 -> 1
C16: Annual efficiency improvement - private vehicles | D16: ='Scenario Mngr'!H8 -> 0.006
C17: Annual efficiency improvement - public transport | D17: ='Scenario Mngr'!H9 -> 0.0035
B18: Freight
C19: Max fraction of trucking | D19: ='Scenario Mngr'!H11 -> 0.85
C20: Annual efficiency improvement - trucking | D20: ='Scenario Mngr'!H12 -> 0.0101
B21: International Shipping Freight
C22: Annual efficiency improvement | D22: ='Scenario Mngr'!H13 -> 0.0016
B23: Military
C24: Military spending (% of GDP) | D24: ='Scenario Mngr'!H14 -> 0.029
B26: Supply Inputs
B27: Fraction of non-liquid technology (electricity, CNG/LPG, LNG, H2)
C28: Land - Slope | D28: ='Scenario Mngr'!H18 -> 0.15
C29: Land - Lag | D29: ='Scenario Mngr'!H19 -> -6.5
C30: Air/Freight/Intl Ship - Slope | D30: ='Scenario Mngr'!H20 -> 0.1
C31: Air/Freight/Intl Ship - Lag | D31: ='Scenario Mngr'!H21 -> -8
C32: Max Penetration - Land | D32: ='Scenario Mngr'!H22 -> 0.66
C33: Max Penetration - Air/Freight/Intl Ship | D33: ='Scenario Mngr'!H23 -> 0.25
B34: Non-conventional liquid substitutes (oil sands, CTL, GTL, biofuels)
C35: Refinery loss | D35: ='Scenario Mngr'!H15 -> 0.055
C36: Liquid substitution slope | D36: ='Scenario Mngr'!H16 -> 0.0702
C37: Liquid substitution delay | D37: ='Scenario Mngr'!H17 -> -6.96
B39: Environmental inputs
B40: Fraction of clean fuels
C41: Fraction low-carbon non-liquid fuels | D41: ='Scenario Mngr'!F24/100 -> 0.5
C42: Fraction low-carbon liquid fuels | D42: ='Scenario Mngr'!F25/100 -> 0.5
I43: 2010-2100 Key Oil Stats (primary oil w/o processing gain) | P43: Mid | Q43: Low | R43: High
B44: To reset model defaults, click "Historical trends" button. | I44: 2010-2100 Cumulative conventional oil demand (G bbl): | P44: =SUM('Refinery & liquid substitution'!H66:Y66)/10^9 -> 1914.848748 | Q44: =SUM('Refinery & liquid substitution'!H70:Y70)/10^9 -> 802.3503211 | R44: =SUM('Refinery & liquid substitution'!H67:Y67)/10^9 -> 3353.406309
I45: Conventional + Unconventional Demand (G bbl): | P45: =SUM('Refinery & liquid substitution'!H85:Y85)/10^9 -> 3649.088881 | Q45: =P45 -> 3649.088881 | R45: =P45 -> 3649.088881
I46: Peak Conventional Demand Year: | P46: ='Refinery & liquid substitution'!C106 -> 2035 | Q46: ='Refinery & liquid substitution'!C108 -> 2005 | R46: ='Refinery & liquid substitution'!C107 -> 2055
I47: Peak Daily Demand (M bbl/day): | P47: ='Refinery & liquid substitution'!C110 -> 99.11484263 | Q47: ='Refinery & liquid substitution'!C114 -> 68.78744007 | R47: ='Refinery & liquid substitution'!C111 -> 124.6163294
I48: Peak Per-Capita Demand (bbl/cap-yr): | P48: ='Refinery & liquid substitution'!C116 -> 4.320539808 | Q48: =MIN('Refinery & liquid substitution'!C116:C120) -> 3.463087545 | R48: =MAX('Refinery & liquid substitution'!C116:C120) -> 5.222967933
I49: Fraction of remaining conv. oil consumed at peak year (USGS 2025 remaining endowment): | P49: ='Refinery & liquid substitution'!AA99 -> 0.414813541 | Q49: ='Refinery & liquid substitution'!AA101 -> 0.2029096496 | R49: ='Refinery & liquid substitution'!AA100 -> 0.8976050882

Sheet Tabular summary results
A1: Tabulated summary results
A3: This sheet collects summary results for ease of reading
C5: 2010 | D5: 2025 | E5: 2050 | F5: 2075 | G5: 2100 | H5: Units
A6: Population | C6: =Population!G197/1000000000 -> 6.83533721 | D6: =Population!J197/1000000000 -> 7.925954721 | E6: =Population!O197/1000000000 -> 8.702179357 | F6: =Population!T197/1000000000 -> 8.308984277 | G6: =Population!Y197/1000000000 -> 7.055487984 | H6: G persons
A7: Global GDP/cap | C7: ='GDP per Capita'!AI199/1000000000/'Tabular summary results'!C6 -> 7286.520771 | D7: ='GDP per Capita'!AL199/1000000000/'Tabular summary results'!D6 -> 11958.48606 | E7: ='GDP per Capita'!AQ199/1000000000/'Tabular summary results'!E6 -> 26368.88317 | F7: ='GDP per Capita'!AV199/1000000000/'Tabular summary results'!F6 -> 51339.25619 | G7: ='GDP per Capita'!BA199/1000000000/'Tabular summary results'!G6 -> 91455.63784 | H7: $/person
A8: Air travel activity | C8: ='Air Passenger Travel'!G388/1000000000000 -> 5.863092952 | D8: ='Air Passenger Travel'!J388/1000000000000 -> 12.65534199 | E8: ='Air Passenger Travel'!O388/1000000000000 -> 29.63263961 | F8: ='Air Passenger Travel'!T388/1000000000000 -> 54.25120861 | G8: ='Air Passenger Travel'!Y388/1000000000000 -> 81.24955653 | H8: T pkm
A9: Land travel activity | C9: =SUMPRODUCT(Population!G12:G195,'Land - Inputs'!G13:G196)/1000000000 -> 30.27402015 | D9: =SUMPRODUCT(Population!J12:J195,'Land - Inputs'!J13:J196)/1000000000 -> 46.45850738 | E9: =SUMPRODUCT(Population!O12:O195,'Land - Inputs'!O13:O196)/1000000000 -> 74.27357961 | F9: =SUMPRODUCT(Population!T12:T195,'Land - Inputs'!T13:T196)/1000000000 -> 90.53366176 | G9: =SUMPRODUCT(Population!Y12:Y195,'Land - Inputs'!Y13:Y196)/1000000000 -> 90.1841401 | H9: T pkm
A10: Freight activity | C10: =Freight!G390/1000000000000 -> 21.6628849 | D10: =Freight!J390/1000000000000 -> 40.73647644 | E10: =Freight!O390/1000000000000 -> 64.97509793 | F10: =Freight!T390/1000000000000 -> 92.24968512 | G10: =Freight!Y390/1000000000000 -> 122.129017 | H10: T tkm
A11: Intl. shipping activity | C11: ='Intl Shipping Freight'!G11/1000000000000 -> 57.27771051 | D11: ='Intl Shipping Freight'!J11/1000000000000 -> 118.0320916 | E11: ='Intl Shipping Freight'!O11/1000000000000 -> 299.9636869 | F11: ='Intl Shipping Freight'!T11/1000000000000 -> 566.2203095 | G11: ='Intl Shipping Freight'!Y11/1000000000000 -> 861.622819 | H11: T tkm
A12: Fraction non-liquids (land) | C12: ='Non-liquid fuels'!G37 -> 0.00441728161 | D12: ='Non-liquid fuels'!J37 -> 0.03965718911 | E12: ='Non-liquid fuels'!O37 -> 0.4824986619 | F12: ='Non-liquid fuels'!T37 -> 0.6543388596 | G12: ='Non-liquid fuels'!Y37 -> 0.6598657382 | H12: -
A13: Fraction unconventional liquids | C13: ='Refinery & liquid substitution'!G35 -> 0.03076885936 | D13: ='Refinery & liquid substitution'!J35 -> 0.08340174774 | E13: ='Refinery & liquid substitution'!O35 -> 0.3447945767 | F13: ='Refinery & liquid substitution'!T35 -> 0.752687981 | G13: ='Refinery & liquid substitution'!Y35 -> 0.9462417021 | H13: -

Sheet GDP per Capita
A1: GDP per Population General
B3: ='Scenario Mngr'!H3 -> 4 | C3: User input from "Controls & Results" sheet | K3: Parameters for GDP adjustment
J4: TRUE | K4: Adjustment on?
J5: 24820 | K5: Income limit (no adjustments above this level)
J6: 1.8779957 | K6: a
J7: -3.538e-05 | K7: b | L7: Adjusted GDP = a*GDP + b*GDP^2
B8: Notes: Some countries have $0 GDP per capita due to lack of UN GDP data. These countries are small contributors to global demand.
B9: Source: CIESIN scaled GDP and population SRES scenarios. See Supporting Information text for sources.
A10: Calculation Sheet - Data populated from scenarios (below) depending on user input
B12: GDP per Capita: Actual Data 1990-2005, Model 2010-2100. Units: year 2005$ per person | AD12: (GDP: UN Actual Data 1990-2005, Model 2010-2100)
B13: Name | C13: 1990 | D13: 1995 | E13: 2000 | F13: 2005 | G13: 2010 | H13: 2015 | I13: 2020 | J13: 2025 | K13: 2030 | L13: 2035 | M13: 2040 | N13: 2045 | O13: 2050 | P13: 2055 | Q13: 2060 | R13: 2065 | S13: 2070 | T13: 2075 | U13: 2080 | V13: 2085 | W13: 2090 | X13: 2095 | Y13: 2100 | Z13: UN 11 Regions | AA13: SRES 4 Regions | AD13: Name | AE13: 1990 | AF13: 1995 | AG13: 2000 | AH13: 2005 | AI13: 2010 | AJ13: 2015 | AK13: 2020 | AL13: 2025 | AM13: 2030 | AN13: 2035 | AO13: 2040 | AP13: 2045 | AQ13: 2050 | AR13: 2055 | AS13: 2060 | AT13: 2065 | AU13: 2070 | AV13: 2075 | AW13: 2080 | AX13: 2085 | AY13: 2090 | AZ13: 2095 | BA13: 2100 | BB13: UN 11 Regions | BC13: SRES 4 Regions
B14: Afghanistan | C14: =IF($J$4,IF(AE14/Population!C12<$J$5,AE14/Population!C12*$J$6+(AE14/Population!C12)^2*$J$7,AE14/Population!C12),AE14/Population!C12) -> 506.5968104 | D14: =IF($J$4,IF(AF14/Population!D12<$J$5,AF14/Population!D12*$J$6+(AF14/Population!D12)^2*$J$7,AF14/Population!D12),AF14/Population!D12) -> 317.292663 | E14: =IF($J$4,IF(AG14/Population!E12<$J$5,AG14/Population!E12*$J$6+(AG14/Population!E12)^2*$J$7,AG14/Population!E12),AG14/Population!E12) -> 232.511845 | F14: =IF($J$4,IF(AH14/Population!F12<$J$5,AH14/Population!F12*$J$6+(AH14/Population!F12)^2*$J$7,AH14/Population!F12),AH14/Population!F12) -> 500.4532525 | G14: =IF($J$4,IF(AI14/Population!G12<$J$5,AI14/Population!G12*$J$6+(AI14/Population!G12)^2*$J$7,AI14/Population!G12),AI14/Population!G12) -> 1121.935485 | H14: =IF($J$4,IF(AJ14/Population!H12<$J$5,AJ14/Population!H12*$J$6+(AJ14/Population!H12)^2*$J$7,AJ14/Population!H12),AJ14/Population!H12) -> 1386.025329 | I14: =IF($J$4,IF(AK14/Population!I12<$J$5,AK14/Population!I12*$J$6+(AK14/Population!I12)^2*$J$7,AK14/Population!I12),AK14/Population!I12) -> 1635.634374 | J14: =IF($J$4,IF(AL14/Population!J12<$J$5,AL14/Population!J12*$J$6+(AL14/Population!J12)^2*$J$7,AL14/Population!J12),AL14/Population!J12) -> 2176.070427 | K14: =IF($J$4,IF(AM14/Population!K12<$J$5,AM14/Population!K12*$J$6+(AM14/Population!K12)^2*$J$7,AM14/Population!K12),AM14/Population!K12) -> 2622.642081 | L14: =IF($J$4,IF(AN14/Population!L12<$J$5,AN14/Population!L12*$J$6+(AN14/Population!L12)^2*$J$7,AN14/Population!L12),AN14/Population!L12) -> 3301.673226 | M14: =IF($J$4,IF(AO14/Population!M12<$J$5,AO14/Population!M12*$J$6+(AO14/Population!M12)^2*$J$7,AO14/Population!M12),AO14/Population!M12) -> 3877.633846 | N14: =IF($J$4,IF(AP14/Population!N12<$J$5,AP14/Population!N12*$J$6+(AP14/Population!N12)^2*$J$7,AP14/Population!N12),AP14/Population!N12) -> 4403.973812 | O14: =IF($J$4,IF(AQ14/Population!O12<$J$5,AQ14/Population!O12*$J$6+(AQ14/Population!O12)^2*$J$7,AQ14/Population!O12),AQ14/Population!O12) -> 4920.287345 | P14: =IF($J$4,IF(AR14/Population!P12<$J$5,AR14/Population!P12*$J$6+(AR14/Population!P12)^2*$J$7,AR14/Population!P12),AR14/Population!P12) -> 6545.92603 | Q14: =IF($J$4,IF(AS14/Population!Q12<$J$5,AS14/Population!Q12*$J$6+(AS14/Population!Q12)^2*$J$7,AS14/Population!Q12),AS14/Population!Q12) -> 8246.683978 | R14: =IF($J$4,IF(AT14/Population!R12<$J$5,AT14/Population!R12*$J$6+(AT14/Population!R12)^2*$J$7,AT14/Population!R12),AT14/Population!R12) -> 10034.09356 | S14: =IF($J$4,IF(AU14/Population!S12<$J$5,AU14/Population!S12*$J$6+(AU14/Population!S12)^2*$J$7,AU14/Population!S12),AU14/Population!S12) -> 11912.66539 | T14: =IF($J$4,IF(AV14/Population!T12<$J$5,AV14/Population!T12*$J$6+(AV14/Population!T12)^2*$J$7,AV14/Population!T12),AV14/Population!T12) -> 13878.87192 | U14: =IF($J$4,IF(AW14/Population!U12<$J$5,AW14/Population!U12*$J$6+(AW14/Population!U12)^2*$J$7,AW14/Population!U12),AW14/Population!U12) -> 15802.14369 | V14: =IF($J$4,IF(AX14/Population!V12<$J$5,AX14/Population!V12*$J$6+(AX14/Population!V12)^2*$J$7,AX14/Population!V12),AX14/Population!V12) -> 17791.5231 | W14: =IF($J$4,IF(AY14/Population!W12<$J$5,AY14/Population!W12*$J$6+(AY14/Population!W12)^2*$J$7,AY14/Population!W12),AY14/Population!W12) -> 19789.17221 | X14: =IF($J$4,IF(AZ14/Population!X12<$J$5,AZ14/Population!X12*$J$6+(AZ14/Population!X12)^2*$J$7,AZ14/Population!X12),AZ14/Population!X12) -> 21697.10501 | Y14: =IF($J$4,IF(BA14/Population!Y12<$J$5,BA14/Population!Y12*$J$6+(BA14/Population!Y12)^2*$J$7,BA14/Population!Y12),BA14/Population!Y12) -> 23355.50807 | Z14: SAS | AA14: ASIA | AD14: Afghanistan | AE14: 3646647235 | AF14: 3258682474 | AG14: 2732770211 | AH14: 6839958644 | AI14: 1.759771859e+10 | AJ14: =IFERROR(AI14*(1+AJ207)^5,0) -> 2.629006856e+10 | AK14: =IFERROR(AJ14*(1+AK207)^5,0) -> 3.498241853e+10 | AL14: =IFERROR(AK14*(1+AL207)^5,0) -> 5.186369012e+10 | AM14: 6.874496171e+10 | AN14: 9.409669278e+10 | AO14: 1.194484238e+11 | AP14: 1.448001549e+11 | AQ14: 1.70151886e+11 | AR14: 2.245141606e+11 | AS14: 2.788764352e+11 | AT14: 3.332387097e+11 | AU14: 3.876009843e+11 | AV14: 4.419632589e+11 | AW14: 4.913628879e+11 | AX14: 5.407625168e+11 | AY14: 5.901621458e+11 | AZ14: 6.395617748e+11 | BA14: =IFERROR(AZ14*(1+BA207)^5,0) -> 6.889614038e+11 | BB14: SAS | BC14: ASIA
B15: Albania | C15: =IF($J$4,IF(AE15/Population!C13<$J$5,AE15/Population!C13*$J$6+(AE15/Population!C13)^2*$J$7,AE15/Population!C13),AE15/Population!C13) -> 2984.678007 | D15: =IF($J$4,IF(AF15/Population!D13<$J$5,AF15/Population!D13*$J$6+(AF15/Population!D13)^2*$J$7,AF15/Population!D13),AF15/Population!D13) -> 2762.297374 | E15: =IF($J$4,IF(AG15/Population!E13<$J$5,AG15/Population!E13*$J$6+(AG15/Population!E13)^2*$J$7,AG15/Population!E13),AG15/Population!E13) -> 3515.186824 | F15: =IF($J$4,IF(AH15/Population!F13<$J$5,AH15/Population!F13*$J$6+(AH15/Population!F13)^2*$J$7,AH15/Population!F13),AH15/Population!F13) -> 4808.380698 | G15: =IF($J$4,IF(AI15/Population!G13<$J$5,AI15/Population!G13*$J$6+(AI15/Population!G13)^2*$J$7,AI15/Population!G13),AI15/Population!G13) -> 8897.84087 | H15: =IF($J$4,IF(AJ15/Population!H13<$J$5,AJ15/Population!H13*$J$6+(AJ15/Population!H13)^2*$J$7,AJ15/Population!H13),AJ15/Population!H13) -> 10068.89195 | I15: =IF($J$4,IF(AK15/Population!I13<$J$5,AK15/Population!I13*$J$6+(AK15/Population!I13)^2*$J$7,AK15/Population!I13),AK15/Population!I13) -> 12119.57262 | J15: =IF($J$4,IF(AL15/Population!J13<$J$5,AL15/Population!J13*$J$6+(AL15/Population!J13)^2*$J$7,AL15/Population!J13),AL15/Population!J13) -> 15598.33951 | K15: =IF($J$4,IF(AM15/Population!K13<$J$5,AM15/Population!K13*$J$6+(AM15/Population!K13)^2*$J$7,AM15/Population!K13),AM15/Population!K13) -> 18377.06337 | L15: =IF($J$4,IF(AN15/Population!L13<$J$5,AN15/Population!L13*$J$6+(AN15/Population!L13)^2*$J$7,AN15/Population!L13),AN15/Population!L13) -> 21565.8204 | M15: =IF($J$4,IF(AO15/Population!M13<$J$5,AO15/Population!M13*$J$6+(AO15/Population!M13)^2*$J$7,AO15/Population!M13),AO15/Population!M13) -> 23684.79687 | N15: =IF($J$4,IF(AP15/Population!N13<$J$5,AP15/Population!N13*$J$6+(AP15/Population!N13)^2*$J$7,AP15/Population!N13),AP15/Population!N13) -> 24772.42249 | O15: =IF($J$4,IF(AQ15/Population!O13<$J$5,AQ15/Population!O13*$J$6+(AQ15/Population!O13)^2*$J$7,AQ15/Population!O13),AQ15/Population!O13) -> 28415.02581 | P15: =IF($J$4,IF(AR15/Population!P13<$J$5,AR15/Population!P13*$J$6+(AR15/Population!P13)^2*$J$7,AR15/Population!P13),AR15/Population!P13) -> 33766.99231 | Q15: =IF($J$4,IF(AS15/Population!Q13<$J$5,AS15/Population!Q13*$J$6+(AS15/Population!Q13)^2*$J$7,AS15/Population!Q13),AS15/Population!Q13) -> 39418.01836 | R15: =IF($J$4,IF(AT15/Population!R13<$J$5,AT15/Population!R13*$J$6+(AT15/Population!R13)^2*$J$7,AT15/Population!R13),AT15/Population!R13) -> 45490.7447 | S15: =IF($J$4,IF(AU15/Population!S13<$J$5,AU15/Population!S13*$J$6+(AU15/Population!S13)^2*$J$7,AU15/Population!S13),AU15/Population!S13) -> 52065.31717 | T15: =IF($J$4,IF(AV15/Population!T13<$J$5,AV15/Population!T13*$J$6+(AV15/Population!T13)^2*$J$7,AV15/Population!T13),AV15/Population!T13) -> 59054.3881 | U15: =IF($J$4,IF(AW15/Population!U13<$J$5,AW15/Population!U13*$J$6+(AW15/Population!U13)^2*$J$7,AW15/Population!U13),AW15/Population!U13) -> 67783.88145 | V15: =IF($J$4,IF(AX15/Population!V13<$J$5,AX15/Population!V13*$J$6+(AX15/Population!V13)^2*$J$7,AX15/Population!V13),AX15/Population!V13) -> 76702.97164 | W15: =IF($J$4,IF(AY15/Population!W13<$J$5,AY15/Population!W13*$J$6+(AY15/Population!W13)^2*$J$7,AY15/Population!W13),AY15/Population!W13) -> 86169.98379 | X15: =IF($J$4,IF(AZ15/Population!X13<$J$5,AZ15/Population!X13*$J$6+(AZ15/Population!X13)^2*$J$7,AZ15/Population!X13),AZ15/Population!X13) -> 96324.03997 | Y15: =IF($J$4,IF(BA15/Population!Y13<$J$5,BA15/Population!Y13*$J$6+(BA15/Population!Y13)^2*$J$7,BA15/Population!Y13),BA15/Population!Y13) -> 107152.3339 | Z15: EEU | AA15: REF | AD15: Albania | AE15: 5321535388 | AF15: 4781640936 | AG15: 6136332232 | AH15: 8158552435 | AI15: 1.57083191e+10 | AJ15: 2.241499179e+10 | AK15: =IFERROR(AJ15*(1+AK208)^5,0) -> 2.912166448e+10 | AL15: 4.154782242e+10 | AM15: 5.397398037e+10 | AN15: 7.202220488e+10 | AO15: 9.007042939e+10 | AP15: 1.081186539e+11 | AQ15: 1.261668784e+11 | AR15: 1.456422632e+11 | AS15: 1.651176481e+11 | AT15: 1.845930329e+11 | AU15: 2.040684177e+11 | AV15: 2.235438025e+11 | AW15: 2.484778984e+11 | AX15: 2.734119942e+11 | AY15: 2.983460901e+11 | AZ15: 3.232801859e+11 | BA15: =IFERROR(AZ15*(1+BA208)^5,0) -> 3.482142817e+11 | BB15: EEU | BC15: REF
B16: Algeria | C16: =IF($J$4,IF(AE16/Population!C14<$J$5,AE16/Population!C14*$J$6+(AE16/Population!C14)^2*$J$7,AE16/Population!C14),AE16/Population!C14) -> 4883.780139 | D16: =IF($J$4,IF(AF16/Population!D14<$J$5,AF16/Population!D14*$J$6+(AF16/Population!D14)^2*$J$7,AF16/Population!D14),AF16/Population!D14) -> 4441.285409 | E16: =IF($J$4,IF(AG16/Population!E14<$J$5,AG16/Population!E14*$J$6+(AG16/Population!E14)^2*$J$7,AG16/Population!E14),AG16/Population!E14) -> 4764.86537 | F16: =IF($J$4,IF(AH16/Population!F14<$J$5,AH16/Population!F14*$J$6+(AH16/Population!F14)^2*$J$7,AH16/Population!F14),AH16/Population!F14) -> 5597.862011 | G16: =IF($J$4,IF(AI16/Population!G14<$J$5,AI16/Population!G14*$J$6+(AI16/Population!G14)^2*$J$7,AI16/Population!G14),AI16/Population!G14) -> 5872.470659 | H16: =IF($J$4,IF(AJ16/Population!H14<$J$5,AJ16/Population!H14*$J$6+(AJ16/Population!H14)^2*$J$7,AJ16/Population!H14),AJ16/Population!H14) -> 7245.052779 | I16: =IF($J$4,IF(AK16/Population!I14<$J$5,AK16/Population!I14*$J$6+(AK16/Population!I14)^2*$J$7,AK16/Population!I14),AK16/Population!I14) -> 8752.625949 | J16: =IF($J$4,IF(AL16/Population!J14<$J$5,AL16/Population!J14*$J$6+(AL16/Population!J14)^2*$J$7,AL16/Population!J14),AL16/Population!J14) -> 11427.1413 | K16: =IF($J$4,IF(AM16/Population!K14<$J$5,AM16/Population!K14*$J$6+(AM16/Population!K14)^2*$J$7,AM16/Population!K14),AM16/Population!K14) -> 13653.35453 | L16: =IF($J$4,IF(AN16/Population!L14<$J$5,AN16/Population!L14*$J$6+(AN16/Population!L14)^2*$J$7,AN16/Population!L14),AN16/Population!L14) -> 17377.49679 | M16: =IF($J$4,IF(AO16/Population!M14<$J$5,AO16/Population!M14*$J$6+(AO16/Population!M14)^2*$J$7,AO16/Population!M14),AO16/Population!M14) -> 20206.1377 | N16: =IF($J$4,IF(AP16/Population!N14<$J$5,AP16/Population!N14*$J$6+(AP16/Population!N14)^2*$J$7,AP16/Population!N14),AP16/Population!N14) -> 22304.50568 | O16: =IF($J$4,IF(AQ16/Population!O14<$J$5,AQ16/Population!O14*$J$6+(AQ16/Population!O14)^2*$J$7,AQ16/Population!O14),AQ16/Population!O14) -> 23775.69153 | P16: =IF($J$4,IF(AR16/Population!P14<$J$5,AR16/Population!P14*$J$6+(AR16/Population!P14)^2*$J$7,AR16/Population!P14),AR16/Population!P14) -> 24504.62944 | Q16: =IF($J$4,IF(AS16/Population!Q14<$J$5,AS16/Population!Q14*$J$6+(AS16/Population!Q14)^2*$J$7,AS16/Population!Q14),AS16/Population!Q14) -> 25312.73606 | R16: =IF($J$4,IF(AT16/Population!R14<$J$5,AT16/Population!R14*$J$6+(AT16/Population!R14)^2*$J$7,AT16/Population!R14),AT16/Population!R14) -> 27504.73015 | S16: =IF($J$4,IF(AU16/Population!S14<$J$5,AU16/Population!S14*$J$6+(AU16/Population!S14)^2*$J$7,AU16/Population!S14),AU16/Population!S14) -> 29730.72397 | T16: =IF($J$4,IF(AV16/Population!T14<$J$5,AV16/Population!T14*$J$6+(AV16/Population!T14)^2*$J$7,AV16/Population!T14),AV16/Population!T14) -> 32052.10736 | U16: =IF($J$4,IF(AW16/Population!U14<$J$5,AW16/Population!U14*$J$6+(AW16/Population!U14)^2*$J$7,AW16/Population!U14),AW16/Population!U14) -> 34827.19026 | V16: =IF($J$4,IF(AX16/Population!V14<$J$5,AX16/Population!V14*$J$6+(AX16/Population!V14)^2*$J$7,AX16/Population!V14),AX16/Population!V14) -> 37769.71732 | W16: =IF($J$4,IF(AY16/Population!W14<$J$5,AY16/Population!W14*$J$6+(AY16/Population!W14)^2*$J$7,AY16/Population!W14),AY16/Population!W14) -> 41137.20866 | X16: =IF($J$4,IF(AZ16/Population!X14<$J$5,AZ16/Population!X14*$J$6+(AZ16/Population!X14)^2*$J$7,AZ16/Population!X14),AZ16/Population!X14) -> 45007.27075 | Y16: =IF($J$4,IF(BA16/Population!Y14<$J$5,BA16/Population!Y14*$J$6+(BA16/Population!Y14)^2*$J$7,BA16/Population!Y14),BA16/Population!Y14) -> 49465.90372 | Z16: MEA | AA16: ALM | AD16: Algeria | AE16: 6.879893394e+10 | AF16: 6.968513221e+10 | AG16: 8.129715361e+10 | AH16: 1.032203992e+11 | AI16: 1.154051526e+11 | AJ16: 1.703137372e+11 | AK16: =IFERROR(AJ16*(1+AK209)^5,0) -> 2.252223217e+11 | AL16: 3.255896512e+11 | AM16: 4.259569808e+11 | AN16: 6.094990529e+11 | AO16: 7.93041125e+11 | AP16: 9.765831971e+11 | AQ16: 1.160125269e+12 | AR16: 1.346531027e+12 | AS16: 1.532936784e+12 | AT16: 1.719342542e+12 | AU16: 1.9057483e+12 | AV16: 2.092154057e+12 | AW16: 2.298748709e+12 | AX16: 2.505343361e+12 | AY16: 2.711938014e+12 | AZ16: 2.918532666e+12 | BA16: 3.125127318e+12 | BB16: MEA | BC16: ALM
B17: Angola | C17: =IF($J$4,IF(AE17/Population!C15<$J$5,AE17/Population!C15*$J$6+(AE17/Population!C15)^2*$J$7,AE17/Population!C15),AE17/Population!C15) -> 2366.145167 | D17: =IF($J$4,IF(AF17/Population!D15<$J$5,AF17/Population!D15*$J$6+(AF17/Population!D15)^2*$J$7,AF17/Population!D15),AF17/Population!D15) -> 1767.090037 | E17: =IF($J$4,IF(AG17/Population!E15<$J$5,AG17/Population!E15*$J$6+(AG17/Population!E15)^2*$J$7,AG17/Population!E15),AG17/Population!E15) -> 2151.470785 | F17: =IF($J$4,IF(AH17/Population!F15<$J$5,AH17/Population!F15*$J$6+(AH17/Population!F15)^2*$J$7,AH17/Population!F15),AH17/Population!F15) -> 3088.241448 | G17: =IF($J$4,IF(AI17/Population!G15<$J$5,AI17/Population!G15*$J$6+(AI17/Population!G15)^2*$J$7,AI17/Population!G15),AI17/Population!G15) -> 7529.828595 | H17: =IF($J$4,IF(AJ17/Population!H15<$J$5,AJ17/Population!H15*$J$6+(AJ17/Population!H15)^2*$J$7,AJ17/Population!H15),AJ17/Population!H15) -> 6518.52622 | I17: =IF($J$4,IF(AK17/Population!I15<$J$5,AK17/Population!I15*$J$6+(AK17/Population!I15)^2*$J$7,AK17/Population!I15),AK17/Population!I15) -> 7277.657512 | J17: =IF($J$4,IF(AL17/Population!J15<$J$5,AL17/Population!J15*$J$6+(AL17/Population!J15)^2*$J$7,AL17/Population!J15),AL17/Population!J15) -> 8740.336936 | K17: =IF($J$4,IF(AM17/Population!K15<$J$5,AM17/Population!K15*$J$6+(AM17/Population!K15)^2*$J$7,AM17/Population!K15),AM17/Population!K15) -> 9897.126954 | L17: =IF($J$4,IF(AN17/Population!L15<$J$5,AN17/Population!L15*$J$6+(AN17/Population!L15)^2*$J$7,AN17/Population!L15),AN17/Population!L15) -> 16396.33882 | M17: =IF($J$4,IF(AO17/Population!M15<$J$5,AO17/Population!M15*$J$6+(AO17/Population!M15)^2*$J$7,AO17/Population!M15),AO17/Population!M15) -> 20417.94387 | N17: =IF($J$4,IF(AP17/Population!N15<$J$5,AP17/Population!N15*$J$6+(AP17/Population!N15)^2*$J$7,AP17/Population!N15),AP17/Population!N15) -> 22837.45966 | O17: =IF($J$4,IF(AQ17/Population!O15<$J$5,AQ17/Population!O15*$J$6+(AQ17/Population!O15)^2*$J$7,AQ17/Population!O15),AQ17/Population!O15) -> 24206.38981 | P17: =IF($J$4,IF(AR17/Population!P15<$J$5,AR17/Population!P15*$J$6+(AR17/Population!P15)^2*$J$7,AR17/Population!P15),AR17/Population!P15) -> 29552.49045 | Q17: =IF($J$4,IF(AS17/Population!Q15<$J$5,AS17/Population!Q15*$J$6+(AS17/Population!Q15)^2*$J$7,AS17/Population!Q15),AS17/Population!Q15) -> 37257.65205 | R17: =IF($J$4,IF(AT17/Population!R15<$J$5,AT17/Population!R15*$J$6+(AT17/Population!R15)^2*$J$7,AT17/Population!R15),AT17/Population!R15) -> 45317.6656 | S17: =IF($J$4,IF(AU17/Population!S15<$J$5,AU17/Population!S15*$J$6+(AU17/Population!S15)^2*$J$7,AU17/Population!S15),AU17/Population!S15) -> 53869.95078 | T17: =IF($J$4,IF(AV17/Population!T15<$J$5,AV17/Population!T15*$J$6+(AV17/Population!T15)^2*$J$7,AV17/Population!T15),AV17/Population!T15) -> 63095.45656 | U17: =IF($J$4,IF(AW17/Population!U15<$J$5,AW17/Population!U15*$J$6+(AW17/Population!U15)^2*$J$7,AW17/Population!U15),AW17/Population!U15) -> 74088.60175 | V17: =IF($J$4,IF(AX17/Population!V15<$J$5,AX17/Population!V15*$J$6+(AX17/Population!V15)^2*$J$7,AX17/Population!V15),AX17/Population!V15) -> 86223.0685 | W17: =IF($J$4,IF(AY17/Population!W15<$J$5,AY17/Population!W15*$J$6+(AY17/Population!W15)^2*$J$7,AY17/Population!W15),AY17/Population!W15) -> 99757.16327 | X17: =IF($J$4,IF(AZ17/Population!X15<$J$5,AZ17/Population!X15*$J$6+(AZ17/Population!X15)^2*$J$7,AZ17/Population!X15),AZ17/Population!X15) -> 114968.6887 | Y17: =IF($J$4,IF(BA17/Population!Y15<$J$5,BA17/Population!Y15*$J$6+(BA17/Population!Y15)^2*$J$7,BA17/Population!Y15),BA17/Population!Y15) -> 132127.3646 | Z17: SSA | AA17: ALM | AD17: Angola | AE17: 1.071379695e+10 | AF17: 9025813639 | AG17: 1.215670681e+10 | AH17: 1.98878151e+10 | AI17: 5.7096499e+10 | AJ17: 8.076639821e+10 | AK17: =IFERROR(AJ17*(1+AK210)^5,0) -> 1.044362974e+11 | AL17: 1.445658044e+11 | AM17: 1.846953114e+11 | AN17: 3.726919283e+11 | AO17: 5.606885452e+11 | AP17: 7.486851621e+11 | AQ17: 9.36681779e+11 | AR17: 1.266256599e+12 | AS17: 1.595831419e+12 | AT17: 1.925406239e+12 | AU17: 2.254981059e+12 | AV17: 2.584555879e+12 | AW17: 2.950876146e+12 | AX17: 3.317196412e+12 | AY17: 3.683516679e+12 | AZ17: 4.049836946e+12 | BA17: 4.416157212e+12 | BB17: SSA | BC17: ALM
B18: Argentina | C18: =IF($J$4,IF(AE18/Population!C16<$J$5,AE18/Population!C16*$J$6+(AE18/Population!C16)^2*$J$7,AE18/Population!C16),AE18/Population!C16) -> 5849.971572 | D18: =IF($J$4,IF(AF18/Population!D16<$J$5,AF18/Population!D16*$J$6+(AF18/Population!D16)^2*$J$7,AF18/Population!D16),AF18/Population!D16) -> 7175.136691 | E18: =IF($J$4,IF(AG18/Population!E16<$J$5,AG18/Population!E16*$J$6+(AG18/Population!E16)^2*$J$7,AG18/Population!E16),AG18/Population!E16) -> 7650.867538 | F18: =IF($J$4,IF(AH18/Population!F16<$J$5,AH18/Population!F16*$J$6+(AH18/Population!F16)^2*$J$7,AH18/Population!F16),AH18/Population!F16) -> 8007.313829 | G18: =IF($J$4,IF(AI18/Population!G16<$J$5,AI18/Population!G16*$J$6+(AI18/Population!G16)^2*$J$7,AI18/Population!G16),AI18/Population!G16) -> 9708.692034 | H18: =IF($J$4,IF(AJ18/Population!H16<$J$5,AJ18/Population!H16*$J$6+(AJ18/Population!H16)^2*$J$7,AJ18/Population!H16),AJ18/Population!H16) -> 12979.8747 | I18: =IF($J$4,IF(AK18/Population!I16<$J$5,AK18/Population!I16*$J$6+(AK18/Population!I16)^2*$J$7,AK18/Population!I16),AK18/Population!I16) -> 15722.55099 | J18: =IF($J$4,IF(AL18/Population!J16<$J$5,AL18/Population!J16*$J$6+(AL18/Population!J16)^2*$J$7,AL18/Population!J16),AL18/Population!J16) -> 20066.46524 | K18: =IF($J$4,IF(AM18/Population!K16<$J$5,AM18/Population!K16*$J$6+(AM18/Population!K16)^2*$J$7,AM18/Population!K16),AM18/Population!K16) -> 22922.76375 | L18: =IF($J$4,IF(AN18/Population!L16<$J$5,AN18/Population!L16*$J$6+(AN18/Population!L16)^2*$J$7,AN18/Population!L16),AN18/Population!L16) -> 24436.87095 | M18: =IF($J$4,IF(AO18/Population!M16<$J$5,AO18/Population!M16*$J$6+(AO18/Population!M16)^2*$J$7,AO18/Population!M16),AO18/Population!M16) -> 26588.35441 | N18: =IF($J$4,IF(AP18/Population!N16<$J$5,AP18/Population!N16*$J$6+(AP18/Population!N16)^2*$J$7,AP18/Population!N16),AP18/Population!N16) -> 30331.34918 | O18: =IF($J$4,IF(AQ18/Population!O16<$J$5,AQ18/Population!O16*$J$6+(AQ18/Population!O16)^2*$J$7,AQ18/Population!O16),AQ18/Population!O16) -> 34151.16079 | P18: =IF($J$4,IF(AR18/Population!P16<$J$5,AR18/Population!P16*$J$6+(AR18/Population!P16)^2*$J$7,AR18/Population!P16),AR18/Population!P16) -> 38381.2763 | Q18: =IF($J$4,IF(AS18/Population!Q16<$J$5,AS18/Population!Q16*$J$6+(AS18/Population!Q16)^2*$J$7,AS18/Population!Q16),AS18/Population!Q16) -> 42831.55504 | R18: =IF($J$4,IF(AT18/Population!R16<$J$5,AT18/Population!R16*$J$6+(AT18/Population!R16)^2*$J$7,AT18/Population!R16),AT18/Population!R16) -> 47562.43574 | S18: =IF($J$4,IF(AU18/Population!S16<$J$5,AU18/Population!S16*$J$6+(AU18/Population!S16)^2*$J$7,AU18/Population!S16),AU18/Population!S16) -> 52590.79569 | T18: =IF($J$4,IF(AV18/Population!T16<$J$5,AV18/Population!T16*$J$6+(AV18/Population!T16)^2*$J$7,AV18/Population!T16),AV18/Population!T16) -> 57990.84008 | U18: =IF($J$4,IF(AW18/Population!U16<$J$5,AW18/Population!U16*$J$6+(AW18/Population!U16)^2*$J$7,AW18/Population!U16),AW18/Population!U16) -> 63740.57842 | V18: =IF($J$4,IF(AX18/Population!V16<$J$5,AX18/Population!V16*$J$6+(AX18/Population!V16)^2*$J$7,AX18/Population!V16),AX18/Population!V16) -> 69947.42008 | W18: =IF($J$4,IF(AY18/Population!W16<$J$5,AY18/Population!W16*$J$6+(AY18/Population!W16)^2*$J$7,AY18/Population!W16),AY18/Population!W16) -> 76990.99438 | X18: =IF($J$4,IF(AZ18/Population!X16<$J$5,AZ18/Population!X16*$J$6+(AZ18/Population!X16)^2*$J$7,AZ18/Population!X16),AZ18/Population!X16) -> 84927.5283 | Y18: =IF($J$4,IF(BA18/Population!Y16<$J$5,BA18/Population!Y16*$J$6+(BA18/Population!Y16)^2*$J$7,BA18/Population!Y16),BA18/Population!Y16) -> 93767.42084 | Z18: LAM | AA18: ALM | AD18: Argentina | AE18: 1.097786224e+11 | AF18: 1.461813514e+11 | AG18: 1.660098873e+11 | AH18: 1.831960974e+11 | AI18: 2.399737008e+11 | AJ18: 3.562776196e+11 | AK18: =IFERROR(AJ18*(1+AK211)^5,0) -> 4.725815383e+11 | AL18: 6.968467563e+11 | AM18: 9.211119743e+11 | AN18: 1.132694257e+12 | AO18: 1.34427654e+12 | AP18: 1.555858823e+12 | AQ18: 1.767441106e+12 | AR18: 1.992728133e+12 | AS18: 2.218015159e+12 | AT18: 2.443302186e+12 | AU18: 2.668589212e+12 | AV18: 2.893876239e+12 | AW18: 3.117609028e+12 | AX18: 3.341341818e+12 | AY18: 3.565074608e+12 | AZ18: 3.788807398e+12 | BA18: 4.012540188e+12 | BB18: LAM | BC18: ALM
B19: Armenia | C19: =IF($J$4,IF(AE19/Population!C17<$J$5,AE19/Population!C17*$J$6+(AE19/Population!C17)^2*$J$7,AE19/Population!C17),AE19/Population!C17) -> 2215.356825 | D19: =IF($J$4,IF(AF19/Population!D17<$J$5,AF19/Population!D17*$J$6+(AF19/Population!D17)^2*$J$7,AF19/Population!D17),AF19/Population!D17) -> 1299.980276 | E19: =IF($J$4,IF(AG19/Population!E17<$J$5,AG19/Population!E17*$J$6+(AG19/Population!E17)^2*$J$7,AG19/Population!E17),AG19/Population!E17) -> 1676.699086 | F19: =IF($J$4,IF(AH19/Population!F17<$J$5,AH19/Population!F17*$J$6+(AH19/Population!F17)^2*$J$7,AH19/Population!F17),AH19/Population!F17) -> 2989.779651 | G19: =IF($J$4,IF(AI19/Population!G17<$J$5,AI19/Population!G17*$J$6+(AI19/Population!G17)^2*$J$7,AI19/Population!G17),AI19/Population!G17) -> 3651.926007 | H19: =IF($J$4,IF(AJ19/Population!H17<$J$5,AJ19/Population!H17*$J$6+(AJ19/Population!H17)^2*$J$7,AJ19/Population!H17),AJ19/Population!H17) -> 3748.600045 | I19: =IF($J$4,IF(AK19/Population!I17<$J$5,AK19/Population!I17*$J$6+(AK19/Population!I17)^2*$J$7,AK19/Population!I17),AK19/Population!I17) -> 4756.630778 | J19: =IF($J$4,IF(AL19/Population!J17<$J$5,AL19/Population!J17*$J$6+(AL19/Population!J17)^2*$J$7,AL19/Population!J17),AL19/Population!J17) -> 6609.388674 | K19: =IF($J$4,IF(AM19/Population!K17<$J$5,AM19/Population!K17*$J$6+(AM19/Population!K17)^2*$J$7,AM19/Population!K17),AM19/Population!K17) -> 8398.469764 | L19: =IF($J$4,IF(AN19/Population!L17<$J$5,AN19/Population!L17*$J$6+(AN19/Population!L17)^2*$J$7,AN19/Population!L17),AN19/Population!L17) -> 10871.63597 | M19: =IF($J$4,IF(AO19/Population!M17<$J$5,AO19/Population!M17*$J$6+(AO19/Population!M17)^2*$J$7,AO19/Population!M17),AO19/Population!M17) -> 13256.45058 | N19: =IF($J$4,IF(AP19/Population!N17<$J$5,AP19/Population!N17*$J$6+(AP19/Population!N17)^2*$J$7,AP19/Population!N17),AP19/Population!N17) -> 15582.91047 | O19: =IF($J$4,IF(AQ19/Population!O17<$J$5,AQ19/Population!O17*$J$6+(AQ19/Population!O17)^2*$J$7,AQ19/Population!O17),AQ19/Population!O17) -> 17845.94255 | P19: =IF($J$4,IF(AR19/Population!P17<$J$5,AR19/Population!P17*$J$6+(AR19/Population!P17)^2*$J$7,AR19/Population!P17),AR19/Population!P17) -> 19776.5181 | Q19: =IF($J$4,IF(AS19/Population!Q17<$J$5,AS19/Population!Q17*$J$6+(AS19/Population!Q17)^2*$J$7,AS19/Population!Q17),AS19/Population!Q17) -> 21448.40748 | R19: =IF($J$4,IF(AT19/Population!R17<$J$5,AT19/Population!R17*$J$6+(AT19/Population!R17)^2*$J$7,AT19/Population!R17),AT19/Population!R17) -> 22821.58163 | S19: =IF($J$4,IF(AU19/Population!S17<$J$5,AU19/Population!S17*$J$6+(AU19/Population!S17)^2*$J$7,AU19/Population!S17),AU19/Population!S17) -> 23892.57759 | T19: =IF($J$4,IF(AV19/Population!T17<$J$5,AV19/Population!T17*$J$6+(AV19/Population!T17)^2*$J$7,AV19/Population!T17),AV19/Population!T17) -> 24622.50718 | U19: =IF($J$4,IF(AW19/Population!U17<$J$5,AW19/Population!U17*$J$6+(AW19/Population!U17)^2*$J$7,AW19/Population!U17),AW19/Population!U17) -> 26843.81784 | V19: =IF($J$4,IF(AX19/Population!V17<$J$5,AX19/Population!V17*$J$6+(AX19/Population!V17)^2*$J$7,AX19/Population!V17),AX19/Population!V17) -> 30138.86519 | W19: =IF($J$4,IF(AY19/Population!W17<$J$5,AY19/Population!W17*$J$6+(AY19/Population!W17)^2*$J$7,AY19/Population!W17),AY19/Population!W17) -> 33590.48836 | X19: =IF($J$4,IF(AZ19/Population!X17<$J$5,AZ19/Population!X17*$J$6+(AZ19/Population!X17)^2*$J$7,AZ19/Population!X17),AZ19/Population!X17) -> 37232.47288 | Y19: =IF($J$4,IF(BA19/Population!Y17<$J$5,BA19/Population!Y17*$J$6+(BA19/Population!Y17)^2*$J$7,BA19/Population!Y17),BA19/Population!Y17) -> 41159.2041 | Z19: FSU | AA19: REF | AD19: Armenia | AE19: 4076077225 | AF19: 2152690004 | AG19: 2763728758 | AH19: 4900469734 | AI19: 5997624061 | AJ19: 8558311889 | AK19: =IFERROR(AJ19*(1+AK212)^5,0) -> 1.111899972e+10 | AL19: 1.58634554e+10 | AM19: 2.060791109e+10 | AN19: 2.749893902e+10 | AO19: 3.438996694e+10 | AP19: 4.128099487e+10 | AQ19: 4.81720228e+10 | AR19: 5.56079576e+10 | AS19: 6.30438924e+10 | AT19: 7.04798272e+10 | AU19: 7.7915762e+10 | AV19: 8.535169679e+10 | AW19: 9.487183273e+10 | AX19: 1.043919687e+11 | AY19: 1.139121046e+11 | AZ19: 1.234322405e+11 | BA19: 1.329523765e+11 | BB19: FSU | BC19: REF
B20: Australia | C20: =IF($J$4,IF(AE20/Population!C18<$J$5,AE20/Population!C18*$J$6+(AE20/Population!C18)^2*$J$7,AE20/Population!C18),AE20/Population!C18) -> 26832.80891 | D20: =IF($J$4,IF(AF20/Population!D18<$J$5,AF20/Population!D18*$J$6+(AF20/Population!D18)^2*$J$7,AF20/Population!D18),AF20/Population!D18) -> 29729.23612 | E20: =IF($J$4,IF(AG20/Population!E18<$J$5,AG20/Population!E18*$J$6+(AG20/Population!E18)^2*$J$7,AG20/Population!E18),AG20/Population!E18) -> 33925.9078 | F20: =IF($J$4,IF(AH20/Population!F18<$J$5,AH20/Population!F18*$J$6+(AH20/Population!F18)^2*$J$7,AH20/Population!F18),AH20/Population!F18) -> 37774.5025 | G20: =IF($J$4,IF(AI20/Population!G18<$J$5,AI20/Population!G18*$J$6+(AI20/Population!G18)^2*$J$7,AI20/Population!G18),AI20/Population!G18) -> 37188.44547 | H20: =IF($J$4,IF(AJ20/Population!H18<$J$5,AJ20/Population!H18*$J$6+(AJ20/Population!H18)^2*$J$7,AJ20/Population!H18),AJ20/Population!H18) -> 38808.19266 | I20: =IF($J$4,IF(AK20/Population!I18<$J$5,AK20/Population!I18*$J$6+(AK20/Population!I18)^2*$J$7,AK20/Population!I18),AK20/Population!I18) -> 40236.14475 | J20: =IF($J$4,IF(AL20/Population!J18<$J$5,AL20/Population!J18*$J$6+(AL20/Population!J18)^2*$J$7,AL20/Population!J18),AL20/Population!J18) -> 42088.27524 | K20: =IF($J$4,IF(AM20/Population!K18<$J$5,AM20/Population!K18*$J$6+(AM20/Population!K18)^2*$J$7,AM20/Population!K18),AM20/Population!K18) -> 43815.68775 | L20: =IF($J$4,IF(AN20/Population!L18<$J$5,AN20/Population!L18*$J$6+(AN20/Population!L18)^2*$J$7,AN20/Population!L18),AN20/Population!L18) -> 45838.51537 | M20: =IF($J$4,IF(AO20/Population!M18<$J$5,AO20/Population!M18*$J$6+(AO20/Population!M18)^2*$J$7,AO20/Population!M18),AO20/Population!M18) -> 47930.5304 | N20: =IF($J$4,IF(AP20/Population!N18<$J$5,AP20/Population!N18*$J$6+(AP20/Population!N18)^2*$J$7,AP20/Population!N18),AP20/Population!N18) -> 50074.43734 | O20: =IF($J$4,IF(AQ20/Population!O18<$J$5,AQ20/Population!O18*$J$6+(AQ20/Population!O18)^2*$J$7,AQ20/Population!O18),AQ20/Population!O18) -> 52180.62929 | P20: =IF($J$4,IF(AR20/Population!P18<$J$5,AR20/Population!P18*$J$6+(AR20/Population!P18)^2*$J$7,AR20/Population!P18),AR20/Population!P18) -> 56992.57046 | Q20: =IF($J$4,IF(AS20/Population!Q18<$J$5,AS20/Population!Q18*$J$6+(AS20/Population!Q18)^2*$J$7,AS20/Population!Q18),AS20/Population!Q18) -> 61900.07332 | R20: =IF($J$4,IF(AT20/Population!R18<$J$5,AT20/Population!R18*$J$6+(AT20/Population!R18)^2*$J$7,AT20/Population!R18),AT20/Population!R18) -> 67080.64828 | S20: =IF($J$4,IF(AU20/Population!S18<$J$5,AU20/Population!S18*$J$6+(AU20/Population!S18)^2*$J$7,AU20/Population!S18),AU20/Population!S18) -> 72551.11191 | T20: =IF($J$4,IF(AV20/Population!T18<$J$5,AV20/Population!T18*$J$6+(AV20/Population!T18)^2*$J$7,AV20/Population!T18),AV20/Population!T18) -> 78183.98322 | U20: =IF($J$4,IF(AW20/Population!U18<$J$5,AW20/Population!U18*$J$6+(AW20/Population!U18)^2*$J$7,AW20/Population!U18),AW20/Population!U18) -> 84544.95121 | V20: =IF($J$4,IF(AX20/Population!V18<$J$5,AX20/Population!V18*$J$6+(AX20/Population!V18)^2*$J$7,AX20/Population!V18),AX20/Population!V18) -> 90819.51097 | W20: =IF($J$4,IF(AY20/Population!W18<$J$5,AY20/Population!W18*$J$6+(AY20/Population!W18)^2*$J$7,AY20/Population!W18),AY20/Population!W18) -> 97266.43079 | X20: =IF($J$4,IF(AZ20/Population!X18<$J$5,AZ20/Population!X18*$J$6+(AZ20/Population!X18)^2*$J$7,AZ20/Population!X18),AZ20/Population!X18) -> 104006.685 | Y20: =IF($J$4,IF(BA20/Population!Y18<$J$5,BA20/Population!Y18*$J$6+(BA20/Population!Y18)^2*$J$7,BA20/Population!Y18),BA20/Population!Y18) -> 111068.5458 | Z20: PAO | AA20: OECD90 | AD20: Australia | AE20: 4.549836015e+11 | AF20: 5.344018675e+11 | AG20: 6.463966315e+11 | AH20: 7.642668045e+11 | AI20: 8.001374444e+11 | AJ20: 8.745452625e+11 | AK20: =IFERROR(AJ20*(1+AK213)^5,0) -> 9.489530807e+11 | AL20: 1.036663232e+12 | AM20: 1.124373384e+12 | AN20: 1.221093794e+12 | AO20: 1.317814205e+12 | AP20: 1.414534616e+12 | AQ20: 1.511255026e+12 | AR20: 1.624472517e+12 | AS20: 1.737690007e+12 | AT20: 1.850907498e+12 | AU20: 1.964124988e+12 | AV20: 2.077342478e+12 | AW20: 2.210653152e+12 | AX20: 2.343963827e+12 | AY20: 2.477274501e+12 | AZ20: 2.610585175e+12 | BA20: 2.743895849e+12 | BB20: PAO | BC20: OECD90
B21: Austria | C21: =IF($J$4,IF(AE21/Population!C19<$J$5,AE21/Population!C19*$J$6+(AE21/Population!C19)^2*$J$7,AE21/Population!C19),AE21/Population!C19) -> 28246.82371 | D21: =IF($J$4,IF(AF21/Population!D19<$J$5,AF21/Population!D19*$J$6+(AF21/Population!D19)^2*$J$7,AF21/Population!D19),AF21/Population!D19) -> 30025.96495 | E21: =IF($J$4,IF(AG21/Population!E19<$J$5,AG21/Population!E19*$J$6+(AG21/Population!E19)^2*$J$7,AG21/Population!E19),AG21/Population!E19) -> 34502.06937 | F21: =IF($J$4,IF(AH21/Population!F19<$J$5,AH21/Population!F19*$J$6+(AH21/Population!F19)^2*$J$7,AH21/Population!F19),AH21/Population!F19) -> 37010.69929 | G21: =IF($J$4,IF(AI21/Population!G19<$J$5,AI21/Population!G19*$J$6+(AI21/Population!G19)^2*$J$7,AI21/Population!G19),AI21/Population!G19) -> 39766.02712 | H21: =IF($J$4,IF(AJ21/Population!H19<$J$5,AJ21/Population!H19*$J$6+(AJ21/Population!H19)^2*$J$7,AJ21/Population!H19),AJ21/Population!H19) -> 45374.39038 | I21: =IF($J$4,IF(AK21/Population!I19<$J$5,AK21/Population!I19*$J$6+(AK21/Population!I19)^2*$J$7,AK21/Population!I19),AK21/Population!I19) -> 50197.63602 | J21: =IF($J$4,IF(AL21/Population!J19<$J$5,AL21/Population!J19*$J$6+(AL21/Population!J19)^2*$J$7,AL21/Population!J19),AL21/Population!J19) -> 56094.721 | K21: =IF($J$4,IF(AM21/Population!K19<$J$5,AM21/Population!K19*$J$6+(AM21/Population!K19)^2*$J$7,AM21/Population!K19),AM21/Population!K19) -> 62205.38248 | L21: =IF($J$4,IF(AN21/Population!L19<$J$5,AN21/Population!L19*$J$6+(AN21/Population!L19)^2*$J$7,AN21/Population!L19),AN21/Population!L19) -> 69438.25826 | M21: =IF($J$4,IF(AO21/Population!M19<$J$5,AO21/Population!M19*$J$6+(AO21/Population!M19)^2*$J$7,AO21/Population!M19),AO21/Population!M19) -> 77244.69043 | N21: =IF($J$4,IF(AP21/Population!N19<$J$5,AP21/Population!N19*$J$6+(AP21/Population!N19)^2*$J$7,AP21/Population!N19),AP21/Population!N19) -> 85651.64973 | O21: =IF($J$4,IF(AQ21/Population!O19<$J$5,AQ21/Population!O19*$J$6+(AQ21/Population!O19)^2*$J$7,AQ21/Population!O19),AQ21/Population!O19) -> 94743.75257 | P21: =IF($J$4,IF(AR21/Population!P19<$J$5,AR21/Population!P19*$J$6+(AR21/Population!P19)^2*$J$7,AR21/Population!P19),AR21/Population!P19) -> 104857.7017 | Q21: =IF($J$4,IF(AS21/Population!Q19<$J$5,AS21/Population!Q19*$J$6+(AS21/Population!Q19)^2*$J$7,AS21/Population!Q19),AS21/Population!Q19) -> 115537.4791 | R21: =IF($J$4,IF(AT21/Population!R19<$J$5,AT21/Population!R19*$J$6+(AT21/Population!R19)^2*$J$7,AT21/Population!R19),AT21/Population!R19) -> 126483.9604 | S21: =IF($J$4,IF(AU21/Population!S19<$J$5,AU21/Population!S19*$J$6+(AU21/Population!S19)^2*$J$7,AU21/Population!S19),AU21/Population!S19) -> 137270.7591 | T21: =IF($J$4,IF(AV21/Population!T19<$J$5,AV21/Population!T19*$J$6+(AV21/Population!T19)^2*$J$7,AV21/Population!T19),AV21/Population!T19) -> 147953.4481 | U21: =IF($J$4,IF(AW21/Population!U19<$J$5,AW21/Population!U19*$J$6+(AW21/Population!U19)^2*$J$7,AW21/Population!U19),AW21/Population!U19) -> 162619.3321 | V21: =IF($J$4,IF(AX21/Population!V19<$J$5,AX21/Population!V19*$J$6+(AX21/Population!V19)^2*$J$7,AX21/Population!V19),AX21/Population!V19) -> 177299.4206 | W21: =IF($J$4,IF(AY21/Population!W19<$J$5,AY21/Population!W19*$J$6+(AY21/Population!W19)^2*$J$7,AY21/Population!W19),AY21/Population!W19) -> 193145.9686 | X21: =IF($J$4,IF(AZ21/Population!X19<$J$5,AZ21/Population!X19*$J$6+(AZ21/Population!X19)^2*$J$7,AZ21/Population!X19),AZ21/Population!X19) -> 209789.3372 | Y21: =IF($J$4,IF(BA21/Population!Y19<$J$5,BA21/Population!Y19*$J$6+(BA21/Population!Y19)^2*$J$7,BA21/Population!Y19),BA21/Population!Y19) -> 226821.0952 | Z21: WEU | AA21: OECD90 | AD21: Austria | AE21: 2.181488919e+11 | AF21: 2.416319412e+11 | AG21: 2.799295381e+11 | AH21: 3.029211374e+11 | AI21: 3.266445093e+11 | AJ21: 3.632612223e+11 | AK21: =IFERROR(AJ21*(1+AK214)^5,0) -> 3.998779354e+11 | AL21: 4.443831682e+11 | AM21: 4.888884011e+11 | AN21: 5.393369491e+11 | AO21: 5.897854971e+11 | AP21: 6.40234045e+11 | AQ21: 6.90682593e+11 | AR21: 7.625998652e+11 | AS21: 8.345171374e+11 | AT21: 9.064344096e+11 | AU21: 9.783516818e+11 | AV21: 1.050268954e+12 | AW21: 1.151003829e+12 | AX21: 1.251738703e+12 | AY21: 1.352473578e+12 | AZ21: 1.453208453e+12 | BA21: 1.553943328e+12 | BB21: WEU | BC21: OECD90
B22: Azerbaijan | C22: =IF($J$4,IF(AE22/Population!C20<$J$5,AE22/Population!C20*$J$6+(AE22/Population!C20)^2*$J$7,AE22/Population!C20),AE22/Population!C20) -> 3021.999968 | D22: =IF($J$4,IF(AF22/Population!D20<$J$5,AF22/Population!D20*$J$6+(AF22/Population!D20)^2*$J$7,AF22/Population!D20),AF22/Population!D20) -> 1229.505628 | E22: =IF($J$4,IF(AG22/Population!E20<$J$5,AG22/Population!E20*$J$6+(AG22/Population!E20)^2*$J$7,AG22/Population!E20),AG22/Population!E20) -> 1664.323562 | F22: =IF($J$4,IF(AH22/Population!F20<$J$5,AH22/Population!F20*$J$6+(AH22/Population!F20)^2*$J$7,AH22/Population!F20),AH22/Population!F20) -> 3006.707258 | G22: =IF($J$4,IF(AI22/Population!G20<$J$5,AI22/Population!G20*$J$6+(AI22/Population!G20)^2*$J$7,AI22/Population!G20),AI22/Population!G20) -> 6244.84046 | H22: =IF($J$4,IF(AJ22/Population!H20<$J$5,AJ22/Population!H20*$J$6+(AJ22/Population!H20)^2*$J$7,AJ22/Population!H20),AJ22/Population!H20) -> 7657.709823 | I22: =IF($J$4,IF(AK22/Population!I20<$J$5,AK22/Population!I20*$J$6+(AK22/Population!I20)^2*$J$7,AK22/Population!I20),AK22/Population!I20) -> 9334.123547 | J22: =IF($J$4,IF(AL22/Population!J20<$J$5,AL22/Population!J20*$J$6+(AL22/Population!J20)^2*$J$7,AL22/Population!J20),AL22/Population!J20) -> 12306.87269 | K22: =IF($J$4,IF(AM22/Population!K20<$J$5,AM22/Population!K20*$J$6+(AM22/Population!K20)^2*$J$7,AM22/Population!K20),AM22/Population!K20) -> 14873.86492 | L22: =IF($J$4,IF(AN22/Population!L20<$J$5,AN22/Population!L20*$J$6+(AN22/Population!L20)^2*$J$7,AN22/Population!L20),AN22/Population!L20) -> 18112.08278 | M22: =IF($J$4,IF(AO22/Population!M20<$J$5,AO22/Population!M20*$J$6+(AO22/Population!M20)^2*$J$7,AO22/Population!M20),AO22/Population!M20) -> 20704.48345 | N22: =IF($J$4,IF(AP22/Population!N20<$J$5,AP22/Population!N20*$J$6+(AP22/Population!N20)^2*$J$7,AP22/Population!N20),AP22/Population!N20) -> 22690.24267 | O22: =IF($J$4,IF(AQ22/Population!O20<$J$5,AQ22/Population!O20*$J$6+(AQ22/Population!O20)^2*$J$7,AQ22/Population!O20),AQ22/Population!O20) -> 24083.41466 | P22: =IF($J$4,IF(AR22/Population!P20<$J$5,AR22/Population!P20*$J$6+(AR22/Population!P20)^2*$J$7,AR22/Population!P20),AR22/Population!P20) -> 25368.39909 | Q22: =IF($J$4,IF(AS22/Population!Q20<$J$5,AS22/Population!Q20*$J$6+(AS22/Population!Q20)^2*$J$7,AS22/Population!Q20),AS22/Population!Q20) -> 29110.29866 | R22: =IF($J$4,IF(AT22/Population!R20<$J$5,AT22/Population!R20*$J$6+(AT22/Population!R20)^2*$J$7,AT22/Population!R20),AT22/Population!R20) -> 32932.52428 | S22: =IF($J$4,IF(AU22/Population!S20<$J$5,AU22/Population!S20*$J$6+(AU22/Population!S20)^2*$J$7,AU22/Population!S20),AU22/Population!S20) -> 36986.70273 | T22: =IF($J$4,IF(AV22/Population!T20<$J$5,AV22/Population!T20*$J$6+(AV22/Population!T20)^2*$J$7,AV22/Population!T20),AV22/Population!T20) -> 41407.08895 | U22: =IF($J$4,IF(AW22/Population!U20<$J$5,AW22/Population!U20*$J$6+(AW22/Population!U20)^2*$J$7,AW22/Population!U20),AW22/Population!U20) -> 47045.58492 | V22: =IF($J$4,IF(AX22/Population!V20<$J$5,AX22/Population!V20*$J$6+(AX22/Population!V20)^2*$J$7,AX22/Population!V20),AX22/Population!V20) -> 52756.55209 | W22: =IF($J$4,IF(AY22/Population!W20<$J$5,AY22/Population!W20*$J$6+(AY22/Population!W20)^2*$J$7,AY22/Population!W20),AY22/Population!W20) -> 58751.01986 | X22: =IF($J$4,IF(AZ22/Population!X20<$J$5,AZ22/Population!X20*$J$6+(AZ22/Population!X20)^2*$J$7,AZ22/Population!X20),AZ22/Population!X20) -> 65158.3289 | Y22: =IF($J$4,IF(BA22/Population!Y20<$J$5,BA22/Population!Y20*$J$6+(BA22/Population!Y20)^2*$J$7,BA22/Population!Y20),BA22/Population!Y20) -> 72040.73631 | Z22: FSU | AA22: REF | AD22: Azerbaijan | AE22: 1.196103139e+10 | AF22: 5008700878 | AG22: 7040135190 | AH22: 1.324542188e+10 | AI22: 2.959915073e+10 | AJ22: 4.223651917e+10 | AK22: =IFERROR(AJ22*(1+AK215)^5,0) -> 5.48738876e+10 | AL22: 7.828846938e+10 | AM22: 1.017030511e+11 | AN22: 1.357112805e+11 | AO22: 1.697195098e+11 | AP22: 2.037277391e+11 | AQ22: 2.377359684e+11 | AR22: 2.744333927e+11 | AS22: 3.11130817e+11 | AT22: 3.478282413e+11 | AU22: 3.845256656e+11 | AV22: 4.212230899e+11 | AW22: 4.682063512e+11 | AX22: 5.151896125e+11 | AY22: 5.621728739e+11 | AZ22: 6.091561352e+11 | BA22: 6.561393965e+11 | BB22: FSU | BC22: REF
B23: Bahamas | C23: =IF($J$4,IF(AE23/Population!C21<$J$5,AE23/Population!C21*$J$6+(AE23/Population!C21)^2*$J$7,AE23/Population!C21),AE23/Population!C21) -> 23537.20822 | D23: =IF($J$4,IF(AF23/Population!D21<$J$5,AF23/Population!D21*$J$6+(AF23/Population!D21)^2*$J$7,AF23/Population!D21),AF23/Population!D21) -> 22725.32401 | E23: =IF($J$4,IF(AG23/Population!E21<$J$5,AG23/Population!E21*$J$6+(AG23/Population!E21)^2*$J$7,AG23/Population!E21),AG23/Population!E21) -> 24335.59612 | F23: =IF($J$4,IF(AH23/Population!F21<$J$5,AH23/Population!F21*$J$6+(AH23/Population!F21)^2*$J$7,AH23/Population!F21),AH23/Population!F21) -> 24171.48011 | G23: =IF($J$4,IF(AI23/Population!G21<$J$5,AI23/Population!G21*$J$6+(AI23/Population!G21)^2*$J$7,AI23/Population!G21),AI23/Population!G21) -> 23574.88248 | H23: =IF($J$4,IF(AJ23/Population!H21<$J$5,AJ23/Population!H21*$J$6+(AJ23/Population!H21)^2*$J$7,AJ23/Population!H21),AJ23/Population!H21) -> 26130.92258 | I23: =IF($J$4,IF(AK23/Population!I21<$J$5,AK23/Population!I21*$J$6+(AK23/Population!I21)^2*$J$7,AK23/Population!I21),AK23/Population!I21) -> 33140.26769 | J23: =IF($J$4,IF(AL23/Population!J21<$J$5,AL23/Population!J21*$J$6+(AL23/Population!J21)^2*$J$7,AL23/Population!J21),AL23/Population!J21) -> 46987.38343 | K23: =IF($J$4,IF(AM23/Population!K21<$J$5,AM23/Population!K21*$J$6+(AM23/Population!K21)^2*$J$7,AM23/Population!K21),AM23/Population!K21) -> 60191.28715 | L23: =IF($J$4,IF(AN23/Population!L21<$J$5,AN23/Population!L21*$J$6+(AN23/Population!L21)^2*$J$7,AN23/Population!L21),AN23/Population!L21) -> 72283.57274 | M23: =IF($J$4,IF(AO23/Population!M21<$J$5,AO23/Population!M21*$J$6+(AO23/Population!M21)^2*$J$7,AO23/Population!M21),AO23/Population!M21) -> 84261.7964 | N23: =IF($J$4,IF(AP23/Population!N21<$J$5,AP23/Population!N21*$J$6+(AP23/Population!N21)^2*$J$7,AP23/Population!N21),AP23/Population!N21) -> 96340.02772 | O23: =IF($J$4,IF(AQ23/Population!O21<$J$5,AQ23/Population!O21*$J$6+(AQ23/Population!O21)^2*$J$7,AQ23/Population!O21),AQ23/Population!O21) -> 108874.5067 | P23: =IF($J$4,IF(AR23/Population!P21<$J$5,AR23/Population!P21*$J$6+(AR23/Population!P21)^2*$J$7,AR23/Population!P21),AR23/Population!P21) -> 122038.9481 | Q23: =IF($J$4,IF(AS23/Population!Q21<$J$5,AS23/Population!Q21*$J$6+(AS23/Population!Q21)^2*$J$7,AS23/Population!Q21),AS23/Population!Q21) -> 135787.9771 | R23: =IF($J$4,IF(AT23/Population!R21<$J$5,AT23/Population!R21*$J$6+(AT23/Population!R21)^2*$J$7,AT23/Population!R21),AT23/Population!R21) -> 150135.0629 | S23: =IF($J$4,IF(AU23/Population!S21<$J$5,AU23/Population!S21*$J$6+(AU23/Population!S21)^2*$J$7,AU23/Population!S21),AU23/Population!S21) -> 165341.1283 | T23: =IF($J$4,IF(AV23/Population!T21<$J$5,AV23/Population!T21*$J$6+(AV23/Population!T21)^2*$J$7,AV23/Population!T21),AV23/Population!T21) -> 181439.1457 | U23: =IF($J$4,IF(AW23/Population!U21<$J$5,AW23/Population!U21*$J$6+(AW23/Population!U21)^2*$J$7,AW23/Population!U21),AW23/Population!U21) -> 198645.394 | V23: =IF($J$4,IF(AX23/Population!V21<$J$5,AX23/Population!V21*$J$6+(AX23/Population!V21)^2*$J$7,AX23/Population!V21),AX23/Population!V21) -> 217068.6685 | W23: =IF($J$4,IF(AY23/Population!W21<$J$5,AY23/Population!W21*$J$6+(AY23/Population!W21)^2*$J$7,AY23/Population!W21),AY23/Population!W21) -> 238070.4217 | X23: =IF($J$4,IF(AZ23/Population!X21<$J$5,AZ23/Population!X21*$J$6+(AZ23/Population!X21)^2*$J$7,AZ23/Population!X21),AZ23/Population!X21) -> 261691.7245 | Y23: =IF($J$4,IF(BA23/Population!Y21<$J$5,BA23/Population!Y21*$J$6+(BA23/Population!Y21)^2*$J$7,BA23/Population!Y21),BA23/Population!Y21) -> 288079.4031 | Z23: LAM | AA23: ALM | AD23: Bahamas | AE23: 4972531096 | AF23: 4948793306 | AG23: 6350238391 | AH23: 6508770000 | AI23: 6323788322 | AJ23: 9388629848 | AK23: =IFERROR(AJ23*(1+AK216)^5,0) -> 1.245347137e+10 | AL23: 1.836330967e+10 | AM23: 2.427314796e+10 | AN23: 2.984876548e+10 | AO23: 3.5424383e+10 | AP23: 4.100000052e+10 | AQ23: 4.657561804e+10 | AR23: 5.251238304e+10 | AS23: 5.844914803e+10 | AT23: 6.438591303e+10 | AU23: 7.032267802e+10 | AV23: 7.625944302e+10 | AW23: 8.215525076e+10 | AX23: 8.80510585e+10 | AY23: 9.394686625e+10 | AZ23: 9.984267399e+10 | BA23: 1.057384817e+11 | BB23: LAM | BC23: ALM
B24: Bahrain | C24: =IF($J$4,IF(AE24/Population!C22<$J$5,AE24/Population!C22*$J$6+(AE24/Population!C22)^2*$J$7,AE24/Population!C22),AE24/Population!C22) -> 18313.81584 | D24: =IF($J$4,IF(AF24/Population!D22<$J$5,AF24/Population!D22*$J$6+(AF24/Population!D22)^2*$J$7,AF24/Population!D22),AF24/Population!D22) -> 19667.05363 | E24: =IF($J$4,IF(AG24/Population!E22<$J$5,AG24/Population!E22*$J$6+(AG24/Population!E22)^2*$J$7,AG24/Population!E22),AG24/Population!E22) -> 20865.87471 | F24: =IF($J$4,IF(AH24/Population!F22<$J$5,AH24/Population!F22*$J$6+(AH24/Population!F22)^2*$J$7,AH24/Population!F22),AH24/Population!F22) -> 23183.91836 | G24: =IF($J$4,IF(AI24/Population!G22<$J$5,AI24/Population!G22*$J$6+(AI24/Population!G22)^2*$J$7,AI24/Population!G22),AI24/Population!G22) -> 24441.9289 | H24: =IF($J$4,IF(AJ24/Population!H22<$J$5,AJ24/Population!H22*$J$6+(AJ24/Population!H22)^2*$J$7,AJ24/Population!H22),AJ24/Population!H22) -> 29796.15437 | I24: =IF($J$4,IF(AK24/Population!I22<$J$5,AK24/Population!I22*$J$6+(AK24/Population!I22)^2*$J$7,AK24/Population!I22),AK24/Population!I22) -> 36674.15602 | J24: =IF($J$4,IF(AL24/Population!J22<$J$5,AL24/Population!J22*$J$6+(AL24/Population!J22)^2*$J$7,AL24/Population!J22),AL24/Population!J22) -> 49798.06263 | K24: =IF($J$4,IF(AM24/Population!K22<$J$5,AM24/Population!K22*$J$6+(AM24/Population!K22)^2*$J$7,AM24/Population!K22),AM24/Population!K22) -> 61991.97063 | L24: =IF($J$4,IF(AN24/Population!L22<$J$5,AN24/Population!L22*$J$6+(AN24/Population!L22)^2*$J$7,AN24/Population!L22),AN24/Population!L22) -> 85563.72758 | M24: =IF($J$4,IF(AO24/Population!M22<$J$5,AO24/Population!M22*$J$6+(AO24/Population!M22)^2*$J$7,AO24/Population!M22),AO24/Population!M22) -> 108142.8569 | N24: =IF($J$4,IF(AP24/Population!N22<$J$5,AP24/Population!N22*$J$6+(AP24/Population!N22)^2*$J$7,AP24/Population!N22),AP24/Population!N22) -> 130142.8842 | O24: =IF($J$4,IF(AQ24/Population!O22<$J$5,AQ24/Population!O22*$J$6+(AQ24/Population!O22)^2*$J$7,AQ24/Population!O22),AQ24/Population!O22) -> 152006.378 | P24: =IF($J$4,IF(AR24/Population!P22<$J$5,AR24/Population!P22*$J$6+(AR24/Population!P22)^2*$J$7,AR24/Population!P22),AR24/Population!P22) -> 166636.8215 | Q24: =IF($J$4,IF(AS24/Population!Q22<$J$5,AS24/Population!Q22*$J$6+(AS24/Population!Q22)^2*$J$7,AS24/Population!Q22),AS24/Population!Q22) -> 180363.2919 | R24: =IF($J$4,IF(AT24/Population!R22<$J$5,AT24/Population!R22*$J$6+(AT24/Population!R22)^2*$J$7,AT24/Population!R22),AT24/Population!R22) -> 193181.6719 | S24: =IF($J$4,IF(AU24/Population!S22<$J$5,AU24/Population!S22*$J$6+(AU24/Population!S22)^2*$J$7,AU24/Population!S22),AU24/Population!S22) -> 205356.6569 | T24: =IF($J$4,IF(AV24/Population!T22<$J$5,AV24/Population!T22*$J$6+(AV24/Population!T22)^2*$J$7,AV24/Population!T22),AV24/Population!T22) -> 217658.1061 | U24: =IF($J$4,IF(AW24/Population!U22<$J$5,AW24/Population!U22*$J$6+(AW24/Population!U22)^2*$J$7,AW24/Population!U22),AW24/Population!U22) -> 232238.6273 | V24: =IF($J$4,IF(AX24/Population!V22<$J$5,AX24/Population!V22*$J$6+(AX24/Population!V22)^2*$J$7,AX24/Population!V22),AX24/Population!V22) -> 246720.8361 | W24: =IF($J$4,IF(AY24/Population!W22<$J$5,AY24/Population!W22*$J$6+(AY24/Population!W22)^2*$J$7,AY24/Population!W22),AY24/Population!W22) -> 263367.1275 | X24: =IF($J$4,IF(AZ24/Population!X22<$J$5,AZ24/Population!X22*$J$6+(AZ24/Population!X22)^2*$J$7,AZ24/Population!X22),AZ24/Population!X22) -> 282992.9335 | Y24: =IF($J$4,IF(BA24/Population!Y22<$J$5,BA24/Population!Y22*$J$6+(BA24/Population!Y22)^2*$J$7,BA24/Population!Y22),BA24/Population!Y22) -> 306500.5261 | Z24: MEA | AA24: ALM | AD24: Bahrain | AE24: 6445524149 | AF24: 8224017179 | AG24: 1.004862659e+10 | AH24: 1.345907769e+10 | AI24: 1.687024282e+10 | AJ24: 2.489693083e+10 | AK24: =IFERROR(AJ24*(1+AK217)^5,0) -> 3.292361883e+10 | AL24: 4.759559129e+10 | AM24: 6.226756374e+10 | AN24: 8.909824898e+10 | AO24: 1.159289342e+11 | AP24: 1.427596195e+11 | AQ24: 1.695903047e+11 | AR24: 1.968396114e+11 | AS24: 2.24088918e+11 | AT24: 2.513382247e+11 | AU24: 2.785875313e+11 | AV24: 3.05836838e+11 | AW24: 3.360374128e+11 | AX24: 3.662379877e+11 | AY24: 3.964385625e+11 | AZ24: 4.266391373e+11 | BA24: 4.568397121e+11 | BB24: MEA | BC24: ALM
B25: Bangladesh | C25: =IF($J$4,IF(AE25/Population!C23<$J$5,AE25/Population!C23*$J$6+(AE25/Population!C23)^2*$J$7,AE25/Population!C23),AE25/Population!C23) -> 464.4283752 | D25: =IF($J$4,IF(AF25/Population!D23<$J$5,AF25/Population!D23*$J$6+(AF25/Population!D23)^2*$J$7,AF25/Population!D23),AF25/Population!D23) -> 527.8412686 | E25: =IF($J$4,IF(AG25/Population!E23<$J$5,AG25/Population!E23*$J$6+(AG25/Population!E23)^2*$J$7,AG25/Population!E23),AG25/Population!E23) -> 624.6606501 | F25: =IF($J$4,IF(AH25/Population!F23<$J$5,AH25/Population!F23*$J$6+(AH25/Population!F23)^2*$J$7,AH25/Population!F23),AH25/Population!F23) -> 745.1859018 | G25: =IF($J$4,IF(AI25/Population!G23<$J$5,AI25/Population!G23*$J$6+(AI25/Population!G23)^2*$J$7,AI25/Population!G23),AI25/Population!G23) -> 861.5103253 | H25: =IF($J$4,IF(AJ25/Population!H23<$J$5,AJ25/Population!H23*$J$6+(AJ25/Population!H23)^2*$J$7,AJ25/Population!H23),AJ25/Population!H23) -> 1109.468398 | I25: =IF($J$4,IF(AK25/Population!I23<$J$5,AK25/Population!I23*$J$6+(AK25/Population!I23)^2*$J$7,AK25/Population!I23),AK25/Population!I23) -> 1370.561455 | J25: =IF($J$4,IF(AL25/Population!J23<$J$5,AL25/Population!J23*$J$6+(AL25/Population!J23)^2*$J$7,AL25/Population!J23),AL25/Population!J23) -> 1912.794565 | K25: =IF($J$4,IF(AM25/Population!K23<$J$5,AM25/Population!K23*$J$6+(AM25/Population!K23)^2*$J$7,AM25/Population!K23),AM25/Population!K23) -> 2420.135185 | L25: =IF($J$4,IF(AN25/Population!L23<$J$5,AN25/Population!L23*$J$6+(AN25/Population!L23)^2*$J$7,AN25/Population!L23),AN25/Population!L23) -> 3176.295524 | M25: =IF($J$4,IF(AO25/Population!M23<$J$5,AO25/Population!M23*$J$6+(AO25/Population!M23)^2*$J$7,AO25/Population!M23),AO25/Population!M23) -> 3881.073688 | N25: =IF($J$4,IF(AP25/Population!N23<$J$5,AP25/Population!N23*$J$6+(AP25/Population!N23)^2*$J$7,AP25/Population!N23),AP25/Population!N23) -> 4562.644511 | O25: =IF($J$4,IF(AQ25/Population!O23<$J$5,AQ25/Population!O23*$J$6+(AQ25/Population!O23)^2*$J$7,AQ25/Population!O23),AQ25/Population!O23) -> 5244.17396 | P25: =IF($J$4,IF(AR25/Population!P23<$J$5,AR25/Population!P23*$J$6+(AR25/Population!P23)^2*$J$7,AR25/Population!P23),AR25/Population!P23) -> 6818.408838 | Q25: =IF($J$4,IF(AS25/Population!Q23<$J$5,AS25/Population!Q23*$J$6+(AS25/Population!Q23)^2*$J$7,AS25/Population!Q23),AS25/Population!Q23) -> 8406.841128 | R25: =IF($J$4,IF(AT25/Population!R23<$J$5,AT25/Population!R23*$J$6+(AT25/Population!R23)^2*$J$7,AT25/Population!R23),AT25/Population!R23) -> 10028.60745 | S25: =IF($J$4,IF(AU25/Population!S23<$J$5,AU25/Population!S23*$J$6+(AU25/Population!S23)^2*$J$7,AU25/Population!S23),AU25/Population!S23) -> 11696.42229 | T25: =IF($J$4,IF(AV25/Population!T23<$J$5,AV25/Population!T23*$J$6+(AV25/Population!T23)^2*$J$7,AV25/Population!T23),AV25/Population!T23) -> 13417.96104 | U25: =IF($J$4,IF(AW25/Population!U23<$J$5,AW25/Population!U23*$J$6+(AW25/Population!U23)^2*$J$7,AW25/Population!U23),AW25/Population!U23) -> 15080.46356 | V25: =IF($J$4,IF(AX25/Population!V23<$J$5,AX25/Population!V23*$J$6+(AX25/Population!V23)^2*$J$7,AX25/Population!V23),AX25/Population!V23) -> 16805.04406 | W25: =IF($J$4,IF(AY25/Population!W23<$J$5,AY25/Population!W23*$J$6+(AY25/Population!W23)^2*$J$7,AY25/Population!W23),AY25/Population!W23) -> 18594.57793 | X25: =IF($J$4,IF(AZ25/Population!X23<$J$5,AZ25/Population!X23*$J$6+(AZ25/Population!X23)^2*$J$7,AZ25/Population!X23),AZ25/Population!X23) -> 20394.84501 | Y25: =IF($J$4,IF(BA25/Population!Y23<$J$5,BA25/Population!Y23*$J$6+(BA25/Population!Y23)^2*$J$7,BA25/Population!Y23),BA25/Population!Y23) -> 22106.9041 | Z25: SAS | AA25: ASIA | AD25: Bangladesh | AE25: 2.788067622e+10 | AF25: 3.431601738e+10 | AG25: 4.423505945e+10 | AH25: 5.762809748e+10 | AI25: 7.224754204e+10 | AJ25: 1.079340384e+11 | AK25: =IFERROR(AJ25*(1+AK218)^5,0) -> 1.436205347e+11 | AL25: 2.129266992e+11 | AM25: 2.822328637e+11 | AN25: 3.863145517e+11 | AO25: 4.903962398e+11 | AP25: 5.944779278e+11 | AQ25: 6.985596158e+11 | AR25: 9.217442689e+11 | AS25: 1.144928922e+12 | AT25: 1.368113575e+12 | AU25: 1.591298228e+12 | AV25: 1.814482881e+12 | AW25: 2.017293362e+12 | AX25: 2.220103843e+12 | AY25: 2.422914324e+12 | AZ25: 2.625724805e+12 | BA25: 2.828535286e+12 | BB25: SAS | BC25: ASIA
B26: Barbados | C26: =IF($J$4,IF(AE26/Population!C24<$J$5,AE26/Population!C24*$J$6+(AE26/Population!C24)^2*$J$7,AE26/Population!C24),AE26/Population!C24) -> 14530.7797 | D26: =IF($J$4,IF(AF26/Population!D24<$J$5,AF26/Population!D24*$J$6+(AF26/Population!D24)^2*$J$7,AF26/Population!D24),AF26/Population!D24) -> 13866.22496 | E26: =IF($J$4,IF(AG26/Population!E24<$J$5,AG26/Population!E24*$J$6+(AG26/Population!E24)^2*$J$7,AG26/Population!E24),AG26/Population!E24) -> 15492.20974 | F26: =IF($J$4,IF(AH26/Population!F24<$J$5,AH26/Population!F24*$J$6+(AH26/Population!F24)^2*$J$7,AH26/Population!F24),AH26/Population!F24) -> 16000.63402 | G26: =IF($J$4,IF(AI26/Population!G24<$J$5,AI26/Population!G24*$J$6+(AI26/Population!G24)^2*$J$7,AI26/Population!G24),AI26/Population!G24) -> 16189.2375 | H26: =IF($J$4,IF(AJ26/Population!H24<$J$5,AJ26/Population!H24*$J$6+(AJ26/Population!H24)^2*$J$7,AJ26/Population!H24),AJ26/Population!H24) -> 21123.25577 | I26: =IF($J$4,IF(AK26/Population!I24<$J$5,AK26/Population!I24*$J$6+(AK26/Population!I24)^2*$J$7,AK26/Population!I24),AK26/Population!I24) -> 23925.75178 | J26: =IF($J$4,IF(AL26/Population!J24<$J$5,AL26/Population!J24*$J$6+(AL26/Population!J24)^2*$J$7,AL26/Population!J24),AL26/Population!J24) -> 31142.70124 | K26: =IF($J$4,IF(AM26/Population!K24<$J$5,AM26/Population!K24*$J$6+(AM26/Population!K24)^2*$J$7,AM26/Population!K24),AM26/Population!K24) -> 41197.70401 | L26: =IF($J$4,IF(AN26/Population!L24<$J$5,AN26/Population!L24*$J$6+(AN26/Population!L24)^2*$J$7,AN26/Population!L24),AN26/Population!L24) -> 51063.91786 | M26: =IF($J$4,IF(AO26/Population!M24<$J$5,AO26/Population!M24*$J$6+(AO26/Population!M24)^2*$J$7,AO26/Population!M24),AO26/Population!M24) -> 61647.35853 | N26: =IF($J$4,IF(AP26/Population!N24<$J$5,AP26/Population!N24*$J$6+(AP26/Population!N24)^2*$J$7,AP26/Population!N24),AP26/Population!N24) -> 73268.24192 | O26: =IF($J$4,IF(AQ26/Population!O24<$J$5,AQ26/Population!O24*$J$6+(AQ26/Population!O24)^2*$J$7,AQ26/Population!O24),AQ26/Population!O24) -> 86338.5659 | P26: =IF($J$4,IF(AR26/Population!P24<$J$5,AR26/Population!P24*$J$6+(AR26/Population!P24)^2*$J$7,AR26/Population!P24),AR26/Population!P24) -> 94792.29064 | Q26: =IF($J$4,IF(AS26/Population!Q24<$J$5,AS26/Population!Q24*$J$6+(AS26/Population!Q24)^2*$J$7,AS26/Population!Q24),AS26/Population!Q24) -> 103397.7938 | R26: =IF($J$4,IF(AT26/Population!R24<$J$5,AT26/Population!R24*$J$6+(AT26/Population!R24)^2*$J$7,AT26/Population!R24),AT26/Population!R24) -> 112309.3342 | S26: =IF($J$4,IF(AU26/Population!S24<$J$5,AU26/Population!S24*$J$6+(AU26/Population!S24)^2*$J$7,AU26/Population!S24),AU26/Population!S24) -> 121636.439 | T26: =IF($J$4,IF(AV26/Population!T24<$J$5,AV26/Population!T24*$J$6+(AV26/Population!T24)^2*$J$7,AV26/Population!T24),AV26/Population!T24) -> 131423.9417 | U26: =IF($J$4,IF(AW26/Population!U24<$J$5,AW26/Population!U24*$J$6+(AW26/Population!U24)^2*$J$7,AW26/Population!U24),AW26/Population!U24) -> 141919.999 | V26: =IF($J$4,IF(AX26/Population!V24<$J$5,AX26/Population!V24*$J$6+(AX26/Population!V24)^2*$J$7,AX26/Population!V24),AX26/Population!V24) -> 153147.6645 | W26: =IF($J$4,IF(AY26/Population!W24<$J$5,AY26/Population!W24*$J$6+(AY26/Population!W24)^2*$J$7,AY26/Population!W24),AY26/Population!W24) -> 166463.1057 | X26: =IF($J$4,IF(AZ26/Population!X24<$J$5,AZ26/Population!X24*$J$6+(AZ26/Population!X24)^2*$J$7,AZ26/Population!X24),AZ26/Population!X24) -> 181865.8877 | Y26: =IF($J$4,IF(BA26/Population!Y24<$J$5,BA26/Population!Y24*$J$6+(BA26/Population!Y24)^2*$J$7,BA26/Population!Y24),BA26/Population!Y24) -> 199292.4224 | Z26: LAM | AA26: ALM | AD26: Barbados | AE26: 2466102711 | AF26: 2372492267 | AG26: 2795701165 | AH26: 2985600000 | AI26: 3093679896 | AJ26: 4593040426 | AK26: =IFERROR(AJ26*(1+AK219)^5,0) -> 6092400956 | AL26: 8983571088 | AM26: 1.187474122e+10 | AN26: 1.460240618e+10 | AO26: 1.733007114e+10 | AP26: 2.00577361e+10 | AQ26: 2.278540106e+10 | AR26: 2.568974409e+10 | AS26: 2.859408712e+10 | AT26: 3.149843014e+10 | AU26: 3.440277317e+10 | AV26: 3.73071162e+10 | AW26: 4.01914224e+10 | AX26: 4.30757286e+10 | AY26: 4.59600348e+10 | AZ26: 4.884434101e+10 | BA26: 5.172864721e+10 | BB26: LAM | BC26: ALM
B27: Belarus | C27: =IF($J$4,IF(AE27/Population!C25<$J$5,AE27/Population!C25*$J$6+(AE27/Population!C25)^2*$J$7,AE27/Population!C25),AE27/Population!C25) -> 4185.99914 | D27: =IF($J$4,IF(AF27/Population!D25<$J$5,AF27/Population!D25*$J$6+(AF27/Population!D25)^2*$J$7,AF27/Population!D25),AF27/Population!D25) -> 2769.384539 | E27: =IF($J$4,IF(AG27/Population!E25<$J$5,AG27/Population!E25*$J$6+(AG27/Population!E25)^2*$J$7,AG27/Population!E25),AG27/Population!E25) -> 3784.935639 | F27: =IF($J$4,IF(AH27/Population!F25<$J$5,AH27/Population!F25*$J$6+(AH27/Population!F25)^2*$J$7,AH27/Population!F25),AH27/Population!F25) -> 5448.254617 | G27: =IF($J$4,IF(AI27/Population!G25<$J$5,AI27/Population!G25*$J$6+(AI27/Population!G25)^2*$J$7,AI27/Population!G25),AI27/Population!G25) -> 8381.391093 | H27: =IF($J$4,IF(AJ27/Population!H25<$J$5,AJ27/Population!H25*$J$6+(AJ27/Population!H25)^2*$J$7,AJ27/Population!H25),AJ27/Population!H25) -> 10582.90862 | I27: =IF($J$4,IF(AK27/Population!I25<$J$5,AK27/Population!I25*$J$6+(AK27/Population!I25)^2*$J$7,AK27/Population!I25),AK27/Population!I25) -> 13168.00016 | J27: =IF($J$4,IF(AL27/Population!J25<$J$5,AL27/Population!J25*$J$6+(AL27/Population!J25)^2*$J$7,AL27/Population!J25),AL27/Population!J25) -> 17294.08383 | K27: =IF($J$4,IF(AM27/Population!K25<$J$5,AM27/Population!K25*$J$6+(AM27/Population!K25)^2*$J$7,AM27/Population!K25),AM27/Population!K25) -> 20524.63994 | L27: =IF($J$4,IF(AN27/Population!L25<$J$5,AN27/Population!L25*$J$6+(AN27/Population!L25)^2*$J$7,AN27/Population!L25),AN27/Population!L25) -> 23641.21279 | M27: =IF($J$4,IF(AO27/Population!M25<$J$5,AO27/Population!M25*$J$6+(AO27/Population!M25)^2*$J$7,AO27/Population!M25),AO27/Population!M25) -> 25747.35979 | N27: =IF($J$4,IF(AP27/Population!N25<$J$5,AP27/Population!N25*$J$6+(AP27/Population!N25)^2*$J$7,AP27/Population!N25),AP27/Population!N25) -> 31195.42286 | O27: =IF($J$4,IF(AQ27/Population!O25<$J$5,AQ27/Population!O25*$J$6+(AQ27/Population!O25)^2*$J$7,AQ27/Population!O25),AQ27/Population!O25) -> 36944.77665 | P27: =IF($J$4,IF(AR27/Population!P25<$J$5,AR27/Population!P25*$J$6+(AR27/Population!P25)^2*$J$7,AR27/Population!P25),AR27/Population!P25) -> 43108.58822 | Q27: =IF($J$4,IF(AS27/Population!Q25<$J$5,AS27/Population!Q25*$J$6+(AS27/Population!Q25)^2*$J$7,AS27/Population!Q25),AS27/Population!Q25) -> 49524.16421 | R27: =IF($J$4,IF(AT27/Population!R25<$J$5,AT27/Population!R25*$J$6+(AT27/Population!R25)^2*$J$7,AT27/Population!R25),AT27/Population!R25) -> 56172.65306 | S27: =IF($J$4,IF(AU27/Population!S25<$J$5,AU27/Population!S25*$J$6+(AU27/Population!S25)^2*$J$7,AU27/Population!S25),AU27/Population!S25) -> 63144.90822 | T27: =IF($J$4,IF(AV27/Population!T25<$J$5,AV27/Population!T25*$J$6+(AV27/Population!T25)^2*$J$7,AV27/Population!T25),AV27/Population!T25) -> 70511.63657 | U27: =IF($J$4,IF(AW27/Population!U25<$J$5,AW27/Population!U25*$J$6+(AW27/Population!U25)^2*$J$7,AW27/Population!U25),AW27/Population!U25) -> 79966.29655 | V27: =IF($J$4,IF(AX27/Population!V25<$J$5,AX27/Population!V25*$J$6+(AX27/Population!V25)^2*$J$7,AX27/Population!V25),AX27/Population!V25) -> 89699.8976 | W27: =IF($J$4,IF(AY27/Population!W25<$J$5,AY27/Population!W25*$J$6+(AY27/Population!W25)^2*$J$7,AY27/Population!W25),AY27/Population!W25) -> 100024.4033 | X27: =IF($J$4,IF(AZ27/Population!X25<$J$5,AZ27/Population!X25*$J$6+(AZ27/Population!X25)^2*$J$7,AZ27/Population!X25),AZ27/Population!X25) -> 110948.261 | Y27: =IF($J$4,IF(BA27/Population!Y25<$J$5,BA27/Population!Y25*$J$6+(BA27/Population!Y25)^2*$J$7,BA27/Population!Y25),BA27/Population!Y25) -> 122614.5312 | Z27: FSU | AA27: REF | AD27: Belarus | AE27: 2.378167272e+10 | AF27: 1.549219346e+10 | AG27: 2.105434777e+10 | AH27: 3.021009184e+10 | AI27: 4.728205233e+10 | AJ27: 6.746914218e+10 | AK27: =IFERROR(AJ27*(1+AK220)^5,0) -> 8.765623204e+10 | AL27: 1.250589768e+11 | AM27: 1.624617216e+11 | AN27: 2.16786891e+11 | AO27: 2.711120604e+11 | AP27: 3.254372298e+11 | AQ27: 3.797623992e+11 | AR27: 4.383833222e+11 | AS27: 4.970042452e+11 | AT27: 5.556251681e+11 | AU27: =IFERROR(AT27*(1+AU220)^5,0) -> 6.142460911e+11 | AV27: 6.728670141e+11 | AW27: 7.479186614e+11 | AX27: 8.229703087e+11 | AY27: 8.98021956e+11 | AZ27: 9.730736033e+11 | BA27: 1.048125251e+12 | BB27: FSU | BC27: REF
B28: Belgium | C28: =IF($J$4,IF(AE28/Population!C26<$J$5,AE28/Population!C26*$J$6+(AE28/Population!C26)^2*$J$7,AE28/Population!C26),AE28/Population!C26) -> 28030.9693 | D28: =IF($J$4,IF(AF28/Population!D26<$J$5,AF28/Population!D26*$J$6+(AF28/Population!D26)^2*$J$7,AF28/Population!D26),AF28/Population!D26) -> 29779.72003 | E28: =IF($J$4,IF(AG28/Population!E26<$J$5,AG28/Population!E26*$J$6+(AG28/Population!E26)^2*$J$7,AG28/Population!E26),AG28/Population!E26) -> 33921.01621 | F28: =IF($J$4,IF(AH28/Population!F26<$J$5,AH28/Population!F26*$J$6+(AH28/Population!F26)^2*$J$7,AH28/Population!F26),AH28/Population!F26) -> 36337.56997 | G28: =IF($J$4,IF(AI28/Population!G26<$J$5,AI28/Population!G26*$J$6+(AI28/Population!G26)^2*$J$7,AI28/Population!G26),AI28/Population!G26) -> 37319.7045 | H28: =IF($J$4,IF(AJ28/Population!H26<$J$5,AJ28/Population!H26*$J$6+(AJ28/Population!H26)^2*$J$7,AJ28/Population!H26),AJ28/Population!H26) -> 41234.9909 | I28: =IF($J$4,IF(AK28/Population!I26<$J$5,AK28/Population!I26*$J$6+(AK28/Population!I26)^2*$J$7,AK28/Population!I26),AK28/Population!I26) -> 45091.17391 | J28: =IF($J$4,IF(AL28/Population!J26<$J$5,AL28/Population!J26*$J$6+(AL28/Population!J26)^2*$J$7,AL28/Population!J26),AL28/Population!J26) -> 49767.63284 | K28: =IF($J$4,IF(AM28/Population!K26<$J$5,AM28/Population!K26*$J$6+(AM28/Population!K26)^2*$J$7,AM28/Population!K26),AM28/Population!K26) -> 54411.2995 | L28: =IF($J$4,IF(AN28/Population!L26<$J$5,AN28/Population!L26*$J$6+(AN28/Population!L26)^2*$J$7,AN28/Population!L26),AN28/Population!L26) -> 59751.57577 | M28: =IF($J$4,IF(AO28/Population!M26<$J$5,AO28/Population!M26*$J$6+(AO28/Population!M26)^2*$J$7,AO28/Population!M26),AO28/Population!M26) -> 65287.31505 | N28: =IF($J$4,IF(AP28/Population!N26<$J$5,AP28/Population!N26*$J$6+(AP28/Population!N26)^2*$J$7,AP28/Population!N26),AP28/Population!N26) -> 71049.39718 | O28: =IF($J$4,IF(AQ28/Population!O26<$J$5,AQ28/Population!O26*$J$6+(AQ28/Population!O26)^2*$J$7,AQ28/Population!O26),AQ28/Population!O26) -> 77038.13425 | P28: =IF($J$4,IF(AR28/Population!P26<$J$5,AR28/Population!P26*$J$6+(AR28/Population!P26)^2*$J$7,AR28/Population!P26),AR28/Population!P26) -> 85355.83443 | Q28: =IF($J$4,IF(AS28/Population!Q26<$J$5,AS28/Population!Q26*$J$6+(AS28/Population!Q26)^2*$J$7,AS28/Population!Q26),AS28/Population!Q26) -> 94016.41479 | R28: =IF($J$4,IF(AT28/Population!R26<$J$5,AT28/Population!R26*$J$6+(AT28/Population!R26)^2*$J$7,AT28/Population!R26),AT28/Population!R26) -> 102946.7462 | S28: =IF($J$4,IF(AU28/Population!S26<$J$5,AU28/Population!S26*$J$6+(AU28/Population!S26)^2*$J$7,AU28/Population!S26),AU28/Population!S26) -> 111871.2055 | T28: =IF($J$4,IF(AV28/Population!T26<$J$5,AV28/Population!T26*$J$6+(AV28/Population!T26)^2*$J$7,AV28/Population!T26),AV28/Population!T26) -> 120685.1645 | U28: =IF($J$4,IF(AW28/Population!U26<$J$5,AW28/Population!U26*$J$6+(AW28/Population!U26)^2*$J$7,AW28/Population!U26),AW28/Population!U26) -> 132632.8928 | V28: =IF($J$4,IF(AX28/Population!V26<$J$5,AX28/Population!V26*$J$6+(AX28/Population!V26)^2*$J$7,AX28/Population!V26),AX28/Population!V26) -> 144512.7857 | W28: =IF($J$4,IF(AY28/Population!W26<$J$5,AY28/Population!W26*$J$6+(AY28/Population!W26)^2*$J$7,AY28/Population!W26),AY28/Population!W26) -> 157285.3354 | X28: =IF($J$4,IF(AZ28/Population!X26<$J$5,AZ28/Population!X26*$J$6+(AZ28/Population!X26)^2*$J$7,AZ28/Population!X26),AZ28/Population!X26) -> 170721.5922 | Y28: =IF($J$4,IF(BA28/Population!Y26<$J$5,BA28/Population!Y26*$J$6+(BA28/Population!Y26)^2*$J$7,BA28/Population!Y26),BA28/Population!Y26) -> 184471.2412 | Z28: WEU | AA28: OECD90 | AD28: Belgium | AE28: 2.794494226e+11 | AF28: 3.024267258e+11 | AG28: 3.481523525e+11 | AH28: 3.766166741e+11 | AI28: 3.890016787e+11 | AJ28: =IFERROR(AI28*(1+AJ221)^5,0) -> 4.326086043e+11 | AK28: 4.762155299e+11 | AL28: 5.292169116e+11 | AM28: 5.822182932e+11 | AN28: 6.422975821e+11 | AO28: 7.02376871e+11 | AP28: 7.624561599e+11 | AQ28: 8.225354489e+11 | AR28: 9.081818896e+11 | AS28: 9.938283303e+11 | AT28: 1.079474771e+12 | AU28: 1.165121212e+12 | AV28: 1.250767652e+12 | AW28: 1.370733041e+12 | AX28: 1.490698429e+12 | AY28: 1.610663817e+12 | AZ28: 1.730629205e+12 | BA28: 1.850594594e+12 | BB28: WEU | BC28: OECD90
B29: Belize | C29: =IF($J$4,IF(AE29/Population!C27<$J$5,AE29/Population!C27*$J$6+(AE29/Population!C27)^2*$J$7,AE29/Population!C27),AE29/Population!C27) -> 4835.708581 | D29: =IF($J$4,IF(AF29/Population!D27<$J$5,AF29/Population!D27*$J$6+(AF29/Population!D27)^2*$J$7,AF29/Population!D27),AF29/Population!D27) -> 5225.705 | E29: =IF($J$4,IF(AG29/Population!E27<$J$5,AG29/Population!E27*$J$6+(AG29/Population!E27)^2*$J$7,AG29/Population!E27),AG29/Population!E27) -> 6068.43341 | F29: =IF($J$4,IF(AH29/Population!F27<$J$5,AH29/Population!F27*$J$6+(AH29/Population!F27)^2*$J$7,AH29/Population!F27),AH29/Population!F27) -> 6887.134592 | G29: =IF($J$4,IF(AI29/Population!G27<$J$5,AI29/Population!G27*$J$6+(AI29/Population!G27)^2*$J$7,AI29/Population!G27),AI29/Population!G27) -> 6696.061787 | H29: =IF($J$4,IF(AJ29/Population!H27<$J$5,AJ29/Population!H27*$J$6+(AJ29/Population!H27)^2*$J$7,AJ29/Population!H27),AJ29/Population!H27) -> 10400.68633 | I29: =IF($J$4,IF(AK29/Population!I27<$J$5,AK29/Population!I27*$J$6+(AK29/Population!I27)^2*$J$7,AK29/Population!I27),AK29/Population!I27) -> 12548.35425 | J29: =IF($J$4,IF(AL29/Population!J27<$J$5,AL29/Population!J27*$J$6+(AL29/Population!J27)^2*$J$7,AL29/Population!J27),AL29/Population!J27) -> 16328.41679 | K29: =IF($J$4,IF(AM29/Population!K27<$J$5,AM29/Population!K27*$J$6+(AM29/Population!K27)^2*$J$7,AM29/Population!K27),AM29/Population!K27) -> 19228.38264 | L29: =IF($J$4,IF(AN29/Population!L27<$J$5,AN29/Population!L27*$J$6+(AN29/Population!L27)^2*$J$7,AN29/Population!L27),AN29/Population!L27) -> 21322.81291 | M29: =IF($J$4,IF(AO29/Population!M27<$J$5,AO29/Population!M27*$J$6+(AO29/Population!M27)^2*$J$7,AO29/Population!M27),AO29/Population!M27) -> 22904.51897 | N29: =IF($J$4,IF(AP29/Population!N27<$J$5,AP29/Population!N27*$J$6+(AP29/Population!N27)^2*$J$7,AP29/Population!N27),AP29/Population!N27) -> 24025.37428 | O29: =IF($J$4,IF(AQ29/Population!O27<$J$5,AQ29/Population!O27*$J$6+(AQ29/Population!O27)^2*$J$7,AQ29/Population!O27),AQ29/Population!O27) -> 24706.64246 | P29: =IF($J$4,IF(AR29/Population!P27<$J$5,AR29/Population!P27*$J$6+(AR29/Population!P27)^2*$J$7,AR29/Population!P27),AR29/Population!P27) -> 27191.69136 | Q29: =IF($J$4,IF(AS29/Population!Q27<$J$5,AS29/Population!Q27*$J$6+(AS29/Population!Q27)^2*$J$7,AS29/Population!Q27),AS29/Population!Q27) -> 30498.2755 | R29: =IF($J$4,IF(AT29/Population!R27<$J$5,AT29/Population!R27*$J$6+(AT29/Population!R27)^2*$J$7,AT29/Population!R27),AT29/Population!R27) -> 34023.32196 | S29: =IF($J$4,IF(AU29/Population!S27<$J$5,AU29/Population!S27*$J$6+(AU29/Population!S27)^2*$J$7,AU29/Population!S27),AU29/Population!S27) -> 37804.39046 | T29: =IF($J$4,IF(AV29/Population!T27<$J$5,AV29/Population!T27*$J$6+(AV29/Population!T27)^2*$J$7,AV29/Population!T27),AV29/Population!T27) -> 41887.1007 | U29: =IF($J$4,IF(AW29/Population!U27<$J$5,AW29/Population!U27*$J$6+(AW29/Population!U27)^2*$J$7,AW29/Population!U27),AW29/Population!U27) -> 46293.20421 | V29: =IF($J$4,IF(AX29/Population!V27<$J$5,AX29/Population!V27*$J$6+(AX29/Population!V27)^2*$J$7,AX29/Population!V27),AX29/Population!V27) -> 51078.00102 | W29: =IF($J$4,IF(AY29/Population!W27<$J$5,AY29/Population!W27*$J$6+(AY29/Population!W27)^2*$J$7,AY29/Population!W27),AY29/Population!W27) -> 56453.05998 | X29: =IF($J$4,IF(AZ29/Population!X27<$J$5,AZ29/Population!X27*$J$6+(AZ29/Population!X27)^2*$J$7,AZ29/Population!X27),AZ29/Population!X27) -> 62442.97491 | Y29: =IF($J$4,IF(BA29/Population!Y27<$J$5,BA29/Population!Y27*$J$6+(BA29/Population!Y27)^2*$J$7,BA29/Population!Y27),BA29/Population!Y27) -> 69070.76744 | Z29: LAM | AA29: ALM | AD29: Belize | AE29: 517943094.3 | AF29: 639798659.6 | AG29: 857201534.6 | AH29: 1114800000 | AI29: 1208989879 | AJ29: =IFERROR(AI29*(1+AJ222)^5,0) -> 1794930172 | AK29: 2380870466 | AL29: 3510720853 | AM29: 4640571240 | AN29: 5706524875 | AO29: 6772478510 | AP29: 7838432146 | AQ29: 8904385781 | AR29: 1.003938405e+10 | AS29: 1.117438232e+10 | AT29: 1.230938058e+10 | AU29: 1.344437885e+10 | AV29: 1.457937712e+10 | AW29: 1.570654513e+10 | AX29: 1.683371314e+10 | AY29: 1.796088115e+10 | AZ29: 1.908804916e+10 | BA29: 2.021521716e+10 | BB29: LAM | BC29: ALM
B30: Benin | C30: =IF($J$4,IF(AE30/Population!C28<$J$5,AE30/Population!C28*$J$6+(AE30/Population!C28)^2*$J$7,AE30/Population!C28),AE30/Population!C28) -> 905.7344864 | D30: =IF($J$4,IF(AF30/Population!D28<$J$5,AF30/Population!D28*$J$6+(AF30/Population!D28)^2*$J$7,AF30/Population!D28),AF30/Population!D28) -> 927.0348096 | E30: =IF($J$4,IF(AG30/Population!E28<$J$5,AG30/Population!E28*$J$6+(AG30/Population!E28)^2*$J$7,AG30/Population!E28),AG30/Population!E28) -> 1001.129477 | F30: =IF($J$4,IF(AH30/Population!F28<$J$5,AH30/Population!F28*$J$6+(AH30/Population!F28)^2*$J$7,AH30/Population!F28),AH30/Population!F28) -> 1041.173083 | G30: =IF($J$4,IF(AI30/Population!G28<$J$5,AI30/Population!G28*$J$6+(AI30/Population!G28)^2*$J$7,AI30/Population!G28),AI30/Population!G28) -> 1101.130725 | H30: =IF($J$4,IF(AJ30/Population!H28<$J$5,AJ30/Population!H28*$J$6+(AJ30/Population!H28)^2*$J$7,AJ30/Population!H28),AJ30/Population!H28) -> 1419.338351 | I30: =IF($J$4,IF(AK30/Population!I28<$J$5,AK30/Population!I28*$J$6+(AK30/Population!I28)^2*$J$7,AK30/Population!I28),AK30/Population!I28) -> 1636.758887 | J30: =IF($J$4,IF(AL30/Population!J28<$J$5,AL30/Population!J28*$J$6+(AL30/Population!J28)^2*$J$7,AL30/Population!J28),AL30/Population!J28) -> 2055.180746 | K30: =IF($J$4,IF(AM30/Population!K28<$J$5,AM30/Population!K28*$J$6+(AM30/Population!K28)^2*$J$7,AM30/Population!K28),AM30/Population!K28) -> 2430.094075 | L30: =IF($J$4,IF(AN30/Population!L28<$J$5,AN30/Population!L28*$J$6+(AN30/Population!L28)^2*$J$7,AN30/Population!L28),AN30/Population!L28) -> 4542.588219 | M30: =IF($J$4,IF(AO30/Population!M28<$J$5,AO30/Population!M28*$J$6+(AO30/Population!M28)^2*$J$7,AO30/Population!M28),AO30/Population!M28) -> 6382.235665 | N30: =IF($J$4,IF(AP30/Population!N28<$J$5,AP30/Population!N28*$J$6+(AP30/Population!N28)^2*$J$7,AP30/Population!N28),AP30/Population!N28) -> 8042.88346 | O30: =IF($J$4,IF(AQ30/Population!O28<$J$5,AQ30/Population!O28*$J$6+(AQ30/Population!O28)^2*$J$7,AQ30/Population!O28),AQ30/Population!O28) -> 9564.855252 | P30: =IF($J$4,IF(AR30/Population!P28<$J$5,AR30/Population!P28*$J$6+(AR30/Population!P28)^2*$J$7,AR30/Population!P28),AR30/Population!P28) -> 12097.80883 | Q30: =IF($J$4,IF(AS30/Population!Q28<$J$5,AS30/Population!Q28*$J$6+(AS30/Population!Q28)^2*$J$7,AS30/Population!Q28),AS30/Population!Q28) -> 14376.31053 | R30: =IF($J$4,IF(AT30/Population!R28<$J$5,AT30/Population!R28*$J$6+(AT30/Population!R28)^2*$J$7,AT30/Population!R28),AT30/Population!R28) -> 16452.41172 | S30: =IF($J$4,IF(AU30/Population!S28<$J$5,AU30/Population!S28*$J$6+(AU30/Population!S28)^2*$J$7,AU30/Population!S28),AU30/Population!S28) -> 18354.92304 | T30: =IF($J$4,IF(AV30/Population!T28<$J$5,AV30/Population!T28*$J$6+(AV30/Population!T28)^2*$J$7,AV30/Population!T28),AV30/Population!T28) -> 20101.46581 | U30: =IF($J$4,IF(AW30/Population!U28<$J$5,AW30/Population!U28*$J$6+(AW30/Population!U28)^2*$J$7,AW30/Population!U28),AW30/Population!U28) -> 21822.04955 | V30: =IF($J$4,IF(AX30/Population!V28<$J$5,AX30/Population!V28*$J$6+(AX30/Population!V28)^2*$J$7,AX30/Population!V28),AX30/Population!V28) -> 23270.28487 | W30: =IF($J$4,IF(AY30/Population!W28<$J$5,AY30/Population!W28*$J$6+(AY30/Population!W28)^2*$J$7,AY30/Population!W28),AY30/Population!W28) -> 24357.44923 | X30: =IF($J$4,IF(AZ30/Population!X28<$J$5,AZ30/Population!X28*$J$6+(AZ30/Population!X28)^2*$J$7,AZ30/Population!X28),AZ30/Population!X28) -> 25761.60751 | Y30: =IF($J$4,IF(BA30/Population!Y28<$J$5,BA30/Population!Y28*$J$6+(BA30/Population!Y28)^2*$J$7,BA30/Population!Y28),BA30/Population!Y28) -> 29399.37743 | Z30: SSA | AA30: ALM | AD30: Benin | AE30: 2290380289 | AF30: 2813857855 | AG30: 3564714018 | AH30: 4358015993 | AI30: 5369822383 | AJ30: =IFERROR(AI30*(1+AJ223)^5,0) -> 7595933560 | AK30: 9822044737 | AL30: 1.359615223e+10 | AM30: 1.737025973e+10 | AN30: 3.505100126e+10 | AO30: 5.273174279e+10 | AP30: 7.041248433e+10 | AQ30: 8.809322586e+10 | AR30: 1.190891411e+11 | AS30: 1.500850564e+11 | AT30: 1.810809717e+11 | AU30: 2.12076887e+11 | AV30: 2.430728022e+11 | AW30: 2.775245602e+11 | AX30: 3.119763183e+11 | AY30: 3.464280763e+11 | AZ30: 3.808798343e+11 | BA30: 4.153315923e+11 | BB30: SSA | BC30: ALM
B31: Bhutan | C31: =IF($J$4,IF(AE31/Population!C29<$J$5,AE31/Population!C29*$J$6+(AE31/Population!C29)^2*$J$7,AE31/Population!C29),AE31/Population!C29) -> 1026.756883 | D31: =IF($J$4,IF(AF31/Population!D29<$J$5,AF31/Population!D29*$J$6+(AF31/Population!D29)^2*$J$7,AF31/Population!D29),AF31/Population!D29) -> 1338.128892 | E31: =IF($J$4,IF(AG31/Population!E29<$J$5,AG31/Population!E29*$J$6+(AG31/Population!E29)^2*$J$7,AG31/Population!E29),AG31/Population!E29) -> 1702.951017 | F31: =IF($J$4,IF(AH31/Population!F29<$J$5,AH31/Population!F29*$J$6+(AH31/Population!F29)^2*$J$7,AH31/Population!F29),AH31/Population!F29) -> 2254.755759 | G31: =IF($J$4,IF(AI31/Population!G29<$J$5,AI31/Population!G29*$J$6+(AI31/Population!G29)^2*$J$7,AI31/Population!G29),AI31/Population!G29) -> 3838.370161 | H31: =IF($J$4,IF(AJ31/Population!H29<$J$5,AJ31/Population!H29*$J$6+(AJ31/Population!H29)^2*$J$7,AJ31/Population!H29),AJ31/Population!H29) -> 1356.238965 | I31: =IF($J$4,IF(AK31/Population!I29<$J$5,AK31/Population!I29*$J$6+(AK31/Population!I29)^2*$J$7,AK31/Population!I29),AK31/Population!I29) -> 1607.444711 | J31: =IF($J$4,IF(AL31/Population!J29<$J$5,AL31/Population!J29*$J$6+(AL31/Population!J29)^2*$J$7,AL31/Population!J29),AL31/Population!J29) -> 2156.805099 | K31: =IF($J$4,IF(AM31/Population!K29<$J$5,AM31/Population!K29*$J$6+(AM31/Population!K29)^2*$J$7,AM31/Population!K29),AM31/Population!K29) -> 2634.986213 | L31: =IF($J$4,IF(AN31/Population!L29<$J$5,AN31/Population!L29*$J$6+(AN31/Population!L29)^2*$J$7,AN31/Population!L29),AN31/Population!L29) -> 3369.480281 | M31: =IF($J$4,IF(AO31/Population!M29<$J$5,AO31/Population!M29*$J$6+(AO31/Population!M29)^2*$J$7,AO31/Population!M29),AO31/Population!M29) -> 4034.580071 | N31: =IF($J$4,IF(AP31/Population!N29<$J$5,AP31/Population!N29*$J$6+(AP31/Population!N29)^2*$J$7,AP31/Population!N29),AP31/Population!N29) -> 4653.71587 | O31: =IF($J$4,IF(AQ31/Population!O29<$J$5,AQ31/Population!O29*$J$6+(AQ31/Population!O29)^2*$J$7,AQ31/Population!O29),AQ31/Population!O29) -> 5233.95422 | P31: =IF($J$4,IF(AR31/Population!P29<$J$5,AR31/Population!P29*$J$6+(AR31/Population!P29)^2*$J$7,AR31/Population!P29),AR31/Population!P29) -> 6872.8638 | Q31: =IF($J$4,IF(AS31/Population!Q29<$J$5,AS31/Population!Q29*$J$6+(AS31/Population!Q29)^2*$J$7,AS31/Population!Q29),AS31/Population!Q29) -> 8547.786186 | R31: =IF($J$4,IF(AT31/Population!R29<$J$5,AT31/Population!R29*$J$6+(AT31/Population!R29)^2*$J$7,AT31/Population!R29),AT31/Population!R29) -> 10269.86706 | S31: =IF($J$4,IF(AU31/Population!S29<$J$5,AU31/Population!S29*$J$6+(AU31/Population!S29)^2*$J$7,AU31/Population!S29),AU31/Population!S29) -> 12044.4321 | T31: =IF($J$4,IF(AV31/Population!T29<$J$5,AV31/Population!T29*$J$6+(AV31/Population!T29)^2*$J$7,AV31/Population!T29),AV31/Population!T29) -> 13876.30058 | U31: =IF($J$4,IF(AW31/Population!U29<$J$5,AW31/Population!U29*$J$6+(AW31/Population!U29)^2*$J$7,AW31/Population!U29),AW31/Population!U29) -> 15645.99263 | V31: =IF($J$4,IF(AX31/Population!V29<$J$5,AX31/Population!V29*$J$6+(AX31/Population!V29)^2*$J$7,AX31/Population!V29),AX31/Population!V29) -> 17469.95715 | W31: =IF($J$4,IF(AY31/Population!W29<$J$5,AY31/Population!W29*$J$6+(AY31/Population!W29)^2*$J$7,AY31/Population!W29),AY31/Population!W29) -> 19326.4096 | X31: =IF($J$4,IF(AZ31/Population!X29<$J$5,AZ31/Population!X29*$J$6+(AZ31/Population!X29)^2*$J$7,AZ31/Population!X29),AZ31/Population!X29) -> 21145.47718 | Y31: =IF($J$4,IF(BA31/Population!Y29<$J$5,BA31/Population!Y29*$J$6+(BA31/Population!Y29)^2*$J$7,BA31/Population!Y29),BA31/Population!Y29) -> 22806.13538 | Z31: SAS | AA31: ASIA | AD31: Bhutan | AE31: 339634100.5 | AF31: 409082274.8 | AG31: 559120331 | AH31: 804919036.3 | AI31: 1490169612 | AJ31: =IFERROR(AI31*(1+AJ224)^5,0) -> 2226235241 | AK31: 2962300869 | AL31: 4391801961 | AM31: 5821303053 | AN31: 7968080153 | AO31: 1.011485725e+10 | AP31: 1.226163435e+10 | AQ31: 1.440841145e+10 | AR31: 1.901179281e+10 | AS31: 2.361517416e+10 | AT31: 2.821855552e+10 | AU31: 3.282193687e+10 | AV31: 3.742531823e+10 | AW31: 4.160846422e+10 | AX31: 4.579161021e+10 | AY31: 4.99747562e+10 | AZ31: 5.415790219e+10 | BA31: 5.834104818e+10 | BB31: SAS | BC31: ASIA
B32: Bolivia | C32: =IF($J$4,IF(AE32/Population!C30<$J$5,AE32/Population!C30*$J$6+(AE32/Population!C30)^2*$J$7,AE32/Population!C30),AE32/Population!C30) -> 1592.134476 | D32: =IF($J$4,IF(AF32/Population!D30<$J$5,AF32/Population!D30*$J$6+(AF32/Population!D30)^2*$J$7,AF32/Population!D30),AF32/Population!D30) -> 1732.23579 | E32: =IF($J$4,IF(AG32/Population!E30<$J$5,AG32/Population!E30*$J$6+(AG32/Population!E30)^2*$J$7,AG32/Population!E30),AG32/Population!E30) -> 1843.990383 | F32: =IF($J$4,IF(AH32/Population!F30<$J$5,AH32/Population!F30*$J$6+(AH32/Population!F30)^2*$J$7,AH32/Population!F30),AH32/Population!F30) -> 1937.367993 | G32: =IF($J$4,IF(AI32/Population!G30<$J$5,AI32/Population!G30*$J$6+(AI32/Population!G30)^2*$J$7,AI32/Population!G30),AI32/Population!G30) -> 2125.330823 | H32: =IF($J$4,IF(AJ32/Population!H30<$J$5,AJ32/Population!H30*$J$6+(AJ32/Population!H30)^2*$J$7,AJ32/Population!H30),AJ32/Population!H30) -> 2798.8162 | I32: =IF($J$4,IF(AK32/Population!I30<$J$5,AK32/Population!I30*$J$6+(AK32/Population!I30)^2*$J$7,AK32/Population!I30),AK32/Population!I30) -> 3408.883446 | J32: =IF($J$4,IF(AL32/Population!J30<$J$5,AL32/Population!J30*$J$6+(AL32/Population!J30)^2*$J$7,AL32/Population!J30),AL32/Population!J30) -> 4634.986971 | K32: =IF($J$4,IF(AM32/Population!K30<$J$5,AM32/Population!K30*$J$6+(AM32/Population!K30)^2*$J$7,AM32/Population!K30),AM32/Population!K30) -> 5727.682115 | L32: =IF($J$4,IF(AN32/Population!L30<$J$5,AN32/Population!L30*$J$6+(AN32/Population!L30)^2*$J$7,AN32/Population!L30),AN32/Population!L30) -> 6671.012476 | M32: =IF($J$4,IF(AO32/Population!M30<$J$5,AO32/Population!M30*$J$6+(AO32/Population!M30)^2*$J$7,AO32/Population!M30),AO32/Population!M30) -> 7532.26045 | N32: =IF($J$4,IF(AP32/Population!N30<$J$5,AP32/Population!N30*$J$6+(AP32/Population!N30)^2*$J$7,AP32/Population!N30),AP32/Population!N30) -> 8340.473111 | O32: =IF($J$4,IF(AQ32/Population!O30<$J$5,AQ32/Population!O30*$J$6+(AQ32/Population!O30)^2*$J$7,AQ32/Population!O30),AQ32/Population!O30) -> 9127.166197 | P32: =IF($J$4,IF(AR32/Population!P30<$J$5,AR32/Population!P30*$J$6+(AR32/Population!P30)^2*$J$7,AR32/Population!P30),AR32/Population!P30) -> 10229.83201 | Q32: =IF($J$4,IF(AS32/Population!Q30<$J$5,AS32/Population!Q30*$J$6+(AS32/Population!Q30)^2*$J$7,AS32/Population!Q30),AS32/Population!Q30) -> 11366.2643 | R32: =IF($J$4,IF(AT32/Population!R30<$J$5,AT32/Population!R30*$J$6+(AT32/Population!R30)^2*$J$7,AT32/Population!R30),AT32/Population!R30) -> 12536.85842 | S32: =IF($J$4,IF(AU32/Population!S30<$J$5,AU32/Population!S30*$J$6+(AU32/Population!S30)^2*$J$7,AU32/Population!S30),AU32/Population!S30) -> 13739.80669 | T32: =IF($J$4,IF(AV32/Population!T30<$J$5,AV32/Population!T30*$J$6+(AV32/Population!T30)^2*$J$7,AV32/Population!T30),AV32/Population!T30) -> 14970.56267 | U32: =IF($J$4,IF(AW32/Population!U30<$J$5,AW32/Population!U30*$J$6+(AW32/Population!U30)^2*$J$7,AW32/Population!U30),AW32/Population!U30) -> 16218.52533 | V32: =IF($J$4,IF(AX32/Population!V30<$J$5,AX32/Population!V30*$J$6+(AX32/Population!V30)^2*$J$7,AX32/Population!V30),AX32/Population!V30) -> 17476.25883 | W32: =IF($J$4,IF(AY32/Population!W30<$J$5,AY32/Population!W30*$J$6+(AY32/Population!W30)^2*$J$7,AY32/Population!W30),AY32/Population!W30) -> 18758.04827 | X32: =IF($J$4,IF(AZ32/Population!X30<$J$5,AZ32/Population!X30*$J$6+(AZ32/Population!X30)^2*$J$7,AZ32/Population!X30),AZ32/Population!X30) -> 20038.11238 | Y32: =IF($J$4,IF(BA32/Population!Y30<$J$5,BA32/Population!Y30*$J$6+(BA32/Population!Y30)^2*$J$7,BA32/Population!Y30),BA32/Population!Y30) -> 21278.58241 | Z32: LAM | AA32: ALM | AD32: Bolivia | AE32: 5665222334 | AF32: 6924975847 | AG32: 8201334737 | AH32: 9549122310 | AI32: 1.150833853e+10 | AJ32: =IFERROR(AI32*(1+AJ225)^5,0) -> 1.708588668e+10 | AK32: 2.266343482e+10 | AL32: 3.34184469e+10 | AM32: 4.417345897e+10 | AN32: 5.432023977e+10 | AO32: 6.446702058e+10 | AP32: 7.461380138e+10 | AQ32: 8.476058218e+10 | AR32: 9.556459678e+10 | AS32: 1.063686114e+11 | AT32: 1.17172626e+11 | AU32: 1.279766406e+11 | AV32: 1.387806552e+11 | AW32: 1.495101338e+11 | AX32: 1.602396124e+11 | AY32: 1.70969091e+11 | AZ32: 1.816985696e+11 | BA32: 1.924280481e+11 | BB32: LAM | BC32: ALM
B33: Bosnia and Herzegovina | C33: =IF($J$4,IF(AE33/Population!C31<$J$5,AE33/Population!C31*$J$6+(AE33/Population!C31)^2*$J$7,AE33/Population!C31),AE33/Population!C31) -> 1031.735524 | D33: =IF($J$4,IF(AF33/Population!D31<$J$5,AF33/Population!D31*$J$6+(AF33/Population!D31)^2*$J$7,AF33/Population!D31),AF33/Population!D31) -> 1365.827329 | E33: =IF($J$4,IF(AG33/Population!E31<$J$5,AG33/Population!E31*$J$6+(AG33/Population!E31)^2*$J$7,AG33/Population!E31),AG33/Population!E31) -> 3480.403206 | F33: =IF($J$4,IF(AH33/Population!F31<$J$5,AH33/Population!F31*$J$6+(AH33/Population!F31)^2*$J$7,AH33/Population!F31),AH33/Population!F31) -> 4402.310482 | G33: =IF($J$4,IF(AI33/Population!G31<$J$5,AI33/Population!G31*$J$6+(AI33/Population!G31)^2*$J$7,AI33/Population!G31),AI33/Population!G31) -> 4391.293892 | H33: =IF($J$4,IF(AJ33/Population!H31<$J$5,AJ33/Population!H31*$J$6+(AJ33/Population!H31)^2*$J$7,AJ33/Population!H31),AJ33/Population!H31) -> 6233.602163 | I33: =IF($J$4,IF(AK33/Population!I31<$J$5,AK33/Population!I31*$J$6+(AK33/Population!I31)^2*$J$7,AK33/Population!I31),AK33/Population!I31) -> 7902.178502 | J33: =IF($J$4,IF(AL33/Population!J31<$J$5,AL33/Population!J31*$J$6+(AL33/Population!J31)^2*$J$7,AL33/Population!J31),AL33/Population!J31) -> 10871.95156 | K33: =IF($J$4,IF(AM33/Population!K31<$J$5,AM33/Population!K31*$J$6+(AM33/Population!K31)^2*$J$7,AM33/Population!K31),AM33/Population!K31) -> 13643.4719 | L33: =IF($J$4,IF(AN33/Population!L31<$J$5,AN33/Population!L31*$J$6+(AN33/Population!L31)^2*$J$7,AN33/Population!L31),AN33/Population!L31) -> 17208.48717 | M33: =IF($J$4,IF(AO33/Population!M31<$J$5,AO33/Population!M31*$J$6+(AO33/Population!M31)^2*$J$7,AO33/Population!M31),AO33/Population!M31) -> 20269.17672 | N33: =IF($J$4,IF(AP33/Population!N31<$J$5,AP33/Population!N31*$J$6+(AP33/Population!N31)^2*$J$7,AP33/Population!N31),AP33/Population!N31) -> 22720.01163 | O33: =IF($J$4,IF(AQ33/Population!O31<$J$5,AQ33/Population!O31*$J$6+(AQ33/Population!O31)^2*$J$7,AQ33/Population!O31),AQ33/Population!O31) -> 24365.7351 | P33: =IF($J$4,IF(AR33/Population!P31<$J$5,AR33/Population!P31*$J$6+(AR33/Population!P31)^2*$J$7,AR33/Population!P31),AR33/Population!P31) -> 26626.1937 | Q33: =IF($J$4,IF(AS33/Population!Q31<$J$5,AS33/Population!Q31*$J$6+(AS33/Population!Q31)^2*$J$7,AS33/Population!Q31),AS33/Population!Q31) -> 30847.87537 | R33: =IF($J$4,IF(AT33/Population!R31<$J$5,AT33/Population!R31*$J$6+(AT33/Population!R31)^2*$J$7,AT33/Population!R31),AT33/Population!R31) -> 35298.94817 | S33: =IF($J$4,IF(AU33/Population!S31<$J$5,AU33/Population!S31*$J$6+(AU33/Population!S31)^2*$J$7,AU33/Population!S31),AU33/Population!S31) -> 40137.17253 | T33: =IF($J$4,IF(AV33/Population!T31<$J$5,AV33/Population!T31*$J$6+(AV33/Population!T31)^2*$J$7,AV33/Population!T31),AV33/Population!T31) -> 45391.08402 | U33: =IF($J$4,IF(AW33/Population!U31<$J$5,AW33/Population!U31*$J$6+(AW33/Population!U31)^2*$J$7,AW33/Population!U31),AW33/Population!U31) -> 52041.44243 | V33: =IF($J$4,IF(AX33/Population!V31<$J$5,AX33/Population!V31*$J$6+(AX33/Population!V31)^2*$J$7,AX33/Population!V31),AX33/Population!V31) -> 58763.30181 | W33: =IF($J$4,IF(AY33/Population!W31<$J$5,AY33/Population!W31*$J$6+(AY33/Population!W31)^2*$J$7,AY33/Population!W31),AY33/Population!W31) -> 65925.44705 | X33: =IF($J$4,IF(AZ33/Population!X31<$J$5,AZ33/Population!X31*$J$6+(AZ33/Population!X31)^2*$J$7,AZ33/Population!X31),AZ33/Population!X31) -> 73669.49638 | Y33: =IF($J$4,IF(BA33/Population!Y31<$J$5,BA33/Population!Y31*$J$6+(BA33/Population!Y31)^2*$J$7,BA33/Population!Y31),BA33/Population!Y31) -> 82071.96049 | Z33: EEU | AA33: REF | AD33: Bosnia and Herzegovina | AE33: 2455955551 | AF33: 2735457343 | AG33: 7759836782 | AH33: 1.089003637e+10 | AI33: 1.13298909e+10 | AJ33: 1.616719203e+10 | AK33: 2.100449317e+10 | AL33: 2.996706981e+10 | AM33: 3.892964645e+10 | AN33: 5.194723371e+10 | AO33: 6.496482097e+10 | AP33: 7.798240823e+10 | AQ33: 9.099999549e+10 | AR33: 1.050469463e+11 | AS33: 1.19093897e+11 | AT33: 1.331408478e+11 | AU33: 1.471877986e+11 | AV33: 1.612347494e+11 | AW33: 1.792188878e+11 | AX33: 1.972030263e+11 | AY33: 2.151871647e+11 | AZ33: 2.331713032e+11 | BA33: 2.511554416e+11 | BB33: EEU | BC33: REF
B34: Botswana | C34: =IF($J$4,IF(AE34/Population!C32<$J$5,AE34/Population!C32*$J$6+(AE34/Population!C32)^2*$J$7,AE34/Population!C32),AE34/Population!C32) -> 5949.357708 | D34: =IF($J$4,IF(AF34/Population!D32<$J$5,AF34/Population!D32*$J$6+(AF34/Population!D32)^2*$J$7,AF34/Population!D32),AF34/Population!D32) -> 6391.615158 | E34: =IF($J$4,IF(AG34/Population!E32<$J$5,AG34/Population!E32*$J$6+(AG34/Population!E32)^2*$J$7,AG34/Population!E32),AG34/Population!E32) -> 8091.178881 | F34: =IF($J$4,IF(AH34/Population!F32<$J$5,AH34/Population!F32*$J$6+(AH34/Population!F32)^2*$J$7,AH34/Population!F32),AH34/Population!F32) -> 9367.681788 | G34: =IF($J$4,IF(AI34/Population!G32<$J$5,AI34/Population!G32*$J$6+(AI34/Population!G32)^2*$J$7,AI34/Population!G32),AI34/Population!G32) -> 8223.663329 | H34: =IF($J$4,IF(AJ34/Population!H32<$J$5,AJ34/Population!H32*$J$6+(AJ34/Population!H32)^2*$J$7,AJ34/Population!H32),AJ34/Population!H32) -> 12408.53925 | I34: =IF($J$4,IF(AK34/Population!I32<$J$5,AK34/Population!I32*$J$6+(AK34/Population!I32)^2*$J$7,AK34/Population!I32),AK34/Population!I32) -> 14834.96062 | J34: =IF($J$4,IF(AL34/Population!J32<$J$5,AL34/Population!J32*$J$6+(AL34/Population!J32)^2*$J$7,AL34/Population!J32),AL34/Population!J32) -> 18538.52622 | K34: =IF($J$4,IF(AM34/Population!K32<$J$5,AM34/Population!K32*$J$6+(AM34/Population!K32)^2*$J$7,AM34/Population!K32),AM34/Population!K32) -> 21458.33234 | L34: =IF($J$4,IF(AN34/Population!L32<$J$5,AN34/Population!L32*$J$6+(AN34/Population!L32)^2*$J$7,AN34/Population!L32),AN34/Population!L32) -> 33694.11884 | M34: =IF($J$4,IF(AO34/Population!M32<$J$5,AO34/Population!M32*$J$6+(AO34/Population!M32)^2*$J$7,AO34/Population!M32),AO34/Population!M32) -> 50778.31333 | N34: =IF($J$4,IF(AP34/Population!N32<$J$5,AP34/Population!N32*$J$6+(AP34/Population!N32)^2*$J$7,AP34/Population!N32),AP34/Population!N32) -> 67951.83484 | O34: =IF($J$4,IF(AQ34/Population!O32<$J$5,AQ34/Population!O32*$J$6+(AQ34/Population!O32)^2*$J$7,AQ34/Population!O32),AQ34/Population!O32) -> 85270.46564 | P34: =IF($J$4,IF(AR34/Population!P32<$J$5,AR34/Population!P32*$J$6+(AR34/Population!P32)^2*$J$7,AR34/Population!P32),AR34/Population!P32) -> 110389.5787 | Q34: =IF($J$4,IF(AS34/Population!Q32<$J$5,AS34/Population!Q32*$J$6+(AS34/Population!Q32)^2*$J$7,AS34/Population!Q32),AS34/Population!Q32) -> 134556.0982 | R34: =IF($J$4,IF(AT34/Population!R32<$J$5,AT34/Population!R32*$J$6+(AT34/Population!R32)^2*$J$7,AT34/Population!R32),AT34/Population!R32) -> 158420.8096 | S34: =IF($J$4,IF(AU34/Population!S32<$J$5,AU34/Population!S32*$J$6+(AU34/Population!S32)^2*$J$7,AU34/Population!S32),AU34/Population!S32) -> 182488.4352 | T34: =IF($J$4,IF(AV34/Population!T32<$J$5,AV34/Population!T32*$J$6+(AV34/Population!T32)^2*$J$7,AV34/Population!T32),AV34/Population!T32) -> 207530.1907 | U34: =IF($J$4,IF(AW34/Population!U32<$J$5,AW34/Population!U32*$J$6+(AW34/Population!U32)^2*$J$7,AW34/Population!U32),AW34/Population!U32) -> 237226.821 | V34: =IF($J$4,IF(AX34/Population!V32<$J$5,AX34/Population!V32*$J$6+(AX34/Population!V32)^2*$J$7,AX34/Population!V32),AX34/Population!V32) -> 269459.6163 | W34: =IF($J$4,IF(AY34/Population!W32<$J$5,AY34/Population!W32*$J$6+(AY34/Population!W32)^2*$J$7,AY34/Population!W32),AY34/Population!W32) -> 305508.2795 | X34: =IF($J$4,IF(AZ34/Population!X32<$J$5,AZ34/Population!X32*$J$6+(AZ34/Population!X32)^2*$J$7,AZ34/Population!X32),AZ34/Population!X32) -> 345882.3713 | Y34: =IF($J$4,IF(BA34/Population!Y32<$J$5,BA34/Population!Y32*$J$6+(BA34/Population!Y32)^2*$J$7,BA34/Population!Y32),BA34/Population!Y32) -> 391122.8467 | Z34: SSA | AA34: ALM | AD34: Botswana | AE34: 4278962924 | AF34: 5400762247 | AG34: 7944682247 | AH34: 1.025553133e+10 | AI34: 9772924248 | AJ34: 1.382438337e+10 | AK34: 1.78758425e+10 | AL34: 2.474461096e+10 | AM34: 3.161337943e+10 | AN34: 6.379182693e+10 | AO34: 9.597027443e+10 | AP34: 1.281487219e+11 | AQ34: 1.603271694e+11 | AR34: 2.16738855e+11 | AS34: 2.731505406e+11 | AT34: 3.295622262e+11 | AU34: 3.859739118e+11 | AV34: 4.423855974e+11 | AW34: 5.050868186e+11 | AX34: 5.677880399e+11 | AY34: 6.304892611e+11 | AZ34: 6.931904824e+11 | BA34: 7.558917036e+11 | BB34: SSA | BC34: ALM
B35: Brazil | C35: =IF($J$4,IF(AE35/Population!C33<$J$5,AE35/Population!C33*$J$6+(AE35/Population!C33)^2*$J$7,AE35/Population!C33),AE35/Population!C33) -> 6879.552666 | D35: =IF($J$4,IF(AF35/Population!D33<$J$5,AF35/Population!D33*$J$6+(AF35/Population!D33)^2*$J$7,AF35/Population!D33),AF35/Population!D33) -> 7351.656828 | E35: =IF($J$4,IF(AG35/Population!E33<$J$5,AG35/Population!E33*$J$6+(AG35/Population!E33)^2*$J$7,AG35/Population!E33),AG35/Population!E33) -> 7516.405854 | F35: =IF($J$4,IF(AH35/Population!F33<$J$5,AH35/Population!F33*$J$6+(AH35/Population!F33)^2*$J$7,AH35/Population!F33),AH35/Population!F33) -> 7994.106581 | G35: =IF($J$4,IF(AI35/Population!G33<$J$5,AI35/Population!G33*$J$6+(AI35/Population!G33)^2*$J$7,AI35/Population!G33),AI35/Population!G33) -> 10009.20087 | H35: =IF($J$4,IF(AJ35/Population!H33<$J$5,AJ35/Population!H33*$J$6+(AJ35/Population!H33)^2*$J$7,AJ35/Population!H33),AJ35/Population!H33) -> 13914.06856 | I35: =IF($J$4,IF(AK35/Population!I33<$J$5,AK35/Population!I33*$J$6+(AK35/Population!I33)^2*$J$7,AK35/Population!I33),AK35/Population!I33) -> 16723.88074 | J35: =IF($J$4,IF(AL35/Population!J33<$J$5,AL35/Population!J33*$J$6+(AL35/Population!J33)^2*$J$7,AL35/Population!J33),AL35/Population!J33) -> 21074.65531 | K35: =IF($J$4,IF(AM35/Population!K33<$J$5,AM35/Population!K33*$J$6+(AM35/Population!K33)^2*$J$7,AM35/Population!K33),AM35/Population!K33) -> 23723.99028 | L35: =IF($J$4,IF(AN35/Population!L33<$J$5,AN35/Population!L33*$J$6+(AN35/Population!L33)^2*$J$7,AN35/Population!L33),AN35/Population!L33) -> 24977.67085 | M35: =IF($J$4,IF(AO35/Population!M33<$J$5,AO35/Population!M33*$J$6+(AO35/Population!M33)^2*$J$7,AO35/Population!M33),AO35/Population!M33) -> 29225.65277 | N35: =IF($J$4,IF(AP35/Population!N33<$J$5,AP35/Population!N33*$J$6+(AP35/Population!N33)^2*$J$7,AP35/Population!N33),AP35/Population!N33) -> 33552.35126 | O35: =IF($J$4,IF(AQ35/Population!O33<$J$5,AQ35/Population!O33*$J$6+(AQ35/Population!O33)^2*$J$7,AQ35/Population!O33),AQ35/Population!O33) -> 38020.84301 | P35: =IF($J$4,IF(AR35/Population!P33<$J$5,AR35/Population!P33*$J$6+(AR35/Population!P33)^2*$J$7,AR35/Population!P33),AR35/Population!P33) -> 42787.85314 | Q35: =IF($J$4,IF(AS35/Population!Q33<$J$5,AS35/Population!Q33*$J$6+(AS35/Population!Q33)^2*$J$7,AS35/Population!Q33),AS35/Population!Q33) -> 47823.8349 | R35: =IF($J$4,IF(AT35/Population!R33<$J$5,AT35/Population!R33*$J$6+(AT35/Population!R33)^2*$J$7,AT35/Population!R33),AT35/Population!R33) -> 53195.70136 | S35: =IF($J$4,IF(AU35/Population!S33<$J$5,AU35/Population!S33*$J$6+(AU35/Population!S33)^2*$J$7,AU35/Population!S33),AU35/Population!S33) -> 58938.16348 | T35: =IF($J$4,IF(AV35/Population!T33<$J$5,AV35/Population!T33*$J$6+(AV35/Population!T33)^2*$J$7,AV35/Population!T33),AV35/Population!T33) -> 65101.79843 | U35: =IF($J$4,IF(AW35/Population!U33<$J$5,AW35/Population!U33*$J$6+(AW35/Population!U33)^2*$J$7,AW35/Population!U33),AW35/Population!U33) -> 71701.29441 | V35: =IF($J$4,IF(AX35/Population!V33<$J$5,AX35/Population!V33*$J$6+(AX35/Population!V33)^2*$J$7,AX35/Population!V33),AX35/Population!V33) -> 78851.07129 | W35: =IF($J$4,IF(AY35/Population!W33<$J$5,AY35/Population!W33*$J$6+(AY35/Population!W33)^2*$J$7,AY35/Population!W33),AY35/Population!W33) -> 86945.85693 | X35: =IF($J$4,IF(AZ35/Population!X33<$J$5,AZ35/Population!X33*$J$6+(AZ35/Population!X33)^2*$J$7,AZ35/Population!X33),AZ35/Population!X33) -> 96032.27119 | Y35: =IF($J$4,IF(BA35/Population!Y33<$J$5,BA35/Population!Y33*$J$6+(BA35/Population!Y33)^2*$J$7,BA35/Population!Y33),BA35/Population!Y33) -> 106144.4905 | Z35: LAM | AA35: ALM | AD35: Brazil | AE35: 5.983973561e+11 | AF35: 6.960199864e+11 | AG35: 7.688551346e+11 | AH35: 8.820439486e+11 | AI35: 1.208683044e+12 | AJ35: 1.794474629e+12 | AK35: 2.380266213e+12 | AL35: 3.50982985e+12 | AM35: 4.639393487e+12 | AN35: 5.705076589e+12 | AO35: 6.770759691e+12 | AP35: 7.836442793e+12 | AQ35: 8.902125895e+12 | AR35: 1.003683611e+13 | AS35: 1.117154632e+13 | AT35: 1.230625653e+13 | AU35: 1.344096674e+13 | AV35: 1.457567695e+13 | AW35: 1.570255889e+13 | AX35: 1.682944083e+13 | AY35: 1.795632277e+13 | AZ35: 1.908320471e+13 | BA35: 2.021008665e+13 | BB35: LAM | BC35: ALM
B36: Brunei Darussalam | C36: =IF($J$4,IF(AE36/Population!C34<$J$5,AE36/Population!C34*$J$6+(AE36/Population!C34)^2*$J$7,AE36/Population!C34),AE36/Population!C34) -> 27259.91562 | D36: =IF($J$4,IF(AF36/Population!D34<$J$5,AF36/Population!D34*$J$6+(AF36/Population!D34)^2*$J$7,AF36/Population!D34),AF36/Population!D34) -> 27958.49099 | E36: =IF($J$4,IF(AG36/Population!E34<$J$5,AG36/Population!E34*$J$6+(AG36/Population!E34)^2*$J$7,AG36/Population!E34),AG36/Population!E34) -> 26443.84603 | F36: =IF($J$4,IF(AH36/Population!F34<$J$5,AH36/Population!F34*$J$6+(AH36/Population!F34)^2*$J$7,AH36/Population!F34),AH36/Population!F34) -> 26394.82997 | G36: =IF($J$4,IF(AI36/Population!G34<$J$5,AI36/Population!G34*$J$6+(AI36/Population!G34)^2*$J$7,AI36/Population!G34),AI36/Population!G34) -> 24559.6366 | H36: =IF($J$4,IF(AJ36/Population!H34<$J$5,AJ36/Population!H34*$J$6+(AJ36/Population!H34)^2*$J$7,AJ36/Population!H34),AJ36/Population!H34) -> 33066.77524 | I36: =IF($J$4,IF(AK36/Population!I34<$J$5,AK36/Population!I34*$J$6+(AK36/Population!I34)^2*$J$7,AK36/Population!I34),AK36/Population!I34) -> 41100.85022 | J36: =IF($J$4,IF(AL36/Population!J34<$J$5,AL36/Population!J34*$J$6+(AL36/Population!J34)^2*$J$7,AL36/Population!J34),AL36/Population!J34) -> 57470.55372 | K36: =IF($J$4,IF(AM36/Population!K34<$J$5,AM36/Population!K34*$J$6+(AM36/Population!K34)^2*$J$7,AM36/Population!K34),AM36/Population!K34) -> 72629.31557 | L36: =IF($J$4,IF(AN36/Population!L34<$J$5,AN36/Population!L34*$J$6+(AN36/Population!L34)^2*$J$7,AN36/Population!L34),AN36/Population!L34) -> 95725.73067 | M36: =IF($J$4,IF(AO36/Population!M34<$J$5,AO36/Population!M34*$J$6+(AO36/Population!M34)^2*$J$7,AO36/Population!M34),AO36/Population!M34) -> 118131.4097 | N36: =IF($J$4,IF(AP36/Population!N34<$J$5,AP36/Population!N34*$J$6+(AP36/Population!N34)^2*$J$7,AP36/Population!N34),AP36/Population!N34) -> 140361.3701 | O36: =IF($J$4,IF(AQ36/Population!O34<$J$5,AQ36/Population!O34*$J$6+(AQ36/Population!O34)^2*$J$7,AQ36/Population!O34),AQ36/Population!O34) -> 162820.9671 | P36: =IF($J$4,IF(AR36/Population!P34<$J$5,AR36/Population!P34*$J$6+(AR36/Population!P34)^2*$J$7,AR36/Population!P34),AR36/Population!P34) -> 214646.0674 | Q36: =IF($J$4,IF(AS36/Population!Q34<$J$5,AS36/Population!Q34*$J$6+(AS36/Population!Q34)^2*$J$7,AS36/Population!Q34),AS36/Population!Q34) -> 268199.3085 | R36: =IF($J$4,IF(AT36/Population!R34<$J$5,AT36/Population!R34*$J$6+(AT36/Population!R34)^2*$J$7,AT36/Population!R34),AT36/Population!R34) -> 324067.2497 | S36: =IF($J$4,IF(AU36/Population!S34<$J$5,AU36/Population!S34*$J$6+(AU36/Population!S34)^2*$J$7,AU36/Population!S34),AU36/Population!S34) -> 382860.9625 | T36: =IF($J$4,IF(AV36/Population!T34<$J$5,AV36/Population!T34*$J$6+(AV36/Population!T34)^2*$J$7,AV36/Population!T34),AV36/Population!T34) -> 445404.1899 | U36: =IF($J$4,IF(AW36/Population!U34<$J$5,AW36/Population!U34*$J$6+(AW36/Population!U34)^2*$J$7,AW36/Population!U34),AW36/Population!U34) -> 507641.224 | V36: =IF($J$4,IF(AX36/Population!V34<$J$5,AX36/Population!V34*$J$6+(AX36/Population!V34)^2*$J$7,AX36/Population!V34),AX36/Population!V34) -> 575714.7229 | W36: =IF($J$4,IF(AY36/Population!W34<$J$5,AY36/Population!W34*$J$6+(AY36/Population!W34)^2*$J$7,AY36/Population!W34),AY36/Population!W34) -> 654105.8775 | X36: =IF($J$4,IF(AZ36/Population!X34<$J$5,AZ36/Population!X34*$J$6+(AZ36/Population!X34)^2*$J$7,AZ36/Population!X34),AZ36/Population!X34) -> 743091.1168 | Y36: =IF($J$4,IF(BA36/Population!Y34<$J$5,BA36/Population!Y34*$J$6+(BA36/Population!Y34)^2*$J$7,BA36/Population!Y34),BA36/Population!Y34) -> 843214.029 | Z36: PAS | AA36: ASIA | AD36: Brunei Darussalam | AE36: 6893678282 | AF36: 8051765820 | AG36: 8602103783 | AH36: 9531437052 | AI36: 9221099610 | AJ36: 1.377583916e+10 | AK36: 1.833057872e+10 | AL36: 2.717626437e+10 | AM36: 3.602195003e+10 | AN36: 4.930610595e+10 | AO36: 6.259026186e+10 | AP36: 7.587441778e+10 | AQ36: 8.91585737e+10 | AR36: 1.176440814e+11 | AS36: 1.461295892e+11 | AT36: 1.746150969e+11 | AU36: 2.031006046e+11 | AV36: 2.315861124e+11 | AW36: 2.574712234e+11 | AX36: 2.833563344e+11 | AY36: 3.092414455e+11 | AZ36: 3.351265565e+11 | BA36: 3.610116675e+11 | BB36: PAS | BC36: ASIA
B37: Bulgaria | C37: =IF($J$4,IF(AE37/Population!C35<$J$5,AE37/Population!C35*$J$6+(AE37/Population!C35)^2*$J$7,AE37/Population!C35),AE37/Population!C35) -> 5132.926221 | D37: =IF($J$4,IF(AF37/Population!D35<$J$5,AF37/Population!D35*$J$6+(AF37/Population!D35)^2*$J$7,AF37/Population!D35),AF37/Population!D35) -> 4860.542297 | E37: =IF($J$4,IF(AG37/Population!E35<$J$5,AG37/Population!E35*$J$6+(AG37/Population!E35)^2*$J$7,AG37/Population!E35),AG37/Population!E35) -> 5032.396091 | F37: =IF($J$4,IF(AH37/Population!F35<$J$5,AH37/Population!F35*$J$6+(AH37/Population!F35)^2*$J$7,AH37/Population!F35),AH37/Population!F35) -> 6751.232706 | G37: =IF($J$4,IF(AI37/Population!G35<$J$5,AI37/Population!G35*$J$6+(AI37/Population!G35)^2*$J$7,AI37/Population!G35),AI37/Population!G35) -> 7357.614083 | H37: =IF($J$4,IF(AJ37/Population!H35<$J$5,AJ37/Population!H35*$J$6+(AJ37/Population!H35)^2*$J$7,AJ37/Population!H35),AJ37/Population!H35) -> 10023.17473 | I37: =IF($J$4,IF(AK37/Population!I35<$J$5,AK37/Population!I35*$J$6+(AK37/Population!I35)^2*$J$7,AK37/Population!I35),AK37/Population!I35) -> 12956.7571 | J37: =IF($J$4,IF(AL37/Population!J35<$J$5,AL37/Population!J35*$J$6+(AL37/Population!J35)^2*$J$7,AL37/Population!J35),AL37/Population!J35) -> 17567.33327 | K37: =IF($J$4,IF(AM37/Population!K35<$J$5,AM37/Population!K35*$J$6+(AM37/Population!K35)^2*$J$7,AM37/Population!K35),AM37/Population!K35) -> 21298.58651 | L37: =IF($J$4,IF(AN37/Population!L35<$J$5,AN37/Population!L35*$J$6+(AN37/Population!L35)^2*$J$7,AN37/Population!L35),AN37/Population!L35) -> 24442.03841 | M37: =IF($J$4,IF(AO37/Population!M35<$J$5,AO37/Population!M35*$J$6+(AO37/Population!M35)^2*$J$7,AO37/Population!M35),AO37/Population!M35) -> 29945.33151 | N37: =IF($J$4,IF(AP37/Population!N35<$J$5,AP37/Population!N35*$J$6+(AP37/Population!N35)^2*$J$7,AP37/Population!N35),AP37/Population!N35) -> 37856.21142 | O37: =IF($J$4,IF(AQ37/Population!O35<$J$5,AQ37/Population!O35*$J$6+(AQ37/Population!O35)^2*$J$7,AQ37/Population!O35),AQ37/Population!O35) -> 46711.54455 | P37: =IF($J$4,IF(AR37/Population!P35<$J$5,AR37/Population!P35*$J$6+(AR37/Population!P35)^2*$J$7,AR37/Population!P35),AR37/Population!P35) -> 55198.75654 | Q37: =IF($J$4,IF(AS37/Population!Q35<$J$5,AS37/Population!Q35*$J$6+(AS37/Population!Q35)^2*$J$7,AS37/Population!Q35),AS37/Population!Q35) -> 64231.05133 | R37: =IF($J$4,IF(AT37/Population!R35<$J$5,AT37/Population!R35*$J$6+(AT37/Population!R35)^2*$J$7,AT37/Population!R35),AT37/Population!R35) -> 73941.06671 | S37: =IF($J$4,IF(AU37/Population!S35<$J$5,AU37/Population!S35*$J$6+(AU37/Population!S35)^2*$J$7,AU37/Population!S35),AU37/Population!S35) -> 84359.08911 | T37: =IF($J$4,IF(AV37/Population!T35<$J$5,AV37/Population!T35*$J$6+(AV37/Population!T35)^2*$J$7,AV37/Population!T35),AV37/Population!T35) -> 95384.20016 | U37: =IF($J$4,IF(AW37/Population!U35<$J$5,AW37/Population!U35*$J$6+(AW37/Population!U35)^2*$J$7,AW37/Population!U35),AW37/Population!U35) -> 109248.0232 | V37: =IF($J$4,IF(AX37/Population!V35<$J$5,AX37/Population!V35*$J$6+(AX37/Population!V35)^2*$J$7,AX37/Population!V35),AX37/Population!V35) -> 123499.9889 | W37: =IF($J$4,IF(AY37/Population!W35<$J$5,AY37/Population!W35*$J$6+(AY37/Population!W35)^2*$J$7,AY37/Population!W35),AY37/Population!W35) -> 138874.492 | X37: =IF($J$4,IF(AZ37/Population!X35<$J$5,AZ37/Population!X35*$J$6+(AZ37/Population!X35)^2*$J$7,AZ37/Population!X35),AZ37/Population!X35) -> 155451.5689 | Y37: =IF($J$4,IF(BA37/Population!Y35<$J$5,BA37/Population!Y35*$J$6+(BA37/Population!Y35)^2*$J$7,BA37/Population!Y35),BA37/Population!Y35) -> 173183.3441 | Z37: EEU | AA37: REF | AD37: Bulgaria | AE37: 2.570914036e+10 | AF37: 2.25251226e+10 | AG37: 2.213110888e+10 | AH37: 2.88945028e+10 | AI37: 3.045116917e+10 | AJ37: 4.345230719e+10 | AK37: 5.645344521e+10 | AL37: 8.054202116e+10 | AM37: 1.046305971e+11 | AN37: 1.396177612e+11 | AO37: 1.746049253e+11 | AP37: 2.095920894e+11 | AQ37: 2.445792534e+11 | AR37: 2.823330216e+11 | AS37: 3.200867898e+11 | AT37: 3.57840558e+11 | AU37: 3.955943262e+11 | AV37: 4.333480944e+11 | AW37: 4.816837798e+11 | AX37: 5.300194652e+11 | AY37: 5.783551506e+11 | AZ37: 6.266908361e+11 | BA37: 6.750265215e+11 | BB37: EEU | BC37: REF
B38: Burkina Faso | C38: =IF($J$4,IF(AE38/Population!C36<$J$5,AE38/Population!C36*$J$6+(AE38/Population!C36)^2*$J$7,AE38/Population!C36),AE38/Population!C36) -> 538.0612649 | D38: =IF($J$4,IF(AF38/Population!D36<$J$5,AF38/Population!D36*$J$6+(AF38/Population!D36)^2*$J$7,AF38/Population!D36),AF38/Population!D36) -> 550.29988 | E38: =IF($J$4,IF(AG38/Population!E36<$J$5,AG38/Population!E36*$J$6+(AG38/Population!E36)^2*$J$7,AG38/Population!E36),AG38/Population!E36) -> 643.9416151 | F38: =IF($J$4,IF(AH38/Population!F36<$J$5,AH38/Population!F36*$J$6+(AH38/Population!F36)^2*$J$7,AH38/Population!F36),AH38/Population!F36) -> 727.5248075 | G38: =IF($J$4,IF(AI38/Population!G36<$J$5,AI38/Population!G36*$J$6+(AI38/Population!G36)^2*$J$7,AI38/Population!G36),AI38/Population!G36) -> 790.076794 | H38: =IF($J$4,IF(AJ38/Population!H36<$J$5,AJ38/Population!H36*$J$6+(AJ38/Population!H36)^2*$J$7,AJ38/Population!H36),AJ38/Population!H36) -> 940.5988057 | I38: =IF($J$4,IF(AK38/Population!I36<$J$5,AK38/Population!I36*$J$6+(AK38/Population!I36)^2*$J$7,AK38/Population!I36),AK38/Population!I36) -> 1054.286996 | J38: =IF($J$4,IF(AL38/Population!J36<$J$5,AL38/Population!J36*$J$6+(AL38/Population!J36)^2*$J$7,AL38/Population!J36),AL38/Population!J36) -> 1283.800407 | K38: =IF($J$4,IF(AM38/Population!K36<$J$5,AM38/Population!K36*$J$6+(AM38/Population!K36)^2*$J$7,AM38/Population!K36),AM38/Population!K36) -> 1470.883259 | L38: =IF($J$4,IF(AN38/Population!L36<$J$5,AN38/Population!L36*$J$6+(AN38/Population!L36)^2*$J$7,AN38/Population!L36),AN38/Population!L36) -> 2690.977631 | M38: =IF($J$4,IF(AO38/Population!M36<$J$5,AO38/Population!M36*$J$6+(AO38/Population!M36)^2*$J$7,AO38/Population!M36),AO38/Population!M36) -> 3692.431534 | N38: =IF($J$4,IF(AP38/Population!N36<$J$5,AP38/Population!N36*$J$6+(AP38/Population!N36)^2*$J$7,AP38/Population!N36),AP38/Population!N36) -> 4546.560832 | O38: =IF($J$4,IF(AQ38/Population!O36<$J$5,AQ38/Population!O36*$J$6+(AQ38/Population!O36)^2*$J$7,AQ38/Population!O36),AQ38/Population!O36) -> 5316.054667 | P38: =IF($J$4,IF(AR38/Population!P36<$J$5,AR38/Population!P36*$J$6+(AR38/Population!P36)^2*$J$7,AR38/Population!P36),AR38/Population!P36) -> 6938.413268 | Q38: =IF($J$4,IF(AS38/Population!Q36<$J$5,AS38/Population!Q36*$J$6+(AS38/Population!Q36)^2*$J$7,AS38/Population!Q36),AS38/Population!Q36) -> 8509.023212 | R38: =IF($J$4,IF(AT38/Population!R36<$J$5,AT38/Population!R36*$J$6+(AT38/Population!R36)^2*$J$7,AT38/Population!R36),AT38/Population!R36) -> 10055.77104 | S38: =IF($J$4,IF(AU38/Population!S36<$J$5,AU38/Population!S36*$J$6+(AU38/Population!S36)^2*$J$7,AU38/Population!S36),AU38/Population!S36) -> 11597.68388 | T38: =IF($J$4,IF(AV38/Population!T36<$J$5,AV38/Population!T36*$J$6+(AV38/Population!T36)^2*$J$7,AV38/Population!T36),AV38/Population!T36) -> 13154.52264 | U38: =IF($J$4,IF(AW38/Population!U36<$J$5,AW38/Population!U36*$J$6+(AW38/Population!U36)^2*$J$7,AW38/Population!U36),AW38/Population!U36) -> 14878.80421 | V38: =IF($J$4,IF(AX38/Population!V36<$J$5,AX38/Population!V36*$J$6+(AX38/Population!V36)^2*$J$7,AX38/Population!V36),AX38/Population!V36) -> 16619.68452 | W38: =IF($J$4,IF(AY38/Population!W36<$J$5,AY38/Population!W36*$J$6+(AY38/Population!W36)^2*$J$7,AY38/Population!W36),AY38/Population!W36) -> 18373.78857 | X38: =IF($J$4,IF(AZ38/Population!X36<$J$5,AZ38/Population!X36*$J$6+(AZ38/Population!X36)^2*$J$7,AZ38/Population!X36),AZ38/Population!X36) -> 20104.58055 | Y38: =IF($J$4,IF(BA38/Population!Y36<$J$5,BA38/Population!Y36*$J$6+(BA38/Population!Y36)^2*$J$7,BA38/Population!Y36),BA38/Population!Y36) -> 21741.19589 | Z38: SSA | AA38: ALM | AD38: Burkina Faso | AE38: 2408578138 | AF38: 2917960956 | AG38: 3999300399 | AH38: 5426180753 | AI38: 6887996420 | AJ38: 9743481150 | AK38: 1.259896588e+10 | AL38: 1.744010159e+10 | AM38: 2.228123731e+10 | AN38: 4.496073687e+10 | AO38: 6.764023643e+10 | AP38: 9.0319736e+10 | AQ38: 1.129992356e+11 | AR38: 1.52758419e+11 | AS38: 1.925176025e+11 | AT38: 2.32276786e+11 | AU38: 2.720359695e+11 | AV38: 3.11795153e+11 | AW38: 3.559872266e+11 | AX38: 4.001793002e+11 | AY38: 4.443713738e+11 | AZ38: 4.885634473e+11 | BA38: 5.327555209e+11 | BB38: SSA | BC38: ALM
B39: Burundi | C39: =IF($J$4,IF(AE39/Population!C37<$J$5,AE39/Population!C37*$J$6+(AE39/Population!C37)^2*$J$7,AE39/Population!C37),AE39/Population!C37) -> 386.6488793 | D39: =IF($J$4,IF(AF39/Population!D37<$J$5,AF39/Population!D37*$J$6+(AF39/Population!D37)^2*$J$7,AF39/Population!D37),AF39/Population!D37) -> 312.1391301 | E39: =IF($J$4,IF(AG39/Population!E37<$J$5,AG39/Population!E37*$J$6+(AG39/Population!E37)^2*$J$7,AG39/Population!E37),AG39/Population!E37) -> 265.3768488 | F39: =IF($J$4,IF(AH39/Population!F37<$J$5,AH39/Population!F37*$J$6+(AH39/Population!F37)^2*$J$7,AH39/Population!F37),AH39/Population!F37) -> 246.3761333 | G39: =IF($J$4,IF(AI39/Population!G37<$J$5,AI39/Population!G37*$J$6+(AI39/Population!G37)^2*$J$7,AI39/Population!G37),AI39/Population!G37) -> 166.7136575 | H39: =IF($J$4,IF(AJ39/Population!H37<$J$5,AJ39/Population!H37*$J$6+(AJ39/Population!H37)^2*$J$7,AJ39/Population!H37),AJ39/Population!H37) -> 226.3819054 | I39: =IF($J$4,IF(AK39/Population!I37<$J$5,AK39/Population!I37*$J$6+(AK39/Population!I37)^2*$J$7,AK39/Population!I37),AK39/Population!I37) -> 263.5658481 | J39: =IF($J$4,IF(AL39/Population!J37<$J$5,AL39/Population!J37*$J$6+(AL39/Population!J37)^2*$J$7,AL39/Population!J37),AL39/Population!J37) -> 334.3878354 | K39: =IF($J$4,IF(AM39/Population!K37<$J$5,AM39/Population!K37*$J$6+(AM39/Population!K37)^2*$J$7,AM39/Population!K37),AM39/Population!K37) -> 397.6781438 | L39: =IF($J$4,IF(AN39/Population!L37<$J$5,AN39/Population!L37*$J$6+(AN39/Population!L37)^2*$J$7,AN39/Population!L37),AN39/Population!L37) -> 755.7718182 | M39: =IF($J$4,IF(AO39/Population!M37<$J$5,AO39/Population!M37*$J$6+(AO39/Population!M37)^2*$J$7,AO39/Population!M37),AO39/Population!M37) -> 1068.689634 | N39: =IF($J$4,IF(AP39/Population!N37<$J$5,AP39/Population!N37*$J$6+(AP39/Population!N37)^2*$J$7,AP39/Population!N37),AP39/Population!N37) -> 1348.379994 | O39: =IF($J$4,IF(AQ39/Population!O37<$J$5,AQ39/Population!O37*$J$6+(AQ39/Population!O37)^2*$J$7,AQ39/Population!O37),AQ39/Population!O37) -> 1609.817628 | P39: =IF($J$4,IF(AR39/Population!P37<$J$5,AR39/Population!P37*$J$6+(AR39/Population!P37)^2*$J$7,AR39/Population!P37),AR39/Population!P37) -> 2131.133609 | Q39: =IF($J$4,IF(AS39/Population!Q37<$J$5,AS39/Population!Q37*$J$6+(AS39/Population!Q37)^2*$J$7,AS39/Population!Q37),AS39/Population!Q37) -> 2653.993432 | R39: =IF($J$4,IF(AT39/Population!R37<$J$5,AT39/Population!R37*$J$6+(AT39/Population!R37)^2*$J$7,AT39/Population!R37),AT39/Population!R37) -> 3189.016278 | S39: =IF($J$4,IF(AU39/Population!S37<$J$5,AU39/Population!S37*$J$6+(AU39/Population!S37)^2*$J$7,AU39/Population!S37),AU39/Population!S37) -> 3743.008676 | T39: =IF($J$4,IF(AV39/Population!T37<$J$5,AV39/Population!T37*$J$6+(AV39/Population!T37)^2*$J$7,AV39/Population!T37),AV39/Population!T37) -> 4324.106907 | U39: =IF($J$4,IF(AW39/Population!U37<$J$5,AW39/Population!U37*$J$6+(AW39/Population!U37)^2*$J$7,AW39/Population!U37),AW39/Population!U37) -> 5001.259004 | V39: =IF($J$4,IF(AX39/Population!V37<$J$5,AX39/Population!V37*$J$6+(AX39/Population!V37)^2*$J$7,AX39/Population!V37),AX39/Population!V37) -> 5736.843458 | W39: =IF($J$4,IF(AY39/Population!W37<$J$5,AY39/Population!W37*$J$6+(AY39/Population!W37)^2*$J$7,AY39/Population!W37),AY39/Population!W37) -> 6551.705102 | X39: =IF($J$4,IF(AZ39/Population!X37<$J$5,AZ39/Population!X37*$J$6+(AZ39/Population!X37)^2*$J$7,AZ39/Population!X37),AZ39/Population!X37) -> 7453.586783 | Y39: =IF($J$4,IF(BA39/Population!Y37<$J$5,BA39/Population!Y37*$J$6+(BA39/Population!Y37)^2*$J$7,BA39/Population!Y37),BA39/Population!Y37) -> 8437.24683 | Z39: SSA | AA39: ALM | AD39: Burundi | AE39: 1144152699 | AF39: 1027897254 | AG39: 966686188.5 | AH39: 1073432424 | AI39: 877039015 | AJ39: 1240623919 | AK39: 1604208822 | AL39: 2220623907 | AM39: 2837038992 | AN39: 5724788163 | AO39: 8612537335 | AP39: 1.150028651e+10 | AQ39: 1.438803568e+10 | AR39: 1.945051728e+10 | AS39: 2.451299887e+10 | AT39: 2.957548047e+10 | AU39: 3.463796207e+10 | AV39: 3.970044367e+10 | AW39: 4.5327359e+10 | AX39: 5.095427434e+10 | AY39: 5.658118967e+10 | AZ39: 6.220810501e+10 | BA39: 6.783502034e+10 | BB39: SSA | BC39: ALM
B40: Cambodia | C40: =IF($J$4,IF(AE40/Population!C38<$J$5,AE40/Population!C38*$J$6+(AE40/Population!C38)^2*$J$7,AE40/Population!C38),AE40/Population!C38) -> 416.4230167 | D40: =IF($J$4,IF(AF40/Population!D38<$J$5,AF40/Population!D38*$J$6+(AF40/Population!D38)^2*$J$7,AF40/Population!D38),AF40/Population!D38) -> 474.3993519 | E40: =IF($J$4,IF(AG40/Population!E38<$J$5,AG40/Population!E38*$J$6+(AG40/Population!E38)^2*$J$7,AG40/Population!E38),AG40/Population!E38) -> 608.4908905 | F40: =IF($J$4,IF(AH40/Population!F38<$J$5,AH40/Population!F38*$J$6+(AH40/Population!F38)^2*$J$7,AH40/Population!F38),AH40/Population!F38) -> 880.8447883 | G40: =IF($J$4,IF(AI40/Population!G38<$J$5,AI40/Population!G38*$J$6+(AI40/Population!G38)^2*$J$7,AI40/Population!G38),AI40/Population!G38) -> 943.0231 | H40: =IF($J$4,IF(AJ40/Population!H38<$J$5,AJ40/Population!H38*$J$6+(AJ40/Population!H38)^2*$J$7,AJ40/Population!H38),AJ40/Population!H38) -> 1286.337552 | I40: =IF($J$4,IF(AK40/Population!I38<$J$5,AK40/Population!I38*$J$6+(AK40/Population!I38)^2*$J$7,AK40/Population!I38),AK40/Population!I38) -> 1654.433714 | J40: =IF($J$4,IF(AL40/Population!J38<$J$5,AL40/Population!J38*$J$6+(AL40/Population!J38)^2*$J$7,AL40/Population!J38),AL40/Population!J38) -> 2546.398401 | K40: =IF($J$4,IF(AM40/Population!K38<$J$5,AM40/Population!K38*$J$6+(AM40/Population!K38)^2*$J$7,AM40/Population!K38),AM40/Population!K38) -> 3367.951136 | L40: =IF($J$4,IF(AN40/Population!L38<$J$5,AN40/Population!L38*$J$6+(AN40/Population!L38)^2*$J$7,AN40/Population!L38),AN40/Population!L38) -> 4279.01762 | M40: =IF($J$4,IF(AO40/Population!M38<$J$5,AO40/Population!M38*$J$6+(AO40/Population!M38)^2*$J$7,AO40/Population!M38),AO40/Population!M38) -> 5113.701666 | N40: =IF($J$4,IF(AP40/Population!N38<$J$5,AP40/Population!N38*$J$6+(AP40/Population!N38)^2*$J$7,AP40/Population!N38),AP40/Population!N38) -> 5885.687968 | O40: =IF($J$4,IF(AQ40/Population!O38<$J$5,AQ40/Population!O38*$J$6+(AQ40/Population!O38)^2*$J$7,AQ40/Population!O38),AQ40/Population!O38) -> 6626.898643 | P40: =IF($J$4,IF(AR40/Population!P38<$J$5,AR40/Population!P38*$J$6+(AR40/Population!P38)^2*$J$7,AR40/Population!P38),AR40/Population!P38) -> 7885.696909 | Q40: =IF($J$4,IF(AS40/Population!Q38<$J$5,AS40/Population!Q38*$J$6+(AS40/Population!Q38)^2*$J$7,AS40/Population!Q38),AS40/Population!Q38) -> 9275.443506 | R40: =IF($J$4,IF(AT40/Population!R38<$J$5,AT40/Population!R38*$J$6+(AT40/Population!R38)^2*$J$7,AT40/Population!R38),AT40/Population!R38) -> 10743.16597 | S40: =IF($J$4,IF(AU40/Population!S38<$J$5,AU40/Population!S38*$J$6+(AU40/Population!S38)^2*$J$7,AU40/Population!S38),AU40/Population!S38) -> 12293.29476 | T40: =IF($J$4,IF(AV40/Population!T38<$J$5,AV40/Population!T38*$J$6+(AV40/Population!T38)^2*$J$7,AV40/Population!T38),AV40/Population!T38) -> 13891.56012 | U40: =IF($J$4,IF(AW40/Population!U38<$J$5,AW40/Population!U38*$J$6+(AW40/Population!U38)^2*$J$7,AW40/Population!U38),AW40/Population!U38) -> 15698.56633 | V40: =IF($J$4,IF(AX40/Population!V38<$J$5,AX40/Population!V38*$J$6+(AX40/Population!V38)^2*$J$7,AX40/Population!V38),AX40/Population!V38) -> 17544.42839 | W40: =IF($J$4,IF(AY40/Population!W38<$J$5,AY40/Population!W38*$J$6+(AY40/Population!W38)^2*$J$7,AY40/Population!W38),AY40/Population!W38) -> 19382.5817 | X40: =IF($J$4,IF(AZ40/Population!X38<$J$5,AZ40/Population!X38*$J$6+(AZ40/Population!X38)^2*$J$7,AZ40/Population!X38),AZ40/Population!X38) -> 21130.13829 | Y40: =IF($J$4,IF(BA40/Population!Y38<$J$5,BA40/Population!Y38*$J$6+(BA40/Population!Y38)^2*$J$7,BA40/Population!Y38),BA40/Population!Y38) -> 22694.03185 | Z40: CPA | AA40: ASIA | AD40: Cambodia | AE40: 2085884520 | AF40: 2851485360 | AG40: 4026637603 | AH40: 6293046162 | AI40: 7327809198 | AJ40: 1.211775051e+10 | AK40: 1.690769181e+10 | AL40: 2.796380043e+10 | AM40: 3.901990905e+10 | AN40: 5.190281168e+10 | AO40: 6.478571432e+10 | AP40: 7.766861696e+10 | AQ40: 9.055151959e+10 | AR40: 1.035973474e+11 | AS40: 1.166431753e+11 | AT40: 1.296890031e+11 | AU40: 1.42734831e+11 | AV40: 1.557806588e+11 | AW40: 1.70779018e+11 | AX40: 1.857773772e+11 | AY40: 2.007757364e+11 | AZ40: 2.157740956e+11 | BA40: 2.307724548e+11 | BB40: CPA | BC40: ASIA
B41: Cameroon | C41: =IF($J$4,IF(AE41/Population!C39<$J$5,AE41/Population!C39*$J$6+(AE41/Population!C39)^2*$J$7,AE41/Population!C39),AE41/Population!C39) -> 1815.516156 | D41: =IF($J$4,IF(AF41/Population!D39<$J$5,AF41/Population!D39*$J$6+(AF41/Population!D39)^2*$J$7,AF41/Population!D39),AF41/Population!D39) -> 1494.484571 | E41: =IF($J$4,IF(AG41/Population!E39<$J$5,AG41/Population!E39*$J$6+(AG41/Population!E39)^2*$J$7,AG41/Population!E39),AG41/Population!E39) -> 1663.713822 | F41: =IF($J$4,IF(AH41/Population!F39<$J$5,AH41/Population!F39*$J$6+(AH41/Population!F39)^2*$J$7,AH41/Population!F39),AH41/Population!F39) -> 1772.036464 | G41: =IF($J$4,IF(AI41/Population!G39<$J$5,AI41/Population!G39*$J$6+(AI41/Population!G39)^2*$J$7,AI41/Population!G39),AI41/Population!G39) -> 1851.889235 | H41: =IF($J$4,IF(AJ41/Population!H39<$J$5,AJ41/Population!H39*$J$6+(AJ41/Population!H39)^2*$J$7,AJ41/Population!H39),AJ41/Population!H39) -> 2356.785365 | I41: =IF($J$4,IF(AK41/Population!I39<$J$5,AK41/Population!I39*$J$6+(AK41/Population!I39)^2*$J$7,AK41/Population!I39),AK41/Population!I39) -> 2798.566762 | J41: =IF($J$4,IF(AL41/Population!J39<$J$5,AL41/Population!J39*$J$6+(AL41/Population!J39)^2*$J$7,AL41/Population!J39),AL41/Population!J39) -> 3602.986996 | K41: =IF($J$4,IF(AM41/Population!K39<$J$5,AM41/Population!K39*$J$6+(AM41/Population!K39)^2*$J$7,AM41/Population!K39),AM41/Population!K39) -> 4356.14754 | L41: =IF($J$4,IF(AN41/Population!L39<$J$5,AN41/Population!L39*$J$6+(AN41/Population!L39)^2*$J$7,AN41/Population!L39),AN41/Population!L39) -> 8153.329665 | M41: =IF($J$4,IF(AO41/Population!M39<$J$5,AO41/Population!M39*$J$6+(AO41/Population!M39)^2*$J$7,AO41/Population!M39),AO41/Population!M39) -> 11408.85695 | N41: =IF($J$4,IF(AP41/Population!N39<$J$5,AP41/Population!N39*$J$6+(AP41/Population!N39)^2*$J$7,AP41/Population!N39),AP41/Population!N39) -> 14174.32923 | O41: =IF($J$4,IF(AQ41/Population!O39<$J$5,AQ41/Population!O39*$J$6+(AQ41/Population!O39)^2*$J$7,AQ41/Population!O39),AQ41/Population!O39) -> 16544.59004 | P41: =IF($J$4,IF(AR41/Population!P39<$J$5,AR41/Population!P39*$J$6+(AR41/Population!P39)^2*$J$7,AR41/Population!P39),AR41/Population!P39) -> 19800.42096 | Q41: =IF($J$4,IF(AS41/Population!Q39<$J$5,AS41/Population!Q39*$J$6+(AS41/Population!Q39)^2*$J$7,AS41/Population!Q39),AS41/Population!Q39) -> 22195.14045 | R41: =IF($J$4,IF(AT41/Population!R39<$J$5,AT41/Population!R39*$J$6+(AT41/Population!R39)^2*$J$7,AT41/Population!R39),AT41/Population!R39) -> 23832.17326 | S41: =IF($J$4,IF(AU41/Population!S39<$J$5,AU41/Population!S39*$J$6+(AU41/Population!S39)^2*$J$7,AU41/Population!S39),AU41/Population!S39) -> 24738.95085 | T41: =IF($J$4,IF(AV41/Population!T39<$J$5,AV41/Population!T39*$J$6+(AV41/Population!T39)^2*$J$7,AV41/Population!T39),AV41/Population!T39) -> 27688.02037 | U41: =IF($J$4,IF(AW41/Population!U39<$J$5,AW41/Population!U39*$J$6+(AW41/Population!U39)^2*$J$7,AW41/Population!U39),AW41/Population!U39) -> 31729.71293 | V41: =IF($J$4,IF(AX41/Population!V39<$J$5,AX41/Population!V39*$J$6+(AX41/Population!V39)^2*$J$7,AX41/Population!V39),AX41/Population!V39) -> 36120.86506 | W41: =IF($J$4,IF(AY41/Population!W39<$J$5,AY41/Population!W39*$J$6+(AY41/Population!W39)^2*$J$7,AY41/Population!W39),AY41/Population!W39) -> 41062.93363 | X41: =IF($J$4,IF(AZ41/Population!X39<$J$5,AZ41/Population!X39*$J$6+(AZ41/Population!X39)^2*$J$7,AZ41/Population!X39),AZ41/Population!X39) -> 46667.66614 | Y41: =IF($J$4,IF(BA41/Population!Y39<$J$5,BA41/Population!Y39*$J$6+(BA41/Population!Y39)^2*$J$7,BA41/Population!Y39),BA41/Population!Y39) -> 53053.01357 | Z41: SSA | AA41: ALM | AD41: Cameroon | AE41: 1.170633899e+10 | AF41: 1.099256798e+10 | AG41: 1.382713025e+10 | AH41: 1.658785751e+10 | AI41: 1.939316372e+10 | AJ41: 2.743278504e+10 | AK41: 3.547240636e+10 | AL41: 4.910263085e+10 | AM41: 6.273285534e+10 | AN41: 1.265870186e+11 | AO41: 1.904411819e+11 | AP41: 2.542953452e+11 | AQ41: 3.181495085e+11 | AR41: 4.300915462e+11 | AS41: 5.420335839e+11 | AT41: 6.539756216e+11 | AU41: 7.659176593e+11 | AV41: 8.77859697e+11 | AW41: 1.002282543e+12 | AX41: 1.126705389e+12 | AY41: 1.251128235e+12 | AZ41: 1.375551081e+12 | BA41: 1.499973927e+12 | BB41: SSA | BC41: ALM
B42: Canada | C42: =IF($J$4,IF(AE42/Population!C40<$J$5,AE42/Population!C40*$J$6+(AE42/Population!C40)^2*$J$7,AE42/Population!C40),AE42/Population!C40) -> 26983.35248 | D42: =IF($J$4,IF(AF42/Population!D40<$J$5,AF42/Population!D40*$J$6+(AF42/Population!D40)^2*$J$7,AF42/Population!D40),AF42/Population!D40) -> 27505.80791 | E42: =IF($J$4,IF(AG42/Population!E40<$J$5,AG42/Population!E40*$J$6+(AG42/Population!E40)^2*$J$7,AG42/Population!E40),AG42/Population!E40) -> 32152.46103 | F42: =IF($J$4,IF(AH42/Population!F40<$J$5,AH42/Population!F40*$J$6+(AH42/Population!F40)^2*$J$7,AH42/Population!F40),AH42/Population!F40) -> 35007.21404 | G42: =IF($J$4,IF(AI42/Population!G40<$J$5,AI42/Population!G40*$J$6+(AI42/Population!G40)^2*$J$7,AI42/Population!G40),AI42/Population!G40) -> 38043.22359 | H42: =IF($J$4,IF(AJ42/Population!H40<$J$5,AJ42/Population!H40*$J$6+(AJ42/Population!H40)^2*$J$7,AJ42/Population!H40),AJ42/Population!H40) -> 42672.44319 | I42: =IF($J$4,IF(AK42/Population!I40<$J$5,AK42/Population!I40*$J$6+(AK42/Population!I40)^2*$J$7,AK42/Population!I40),AK42/Population!I40) -> 45408.69618 | J42: =IF($J$4,IF(AL42/Population!J40<$J$5,AL42/Population!J40*$J$6+(AL42/Population!J40)^2*$J$7,AL42/Population!J40),AL42/Population!J40) -> 48894.1165 | K42: =IF($J$4,IF(AM42/Population!K40<$J$5,AM42/Population!K40*$J$6+(AM42/Population!K40)^2*$J$7,AM42/Population!K40),AM42/Population!K40) -> 52302.7249 | L42: =IF($J$4,IF(AN42/Population!L40<$J$5,AN42/Population!L40*$J$6+(AN42/Population!L40)^2*$J$7,AN42/Population!L40),AN42/Population!L40) -> 56327.97126 | M42: =IF($J$4,IF(AO42/Population!M40<$J$5,AO42/Population!M40*$J$6+(AO42/Population!M40)^2*$J$7,AO42/Population!M40),AO42/Population!M40) -> 60410.92459 | N42: =IF($J$4,IF(AP42/Population!N40<$J$5,AP42/Population!N40*$J$6+(AP42/Population!N40)^2*$J$7,AP42/Population!N40),AP42/Population!N40) -> 64586.89969 | O42: =IF($J$4,IF(AQ42/Population!O40<$J$5,AQ42/Population!O40*$J$6+(AQ42/Population!O40)^2*$J$7,AQ42/Population!O40),AQ42/Population!O40) -> 68818.31025 | P42: =IF($J$4,IF(AR42/Population!P40<$J$5,AR42/Population!P40*$J$6+(AR42/Population!P40)^2*$J$7,AR42/Population!P40),AR42/Population!P40) -> 74667.01655 | Q42: =IF($J$4,IF(AS42/Population!Q40<$J$5,AS42/Population!Q40*$J$6+(AS42/Population!Q40)^2*$J$7,AS42/Population!Q40),AS42/Population!Q40) -> 80292.29981 | R42: =IF($J$4,IF(AT42/Population!R40<$J$5,AT42/Population!R40*$J$6+(AT42/Population!R40)^2*$J$7,AT42/Population!R40),AT42/Population!R40) -> 85589.00628 | S42: =IF($J$4,IF(AU42/Population!S40<$J$5,AU42/Population!S40*$J$6+(AU42/Population!S40)^2*$J$7,AU42/Population!S40),AU42/Population!S40) -> 90534.54245 | T42: =IF($J$4,IF(AV42/Population!T40<$J$5,AV42/Population!T40*$J$6+(AV42/Population!T40)^2*$J$7,AV42/Population!T40),AV42/Population!T40) -> 95194.39023 | U42: =IF($J$4,IF(AW42/Population!U40<$J$5,AW42/Population!U40*$J$6+(AW42/Population!U40)^2*$J$7,AW42/Population!U40),AW42/Population!U40) -> 102127.6577 | V42: =IF($J$4,IF(AX42/Population!V40<$J$5,AX42/Population!V40*$J$6+(AX42/Population!V40)^2*$J$7,AX42/Population!V40),AX42/Population!V40) -> 108775.9509 | W42: =IF($J$4,IF(AY42/Population!W40<$J$5,AY42/Population!W40*$J$6+(AY42/Population!W40)^2*$J$7,AY42/Population!W40),AY42/Population!W40) -> 115609.1059 | X42: =IF($J$4,IF(AZ42/Population!X40<$J$5,AZ42/Population!X40*$J$6+(AZ42/Population!X40)^2*$J$7,AZ42/Population!X40),AZ42/Population!X40) -> 122427.79 | Y42: =IF($J$4,IF(BA42/Population!Y40<$J$5,BA42/Population!Y40*$J$6+(BA42/Population!Y40)^2*$J$7,BA42/Population!Y40),BA42/Population!Y40) -> 129028.2553 | Z42: NAM | AA42: OECD90 | AD42: Canada | AE42: 7.498835555e+11 | AF42: 8.166619873e+11 | AG42: 9.999274232e+11 | AH42: 1.133756867e+12 | AI42: 1.284329413e+12 | AJ42: 1.428302204e+12 | AK42: 1.572274994e+12 | AL42: 1.747264556e+12 | AM42: 1.922254118e+12 | AN42: 2.120612126e+12 | AO42: 2.318970133e+12 | AP42: 2.517328141e+12 | AQ42: 2.715686148e+12 | AR42: 2.998456761e+12 | AS42: 3.281227373e+12 | AT42: 3.563997986e+12 | AU42: 3.846768598e+12 | AV42: 4.129539211e+12 | AW42: 4.52561739e+12 | AX42: 4.92169557e+12 | AY42: 5.317773749e+12 | AZ42: 5.713851929e+12 | BA42: 6.109930108e+12 | BB42: NAM | BC42: OECD90
B43: Cape Verde | C43: =IF($J$4,IF(AE43/Population!C41<$J$5,AE43/Population!C41*$J$6+(AE43/Population!C41)^2*$J$7,AE43/Population!C41),AE43/Population!C41) -> 2101.087173 | D43: =IF($J$4,IF(AF43/Population!D41<$J$5,AF43/Population!D41*$J$6+(AF43/Population!D41)^2*$J$7,AF43/Population!D41),AF43/Population!D41) -> 2380.05996 | E43: =IF($J$4,IF(AG43/Population!E41<$J$5,AG43/Population!E41*$J$6+(AG43/Population!E41)^2*$J$7,AG43/Population!E41),AG43/Population!E41) -> 3158.96356 | F43: =IF($J$4,IF(AH43/Population!F41<$J$5,AH43/Population!F41*$J$6+(AH43/Population!F41)^2*$J$7,AH43/Population!F41),AH43/Population!F41) -> 3727.902113 | G43: =IF($J$4,IF(AI43/Population!G41<$J$5,AI43/Population!G41*$J$6+(AI43/Population!G41)^2*$J$7,AI43/Population!G41),AI43/Population!G41) -> 4946.173207 | H43: =IF($J$4,IF(AJ43/Population!H41<$J$5,AJ43/Population!H41*$J$6+(AJ43/Population!H41)^2*$J$7,AJ43/Population!H41),AJ43/Population!H41) -> 5809.078743 | I43: =IF($J$4,IF(AK43/Population!I41<$J$5,AK43/Population!I41*$J$6+(AK43/Population!I41)^2*$J$7,AK43/Population!I41),AK43/Population!I41) -> 6916.210265 | J43: =IF($J$4,IF(AL43/Population!J41<$J$5,AL43/Population!J41*$J$6+(AL43/Population!J41)^2*$J$7,AL43/Population!J41),AL43/Population!J41) -> 8833.485124 | K43: =IF($J$4,IF(AM43/Population!K41<$J$5,AM43/Population!K41*$J$6+(AM43/Population!K41)^2*$J$7,AM43/Population!K41),AM43/Population!K41) -> 10537.8263 | L43: =IF($J$4,IF(AN43/Population!L41<$J$5,AN43/Population!L41*$J$6+(AN43/Population!L41)^2*$J$7,AN43/Population!L41),AN43/Population!L41) -> 17932.75574 | M43: =IF($J$4,IF(AO43/Population!M41<$J$5,AO43/Population!M41*$J$6+(AO43/Population!M41)^2*$J$7,AO43/Population!M41),AO43/Population!M41) -> 22557.58029 | N43: =IF($J$4,IF(AP43/Population!N41<$J$5,AP43/Population!N41*$J$6+(AP43/Population!N41)^2*$J$7,AP43/Population!N41),AP43/Population!N41) -> 24730.63689 | O43: =IF($J$4,IF(AQ43/Population!O41<$J$5,AQ43/Population!O41*$J$6+(AQ43/Population!O41)^2*$J$7,AQ43/Population!O41),AQ43/Population!O41) -> 30263.04312 | P43: =IF($J$4,IF(AR43/Population!P41<$J$5,AR43/Population!P41*$J$6+(AR43/Population!P41)^2*$J$7,AR43/Population!P41),AR43/Population!P41) -> 38158.81329 | Q43: =IF($J$4,IF(AS43/Population!Q41<$J$5,AS43/Population!Q41*$J$6+(AS43/Population!Q41)^2*$J$7,AS43/Population!Q41),AS43/Population!Q41) -> 45182.24972 | R43: =IF($J$4,IF(AT43/Population!R41<$J$5,AT43/Population!R41*$J$6+(AT43/Population!R41)^2*$J$7,AT43/Population!R41),AT43/Population!R41) -> 51634.50745 | S43: =IF($J$4,IF(AU43/Population!S41<$J$5,AU43/Population!S41*$J$6+(AU43/Population!S41)^2*$J$7,AU43/Population!S41),AU43/Population!S41) -> 57758.86148 | T43: =IF($J$4,IF(AV43/Population!T41<$J$5,AV43/Population!T41*$J$6+(AV43/Population!T41)^2*$J$7,AV43/Population!T41),AV43/Population!T41) -> 63894.86547 | U43: =IF($J$4,IF(AW43/Population!U41<$J$5,AW43/Population!U41*$J$6+(AW43/Population!U41)^2*$J$7,AW43/Population!U41),AW43/Population!U41) -> 71047.23881 | V43: =IF($J$4,IF(AX43/Population!V41<$J$5,AX43/Population!V41*$J$6+(AX43/Population!V41)^2*$J$7,AX43/Population!V41),AX43/Population!V41) -> 78563.19856 | W43: =IF($J$4,IF(AY43/Population!W41<$J$5,AY43/Population!W41*$J$6+(AY43/Population!W41)^2*$J$7,AY43/Population!W41),AY43/Population!W41) -> 87066.21735 | X43: =IF($J$4,IF(AZ43/Population!X41<$J$5,AZ43/Population!X41*$J$6+(AZ43/Population!X41)^2*$J$7,AZ43/Population!X41),AZ43/Population!X41) -> 96892.78408 | Y43: =IF($J$4,IF(BA43/Population!Y41<$J$5,BA43/Population!Y41*$J$6+(BA43/Population!Y41)^2*$J$7,BA43/Population!Y41),BA43/Population!Y41) -> 108422.899 | Z43: SSA | AA43: ALM | AD43: Cape Verde | AE43: 388484839.8 | AF43: 500719684.2 | AG43: 748029557.4 | AH43: 971975535.1 | AI43: 1413701700 | AJ43: =IFERROR(AI43*(1+AJ236)^5,0) -> 1999765247 | AK43: 2585828794 | AL43: 3579430035 | AM43: 4573031275 | AN43: 9227802434 | AO43: 1.388257359e+10 | AP43: 1.853734475e+10 | AQ43: 2.319211591e+10 | AR43: 3.13523445e+10 | AS43: 3.951257308e+10 | AT43: 4.767280167e+10 | AU43: 5.583303025e+10 | AV43: 6.399325884e+10 | AW43: 7.306329978e+10 | AX43: 8.213334072e+10 | AY43: 9.120338166e+10 | AZ43: 1.002734226e+11 | BA43: 1.093434635e+11 | BB43: SSA | BC43: ALM
B44: Central African Republic | C44: =IF($J$4,IF(AE44/Population!C42<$J$5,AE44/Population!C42*$J$6+(AE44/Population!C42)^2*$J$7,AE44/Population!C42),AE44/Population!C42) -> 573.8038402 | D44: =IF($J$4,IF(AF44/Population!D42<$J$5,AF44/Population!D42*$J$6+(AF44/Population!D42)^2*$J$7,AF44/Population!D42),AF44/Population!D42) -> 523.3895567 | E44: =IF($J$4,IF(AG44/Population!E42<$J$5,AG44/Population!E42*$J$6+(AG44/Population!E42)^2*$J$7,AG44/Population!E42),AG44/Population!E42) -> 578.4095096 | F44: =IF($J$4,IF(AH44/Population!F42<$J$5,AH44/Population!F42*$J$6+(AH44/Population!F42)^2*$J$7,AH44/Population!F42),AH44/Population!F42) -> 577.7175188 | G44: =IF($J$4,IF(AI44/Population!G42<$J$5,AI44/Population!G42*$J$6+(AI44/Population!G42)^2*$J$7,AI44/Population!G42),AI44/Population!G42) -> 615.2751802 | H44: =IF($J$4,IF(AJ44/Population!H42<$J$5,AJ44/Population!H42*$J$6+(AJ44/Population!H42)^2*$J$7,AJ44/Population!H42),AJ44/Population!H42) -> 819.4412573 | I44: =IF($J$4,IF(AK44/Population!I42<$J$5,AK44/Population!I42*$J$6+(AK44/Population!I42)^2*$J$7,AK44/Population!I42),AK44/Population!I42) -> 971.5624909 | J44: =IF($J$4,IF(AL44/Population!J42<$J$5,AL44/Population!J42*$J$6+(AL44/Population!J42)^2*$J$7,AL44/Population!J42),AL44/Population!J42) -> 1247.998337 | K44: =IF($J$4,IF(AM44/Population!K42<$J$5,AM44/Population!K42*$J$6+(AM44/Population!K42)^2*$J$7,AM44/Population!K42),AM44/Population!K42) -> 1505.417129 | L44: =IF($J$4,IF(AN44/Population!L42<$J$5,AN44/Population!L42*$J$6+(AN44/Population!L42)^2*$J$7,AN44/Population!L42),AN44/Population!L42) -> 2888.486072 | M44: =IF($J$4,IF(AO44/Population!M42<$J$5,AO44/Population!M42*$J$6+(AO44/Population!M42)^2*$J$7,AO44/Population!M42),AO44/Population!M42) -> 4159.966475 | N44: =IF($J$4,IF(AP44/Population!N42<$J$5,AP44/Population!N42*$J$6+(AP44/Population!N42)^2*$J$7,AP44/Population!N42),AP44/Population!N42) -> 5345.361946 | O44: =IF($J$4,IF(AQ44/Population!O42<$J$5,AQ44/Population!O42*$J$6+(AQ44/Population!O42)^2*$J$7,AQ44/Population!O42),AQ44/Population!O42) -> 6449.958196 | P44: =IF($J$4,IF(AR44/Population!P42<$J$5,AR44/Population!P42*$J$6+(AR44/Population!P42)^2*$J$7,AR44/Population!P42),AR44/Population!P42) -> 8254.553184 | Q44: =IF($J$4,IF(AS44/Population!Q42<$J$5,AS44/Population!Q42*$J$6+(AS44/Population!Q42)^2*$J$7,AS44/Population!Q42),AS44/Population!Q42) -> 9937.220589 | R44: =IF($J$4,IF(AT44/Population!R42<$J$5,AT44/Population!R42*$J$6+(AT44/Population!R42)^2*$J$7,AT44/Population!R42),AT44/Population!R42) -> 11539.64544 | S44: =IF($J$4,IF(AU44/Population!S42<$J$5,AU44/Population!S42*$J$6+(AU44/Population!S42)^2*$J$7,AU44/Population!S42),AU44/Population!S42) -> 13091.06833 | T44: =IF($J$4,IF(AV44/Population!T42<$J$5,AV44/Population!T42*$J$6+(AV44/Population!T42)^2*$J$7,AV44/Population!T42),AV44/Population!T42) -> 14626.16065 | U44: =IF($J$4,IF(AW44/Population!U42<$J$5,AW44/Population!U42*$J$6+(AW44/Population!U42)^2*$J$7,AW44/Population!U42),AW44/Population!U42) -> 16314.2162 | V44: =IF($J$4,IF(AX44/Population!V42<$J$5,AX44/Population!V42*$J$6+(AX44/Population!V42)^2*$J$7,AX44/Population!V42),AX44/Population!V42) -> 17987.32514 | W44: =IF($J$4,IF(AY44/Population!W42<$J$5,AY44/Population!W42*$J$6+(AY44/Population!W42)^2*$J$7,AY44/Population!W42),AY44/Population!W42) -> 19642.47792 | X44: =IF($J$4,IF(AZ44/Population!X42<$J$5,AZ44/Population!X42*$J$6+(AZ44/Population!X42)^2*$J$7,AZ44/Population!X42),AZ44/Population!X42) -> 21236.30159 | Y44: =IF($J$4,IF(BA44/Population!Y42<$J$5,BA44/Population!Y42*$J$6+(BA44/Population!Y42)^2*$J$7,BA44/Population!Y42),BA44/Population!Y42) -> 22695.40097 | Z44: SSA | AA44: ALM | AD44: Central African Republic | AE44: 948072459.2 | AF44: 993053313.1 | AG44: 1232965695 | AH44: 1350047410 | AI44: 1597231049 | AJ44: 2259378442 | AK44: 2921525835 | AL44: 4044118211 | AM44: 5166710588 | AN44: 1.042577268e+10 | AO44: 1.568483478e+10 | AP44: 2.094389687e+10 | AQ44: 2.620295897e+10 | AR44: 3.54225634e+10 | AS44: 4.464216784e+10 | AT44: 5.386177228e+10 | AU44: 6.308137671e+10 | AV44: 7.230098115e+10 | AW44: 8.254851145e+10 | AX44: 9.279604176e+10 | AY44: 1.030435721e+11 | AZ44: 1.132911024e+11 | BA44: 1.235386327e+11 | BB44: SSA | BC44: ALM
B45: Chad | C45: =IF($J$4,IF(AE45/Population!C43<$J$5,AE45/Population!C43*$J$6+(AE45/Population!C43)^2*$J$7,AE45/Population!C43),AE45/Population!C43) -> 667.2802439 | D45: =IF($J$4,IF(AF45/Population!D43<$J$5,AF45/Population!D43*$J$6+(AF45/Population!D43)^2*$J$7,AF45/Population!D43),AF45/Population!D43) -> 710.0871715 | E45: =IF($J$4,IF(AG45/Population!E43<$J$5,AG45/Population!E43*$J$6+(AG45/Population!E43)^2*$J$7,AG45/Population!E43),AG45/Population!E43) -> 691.23198 | F45: =IF($J$4,IF(AH45/Population!F43<$J$5,AH45/Population!F43*$J$6+(AH45/Population!F43)^2*$J$7,AH45/Population!F43),AH45/Population!F43) -> 1159.529928 | G45: =IF($J$4,IF(AI45/Population!G43<$J$5,AI45/Population!G43*$J$6+(AI45/Population!G43)^2*$J$7,AI45/Population!G43),AI45/Population!G43) -> 1031.475682 | H45: =IF($J$4,IF(AJ45/Population!H43<$J$5,AJ45/Population!H43*$J$6+(AJ45/Population!H43)^2*$J$7,AJ45/Population!H43),AJ45/Population!H43) -> 1188.887486 | I45: =IF($J$4,IF(AK45/Population!I43<$J$5,AK45/Population!I43*$J$6+(AK45/Population!I43)^2*$J$7,AK45/Population!I43),AK45/Population!I43) -> 1350.663483 | J45: =IF($J$4,IF(AL45/Population!J43<$J$5,AL45/Population!J43*$J$6+(AL45/Population!J43)^2*$J$7,AL45/Population!J43),AL45/Population!J43) -> 1665.325943 | K45: =IF($J$4,IF(AM45/Population!K43<$J$5,AM45/Population!K43*$J$6+(AM45/Population!K43)^2*$J$7,AM45/Population!K43),AM45/Population!K43) -> 1930.429791 | L45: =IF($J$4,IF(AN45/Population!L43<$J$5,AN45/Population!L43*$J$6+(AN45/Population!L43)^2*$J$7,AN45/Population!L43),AN45/Population!L43) -> 3558.029769 | M45: =IF($J$4,IF(AO45/Population!M43<$J$5,AO45/Population!M43*$J$6+(AO45/Population!M43)^2*$J$7,AO45/Population!M43),AO45/Population!M43) -> 4925.005536 | N45: =IF($J$4,IF(AP45/Population!N43<$J$5,AP45/Population!N43*$J$6+(AP45/Population!N43)^2*$J$7,AP45/Population!N43),AP45/Population!N43) -> 6123.914933 | O45: =IF($J$4,IF(AQ45/Population!O43<$J$5,AQ45/Population!O43*$J$6+(AQ45/Population!O43)^2*$J$7,AQ45/Population!O43),AQ45/Population!O43) -> 7242.138792 | P45: =IF($J$4,IF(AR45/Population!P43<$J$5,AR45/Population!P43*$J$6+(AR45/Population!P43)^2*$J$7,AR45/Population!P43),AR45/Population!P43) -> 9344.420367 | Q45: =IF($J$4,IF(AS45/Population!Q43<$J$5,AS45/Population!Q43*$J$6+(AS45/Population!Q43)^2*$J$7,AS45/Population!Q43),AS45/Population!Q43) -> 11326.20236 | R45: =IF($J$4,IF(AT45/Population!R43<$J$5,AT45/Population!R43*$J$6+(AT45/Population!R43)^2*$J$7,AT45/Population!R43),AT45/Population!R43) -> 13225.59753 | S45: =IF($J$4,IF(AU45/Population!S43<$J$5,AU45/Population!S43*$J$6+(AU45/Population!S43)^2*$J$7,AU45/Population!S43),AU45/Population!S43) -> 15062.83421 | T45: =IF($J$4,IF(AV45/Population!T43<$J$5,AV45/Population!T43*$J$6+(AV45/Population!T43)^2*$J$7,AV45/Population!T43),AV45/Population!T43) -> 16852.93407 | U45: =IF($J$4,IF(AW45/Population!U43<$J$5,AW45/Population!U43*$J$6+(AW45/Population!U43)^2*$J$7,AW45/Population!U43),AW45/Population!U43) -> 18746.69181 | V45: =IF($J$4,IF(AX45/Population!V43<$J$5,AX45/Population!V43*$J$6+(AX45/Population!V43)^2*$J$7,AX45/Population!V43),AX45/Population!V43) -> 20532.74588 | W45: =IF($J$4,IF(AY45/Population!W43<$J$5,AY45/Population!W43*$J$6+(AY45/Population!W43)^2*$J$7,AY45/Population!W43),AY45/Population!W43) -> 22168.91981 | X45: =IF($J$4,IF(AZ45/Population!X43<$J$5,AZ45/Population!X43*$J$6+(AZ45/Population!X43)^2*$J$7,AZ45/Population!X43),AZ45/Population!X43) -> 23558.16817 | Y45: =IF($J$4,IF(BA45/Population!Y43<$J$5,BA45/Population!Y43*$J$6+(BA45/Population!Y43)^2*$J$7,BA45/Population!Y43),BA45/Population!Y43) -> 24548.77919 | Z45: SSA | AA45: ALM | AD45: Chad | AE45: 2089624144 | AF45: 2578177356 | AG45: 2944010087 | AH45: 5873375706 | AI45: 5852115615 | AJ45: 8278166059 | AK45: 1.07042165e+10 | AL45: 1.481729731e+10 | AM45: 1.893037812e+10 | AN45: 3.819912413e+10 | AO45: 5.746787014e+10 | AP45: 7.673661615e+10 | AQ45: 9.600536216e+10 | AR45: =IFERROR(AQ45*(1+AR238)^5,0) -> 1.297851908e+11 | AS45: 1.635650194e+11 | AT45: 1.97344848e+11 | AU45: 2.311246766e+11 | AV45: 2.649045052e+11 | AW45: 3.024505648e+11 | AX45: 3.399966243e+11 | AY45: 3.775426839e+11 | AZ45: 4.150887435e+11 | BA45: 4.52634803e+11 | BB45: SSA | BC45: ALM
B46: Chile | C46: =IF($J$4,IF(AE46/Population!C44<$J$5,AE46/Population!C44*$J$6+(AE46/Population!C44)^2*$J$7,AE46/Population!C44),AE46/Population!C44) -> 6854.604508 | D46: =IF($J$4,IF(AF46/Population!D44<$J$5,AF46/Population!D44*$J$6+(AF46/Population!D44)^2*$J$7,AF46/Population!D44),AF46/Population!D44) -> 9298.041284 | E46: =IF($J$4,IF(AG46/Population!E44<$J$5,AG46/Population!E44*$J$6+(AG46/Population!E44)^2*$J$7,AG46/Population!E44),AG46/Population!E44) -> 10498.3668 | F46: =IF($J$4,IF(AH46/Population!F44<$J$5,AH46/Population!F44*$J$6+(AH46/Population!F44)^2*$J$7,AH46/Population!F44),AH46/Population!F44) -> 11950.17586 | G46: =IF($J$4,IF(AI46/Population!G44<$J$5,AI46/Population!G44*$J$6+(AI46/Population!G44)^2*$J$7,AI46/Population!G44),AI46/Population!G44) -> 13467.56702 | H46: =IF($J$4,IF(AJ46/Population!H44<$J$5,AJ46/Population!H44*$J$6+(AJ46/Population!H44)^2*$J$7,AJ46/Population!H44),AJ46/Population!H44) -> 17254.97498 | I46: =IF($J$4,IF(AK46/Population!I44<$J$5,AK46/Population!I44*$J$6+(AK46/Population!I44)^2*$J$7,AK46/Population!I44),AK46/Population!I44) -> 20200.62351 | J46: =IF($J$4,IF(AL46/Population!J44<$J$5,AL46/Population!J44*$J$6+(AL46/Population!J44)^2*$J$7,AL46/Population!J44),AL46/Population!J44) -> 23950.53117 | K46: =IF($J$4,IF(AM46/Population!K44<$J$5,AM46/Population!K44*$J$6+(AM46/Population!K44)^2*$J$7,AM46/Population!K44),AM46/Population!K44) -> 27351.6401 | L46: =IF($J$4,IF(AN46/Population!L44<$J$5,AN46/Population!L44*$J$6+(AN46/Population!L44)^2*$J$7,AN46/Population!L44),AN46/Population!L44) -> 32907.81263 | M46: =IF($J$4,IF(AO46/Population!M44<$J$5,AO46/Population!M44*$J$6+(AO46/Population!M44)^2*$J$7,AO46/Population!M44),AO46/Population!M44) -> 38435.30356 | N46: =IF($J$4,IF(AP46/Population!N44<$J$5,AP46/Population!N44*$J$6+(AP46/Population!N44)^2*$J$7,AP46/Population!N44),AP46/Population!N44) -> 44030.40896 | O46: =IF($J$4,IF(AQ46/Population!O44<$J$5,AQ46/Population!O44*$J$6+(AQ46/Population!O44)^2*$J$7,AQ46/Population!O44),AQ46/Population!O44) -> 49794.0097 | P46: =IF($J$4,IF(AR46/Population!P44<$J$5,AR46/Population!P44*$J$6+(AR46/Population!P44)^2*$J$7,AR46/Population!P44),AR46/Population!P44) -> 55858.82323 | Q46: =IF($J$4,IF(AS46/Population!Q44<$J$5,AS46/Population!Q44*$J$6+(AS46/Population!Q44)^2*$J$7,AS46/Population!Q44),AS46/Population!Q44) -> 62194.52684 | R46: =IF($J$4,IF(AT46/Population!R44<$J$5,AT46/Population!R44*$J$6+(AT46/Population!R44)^2*$J$7,AT46/Population!R44),AT46/Population!R44) -> 68870.06463 | S46: =IF($J$4,IF(AU46/Population!S44<$J$5,AU46/Population!S44*$J$6+(AU46/Population!S44)^2*$J$7,AU46/Population!S44),AU46/Population!S44) -> 75915.46616 | T46: =IF($J$4,IF(AV46/Population!T44<$J$5,AV46/Population!T44*$J$6+(AV46/Population!T44)^2*$J$7,AV46/Population!T44),AV46/Population!T44) -> 83433.74501 | U46: =IF($J$4,IF(AW46/Population!U44<$J$5,AW46/Population!U44*$J$6+(AW46/Population!U44)^2*$J$7,AW46/Population!U44),AW46/Population!U44) -> 91488.94668 | V46: =IF($J$4,IF(AX46/Population!V44<$J$5,AX46/Population!V44*$J$6+(AX46/Population!V44)^2*$J$7,AX46/Population!V44),AX46/Population!V44) -> 100182.2985 | W46: =IF($J$4,IF(AY46/Population!W44<$J$5,AY46/Population!W44*$J$6+(AY46/Population!W44)^2*$J$7,AY46/Population!W44),AY46/Population!W44) -> 110058.9978 | X46: =IF($J$4,IF(AZ46/Population!X44<$J$5,AZ46/Population!X44*$J$6+(AZ46/Population!X44)^2*$J$7,AZ46/Population!X44),AZ46/Population!X44) -> 121142.5163 | Y46: =IF($J$4,IF(BA46/Population!Y44<$J$5,BA46/Population!Y44*$J$6+(BA46/Population!Y44)^2*$J$7,BA46/Population!Y44),BA46/Population!Y44) -> 133474.9106 | Z46: LAM | AA46: ALM | AD46: Chile | AE46: 5.176511149e+10 | AF46: 7.85117003e+10 | AG46: 9.623581696e+10 | AH46: 1.182501584e+11 | AI46: 1.431439589e+11 | AJ46: =IFERROR(AI46*(1+AJ239)^5,0) -> 2.125190751e+11 | AK46: 2.818941913e+11 | AL46: 4.156680634e+11 | AM46: 5.494419354e+11 | AN46: 6.756504555e+11 | AO46: 8.018589756e+11 | AP46: 9.280674956e+11 | AQ46: 1.054276016e+12 | AR46: 1.188659395e+12 | AS46: 1.323042774e+12 | AT46: 1.457426154e+12 | AU46: 1.591809533e+12 | AV46: 1.726192912e+12 | AW46: 1.859649192e+12 | AX46: 1.993105471e+12 | AY46: 2.126561751e+12 | AZ46: 2.26001803e+12 | BA46: 2.393474309e+12 | BB46: LAM | BC46: ALM
B47: China | C47: =IF($J$4,IF(AE47/Population!C45<$J$5,AE47/Population!C45*$J$6+(AE47/Population!C45)^2*$J$7,AE47/Population!C45),AE47/Population!C45) -> 869.0567416 | D47: =IF($J$4,IF(AF47/Population!D45<$J$5,AF47/Population!D45*$J$6+(AF47/Population!D45)^2*$J$7,AF47/Population!D45),AF47/Population!D45) -> 1454.519546 | E47: =IF($J$4,IF(AG47/Population!E45<$J$5,AG47/Population!E45*$J$6+(AG47/Population!E45)^2*$J$7,AG47/Population!E45),AG47/Population!E45) -> 2102.053831 | F47: =IF($J$4,IF(AH47/Population!F45<$J$5,AH47/Population!F45*$J$6+(AH47/Population!F45)^2*$J$7,AH47/Population!F45),AH47/Population!F45) -> 3220.873706 | G47: =IF($J$4,IF(AI47/Population!G45<$J$5,AI47/Population!G45*$J$6+(AI47/Population!G45)^2*$J$7,AI47/Population!G45),AI47/Population!G45) -> 4985.082987 | H47: =IF($J$4,IF(AJ47/Population!H45<$J$5,AJ47/Population!H45*$J$6+(AJ47/Population!H45)^2*$J$7,AJ47/Population!H45),AJ47/Population!H45) -> 7698.213143 | I47: =IF($J$4,IF(AK47/Population!I45<$J$5,AK47/Population!I45*$J$6+(AK47/Population!I45)^2*$J$7,AK47/Population!I45),AK47/Population!I45) -> 10243.13125 | J47: =IF($J$4,IF(AL47/Population!J45<$J$5,AL47/Population!J45*$J$6+(AL47/Population!J45)^2*$J$7,AL47/Population!J45),AL47/Population!J45) -> 15436.33812 | K47: =IF($J$4,IF(AM47/Population!K45<$J$5,AM47/Population!K45*$J$6+(AM47/Population!K45)^2*$J$7,AM47/Population!K45),AM47/Population!K45) -> 19573.83921 | L47: =IF($J$4,IF(AN47/Population!L45<$J$5,AN47/Population!L45*$J$6+(AN47/Population!L45)^2*$J$7,AN47/Population!L45),AN47/Population!L45) -> 22990.60768 | M47: =IF($J$4,IF(AO47/Population!M45<$J$5,AO47/Population!M45*$J$6+(AO47/Population!M45)^2*$J$7,AO47/Population!M45),AO47/Population!M45) -> 24750.55628 | N47: =IF($J$4,IF(AP47/Population!N45<$J$5,AP47/Population!N45*$J$6+(AP47/Population!N45)^2*$J$7,AP47/Population!N45),AP47/Population!N45) -> 29943.18203 | O47: =IF($J$4,IF(AQ47/Population!O45<$J$5,AQ47/Population!O45*$J$6+(AQ47/Population!O45)^2*$J$7,AQ47/Population!O45),AQ47/Population!O45) -> 36121.55808 | P47: =IF($J$4,IF(AR47/Population!P45<$J$5,AR47/Population!P45*$J$6+(AR47/Population!P45)^2*$J$7,AR47/Population!P45),AR47/Population!P45) -> 42853.67534 | Q47: =IF($J$4,IF(AS47/Population!Q45<$J$5,AS47/Population!Q45*$J$6+(AS47/Population!Q45)^2*$J$7,AS47/Population!Q45),AS47/Population!Q45) -> 50300.81986 | R47: =IF($J$4,IF(AT47/Population!R45<$J$5,AT47/Population!R45*$J$6+(AT47/Population!R45)^2*$J$7,AT47/Population!R45),AT47/Population!R45) -> 58487.14486 | S47: =IF($J$4,IF(AU47/Population!S45<$J$5,AU47/Population!S45*$J$6+(AU47/Population!S45)^2*$J$7,AU47/Population!S45),AU47/Population!S45) -> 67469.36703 | T47: =IF($J$4,IF(AV47/Population!T45<$J$5,AV47/Population!T45*$J$6+(AV47/Population!T45)^2*$J$7,AV47/Population!T45),AV47/Population!T45) -> 77373.00849 | U47: =IF($J$4,IF(AW47/Population!U45<$J$5,AW47/Population!U45*$J$6+(AW47/Population!U45)^2*$J$7,AW47/Population!U45),AW47/Population!U45) -> 89405.88526 | V47: =IF($J$4,IF(AX47/Population!V45<$J$5,AX47/Population!V45*$J$6+(AX47/Population!V45)^2*$J$7,AX47/Population!V45),AX47/Population!V45) -> 102667.6034 | W47: =IF($J$4,IF(AY47/Population!W45<$J$5,AY47/Population!W45*$J$6+(AY47/Population!W45)^2*$J$7,AY47/Population!W45),AY47/Population!W45) -> 117749.3635 | X47: =IF($J$4,IF(AZ47/Population!X45<$J$5,AZ47/Population!X45*$J$6+(AZ47/Population!X45)^2*$J$7,AZ47/Population!X45),AZ47/Population!X45) -> 134668.0553 | Y47: =IF($J$4,IF(BA47/Population!Y45<$J$5,BA47/Population!Y45*$J$6+(BA47/Population!Y45)^2*$J$7,BA47/Population!Y45),BA47/Population!Y45) -> 153655.8137 | Z47: CPA | AA47: ASIA | AD47: China | AE47: 5.361298136e+11 | AF47: 9.562553745e+11 | AG47: 1.445551993e+12 | AH47: 2.302719161e+12 | AI47: 3.727621817e+12 | AJ47: =IFERROR(AI47*(1+AJ240)^5,0) -> 6.164242264e+12 | AK47: 8.60086271e+12 | AL47: 1.422505277e+13 | AM47: 1.984924284e+13 | AN47: 2.640271437e+13 | AO47: 3.295618589e+13 | AP47: 3.950965742e+13 | AQ47: 4.606312895e+13 | AR47: 5.269947976e+13 | AS47: 5.933583057e+13 | AT47: 6.597218138e+13 | AU47: 7.260853219e+13 | AV47: 7.924488299e+13 | AW47: 8.687447724e+13 | AX47: 9.450407149e+13 | AY47: 1.021336657e+14 | AZ47: 1.0976326e+14 | BA47: 1.173928542e+14 | BB47: CPA | BC47: ASIA
B48: China, Hong Kong SAR | C48: =IF($J$4,IF(AE48/Population!C46<$J$5,AE48/Population!C46*$J$6+(AE48/Population!C46)^2*$J$7,AE48/Population!C46),AE48/Population!C46) -> 21953.03019 | D48: =IF($J$4,IF(AF48/Population!D46<$J$5,AF48/Population!D46*$J$6+(AF48/Population!D46)^2*$J$7,AF48/Population!D46),AF48/Population!D46) -> 23621.14474 | E48: =IF($J$4,IF(AG48/Population!E46<$J$5,AG48/Population!E46*$J$6+(AG48/Population!E46)^2*$J$7,AG48/Population!E46),AG48/Population!E46) -> 24127.39337 | F48: =IF($J$4,IF(AH48/Population!F46<$J$5,AH48/Population!F46*$J$6+(AH48/Population!F46)^2*$J$7,AH48/Population!F46),AH48/Population!F46) -> 25768.92611 | G48: =IF($J$4,IF(AI48/Population!G46<$J$5,AI48/Population!G46*$J$6+(AI48/Population!G46)^2*$J$7,AI48/Population!G46),AI48/Population!G46) -> 29528.75209 | H48: =IF($J$4,IF(AJ48/Population!H46<$J$5,AJ48/Population!H46*$J$6+(AJ48/Population!H46)^2*$J$7,AJ48/Population!H46),AJ48/Population!H46) -> 39331.7865 | I48: =IF($J$4,IF(AK48/Population!I46<$J$5,AK48/Population!I46*$J$6+(AK48/Population!I46)^2*$J$7,AK48/Population!I46),AK48/Population!I46) -> 50732.64405 | J48: =IF($J$4,IF(AL48/Population!J46<$J$5,AL48/Population!J46*$J$6+(AL48/Population!J46)^2*$J$7,AL48/Population!J46),AL48/Population!J46) -> 73309.05176 | K48: =IF($J$4,IF(AM48/Population!K46<$J$5,AM48/Population!K46*$J$6+(AM48/Population!K46)^2*$J$7,AM48/Population!K46),AM48/Population!K46) -> 95207.58498 | L48: =IF($J$4,IF(AN48/Population!L46<$J$5,AN48/Population!L46*$J$6+(AN48/Population!L46)^2*$J$7,AN48/Population!L46),AN48/Population!L46) -> 128444.1288 | M48: =IF($J$4,IF(AO48/Population!M46<$J$5,AO48/Population!M46*$J$6+(AO48/Population!M46)^2*$J$7,AO48/Population!M46),AO48/Population!M46) -> 162195.301 | N48: =IF($J$4,IF(AP48/Population!N46<$J$5,AP48/Population!N46*$J$6+(AP48/Population!N46)^2*$J$7,AP48/Population!N46),AP48/Population!N46) -> 196989.7951 | O48: =IF($J$4,IF(AQ48/Population!O46<$J$5,AQ48/Population!O46*$J$6+(AQ48/Population!O46)^2*$J$7,AQ48/Population!O46),AQ48/Population!O46) -> 233617.8363 | P48: =IF($J$4,IF(AR48/Population!P46<$J$5,AR48/Population!P46*$J$6+(AR48/Population!P46)^2*$J$7,AR48/Population!P46),AR48/Population!P46) -> 312351.9388 | Q48: =IF($J$4,IF(AS48/Population!Q46<$J$5,AS48/Population!Q46*$J$6+(AS48/Population!Q46)^2*$J$7,AS48/Population!Q46),AS48/Population!Q46) -> 395993.8522 | R48: =IF($J$4,IF(AT48/Population!R46<$J$5,AT48/Population!R46*$J$6+(AT48/Population!R46)^2*$J$7,AT48/Population!R46),AT48/Population!R46) -> 489974.1231 | S48: =IF($J$4,IF(AU48/Population!S46<$J$5,AU48/Population!S46*$J$6+(AU48/Population!S46)^2*$J$7,AU48/Population!S46),AU48/Population!S46) -> 593153.689 | T48: =IF($J$4,IF(AV48/Population!T46<$J$5,AV48/Population!T46*$J$6+(AV48/Population!T46)^2*$J$7,AV48/Population!T46),AV48/Population!T46) -> 698876.4287 | U48: =IF($J$4,IF(AW48/Population!U46<$J$5,AW48/Population!U46*$J$6+(AW48/Population!U46)^2*$J$7,AW48/Population!U46),AW48/Population!U46) -> 802211.7315 | V48: =IF($J$4,IF(AX48/Population!V46<$J$5,AX48/Population!V46*$J$6+(AX48/Population!V46)^2*$J$7,AX48/Population!V46),AX48/Population!V46) -> 917761.0116 | W48: =IF($J$4,IF(AY48/Population!W46<$J$5,AY48/Population!W46*$J$6+(AY48/Population!W46)^2*$J$7,AY48/Population!W46),AY48/Population!W46) -> 1057526.568 | X48: =IF($J$4,IF(AZ48/Population!X46<$J$5,AZ48/Population!X46*$J$6+(AZ48/Population!X46)^2*$J$7,AZ48/Population!X46),AZ48/Population!X46) -> 1218699.776 | Y48: =IF($J$4,IF(BA48/Population!Y46<$J$5,BA48/Population!Y46*$J$6+(BA48/Population!Y46)^2*$J$7,BA48/Population!Y46),BA48/Population!Y46) -> 1392923.674 | Z48: CPA | AA48: ASIA | AD48: China, Hong Kong SAR | AE48: 9.886114497e+10 | AF48: 1.274840804e+11 | AG48: 1.451815093e+11 | AH48: 1.777717298e+11 | AI48: 2.093501413e+11 | AJ48: =IFERROR(AI48*(1+AJ241)^5,0) -> 3.127581306e+11 | AK48: 4.161661199e+11 | AL48: 6.16993095e+11 | AM48: 8.178200701e+11 | AN48: 1.119415328e+12 | AO48: 1.421010587e+12 | AP48: 1.722605845e+12 | AQ48: 2.024201103e+12 | AR48: 2.67091845e+12 | AS48: 3.317635796e+12 | AT48: 3.964353142e+12 | AU48: 4.611070489e+12 | AV48: 5.257787835e+12 | AW48: 5.845467383e+12 | AX48: 6.433146931e+12 | AY48: 7.020826479e+12 | AZ48: 7.608506027e+12 | BA48: 8.196185575e+12 | BB48: CPA | BC48: ASIA
B49: China, Macao SAR | C49: =IF($J$4,IF(AE49/Population!C47<$J$5,AE49/Population!C47*$J$6+(AE49/Population!C47)^2*$J$7,AE49/Population!C47),AE49/Population!C47) -> 19596.81231 | D49: =IF($J$4,IF(AF49/Population!D47<$J$5,AF49/Population!D47*$J$6+(AF49/Population!D47)^2*$J$7,AF49/Population!D47),AF49/Population!D47) -> 21457.42789 | E49: =IF($J$4,IF(AG49/Population!E47<$J$5,AG49/Population!E47*$J$6+(AG49/Population!E47)^2*$J$7,AG49/Population!E47),AG49/Population!E47) -> 20322.09349 | F49: =IF($J$4,IF(AH49/Population!F47<$J$5,AH49/Population!F47*$J$6+(AH49/Population!F47)^2*$J$7,AH49/Population!F47),AH49/Population!F47) -> 24740.09621 | G49: =IF($J$4,IF(AI49/Population!G47<$J$5,AI49/Population!G47*$J$6+(AI49/Population!G47)^2*$J$7,AI49/Population!G47),AI49/Population!G47) -> 28681.19096 | H49: =IF($J$4,IF(AJ49/Population!H47<$J$5,AJ49/Population!H47*$J$6+(AJ49/Population!H47)^2*$J$7,AJ49/Population!H47),AJ49/Population!H47) -> 49260.56995 | I49: =IF($J$4,IF(AK49/Population!I47<$J$5,AK49/Population!I47*$J$6+(AK49/Population!I47)^2*$J$7,AK49/Population!I47),AK49/Population!I47) -> 64019.17863 | J49: =IF($J$4,IF(AL49/Population!J47<$J$5,AL49/Population!J47*$J$6+(AL49/Population!J47)^2*$J$7,AL49/Population!J47),AL49/Population!J47) -> 93401.35267 | K49: =IF($J$4,IF(AM49/Population!K47<$J$5,AM49/Population!K47*$J$6+(AM49/Population!K47)^2*$J$7,AM49/Population!K47),AM49/Population!K47) -> 123071.1563 | L49: =IF($J$4,IF(AN49/Population!L47<$J$5,AN49/Population!L47*$J$6+(AN49/Population!L47)^2*$J$7,AN49/Population!L47),AN49/Population!L47) -> 169117.7544 | M49: =IF($J$4,IF(AO49/Population!M47<$J$5,AO49/Population!M47*$J$6+(AO49/Population!M47)^2*$J$7,AO49/Population!M47),AO49/Population!M47) -> 217954.2995 | N49: =IF($J$4,IF(AP49/Population!N47<$J$5,AP49/Population!N47*$J$6+(AP49/Population!N47)^2*$J$7,AP49/Population!N47),AP49/Population!N47) -> 270351.5584 | O49: =IF($J$4,IF(AQ49/Population!O47<$J$5,AQ49/Population!O47*$J$6+(AQ49/Population!O47)^2*$J$7,AQ49/Population!O47),AQ49/Population!O47) -> 327331.1038 | P49: =IF($J$4,IF(AR49/Population!P47<$J$5,AR49/Population!P47*$J$6+(AR49/Population!P47)^2*$J$7,AR49/Population!P47),AR49/Population!P47) -> 437295.8792 | Q49: =IF($J$4,IF(AS49/Population!Q47<$J$5,AS49/Population!Q47*$J$6+(AS49/Population!Q47)^2*$J$7,AS49/Population!Q47),AS49/Population!Q47) -> 557864.4903 | R49: =IF($J$4,IF(AT49/Population!R47<$J$5,AT49/Population!R47*$J$6+(AT49/Population!R47)^2*$J$7,AT49/Population!R47),AT49/Population!R47) -> 691780.9847 | S49: =IF($J$4,IF(AU49/Population!S47<$J$5,AU49/Population!S47*$J$6+(AU49/Population!S47)^2*$J$7,AU49/Population!S47),AU49/Population!S47) -> 834272.9584 | T49: =IF($J$4,IF(AV49/Population!T47<$J$5,AV49/Population!T47*$J$6+(AV49/Population!T47)^2*$J$7,AV49/Population!T47),AV49/Population!T47) -> 976742.3365 | U49: =IF($J$4,IF(AW49/Population!U47<$J$5,AW49/Population!U47*$J$6+(AW49/Population!U47)^2*$J$7,AW49/Population!U47),AW49/Population!U47) -> 1118009.373 | V49: =IF($J$4,IF(AX49/Population!V47<$J$5,AX49/Population!V47*$J$6+(AX49/Population!V47)^2*$J$7,AX49/Population!V47),AX49/Population!V47) -> 1283105.867 | W49: =IF($J$4,IF(AY49/Population!W47<$J$5,AY49/Population!W47*$J$6+(AY49/Population!W47)^2*$J$7,AY49/Population!W47),AY49/Population!W47) -> 1483345.103 | X49: =IF($J$4,IF(AZ49/Population!X47<$J$5,AZ49/Population!X47*$J$6+(AZ49/Population!X47)^2*$J$7,AZ49/Population!X47),AZ49/Population!X47) -> 1708987.647 | Y49: =IF($J$4,IF(BA49/Population!Y47<$J$5,BA49/Population!Y47*$J$6+(BA49/Population!Y47)^2*$J$7,BA49/Population!Y47),BA49/Population!Y47) -> 1947370.933 | Z49: CPA | AA49: ASIA | AD49: China, Macao SAR | AE49: 5020508531 | AF49: 6679802658 | AG49: 6536008294 | AH49: 1.150795865e+10 | AI49: 1.628968317e+10 | AJ49: =IFERROR(AI49*(1+AJ242)^5,0) -> 2.433593226e+10 | AK49: 3.238218134e+10 | AL49: 4.80086709e+10 | AM49: 6.363516046e+10 | AN49: 8.71025017e+10 | AO49: 1.105698429e+11 | AP49: 1.340371842e+11 | AQ49: 1.575045254e+11 | AR49: 2.078260614e+11 | AS49: 2.581475974e+11 | AT49: 3.084691334e+11 | AU49: 3.587906695e+11 | AV49: 4.091122055e+11 | AW49: 4.548399685e+11 | AX49: 5.005677315e+11 | AY49: 5.462954945e+11 | AZ49: 5.920232575e+11 | BA49: 6.377510205e+11 | BB49: CPA | BC49: ASIA
B50: Colombia | C50: =IF($J$4,IF(AE50/Population!C48<$J$5,AE50/Population!C48*$J$6+(AE50/Population!C48)^2*$J$7,AE50/Population!C48),AE50/Population!C48) -> 4931.989725 | D50: =IF($J$4,IF(AF50/Population!D48<$J$5,AF50/Population!D48*$J$6+(AF50/Population!D48)^2*$J$7,AF50/Population!D48),AF50/Population!D48) -> 5514.959083 | E50: =IF($J$4,IF(AG50/Population!E48<$J$5,AG50/Population!E48*$J$6+(AG50/Population!E48)^2*$J$7,AG50/Population!E48),AG50/Population!E48) -> 5425.478411 | F50: =IF($J$4,IF(AH50/Population!F48<$J$5,AH50/Population!F48*$J$6+(AH50/Population!F48)^2*$J$7,AH50/Population!F48),AH50/Population!F48) -> 6114.936453 | G50: =IF($J$4,IF(AI50/Population!G48<$J$5,AI50/Population!G48*$J$6+(AI50/Population!G48)^2*$J$7,AI50/Population!G48),AI50/Population!G48) -> 5943.000257 | H50: =IF($J$4,IF(AJ50/Population!H48<$J$5,AJ50/Population!H48*$J$6+(AJ50/Population!H48)^2*$J$7,AJ50/Population!H48),AJ50/Population!H48) -> 7290.912006 | I50: =IF($J$4,IF(AK50/Population!I48<$J$5,AK50/Population!I48*$J$6+(AK50/Population!I48)^2*$J$7,AK50/Population!I48),AK50/Population!I48) -> 8923.194743 | J50: =IF($J$4,IF(AL50/Population!J48<$J$5,AL50/Population!J48*$J$6+(AL50/Population!J48)^2*$J$7,AL50/Population!J48),AL50/Population!J48) -> 11962.00698 | K50: =IF($J$4,IF(AM50/Population!K48<$J$5,AM50/Population!K48*$J$6+(AM50/Population!K48)^2*$J$7,AM50/Population!K48),AM50/Population!K48) -> 14515.84443 | L50: =IF($J$4,IF(AN50/Population!L48<$J$5,AN50/Population!L48*$J$6+(AN50/Population!L48)^2*$J$7,AN50/Population!L48),AN50/Population!L48) -> 16582.24858 | M50: =IF($J$4,IF(AO50/Population!M48<$J$5,AO50/Population!M48*$J$6+(AO50/Population!M48)^2*$J$7,AO50/Population!M48),AO50/Population!M48) -> 18374.91035 | N50: =IF($J$4,IF(AP50/Population!N48<$J$5,AP50/Population!N48*$J$6+(AP50/Population!N48)^2*$J$7,AP50/Population!N48),AP50/Population!N48) -> 19943.68428 | O50: =IF($J$4,IF(AQ50/Population!O48<$J$5,AQ50/Population!O48*$J$6+(AQ50/Population!O48)^2*$J$7,AQ50/Population!O48),AQ50/Population!O48) -> 21322.53194 | P50: =IF($J$4,IF(AR50/Population!P48<$J$5,AR50/Population!P48*$J$6+(AR50/Population!P48)^2*$J$7,AR50/Population!P48),AR50/Population!P48) -> 22658.91233 | Q50: =IF($J$4,IF(AS50/Population!Q48<$J$5,AS50/Population!Q48*$J$6+(AS50/Population!Q48)^2*$J$7,AS50/Population!Q48),AS50/Population!Q48) -> 23733.53352 | R50: =IF($J$4,IF(AT50/Population!R48<$J$5,AT50/Population!R48*$J$6+(AT50/Population!R48)^2*$J$7,AT50/Population!R48),AT50/Population!R48) -> 24497.37383 | S50: =IF($J$4,IF(AU50/Population!S48<$J$5,AU50/Population!S48*$J$6+(AU50/Population!S48)^2*$J$7,AU50/Population!S48),AU50/Population!S48) -> 25561.54848 | T50: =IF($J$4,IF(AV50/Population!T48<$J$5,AV50/Population!T48*$J$6+(AV50/Population!T48)^2*$J$7,AV50/Population!T48),AV50/Population!T48) -> 28225.69618 | U50: =IF($J$4,IF(AW50/Population!U48<$J$5,AW50/Population!U48*$J$6+(AW50/Population!U48)^2*$J$7,AW50/Population!U48),AW50/Population!U48) -> 31070.12263 | V50: =IF($J$4,IF(AX50/Population!V48<$J$5,AX50/Population!V48*$J$6+(AX50/Population!V48)^2*$J$7,AX50/Population!V48),AX50/Population!V48) -> 34147.91774 | W50: =IF($J$4,IF(AY50/Population!W48<$J$5,AY50/Population!W48*$J$6+(AY50/Population!W48)^2*$J$7,AY50/Population!W48),AY50/Population!W48) -> 37611.18037 | X50: =IF($J$4,IF(AZ50/Population!X48<$J$5,AZ50/Population!X48*$J$6+(AZ50/Population!X48)^2*$J$7,AZ50/Population!X48),AZ50/Population!X48) -> 41485.57848 | Y50: =IF($J$4,IF(BA50/Population!Y48<$J$5,BA50/Population!Y48*$J$6+(BA50/Population!Y48)^2*$J$7,BA50/Population!Y48),BA50/Population!Y48) -> 45799.27191 | Z50: LAM | AA50: ALM | AD50: Colombia | AE50: 9.184564717e+10 | AF50: 1.139796653e+11 | AG50: 1.193021237e+11 | AH50: 1.44580316e+11 | AI50: 1.494022934e+11 | AJ50: =IFERROR(AI50*(1+AJ243)^5,0) -> 2.218105287e+11 | AK50: 2.94218764e+11 | AL50: 4.33841305e+11 | AM50: 5.734638461e+11 | AN50: 7.051902737e+11 | AO50: 8.369167013e+11 | AP50: 9.686431289e+11 | AQ50: 1.100369557e+12 | AR50: 1.240628253e+12 | AS50: 1.380886949e+12 | AT50: 1.521145645e+12 | AU50: 1.661404342e+12 | AV50: 1.801663038e+12 | AW50: 1.940954101e+12 | AX50: 2.080245164e+12 | AY50: 2.219536227e+12 | AZ50: 2.35882729e+12 | BA50: 2.498118353e+12 | BB50: LAM | BC50: ALM
B51: Comoros | C51: =IF($J$4,IF(AE51/Population!C49<$J$5,AE51/Population!C49*$J$6+(AE51/Population!C49)^2*$J$7,AE51/Population!C49),AE51/Population!C49) -> 1273.827998 | D51: =IF($J$4,IF(AF51/Population!D49<$J$5,AF51/Population!D49*$J$6+(AF51/Population!D49)^2*$J$7,AF51/Population!D49),AF51/Population!D49) -> 1172.185955 | E51: =IF($J$4,IF(AG51/Population!E49<$J$5,AG51/Population!E49*$J$6+(AG51/Population!E49)^2*$J$7,AG51/Population!E49),AG51/Population!E49) -> 1083.437594 | F51: =IF($J$4,IF(AH51/Population!F49<$J$5,AH51/Population!F49*$J$6+(AH51/Population!F49)^2*$J$7,AH51/Population!F49),AH51/Population!F49) -> 1070.459546 | G51: =IF($J$4,IF(AI51/Population!G49<$J$5,AI51/Population!G49*$J$6+(AI51/Population!G49)^2*$J$7,AI51/Population!G49),AI51/Population!G49) -> 944.7460262 | H51: =IF($J$4,IF(AJ51/Population!H49<$J$5,AJ51/Population!H49*$J$6+(AJ51/Population!H49)^2*$J$7,AJ51/Population!H49),AJ51/Population!H49) -> 919.4802681 | I51: =IF($J$4,IF(AK51/Population!I49<$J$5,AK51/Population!I49*$J$6+(AK51/Population!I49)^2*$J$7,AK51/Population!I49),AK51/Population!I49) -> 1066.499741 | J51: =IF($J$4,IF(AL51/Population!J49<$J$5,AL51/Population!J49*$J$6+(AL51/Population!J49)^2*$J$7,AL51/Population!J49),AL51/Population!J49) -> 1348.852951 | K51: =IF($J$4,IF(AM51/Population!K49<$J$5,AM51/Population!K49*$J$6+(AM51/Population!K49)^2*$J$7,AM51/Population!K49),AM51/Population!K49) -> 1605.507379 | L51: =IF($J$4,IF(AN51/Population!L49<$J$5,AN51/Population!L49*$J$6+(AN51/Population!L49)^2*$J$7,AN51/Population!L49),AN51/Population!L49) -> 3044.89496 | M51: =IF($J$4,IF(AO51/Population!M49<$J$5,AO51/Population!M49*$J$6+(AO51/Population!M49)^2*$J$7,AO51/Population!M49),AO51/Population!M49) -> 4339.250106 | N51: =IF($J$4,IF(AP51/Population!N49<$J$5,AP51/Population!N49*$J$6+(AP51/Population!N49)^2*$J$7,AP51/Population!N49),AP51/Population!N49) -> 5516.769528 | O51: =IF($J$4,IF(AQ51/Population!O49<$J$5,AQ51/Population!O49*$J$6+(AQ51/Population!O49)^2*$J$7,AQ51/Population!O49),AQ51/Population!O49) -> 6617.5394 | P51: =IF($J$4,IF(AR51/Population!P49<$J$5,AR51/Population!P49*$J$6+(AR51/Population!P49)^2*$J$7,AR51/Population!P49),AR51/Population!P49) -> 8376.998043 | Q51: =IF($J$4,IF(AS51/Population!Q49<$J$5,AS51/Population!Q49*$J$6+(AS51/Population!Q49)^2*$J$7,AS51/Population!Q49),AS51/Population!Q49) -> 9985.575576 | R51: =IF($J$4,IF(AT51/Population!R49<$J$5,AT51/Population!R49*$J$6+(AT51/Population!R49)^2*$J$7,AT51/Population!R49),AT51/Population!R49) -> 11493.93344 | S51: =IF($J$4,IF(AU51/Population!S49<$J$5,AU51/Population!S49*$J$6+(AU51/Population!S49)^2*$J$7,AU51/Population!S49),AU51/Population!S49) -> 12946.03989 | T51: =IF($J$4,IF(AV51/Population!T49<$J$5,AV51/Population!T49*$J$6+(AV51/Population!T49)^2*$J$7,AV51/Population!T49),AV51/Population!T49) -> 14377.12099 | U51: =IF($J$4,IF(AW51/Population!U49<$J$5,AW51/Population!U49*$J$6+(AW51/Population!U49)^2*$J$7,AW51/Population!U49),AW51/Population!U49) -> 15956.37197 | V51: =IF($J$4,IF(AX51/Population!V49<$J$5,AX51/Population!V49*$J$6+(AX51/Population!V49)^2*$J$7,AX51/Population!V49),AX51/Population!V49) -> 17529.61966 | W51: =IF($J$4,IF(AY51/Population!W49<$J$5,AY51/Population!W49*$J$6+(AY51/Population!W49)^2*$J$7,AY51/Population!W49),AY51/Population!W49) -> 19120.10355 | X51: =IF($J$4,IF(AZ51/Population!X49<$J$5,AZ51/Population!X49*$J$6+(AZ51/Population!X49)^2*$J$7,AZ51/Population!X49),AZ51/Population!X49) -> 20707.55809 | Y51: =IF($J$4,IF(BA51/Population!Y49<$J$5,BA51/Population!Y49*$J$6+(BA51/Population!Y49)^2*$J$7,BA51/Population!Y49),BA51/Population!Y49) -> 22222.10219 | Z51: SSA | AA51: ALM | AD51: Comoros | AE51: 294896943.5 | AF51: 313952980.6 | AG51: 337525258.7 | AH51: 387036131.7 | AI51: 392829672.4 | AJ51: 555680966.5 | AK51: 718532260.7 | AL51: 994627316.5 | AM51: 1270722372 | AN51: 2564158060 | AO51: 3857593747 | AP51: 5151029434 | AQ51: 6444465122 | AR51: 8711973127 | AS51: 1.097948113e+10 | AT51: 1.324698914e+10 | AU51: 1.551449714e+10 | AV51: 1.778200515e+10 | AW51: 2.030232553e+10 | AX51: 2.282264592e+10 | AY51: 2.53429663e+10 | AZ51: 2.786328669e+10 | BA51: 3.038360707e+10 | BB51: SSA | BC51: ALM
B52: Congo | C52: =IF($J$4,IF(AE52/Population!C50<$J$5,AE52/Population!C50*$J$6+(AE52/Population!C50)^2*$J$7,AE52/Population!C50),AE52/Population!C50) -> 3397.906584 | D52: =IF($J$4,IF(AF52/Population!D50<$J$5,AF52/Population!D50*$J$6+(AF52/Population!D50)^2*$J$7,AF52/Population!D50),AF52/Population!D50) -> 2983.813301 | E52: =IF($J$4,IF(AG52/Population!E50<$J$5,AG52/Population!E50*$J$6+(AG52/Population!E50)^2*$J$7,AG52/Population!E50),AG52/Population!E50) -> 2873.762694 | F52: =IF($J$4,IF(AH52/Population!F50<$J$5,AH52/Population!F50*$J$6+(AH52/Population!F50)^2*$J$7,AH52/Population!F50),AH52/Population!F50) -> 3014.743409 | G52: =IF($J$4,IF(AI52/Population!G50<$J$5,AI52/Population!G50*$J$6+(AI52/Population!G50)^2*$J$7,AI52/Population!G50),AI52/Population!G50) -> 2612.682431 | H52: =IF($J$4,IF(AJ52/Population!H50<$J$5,AJ52/Population!H50*$J$6+(AJ52/Population!H50)^2*$J$7,AJ52/Population!H50),AJ52/Population!H50) -> 3069.924877 | I52: =IF($J$4,IF(AK52/Population!I50<$J$5,AK52/Population!I50*$J$6+(AK52/Population!I50)^2*$J$7,AK52/Population!I50),AK52/Population!I50) -> 3472.810362 | J52: =IF($J$4,IF(AL52/Population!J50<$J$5,AL52/Population!J50*$J$6+(AL52/Population!J50)^2*$J$7,AL52/Population!J50),AL52/Population!J50) -> 4249.473913 | K52: =IF($J$4,IF(AM52/Population!K50<$J$5,AM52/Population!K50*$J$6+(AM52/Population!K50)^2*$J$7,AM52/Population!K50),AM52/Population!K50) -> 4894.21193 | L52: =IF($J$4,IF(AN52/Population!L50<$J$5,AN52/Population!L50*$J$6+(AN52/Population!L50)^2*$J$7,AN52/Population!L50),AN52/Population!L50) -> 8733.710955 | M52: =IF($J$4,IF(AO52/Population!M50<$J$5,AO52/Population!M50*$J$6+(AO52/Population!M50)^2*$J$7,AO52/Population!M50),AO52/Population!M50) -> 11732.54366 | N52: =IF($J$4,IF(AP52/Population!N50<$J$5,AP52/Population!N50*$J$6+(AP52/Population!N50)^2*$J$7,AP52/Population!N50),AP52/Population!N50) -> 14167.10909 | O52: =IF($J$4,IF(AQ52/Population!O50<$J$5,AQ52/Population!O50*$J$6+(AQ52/Population!O50)^2*$J$7,AQ52/Population!O50),AQ52/Population!O50) -> 16254.4098 | P52: =IF($J$4,IF(AR52/Population!P50<$J$5,AR52/Population!P50*$J$6+(AR52/Population!P50)^2*$J$7,AR52/Population!P50),AR52/Population!P50) -> 19750.38742 | Q52: =IF($J$4,IF(AS52/Population!Q50<$J$5,AS52/Population!Q50*$J$6+(AS52/Population!Q50)^2*$J$7,AS52/Population!Q50),AS52/Population!Q50) -> 22357.86981 | R52: =IF($J$4,IF(AT52/Population!R50<$J$5,AT52/Population!R50*$J$6+(AT52/Population!R50)^2*$J$7,AT52/Population!R50),AT52/Population!R50) -> 24091.44812 | S52: =IF($J$4,IF(AU52/Population!S50<$J$5,AU52/Population!S50*$J$6+(AU52/Population!S50)^2*$J$7,AU52/Population!S50),AU52/Population!S50) -> 25523.14452 | T52: =IF($J$4,IF(AV52/Population!T50<$J$5,AV52/Population!T50*$J$6+(AV52/Population!T50)^2*$J$7,AV52/Population!T50),AV52/Population!T50) -> 29594.83791 | U52: =IF($J$4,IF(AW52/Population!U50<$J$5,AW52/Population!U50*$J$6+(AW52/Population!U50)^2*$J$7,AW52/Population!U50),AW52/Population!U50) -> 34415.97042 | V52: =IF($J$4,IF(AX52/Population!V50<$J$5,AX52/Population!V50*$J$6+(AX52/Population!V50)^2*$J$7,AX52/Population!V50),AX52/Population!V50) -> 39676.38377 | W52: =IF($J$4,IF(AY52/Population!W50<$J$5,AY52/Population!W50*$J$6+(AY52/Population!W50)^2*$J$7,AY52/Population!W50),AY52/Population!W50) -> 45528.59968 | X52: =IF($J$4,IF(AZ52/Population!X50<$J$5,AZ52/Population!X50*$J$6+(AZ52/Population!X50)^2*$J$7,AZ52/Population!X50),AZ52/Population!X50) -> 52110.64397 | Y52: =IF($J$4,IF(BA52/Population!Y50<$J$5,BA52/Population!Y50*$J$6+(BA52/Population!Y50)^2*$J$7,BA52/Population!Y50),BA52/Population!Y50) -> 59577.30169 | Z52: SSA | AA52: ALM | AD52: Congo | AE52: 4250111839 | AF52: 4344582196 | AG52: 4895180336 | AH52: 5971924642 | AI52: 5898892203 | AJ52: 8344334328 | AK52: 1.078977645e+10 | AL52: 1.493573356e+10 | AM52: 1.908169067e+10 | AN52: 3.850445383e+10 | AO52: 5.792721699e+10 | AP52: 7.734998016e+10 | AQ52: 9.677274332e+10 | AR52: 1.308225777e+11 | AS52: 1.648724121e+11 | AT52: 1.989222465e+11 | AU52: 2.329720809e+11 | AV52: 2.670219153e+11 | AW52: 3.048680846e+11 | AX52: 3.427142538e+11 | AY52: 3.805604231e+11 | AZ52: 4.184065923e+11 | BA52: 4.562527616e+11 | BB52: SSA | BC52: ALM
B53: Costa Rica | C53: =IF($J$4,IF(AE53/Population!C51<$J$5,AE53/Population!C51*$J$6+(AE53/Population!C51)^2*$J$7,AE53/Population!C51),AE53/Population!C51) -> 5740.178894 | D53: =IF($J$4,IF(AF53/Population!D51<$J$5,AF53/Population!D51*$J$6+(AF53/Population!D51)^2*$J$7,AF53/Population!D51),AF53/Population!D51) -> 6511.533845 | E53: =IF($J$4,IF(AG53/Population!E51<$J$5,AG53/Population!E51*$J$6+(AG53/Population!E51)^2*$J$7,AG53/Population!E51),AG53/Population!E51) -> 7277.370833 | F53: =IF($J$4,IF(AH53/Population!F51<$J$5,AH53/Population!F51*$J$6+(AH53/Population!F51)^2*$J$7,AH53/Population!F51),AH53/Population!F51) -> 8112.560939 | G53: =IF($J$4,IF(AI53/Population!G51<$J$5,AI53/Population!G51*$J$6+(AI53/Population!G51)^2*$J$7,AI53/Population!G51),AI53/Population!G51) -> 8719.841849 | H53: =IF($J$4,IF(AJ53/Population!H51<$J$5,AJ53/Population!H51*$J$6+(AJ53/Population!H51)^2*$J$7,AJ53/Population!H51),AJ53/Population!H51) -> 10843.99398 | I53: =IF($J$4,IF(AK53/Population!I51<$J$5,AK53/Population!I51*$J$6+(AK53/Population!I51)^2*$J$7,AK53/Population!I51),AK53/Population!I51) -> 13029.41201 | J53: =IF($J$4,IF(AL53/Population!J51<$J$5,AL53/Population!J51*$J$6+(AL53/Population!J51)^2*$J$7,AL53/Population!J51),AL53/Population!J51) -> 16881.10693 | K53: =IF($J$4,IF(AM53/Population!K51<$J$5,AM53/Population!K51*$J$6+(AM53/Population!K51)^2*$J$7,AM53/Population!K51),AM53/Population!K51) -> 19793.85017 | L53: =IF($J$4,IF(AN53/Population!L51<$J$5,AN53/Population!L51*$J$6+(AN53/Population!L51)^2*$J$7,AN53/Population!L51),AN53/Population!L51) -> 21848.2566 | M53: =IF($J$4,IF(AO53/Population!M51<$J$5,AO53/Population!M51*$J$6+(AO53/Population!M51)^2*$J$7,AO53/Population!M51),AO53/Population!M51) -> 23340.79869 | N53: =IF($J$4,IF(AP53/Population!N51<$J$5,AP53/Population!N51*$J$6+(AP53/Population!N51)^2*$J$7,AP53/Population!N51),AP53/Population!N51) -> 24336.60474 | O53: =IF($J$4,IF(AQ53/Population!O51<$J$5,AQ53/Population!O51*$J$6+(AQ53/Population!O51)^2*$J$7,AQ53/Population!O51),AQ53/Population!O51) -> 25142.79189 | P53: =IF($J$4,IF(AR53/Population!P51<$J$5,AR53/Population!P51*$J$6+(AR53/Population!P51)^2*$J$7,AR53/Population!P51),AR53/Population!P51) -> 28317.00542 | Q53: =IF($J$4,IF(AS53/Population!Q51<$J$5,AS53/Population!Q51*$J$6+(AS53/Population!Q51)^2*$J$7,AS53/Population!Q51),AS53/Population!Q51) -> 31661.49995 | R53: =IF($J$4,IF(AT53/Population!R51<$J$5,AT53/Population!R51*$J$6+(AT53/Population!R51)^2*$J$7,AT53/Population!R51),AT53/Population!R51) -> 35220.12653 | S53: =IF($J$4,IF(AU53/Population!S51<$J$5,AU53/Population!S51*$J$6+(AU53/Population!S51)^2*$J$7,AU53/Population!S51),AU53/Population!S51) -> 39000.67426 | T53: =IF($J$4,IF(AV53/Population!T51<$J$5,AV53/Population!T51*$J$6+(AV53/Population!T51)^2*$J$7,AV53/Population!T51),AV53/Population!T51) -> 43056.98416 | U53: =IF($J$4,IF(AW53/Population!U51<$J$5,AW53/Population!U51*$J$6+(AW53/Population!U51)^2*$J$7,AW53/Population!U51),AW53/Population!U51) -> 47391.18426 | V53: =IF($J$4,IF(AX53/Population!V51<$J$5,AX53/Population!V51*$J$6+(AX53/Population!V51)^2*$J$7,AX53/Population!V51),AX53/Population!V51) -> 52098.42283 | W53: =IF($J$4,IF(AY53/Population!W51<$J$5,AY53/Population!W51*$J$6+(AY53/Population!W51)^2*$J$7,AY53/Population!W51),AY53/Population!W51) -> 57421.24441 | X53: =IF($J$4,IF(AZ53/Population!X51<$J$5,AZ53/Population!X51*$J$6+(AZ53/Population!X51)^2*$J$7,AZ53/Population!X51),AZ53/Population!X51) -> 63384.02446 | Y53: =IF($J$4,IF(BA53/Population!Y51<$J$5,BA53/Population!Y51*$J$6+(BA53/Population!Y51)^2*$J$7,BA53/Population!Y51),BA53/Population!Y51) -> 69992.50033 | Z53: LAM | AA53: ALM | AD53: Costa Rica | AE53: 9844704398 | AF53: 1.284640733e+10 | AG53: 1.634096701e+10 | AH53: 1.996492549e+10 | AI53: 2.321834975e+10 | AJ53: 3.447118726e+10 | AK53: 4.572402478e+10 | AL53: 6.742252028e+10 | AM53: 8.912101578e+10 | AN53: 1.095923901e+11 | AO53: 1.300637644e+11 | AP53: 1.505351386e+11 | AQ53: 1.710065129e+11 | AR53: 1.928038722e+11 | AS53: 2.146012315e+11 | AT53: 2.363985907e+11 | AU53: 2.5819595e+11 | AV53: 2.799933093e+11 | AW53: 3.016402904e+11 | AX53: 3.232872715e+11 | AY53: 3.449342526e+11 | AZ53: 3.665812337e+11 | BA53: 3.882282148e+11 | BB53: LAM | BC53: ALM
B54: Côte d'Ivoire | C54: =IF($J$4,IF(AE54/Population!C52<$J$5,AE54/Population!C52*$J$6+(AE54/Population!C52)^2*$J$7,AE54/Population!C52),AE54/Population!C52) -> 1889.433509 | D54: =IF($J$4,IF(AF54/Population!D52<$J$5,AF54/Population!D52*$J$6+(AF54/Population!D52)^2*$J$7,AF54/Population!D52),AF54/Population!D52) -> 1724.612267 | E54: =IF($J$4,IF(AG54/Population!E52<$J$5,AG54/Population!E52*$J$6+(AG54/Population!E52)^2*$J$7,AG54/Population!E52),AG54/Population!E52) -> 1783.270524 | F54: =IF($J$4,IF(AH54/Population!F52<$J$5,AH54/Population!F52*$J$6+(AH54/Population!F52)^2*$J$7,AH54/Population!F52),AH54/Population!F52) -> 1596.816757 | G54: =IF($J$4,IF(AI54/Population!G52<$J$5,AI54/Population!G52*$J$6+(AI54/Population!G52)^2*$J$7,AI54/Population!G52),AI54/Population!G52) -> 1593.426736 | H54: =IF($J$4,IF(AJ54/Population!H52<$J$5,AJ54/Population!H52*$J$6+(AJ54/Population!H52)^2*$J$7,AJ54/Population!H52),AJ54/Population!H52) -> 2077.165248 | I54: =IF($J$4,IF(AK54/Population!I52<$J$5,AK54/Population!I52*$J$6+(AK54/Population!I52)^2*$J$7,AK54/Population!I52),AK54/Population!I52) -> 2483.445775 | J54: =IF($J$4,IF(AL54/Population!J52<$J$5,AL54/Population!J52*$J$6+(AL54/Population!J52)^2*$J$7,AL54/Population!J52),AL54/Population!J52) -> 3228.583366 | K54: =IF($J$4,IF(AM54/Population!K52<$J$5,AM54/Population!K52*$J$6+(AM54/Population!K52)^2*$J$7,AM54/Population!K52),AM54/Population!K52) -> 3950.651512 | L54: =IF($J$4,IF(AN54/Population!L52<$J$5,AN54/Population!L52*$J$6+(AN54/Population!L52)^2*$J$7,AN54/Population!L52),AN54/Population!L52) -> 7479.957862 | M54: =IF($J$4,IF(AO54/Population!M52<$J$5,AO54/Population!M52*$J$6+(AO54/Population!M52)^2*$J$7,AO54/Population!M52),AO54/Population!M52) -> 10556.61512 | N54: =IF($J$4,IF(AP54/Population!N52<$J$5,AP54/Population!N52*$J$6+(AP54/Population!N52)^2*$J$7,AP54/Population!N52),AP54/Population!N52) -> 13257.5941 | O54: =IF($J$4,IF(AQ54/Population!O52<$J$5,AQ54/Population!O52*$J$6+(AQ54/Population!O52)^2*$J$7,AQ54/Population!O52),AQ54/Population!O52) -> 15657.58428 | P54: =IF($J$4,IF(AR54/Population!P52<$J$5,AR54/Population!P52*$J$6+(AR54/Population!P52)^2*$J$7,AR54/Population!P52),AR54/Population!P52) -> 18823.75206 | Q54: =IF($J$4,IF(AS54/Population!Q52<$J$5,AS54/Population!Q52*$J$6+(AS54/Population!Q52)^2*$J$7,AS54/Population!Q52),AS54/Population!Q52) -> 21252.10586 | R54: =IF($J$4,IF(AT54/Population!R52<$J$5,AT54/Population!R52*$J$6+(AT54/Population!R52)^2*$J$7,AT54/Population!R52),AT54/Population!R52) -> 23053.95839 | S54: =IF($J$4,IF(AU54/Population!S52<$J$5,AU54/Population!S52*$J$6+(AU54/Population!S52)^2*$J$7,AU54/Population!S52),AU54/Population!S52) -> 24266.52575 | T54: =IF($J$4,IF(AV54/Population!T52<$J$5,AV54/Population!T52*$J$6+(AV54/Population!T52)^2*$J$7,AV54/Population!T52),AV54/Population!T52) -> 25327.43346 | U54: =IF($J$4,IF(AW54/Population!U52<$J$5,AW54/Population!U52*$J$6+(AW54/Population!U52)^2*$J$7,AW54/Population!U52),AW54/Population!U52) -> 28982.78984 | V54: =IF($J$4,IF(AX54/Population!V52<$J$5,AX54/Population!V52*$J$6+(AX54/Population!V52)^2*$J$7,AX54/Population!V52),AX54/Population!V52) -> 32965.0226 | W54: =IF($J$4,IF(AY54/Population!W52<$J$5,AY54/Population!W52*$J$6+(AY54/Population!W52)^2*$J$7,AY54/Population!W52),AY54/Population!W52) -> 37480.77187 | X54: =IF($J$4,IF(AZ54/Population!X52<$J$5,AZ54/Population!X52*$J$6+(AZ54/Population!X52)^2*$J$7,AZ54/Population!X52),AZ54/Population!X52) -> 42663.31964 | Y54: =IF($J$4,IF(BA54/Population!Y52<$J$5,BA54/Population!Y52*$J$6+(BA54/Population!Y52)^2*$J$7,BA54/Population!Y52),BA54/Population!Y52) -> 48534.63972 | Z54: SSA | AA54: ALM | AD54: Côte d'Ivoire | AE54: 1.28146269e+10 | AF54: 1.387767494e+10 | AG54: 1.633048596e+10 | AH54: 1.635397344e+10 | AI54: 1.816292176e+10 | AJ54: 2.569253452e+10 | AK54: 3.322214728e+10 | AL54: 4.598771274e+10 | AM54: 5.87532782e+10 | AN54: 1.185567321e+11 | AO54: 1.783601859e+11 | AP54: 2.381636398e+11 | AQ54: 2.979670937e+11 | AR54: 4.028078768e+11 | AS54: 5.076486599e+11 | AT54: 6.124894431e+11 | AU54: 7.173302262e+11 | AV54: 8.221710094e+11 | AW54: 9.387008572e+11 | AX54: 1.055230705e+12 | AY54: 1.171760553e+12 | AZ54: 1.288290401e+12 | BA54: 1.404820249e+12 | BB54: SSA | BC54: ALM
B55: Croatia | C55: =IF($J$4,IF(AE55/Population!C53<$J$5,AE55/Population!C53*$J$6+(AE55/Population!C53)^2*$J$7,AE55/Population!C53),AE55/Population!C53) -> 14398.51171 | D55: =IF($J$4,IF(AF55/Population!D53<$J$5,AF55/Population!D53*$J$6+(AF55/Population!D53)^2*$J$7,AF55/Population!D53),AF55/Population!D53) -> 11069.44317 | E55: =IF($J$4,IF(AG55/Population!E53<$J$5,AG55/Population!E53*$J$6+(AG55/Population!E53)^2*$J$7,AG55/Population!E53),AG55/Population!E53) -> 12851.34844 | F55: =IF($J$4,IF(AH55/Population!F53<$J$5,AH55/Population!F53*$J$6+(AH55/Population!F53)^2*$J$7,AH55/Population!F53),AH55/Population!F53) -> 15105.6337 | G55: =IF($J$4,IF(AI55/Population!G53<$J$5,AI55/Population!G53*$J$6+(AI55/Population!G53)^2*$J$7,AI55/Population!G53),AI55/Population!G53) -> 13810.31142 | H55: =IF($J$4,IF(AJ55/Population!H53<$J$5,AJ55/Population!H53*$J$6+(AJ55/Population!H53)^2*$J$7,AJ55/Population!H53),AJ55/Population!H53) -> 16787.75481 | I55: =IF($J$4,IF(AK55/Population!I53<$J$5,AK55/Population!I53*$J$6+(AK55/Population!I53)^2*$J$7,AK55/Population!I53),AK55/Population!I53) -> 19999.30494 | J55: =IF($J$4,IF(AL55/Population!J53<$J$5,AL55/Population!J53*$J$6+(AL55/Population!J53)^2*$J$7,AL55/Population!J53),AL55/Population!J53) -> 23849.74438 | K55: =IF($J$4,IF(AM55/Population!K53<$J$5,AM55/Population!K53*$J$6+(AM55/Population!K53)^2*$J$7,AM55/Population!K53),AM55/Population!K53) -> 27311.89822 | L55: =IF($J$4,IF(AN55/Population!L53<$J$5,AN55/Population!L53*$J$6+(AN55/Population!L53)^2*$J$7,AN55/Population!L53),AN55/Population!L53) -> 36425.59734 | M55: =IF($J$4,IF(AO55/Population!M53<$J$5,AO55/Population!M53*$J$6+(AO55/Population!M53)^2*$J$7,AO55/Population!M53),AO55/Population!M53) -> 45742.87779 | N55: =IF($J$4,IF(AP55/Population!N53<$J$5,AP55/Population!N53*$J$6+(AP55/Population!N53)^2*$J$7,AP55/Population!N53),AP55/Population!N53) -> 55434.81237 | O55: =IF($J$4,IF(AQ55/Population!O53<$J$5,AQ55/Population!O53*$J$6+(AQ55/Population!O53)^2*$J$7,AQ55/Population!O53),AQ55/Population!O53) -> 65555.00072 | P55: =IF($J$4,IF(AR55/Population!P53<$J$5,AR55/Population!P53*$J$6+(AR55/Population!P53)^2*$J$7,AR55/Population!P53),AR55/Population!P53) -> 77395.63041 | Q55: =IF($J$4,IF(AS55/Population!Q53<$J$5,AS55/Population!Q53*$J$6+(AS55/Population!Q53)^2*$J$7,AS55/Population!Q53),AS55/Population!Q53) -> 89846.70556 | R55: =IF($J$4,IF(AT55/Population!R53<$J$5,AT55/Population!R53*$J$6+(AT55/Population!R53)^2*$J$7,AT55/Population!R53),AT55/Population!R53) -> 103021.7274 | S55: =IF($J$4,IF(AU55/Population!S53<$J$5,AU55/Population!S53*$J$6+(AU55/Population!S53)^2*$J$7,AU55/Population!S53),AU55/Population!S53) -> 117108.7174 | T55: =IF($J$4,IF(AV55/Population!T53<$J$5,AV55/Population!T53*$J$6+(AV55/Population!T53)^2*$J$7,AV55/Population!T53),AV55/Population!T53) -> 132176.3592 | U55: =IF($J$4,IF(AW55/Population!U53<$J$5,AW55/Population!U53*$J$6+(AW55/Population!U53)^2*$J$7,AW55/Population!U53),AW55/Population!U53) -> 151263.1976 | V55: =IF($J$4,IF(AX55/Population!V53<$J$5,AX55/Population!V53*$J$6+(AX55/Population!V53)^2*$J$7,AX55/Population!V53),AX55/Population!V53) -> 170775.7537 | W55: =IF($J$4,IF(AY55/Population!W53<$J$5,AY55/Population!W53*$J$6+(AY55/Population!W53)^2*$J$7,AY55/Population!W53),AY55/Population!W53) -> 191614.6283 | X55: =IF($J$4,IF(AZ55/Population!X53<$J$5,AZ55/Population!X53*$J$6+(AZ55/Population!X53)^2*$J$7,AZ55/Population!X53),AZ55/Population!X53) -> 213954.8423 | Y55: =IF($J$4,IF(BA55/Population!Y53<$J$5,BA55/Population!Y53*$J$6+(BA55/Population!Y53)^2*$J$7,BA55/Population!Y53),BA55/Population!Y53) -> 237936.8078 | Z55: EEU | AA55: REF | AD55: Croatia | AE55: 4.190238258e+10 | AF55: 3.036858181e+10 | AG55: 3.55955402e+10 | AH55: 4.443720492e+10 | AI55: 3.956958306e+10 | AJ55: 5.646383129e+10 | AK55: 7.335807952e+10 | AL55: 1.046598303e+11 | AM55: 1.35961581e+11 | AN55: 1.814254345e+11 | AO55: 2.268892881e+11 | AP55: 2.723531416e+11 | AQ55: 3.178169952e+11 | AR55: 3.668758953e+11 | AS55: 4.159347954e+11 | AT55: 4.649936955e+11 | AU55: 5.140525956e+11 | AV55: 5.631114957e+11 | AW55: 6.259210026e+11 | AX55: 6.887305095e+11 | AY55: 7.515400163e+11 | AZ55: 8.143495232e+11 | BA55: 8.771590301e+11 | BB55: EEU | BC55: REF
B56: Cuba | C56: =IF($J$4,IF(AE56/Population!C54<$J$5,AE56/Population!C54*$J$6+(AE56/Population!C54)^2*$J$7,AE56/Population!C54),AE56/Population!C54) -> 6408.804596 | D56: =IF($J$4,IF(AF56/Population!D54<$J$5,AF56/Population!D54*$J$6+(AF56/Population!D54)^2*$J$7,AF56/Population!D54),AF56/Population!D54) -> 4406.178715 | E56: =IF($J$4,IF(AG56/Population!E54<$J$5,AG56/Population!E54*$J$6+(AG56/Population!E54)^2*$J$7,AG56/Population!E54),AG56/Population!E54) -> 5324.577292 | F56: =IF($J$4,IF(AH56/Population!F54<$J$5,AH56/Population!F54*$J$6+(AH56/Population!F54)^2*$J$7,AH56/Population!F54),AH56/Population!F54) -> 6569.309928 | G56: =IF($J$4,IF(AI56/Population!G54<$J$5,AI56/Population!G54*$J$6+(AI56/Population!G54)^2*$J$7,AI56/Population!G54),AI56/Population!G54) -> 6518.460506 | H56: =IF($J$4,IF(AJ56/Population!H54<$J$5,AJ56/Population!H54*$J$6+(AJ56/Population!H54)^2*$J$7,AJ56/Population!H54),AJ56/Population!H54) -> 9106.042315 | I56: =IF($J$4,IF(AK56/Population!I54<$J$5,AK56/Population!I54*$J$6+(AK56/Population!I54)^2*$J$7,AK56/Population!I54),AK56/Population!I54) -> 11559.55949 | J56: =IF($J$4,IF(AL56/Population!J54<$J$5,AL56/Population!J54*$J$6+(AL56/Population!J54)^2*$J$7,AL56/Population!J54),AL56/Population!J54) -> 15776.93638 | K56: =IF($J$4,IF(AM56/Population!K54<$J$5,AM56/Population!K54*$J$6+(AM56/Population!K54)^2*$J$7,AM56/Population!K54),AM56/Population!K54) -> 19269.37664 | L56: =IF($J$4,IF(AN56/Population!L54<$J$5,AN56/Population!L54*$J$6+(AN56/Population!L54)^2*$J$7,AN56/Population!L54),AN56/Population!L54) -> 21897.04279 | M56: =IF($J$4,IF(AO56/Population!M54<$J$5,AO56/Population!M54*$J$6+(AO56/Population!M54)^2*$J$7,AO56/Population!M54),AO56/Population!M54) -> 23795.68494 | N56: =IF($J$4,IF(AP56/Population!N54<$J$5,AP56/Population!N54*$J$6+(AP56/Population!N54)^2*$J$7,AP56/Population!N54),AP56/Population!N54) -> 24885.27089 | O56: =IF($J$4,IF(AQ56/Population!O54<$J$5,AQ56/Population!O54*$J$6+(AQ56/Population!O54)^2*$J$7,AQ56/Population!O54),AQ56/Population!O54) -> 29361.55966 | P56: =IF($J$4,IF(AR56/Population!P54<$J$5,AR56/Population!P54*$J$6+(AR56/Population!P54)^2*$J$7,AR56/Population!P54),AR56/Population!P54) -> 32335.09063 | Q56: =IF($J$4,IF(AS56/Population!Q54<$J$5,AS56/Population!Q54*$J$6+(AS56/Population!Q54)^2*$J$7,AS56/Population!Q54),AS56/Population!Q54) -> 35345.58424 | R56: =IF($J$4,IF(AT56/Population!R54<$J$5,AT56/Population!R54*$J$6+(AT56/Population!R54)^2*$J$7,AT56/Population!R54),AT56/Population!R54) -> 38480.41784 | S56: =IF($J$4,IF(AU56/Population!S54<$J$5,AU56/Population!S54*$J$6+(AU56/Population!S54)^2*$J$7,AU56/Population!S54),AU56/Population!S54) -> 41771.13804 | T56: =IF($J$4,IF(AV56/Population!T54<$J$5,AV56/Population!T54*$J$6+(AV56/Population!T54)^2*$J$7,AV56/Population!T54),AV56/Population!T54) -> 45265.41523 | U56: =IF($J$4,IF(AW56/Population!U54<$J$5,AW56/Population!U54*$J$6+(AW56/Population!U54)^2*$J$7,AW56/Population!U54),AW56/Population!U54) -> 49083.14044 | V56: =IF($J$4,IF(AX56/Population!V54<$J$5,AX56/Population!V54*$J$6+(AX56/Population!V54)^2*$J$7,AX56/Population!V54),AX56/Population!V54) -> 53175.15891 | W56: =IF($J$4,IF(AY56/Population!W54<$J$5,AY56/Population!W54*$J$6+(AY56/Population!W54)^2*$J$7,AY56/Population!W54),AY56/Population!W54) -> 57964.98242 | X56: =IF($J$4,IF(AZ56/Population!X54<$J$5,AZ56/Population!X54*$J$6+(AZ56/Population!X54)^2*$J$7,AZ56/Population!X54),AZ56/Population!X54) -> 63351.97014 | Y56: =IF($J$4,IF(BA56/Population!Y54<$J$5,BA56/Population!Y54*$J$6+(BA56/Population!Y54)^2*$J$7,BA56/Population!Y54),BA56/Population!Y54) -> 69508.41191 | Z56: LAM | AA56: ALM | AD56: Cuba | AE56: 3.853945274e+10 | AF56: 2.67316601e+10 | AG56: 3.337765773e+10 | AH56: 42644200000 | AI56: 4.285199048e+10 | AJ56: 6.362032636e+10 | AK56: 8.438866224e+10 | AL56: 1.244355964e+11 | AM56: 1.644825305e+11 | AN56: 2.022646789e+11 | AO56: 2.400468273e+11 | AP56: 2.778289757e+11 | AQ56: 3.156111241e+11 | AR56: 3.558405221e+11 | AS56: 3.960699201e+11 | AT56: 4.36299318e+11 | AU56: 4.76528716e+11 | AV56: 5.16758114e+11 | AW56: 5.567099726e+11 | AX56: 5.966618313e+11 | AY56: 6.3661369e+11 | AZ56: 6.765655487e+11 | BA56: 7.165174073e+11 | BB56: LAM | BC56: ALM
B57: Cyprus | C57: =IF($J$4,IF(AE57/Population!C55<$J$5,AE57/Population!C55*$J$6+(AE57/Population!C55)^2*$J$7,AE57/Population!C55),AE57/Population!C55) -> 18499.12298 | D57: =IF($J$4,IF(AF57/Population!D55<$J$5,AF57/Population!D55*$J$6+(AF57/Population!D55)^2*$J$7,AF57/Population!D55),AF57/Population!D55) -> 20078.75957 | E57: =IF($J$4,IF(AG57/Population!E55<$J$5,AG57/Population!E55*$J$6+(AG57/Population!E55)^2*$J$7,AG57/Population!E55),AG57/Population!E55) -> 21140.60989 | F57: =IF($J$4,IF(AH57/Population!F55<$J$5,AH57/Population!F55*$J$6+(AH57/Population!F55)^2*$J$7,AH57/Population!F55),AH57/Population!F55) -> 22093.7024 | G57: =IF($J$4,IF(AI57/Population!G55<$J$5,AI57/Population!G55*$J$6+(AI57/Population!G55)^2*$J$7,AI57/Population!G55),AI57/Population!G55) -> 3338.505624 | H57: =IF($J$4,IF(AJ57/Population!H55<$J$5,AJ57/Population!H55*$J$6+(AJ57/Population!H55)^2*$J$7,AJ57/Population!H55),AJ57/Population!H55) -> 24627.16334 | I57: =IF($J$4,IF(AK57/Population!I55<$J$5,AK57/Population!I55*$J$6+(AK57/Population!I55)^2*$J$7,AK57/Population!I55),AK57/Population!I55) -> 25241.09771 | J57: =IF($J$4,IF(AL57/Population!J55<$J$5,AL57/Population!J55*$J$6+(AL57/Population!J55)^2*$J$7,AL57/Population!J55),AL57/Population!J55) -> 27383.24509 | K57: =IF($J$4,IF(AM57/Population!K55<$J$5,AM57/Population!K55*$J$6+(AM57/Population!K55)^2*$J$7,AM57/Population!K55),AM57/Population!K55) -> 29583.60569 | L57: =IF($J$4,IF(AN57/Population!L55<$J$5,AN57/Population!L55*$J$6+(AN57/Population!L55)^2*$J$7,AN57/Population!L55),AN57/Population!L55) -> 32138.6387 | M57: =IF($J$4,IF(AO57/Population!M55<$J$5,AO57/Population!M55*$J$6+(AO57/Population!M55)^2*$J$7,AO57/Population!M55),AO57/Population!M55) -> 34705.6228 | N57: =IF($J$4,IF(AP57/Population!N55<$J$5,AP57/Population!N55*$J$6+(AP57/Population!N55)^2*$J$7,AP57/Population!N55),AP57/Population!N55) -> 37335.50559 | O57: =IF($J$4,IF(AQ57/Population!O55<$J$5,AQ57/Population!O55*$J$6+(AQ57/Population!O55)^2*$J$7,AQ57/Population!O55),AQ57/Population!O55) -> 40085.61542 | P57: =IF($J$4,IF(AR57/Population!P55<$J$5,AR57/Population!P55*$J$6+(AR57/Population!P55)^2*$J$7,AR57/Population!P55),AR57/Population!P55) -> 44671.28868 | Q57: =IF($J$4,IF(AS57/Population!Q55<$J$5,AS57/Population!Q55*$J$6+(AS57/Population!Q55)^2*$J$7,AS57/Population!Q55),AS57/Population!Q55) -> 49437.85843 | R57: =IF($J$4,IF(AT57/Population!R55<$J$5,AT57/Population!R55*$J$6+(AT57/Population!R55)^2*$J$7,AT57/Population!R55),AT57/Population!R55) -> 54354.00291 | S57: =IF($J$4,IF(AU57/Population!S55<$J$5,AU57/Population!S55*$J$6+(AU57/Population!S55)^2*$J$7,AU57/Population!S55),AU57/Population!S55) -> 59291.58167 | T57: =IF($J$4,IF(AV57/Population!T55<$J$5,AV57/Population!T55*$J$6+(AV57/Population!T55)^2*$J$7,AV57/Population!T55),AV57/Population!T55) -> 64188.0194 | U57: =IF($J$4,IF(AW57/Population!U55<$J$5,AW57/Population!U55*$J$6+(AW57/Population!U55)^2*$J$7,AW57/Population!U55),AW57/Population!U55) -> 70788.42466 | V57: =IF($J$4,IF(AX57/Population!V55<$J$5,AX57/Population!V55*$J$6+(AX57/Population!V55)^2*$J$7,AX57/Population!V55),AX57/Population!V55) -> 77391.10954 | W57: =IF($J$4,IF(AY57/Population!W55<$J$5,AY57/Population!W55*$J$6+(AY57/Population!W55)^2*$J$7,AY57/Population!W55),AY57/Population!W55) -> 84332.54636 | X57: =IF($J$4,IF(AZ57/Population!X55<$J$5,AZ57/Population!X55*$J$6+(AZ57/Population!X55)^2*$J$7,AZ57/Population!X55),AZ57/Population!X55) -> 91514.29796 | Y57: =IF($J$4,IF(BA57/Population!Y55<$J$5,BA57/Population!Y55*$J$6+(BA57/Population!Y55)^2*$J$7,BA57/Population!Y55),BA57/Population!Y55) -> 98792.35319 | Z57: WEU | AA57: OECD90 | AD57: Cyprus | AE57: 9317382945 | AF57: 1.201770414e+10 | AG57: 1.448118669e+10 | AH57: 1.697831267e+10 | AI57: 1.878734499e+10 | AJ57: 2.089339851e+10 | AK57: 2.299945204e+10 | AL57: 2.55592231e+10 | AM57: 2.811899417e+10 | AN57: 3.102060203e+10 | AO57: 3.392220989e+10 | AP57: 3.682381774e+10 | AQ57: 3.97254256e+10 | AR57: 4.386183251e+10 | AS57: 4.799823941e+10 | AT57: 5.213464631e+10 | AU57: 5.627105322e+10 | AV57: 6.040746012e+10 | AW57: 6.620134549e+10 | AX57: 7.199523087e+10 | AY57: 7.778911624e+10 | AZ57: 8.358300161e+10 | BA57: 8.937688698e+10 | BB57: WEU | BC57: OECD90
B58: Czech Republic | C58: =IF($J$4,IF(AE58/Population!C56<$J$5,AE58/Population!C56*$J$6+(AE58/Population!C56)^2*$J$7,AE58/Population!C56),AE58/Population!C56) -> 15005.25043 | D58: =IF($J$4,IF(AF58/Population!D56<$J$5,AF58/Population!D56*$J$6+(AF58/Population!D56)^2*$J$7,AF58/Population!D56),AF58/Population!D56) -> 14436.48377 | E58: =IF($J$4,IF(AG58/Population!E56<$J$5,AG58/Population!E56*$J$6+(AG58/Population!E56)^2*$J$7,AG58/Population!E56),AG58/Population!E56) -> 15327.28708 | F58: =IF($J$4,IF(AH58/Population!F56<$J$5,AH58/Population!F56*$J$6+(AH58/Population!F56)^2*$J$7,AH58/Population!F56),AH58/Population!F56) -> 17594.55148 | G58: =IF($J$4,IF(AI58/Population!G56<$J$5,AI58/Population!G56*$J$6+(AI58/Population!G56)^2*$J$7,AI58/Population!G56),AI58/Population!G56) -> 133202.6196 | H58: =IF($J$4,IF(AJ58/Population!H56<$J$5,AJ58/Population!H56*$J$6+(AJ58/Population!H56)^2*$J$7,AJ58/Population!H56),AJ58/Population!H56) -> 23245.07827 | I58: =IF($J$4,IF(AK58/Population!I56<$J$5,AK58/Population!I56*$J$6+(AK58/Population!I56)^2*$J$7,AK58/Population!I56),AK58/Population!I56) -> 25566.69729 | J58: =IF($J$4,IF(AL58/Population!J56<$J$5,AL58/Population!J56*$J$6+(AL58/Population!J56)^2*$J$7,AL58/Population!J56),AL58/Population!J56) -> 36582.01129 | K58: =IF($J$4,IF(AM58/Population!K56<$J$5,AM58/Population!K56*$J$6+(AM58/Population!K56)^2*$J$7,AM58/Population!K56),AM58/Population!K56) -> 47777.17797 | L58: =IF($J$4,IF(AN58/Population!L56<$J$5,AN58/Population!L56*$J$6+(AN58/Population!L56)^2*$J$7,AN58/Population!L56),AN58/Population!L56) -> 64283.01726 | M58: =IF($J$4,IF(AO58/Population!M56<$J$5,AO58/Population!M56*$J$6+(AO58/Population!M56)^2*$J$7,AO58/Population!M56),AO58/Population!M56) -> 81587.24305 | N58: =IF($J$4,IF(AP58/Population!N56<$J$5,AP58/Population!N56*$J$6+(AP58/Population!N56)^2*$J$7,AP58/Population!N56),AP58/Population!N56) -> 99875.58478 | O58: =IF($J$4,IF(AQ58/Population!O56<$J$5,AQ58/Population!O56*$J$6+(AQ58/Population!O56)^2*$J$7,AQ58/Population!O56),AQ58/Population!O56) -> 119213.8031 | P58: =IF($J$4,IF(AR58/Population!P56<$J$5,AR58/Population!P56*$J$6+(AR58/Population!P56)^2*$J$7,AR58/Population!P56),AR58/Population!P56) -> 139829.2971 | Q58: =IF($J$4,IF(AS58/Population!Q56<$J$5,AS58/Population!Q56*$J$6+(AS58/Population!Q56)^2*$J$7,AS58/Population!Q56),AS58/Population!Q56) -> 161636.0346 | R58: =IF($J$4,IF(AT58/Population!R56<$J$5,AT58/Population!R56*$J$6+(AT58/Population!R56)^2*$J$7,AT58/Population!R56),AT58/Population!R56) -> 184958.6511 | S58: =IF($J$4,IF(AU58/Population!S56<$J$5,AU58/Population!S56*$J$6+(AU58/Population!S56)^2*$J$7,AU58/Population!S56),AU58/Population!S56) -> 209802.0652 | T58: =IF($J$4,IF(AV58/Population!T56<$J$5,AV58/Population!T56*$J$6+(AV58/Population!T56)^2*$J$7,AV58/Population!T56),AV58/Population!T56) -> 235690.3386 | U58: =IF($J$4,IF(AW58/Population!U56<$J$5,AW58/Population!U56*$J$6+(AW58/Population!U56)^2*$J$7,AW58/Population!U56),AW58/Population!U56) -> 268505.0368 | V58: =IF($J$4,IF(AX58/Population!V56<$J$5,AX58/Population!V56*$J$6+(AX58/Population!V56)^2*$J$7,AX58/Population!V56),AX58/Population!V56) -> 302255.2419 | W58: =IF($J$4,IF(AY58/Population!W56<$J$5,AY58/Population!W56*$J$6+(AY58/Population!W56)^2*$J$7,AY58/Population!W56),AY58/Population!W56) -> 339417.1178 | X58: =IF($J$4,IF(AZ58/Population!X56<$J$5,AZ58/Population!X56*$J$6+(AZ58/Population!X56)^2*$J$7,AZ58/Population!X56),AZ58/Population!X56) -> 379515.7844 | Y58: =IF($J$4,IF(BA58/Population!Y56<$J$5,BA58/Population!Y56*$J$6+(BA58/Population!Y56)^2*$J$7,BA58/Population!Y56),BA58/Population!Y56) -> 422188.4531 | Z58: EEU | AA58: REF | AD58: Czech Republic | AE58: 1.010645091e+11 | AF58: 9.629962494e+10 | AG58: 1.036614335e+11 | AH58: 1.245485706e+11 | AI58: 1.46879465e+11 | AJ58: 2.095897073e+11 | AK58: 2.722999495e+11 | AL58: 3.884898117e+11 | AM58: 5.046796738e+11 | AN58: 6.734382497e+11 | AO58: 8.421968255e+11 | AP58: 1.010955401e+12 | AQ58: 1.179713977e+12 | AR58: 1.361817109e+12 | AS58: 1.543920241e+12 | AT58: 1.726023373e+12 | AU58: 1.908126504e+12 | AV58: 2.090229636e+12 | AW58: 2.323374038e+12 | AX58: 2.556518439e+12 | AY58: 2.789662841e+12 | AZ58: 3.022807243e+12 | BA58: 3.255951644e+12 | BB58: EEU | BC58: REF
B59: Democratic People's Republic of Korea | C59: =IF($J$4,IF(AE59/Population!C57<$J$5,AE59/Population!C57*$J$6+(AE59/Population!C57)^2*$J$7,AE59/Population!C57),AE59/Population!C57) -> 1409.019195 | D59: =IF($J$4,IF(AF59/Population!D57<$J$5,AF59/Population!D57*$J$6+(AF59/Population!D57)^2*$J$7,AF59/Population!D57),AF59/Population!D57) -> 1014.677426 | E59: =IF($J$4,IF(AG59/Population!E57<$J$5,AG59/Population!E57*$J$6+(AG59/Population!E57)^2*$J$7,AG59/Population!E57),AG59/Population!E57) -> 895.5899071 | F59: =IF($J$4,IF(AH59/Population!F57<$J$5,AH59/Population!F57*$J$6+(AH59/Population!F57)^2*$J$7,AH59/Population!F57),AH59/Population!F57) -> 953.5783328 | G59: =IF($J$4,IF(AI59/Population!G57<$J$5,AI59/Population!G57*$J$6+(AI59/Population!G57)^2*$J$7,AI59/Population!G57),AI59/Population!G57) -> 1381.649069 | H59: =IF($J$4,IF(AJ59/Population!H57<$J$5,AJ59/Population!H57*$J$6+(AJ59/Population!H57)^2*$J$7,AJ59/Population!H57),AJ59/Population!H57) -> 2530.381134 | I59: =IF($J$4,IF(AK59/Population!I57<$J$5,AK59/Population!I57*$J$6+(AK59/Population!I57)^2*$J$7,AK59/Population!I57),AK59/Population!I57) -> 3442.355263 | J59: =IF($J$4,IF(AL59/Population!J57<$J$5,AL59/Population!J57*$J$6+(AL59/Population!J57)^2*$J$7,AL59/Population!J57),AL59/Population!J57) -> 5496.815681 | K59: =IF($J$4,IF(AM59/Population!K57<$J$5,AM59/Population!K57*$J$6+(AM59/Population!K57)^2*$J$7,AM59/Population!K57),AM59/Population!K57) -> 7454.813065 | L59: =IF($J$4,IF(AN59/Population!L57<$J$5,AN59/Population!L57*$J$6+(AN59/Population!L57)^2*$J$7,AN59/Population!L57),AN59/Population!L57) -> 9648.690156 | M59: =IF($J$4,IF(AO59/Population!M57<$J$5,AO59/Population!M57*$J$6+(AO59/Population!M57)^2*$J$7,AO59/Population!M57),AO59/Population!M57) -> 11758.85356 | N59: =IF($J$4,IF(AP59/Population!N57<$J$5,AP59/Population!N57*$J$6+(AP59/Population!N57)^2*$J$7,AP59/Population!N57),AP59/Population!N57) -> 13760.57818 | O59: =IF($J$4,IF(AQ59/Population!O57<$J$5,AQ59/Population!O57*$J$6+(AQ59/Population!O57)^2*$J$7,AQ59/Population!O57),AQ59/Population!O57) -> 15672.89158 | P59: =IF($J$4,IF(AR59/Population!P57<$J$5,AR59/Population!P57*$J$6+(AR59/Population!P57)^2*$J$7,AR59/Population!P57),AR59/Population!P57) -> 17873.00807 | Q59: =IF($J$4,IF(AS59/Population!Q57<$J$5,AS59/Population!Q57*$J$6+(AS59/Population!Q57)^2*$J$7,AS59/Population!Q57),AS59/Population!Q57) -> 19965.98503 | R59: =IF($J$4,IF(AT59/Population!R57<$J$5,AT59/Population!R57*$J$6+(AT59/Population!R57)^2*$J$7,AT59/Population!R57),AT59/Population!R57) -> 21826.46933 | S59: =IF($J$4,IF(AU59/Population!S57<$J$5,AU59/Population!S57*$J$6+(AU59/Population!S57)^2*$J$7,AU59/Population!S57),AU59/Population!S57) -> 23384.64543 | T59: =IF($J$4,IF(AV59/Population!T57<$J$5,AV59/Population!T57*$J$6+(AV59/Population!T57)^2*$J$7,AV59/Population!T57),AV59/Population!T57) -> 24484.43245 | U59: =IF($J$4,IF(AW59/Population!U57<$J$5,AW59/Population!U57*$J$6+(AW59/Population!U57)^2*$J$7,AW59/Population!U57),AW59/Population!U57) -> 26777.76475 | V59: =IF($J$4,IF(AX59/Population!V57<$J$5,AX59/Population!V57*$J$6+(AX59/Population!V57)^2*$J$7,AX59/Population!V57),AX59/Population!V57) -> 30944.93803 | W59: =IF($J$4,IF(AY59/Population!W57<$J$5,AY59/Population!W57*$J$6+(AY59/Population!W57)^2*$J$7,AY59/Population!W57),AY59/Population!W57) -> 35605.17824 | X59: =IF($J$4,IF(AZ59/Population!X57<$J$5,AZ59/Population!X57*$J$6+(AZ59/Population!X57)^2*$J$7,AZ59/Population!X57),AZ59/Population!X57) -> 40840.28756 | Y59: =IF($J$4,IF(BA59/Population!Y57<$J$5,BA59/Population!Y57*$J$6+(BA59/Population!Y57)^2*$J$7,BA59/Population!Y57),BA59/Population!Y57) -> 46726.63486 | Z59: CPA | AA59: ASIA | AD59: Democratic People's Republic of Korea | AE59: 1.519069982e+10 | AF59: 1.206302925e+10 | AG59: 1.150811231e+10 | AH59: 1.303119679e+10 | AI59: =IFERROR(AH59*(1+AI252)^5,0) -> 1.983010153e+10 | AJ59: 3.279236895e+10 | AK59: 4.575463637e+10 | AL59: 7.567405026e+10 | AM59: 1.055934642e+11 | AN59: 1.404564444e+11 | AO59: 1.753194246e+11 | AP59: 2.101824049e+11 | AQ59: 2.450453851e+11 | AR59: 2.803492643e+11 | AS59: 3.156531435e+11 | AT59: 3.509570227e+11 | AU59: 3.862609019e+11 | AV59: 4.215647811e+11 | AW59: 4.621524898e+11 | AX59: 5.027401985e+11 | AY59: 5.433279073e+11 | AZ59: 5.83915616e+11 | BA59: 6.245033247e+11 | BB59: CPA | BC59: ASIA
B60: Democratic Republic of the Congo | C60: =IF($J$4,IF(AE60/Population!C58<$J$5,AE60/Population!C58*$J$6+(AE60/Population!C58)^2*$J$7,AE60/Population!C58),AE60/Population!C58) -> 499.543725 | D60: =IF($J$4,IF(AF60/Population!D58<$J$5,AF60/Population!D58*$J$6+(AF60/Population!D58)^2*$J$7,AF60/Population!D58),AF60/Population!D58) -> 289.8913419 | E60: =IF($J$4,IF(AG60/Population!E58<$J$5,AG60/Population!E58*$J$6+(AG60/Population!E58)^2*$J$7,AG60/Population!E58),AG60/Population!E58) -> 212.2175705 | F60: =IF($J$4,IF(AH60/Population!F58<$J$5,AH60/Population!F58*$J$6+(AH60/Population!F58)^2*$J$7,AH60/Population!F58),AH60/Population!F58) -> 224.2933965 | G60: =IF($J$4,IF(AI60/Population!G58<$J$5,AI60/Population!G58*$J$6+(AI60/Population!G58)^2*$J$7,AI60/Population!G58),AI60/Population!G58) -> 1672.752448 | H60: =IF($J$4,IF(AJ60/Population!H58<$J$5,AJ60/Population!H58*$J$6+(AJ60/Population!H58)^2*$J$7,AJ60/Population!H58),AJ60/Population!H58) -> 1913.555959 | I60: =IF($J$4,IF(AK60/Population!I58<$J$5,AK60/Population!I58*$J$6+(AK60/Population!I58)^2*$J$7,AK60/Population!I58),AK60/Population!I58) -> 2138.129019 | J60: =IF($J$4,IF(AL60/Population!J58<$J$5,AL60/Population!J58*$J$6+(AL60/Population!J58)^2*$J$7,AL60/Population!J58),AL60/Population!J58) -> 2596.474095 | K60: =IF($J$4,IF(AM60/Population!K58<$J$5,AM60/Population!K58*$J$6+(AM60/Population!K58)^2*$J$7,AM60/Population!K58),AM60/Population!K58) -> 2972.532329 | L60: =IF($J$4,IF(AN60/Population!L58<$J$5,AN60/Population!L58*$J$6+(AN60/Population!L58)^2*$J$7,AN60/Population!L58),AN60/Population!L58) -> 5376.75132 | M60: =IF($J$4,IF(AO60/Population!M58<$J$5,AO60/Population!M58*$J$6+(AO60/Population!M58)^2*$J$7,AO60/Population!M58),AO60/Population!M58) -> 7316.898582 | N60: =IF($J$4,IF(AP60/Population!N58<$J$5,AP60/Population!N58*$J$6+(AP60/Population!N58)^2*$J$7,AP60/Population!N58),AP60/Population!N58) -> 8963.511961 | O60: =IF($J$4,IF(AQ60/Population!O58<$J$5,AQ60/Population!O58*$J$6+(AQ60/Population!O58)^2*$J$7,AQ60/Population!O58),AQ60/Population!O58) -> 10453.88729 | P60: =IF($J$4,IF(AR60/Population!P58<$J$5,AR60/Population!P58*$J$6+(AR60/Population!P58)^2*$J$7,AR60/Population!P58),AR60/Population!P58) -> 13297.40422 | Q60: =IF($J$4,IF(AS60/Population!Q58<$J$5,AS60/Population!Q58*$J$6+(AS60/Population!Q58)^2*$J$7,AS60/Population!Q58),AS60/Population!Q58) -> 15860.80465 | R60: =IF($J$4,IF(AT60/Population!R58<$J$5,AT60/Population!R58*$J$6+(AT60/Population!R58)^2*$J$7,AT60/Population!R58),AT60/Population!R58) -> 18175.28131 | S60: =IF($J$4,IF(AU60/Population!S58<$J$5,AU60/Population!S58*$J$6+(AU60/Population!S58)^2*$J$7,AU60/Population!S58),AU60/Population!S58) -> 20240.66291 | T60: =IF($J$4,IF(AV60/Population!T58<$J$5,AV60/Population!T58*$J$6+(AV60/Population!T58)^2*$J$7,AV60/Population!T58),AV60/Population!T58) -> 22034.38347 | U60: =IF($J$4,IF(AW60/Population!U58<$J$5,AW60/Population!U58*$J$6+(AW60/Population!U58)^2*$J$7,AW60/Population!U58),AW60/Population!U58) -> 23604.87207 | V60: =IF($J$4,IF(AX60/Population!V58<$J$5,AX60/Population!V58*$J$6+(AX60/Population!V58)^2*$J$7,AX60/Population!V58),AX60/Population!V58) -> 24628.47265 | W60: =IF($J$4,IF(AY60/Population!W58<$J$5,AY60/Population!W58*$J$6+(AY60/Population!W58)^2*$J$7,AY60/Population!W58),AY60/Population!W58) -> 27259.07684 | X60: =IF($J$4,IF(AZ60/Population!X58<$J$5,AZ60/Population!X58*$J$6+(AZ60/Population!X58)^2*$J$7,AZ60/Population!X58),AZ60/Population!X58) -> 31295.72463 | Y60: =IF($J$4,IF(BA60/Population!Y58<$J$5,BA60/Population!Y58*$J$6+(BA60/Population!Y58)^2*$J$7,BA60/Population!Y58),BA60/Population!Y58) -> 35855.0935 | Z60: SSA | AA60: ALM | AD60: Democratic Republic of the Congo | AE60: 1.043913618e+10 | AF60: 7167651316 | AG60: 5871524715 | AH60: 7238816267 | AI60: 6.426317688e+10 | AJ60: 9.090409088e+10 | AK60: 1.175450049e+11 | AL60: 1.627115151e+11 | AM60: 2.078780253e+11 | AN60: 4.194717316e+11 | AO60: 6.31065438e+11 | AP60: 8.426591444e+11 | AQ60: 1.054252851e+12 | AR60: 1.425195471e+12 | AS60: 1.796138091e+12 | AT60: 2.167080712e+12 | AU60: 2.538023332e+12 | AV60: 2.908965952e+12 | AW60: 3.32126626e+12 | AX60: 3.733566567e+12 | AY60: 4.145866875e+12 | AZ60: 4.558167182e+12 | BA60: 4.970467489e+12 | BB60: SSA | BC60: ALM
B61: Denmark | C61: =IF($J$4,IF(AE61/Population!C59<$J$5,AE61/Population!C59*$J$6+(AE61/Population!C59)^2*$J$7,AE61/Population!C59),AE61/Population!C59) -> 36443.66349 | D61: =IF($J$4,IF(AF61/Population!D59<$J$5,AF61/Population!D59*$J$6+(AF61/Population!D59)^2*$J$7,AF61/Population!D59),AF61/Population!D59) -> 40191.50497 | E61: =IF($J$4,IF(AG61/Population!E59<$J$5,AG61/Population!E59*$J$6+(AG61/Population!E59)^2*$J$7,AG61/Population!E59),AG61/Population!E59) -> 45358.38046 | F61: =IF($J$4,IF(AH61/Population!F59<$J$5,AH61/Population!F59*$J$6+(AH61/Population!F59)^2*$J$7,AH61/Population!F59),AH61/Population!F59) -> 47433.66089 | G61: =IF($J$4,IF(AI61/Population!G59<$J$5,AI61/Population!G59*$J$6+(AI61/Population!G59)^2*$J$7,AI61/Population!G59),AI61/Population!G59) -> 48193.01817 | H61: =IF($J$4,IF(AJ61/Population!H59<$J$5,AJ61/Population!H59*$J$6+(AJ61/Population!H59)^2*$J$7,AJ61/Population!H59),AJ61/Population!H59) -> 53931.15393 | I61: =IF($J$4,IF(AK61/Population!I59<$J$5,AK61/Population!I59*$J$6+(AK61/Population!I59)^2*$J$7,AK61/Population!I59),AK61/Population!I59) -> 58915.6098 | J61: =IF($J$4,IF(AL61/Population!J59<$J$5,AL61/Population!J59*$J$6+(AL61/Population!J59)^2*$J$7,AL61/Population!J59),AL61/Population!J59) -> 64874.84872 | K61: =IF($J$4,IF(AM61/Population!K59<$J$5,AM61/Population!K59*$J$6+(AM61/Population!K59)^2*$J$7,AM61/Population!K59),AM61/Population!K59) -> 70753.82058 | L61: =IF($J$4,IF(AN61/Population!L59<$J$5,AN61/Population!L59*$J$6+(AN61/Population!L59)^2*$J$7,AN61/Population!L59),AN61/Population!L59) -> 77625.56231 | M61: =IF($J$4,IF(AO61/Population!M59<$J$5,AO61/Population!M59*$J$6+(AO61/Population!M59)^2*$J$7,AO61/Population!M59),AO61/Population!M59) -> 84942.6034 | N61: =IF($J$4,IF(AP61/Population!N59<$J$5,AP61/Population!N59*$J$6+(AP61/Population!N59)^2*$J$7,AP61/Population!N59),AP61/Population!N59) -> 92657.70277 | O61: =IF($J$4,IF(AQ61/Population!O59<$J$5,AQ61/Population!O59*$J$6+(AQ61/Population!O59)^2*$J$7,AQ61/Population!O59),AQ61/Population!O59) -> 100584.4611 | P61: =IF($J$4,IF(AR61/Population!P59<$J$5,AR61/Population!P59*$J$6+(AR61/Population!P59)^2*$J$7,AR61/Population!P59),AR61/Population!P59) -> 112044.1141 | Q61: =IF($J$4,IF(AS61/Population!Q59<$J$5,AS61/Population!Q59*$J$6+(AS61/Population!Q59)^2*$J$7,AS61/Population!Q59),AS61/Population!Q59) -> 123852.217 | R61: =IF($J$4,IF(AT61/Population!R59<$J$5,AT61/Population!R59*$J$6+(AT61/Population!R59)^2*$J$7,AT61/Population!R59),AT61/Population!R59) -> 135872.4882 | S61: =IF($J$4,IF(AU61/Population!S59<$J$5,AU61/Population!S59*$J$6+(AU61/Population!S59)^2*$J$7,AU61/Population!S59),AU61/Population!S59) -> 147921.0592 | T61: =IF($J$4,IF(AV61/Population!T59<$J$5,AV61/Population!T59*$J$6+(AV61/Population!T59)^2*$J$7,AV61/Population!T59),AV61/Population!T59) -> 159975.5213 | U61: =IF($J$4,IF(AW61/Population!U59<$J$5,AW61/Population!U59*$J$6+(AW61/Population!U59)^2*$J$7,AW61/Population!U59),AW61/Population!U59) -> 176365.5021 | V61: =IF($J$4,IF(AX61/Population!V59<$J$5,AX61/Population!V59*$J$6+(AX61/Population!V59)^2*$J$7,AX61/Population!V59),AX61/Population!V59) -> 192747.337 | W61: =IF($J$4,IF(AY61/Population!W59<$J$5,AY61/Population!W59*$J$6+(AY61/Population!W59)^2*$J$7,AY61/Population!W59),AY61/Population!W59) -> 209993.8326 | X61: =IF($J$4,IF(AZ61/Population!X59<$J$5,AZ61/Population!X59*$J$6+(AZ61/Population!X59)^2*$J$7,AZ61/Population!X59),AZ61/Population!X59) -> 227854.9934 | Y61: =IF($J$4,IF(BA61/Population!Y59<$J$5,BA61/Population!Y59*$J$6+(BA61/Population!Y59)^2*$J$7,BA61/Population!Y59),BA61/Population!Y59) -> 246028.4724 | Z61: WEU | AA61: OECD90 | AD61: Denmark | AE61: 1.873551976e+11 | AF61: 2.103065512e+11 | AG61: 2.420965456e+11 | AH61: 2.576755362e+11 | AI61: 2.658122062e+11 | AJ61: 2.956096434e+11 | AK61: 3.254070807e+11 | AL61: 3.616239274e+11 | AM61: 3.978407741e+11 | AN61: 4.388940888e+11 | AO61: 4.799474035e+11 | AP61: 5.210007183e+11 | AQ61: 5.62054033e+11 | AR61: 6.205778662e+11 | AS61: 6.791016994e+11 | AT61: 7.376255326e+11 | AU61: 7.961493658e+11 | AV61: 8.54673199e+11 | AW61: 9.366478183e+11 | AX61: 1.018622438e+12 | AY61: 1.100597057e+12 | AZ61: 1.182571676e+12 | BA61: 1.264546295e+12 | BB61: WEU | BC61: OECD90
B62: Djibouti | C62: =IF($J$4,IF(AE62/Population!C60<$J$5,AE62/Population!C60*$J$6+(AE62/Population!C60)^2*$J$7,AE62/Population!C60),AE62/Population!C60) -> 2018.738888 | D62: =IF($J$4,IF(AF62/Population!D60<$J$5,AF62/Population!D60*$J$6+(AF62/Population!D60)^2*$J$7,AF62/Population!D60),AF62/Population!D60) -> 2018.364558 | E62: =IF($J$4,IF(AG62/Population!E60<$J$5,AG62/Population!E60*$J$6+(AG62/Population!E60)^2*$J$7,AG62/Population!E60),AG62/Population!E60) -> 1706.16663 | F62: =IF($J$4,IF(AH62/Population!F60<$J$5,AH62/Population!F60*$J$6+(AH62/Population!F60)^2*$J$7,AH62/Population!F60),AH62/Population!F60) -> 1960.326102 | G62: =IF($J$4,IF(AI62/Population!G60<$J$5,AI62/Population!G60*$J$6+(AI62/Population!G60)^2*$J$7,AI62/Population!G60),AI62/Population!G60) -> 2170.307796 | H62: =IF($J$4,IF(AJ62/Population!H60<$J$5,AJ62/Population!H60*$J$6+(AJ62/Population!H60)^2*$J$7,AJ62/Population!H60),AJ62/Population!H60) -> 3051.122334 | I62: =IF($J$4,IF(AK62/Population!I60<$J$5,AK62/Population!I60*$J$6+(AK62/Population!I60)^2*$J$7,AK62/Population!I60),AK62/Population!I60) -> 3735.818217 | J62: =IF($J$4,IF(AL62/Population!J60<$J$5,AL62/Population!J60*$J$6+(AL62/Population!J60)^2*$J$7,AL62/Population!J60),AL62/Population!J60) -> 4884.070805 | K62: =IF($J$4,IF(AM62/Population!K60<$J$5,AM62/Population!K60*$J$6+(AM62/Population!K60)^2*$J$7,AM62/Population!K60),AM62/Population!K60) -> 5958.63678 | L62: =IF($J$4,IF(AN62/Population!L60<$J$5,AN62/Population!L60*$J$6+(AN62/Population!L60)^2*$J$7,AN62/Population!L60),AN62/Population!L60) -> 11022.4041 | M62: =IF($J$4,IF(AO62/Population!M60<$J$5,AO62/Population!M60*$J$6+(AO62/Population!M60)^2*$J$7,AO62/Population!M60),AO62/Population!M60) -> 15163.95195 | N62: =IF($J$4,IF(AP62/Population!N60<$J$5,AP62/Population!N60*$J$6+(AP62/Population!N60)^2*$J$7,AP62/Population!N60),AP62/Population!N60) -> 18515.68712 | O62: =IF($J$4,IF(AQ62/Population!O60<$J$5,AQ62/Population!O60*$J$6+(AQ62/Population!O60)^2*$J$7,AQ62/Population!O60),AQ62/Population!O60) -> 21095.91363 | P62: =IF($J$4,IF(AR62/Population!P60<$J$5,AR62/Population!P60*$J$6+(AR62/Population!P60)^2*$J$7,AR62/Population!P60),AR62/Population!P60) -> 24013.1167 | Q62: =IF($J$4,IF(AS62/Population!Q60<$J$5,AS62/Population!Q60*$J$6+(AS62/Population!Q60)^2*$J$7,AS62/Population!Q60),AS62/Population!Q60) -> 26867.48054 | R62: =IF($J$4,IF(AT62/Population!R60<$J$5,AT62/Population!R60*$J$6+(AT62/Population!R60)^2*$J$7,AT62/Population!R60),AT62/Population!R60) -> 32432.98735 | S62: =IF($J$4,IF(AU62/Population!S60<$J$5,AU62/Population!S60*$J$6+(AU62/Population!S60)^2*$J$7,AU62/Population!S60),AU62/Population!S60) -> 38289.75649 | T62: =IF($J$4,IF(AV62/Population!T60<$J$5,AV62/Population!T60*$J$6+(AV62/Population!T60)^2*$J$7,AV62/Population!T60),AV62/Population!T60) -> 44639.01671 | U62: =IF($J$4,IF(AW62/Population!U60<$J$5,AW62/Population!U60*$J$6+(AW62/Population!U60)^2*$J$7,AW62/Population!U60),AW62/Population!U60) -> 52269.82747 | V62: =IF($J$4,IF(AX62/Population!V60<$J$5,AX62/Population!V60*$J$6+(AX62/Population!V60)^2*$J$7,AX62/Population!V60),AX62/Population!V60) -> 60675.01052 | W62: =IF($J$4,IF(AY62/Population!W60<$J$5,AY62/Population!W60*$J$6+(AY62/Population!W60)^2*$J$7,AY62/Population!W60),AY62/Population!W60) -> 69960.80307 | X62: =IF($J$4,IF(AZ62/Population!X60<$J$5,AZ62/Population!X60*$J$6+(AZ62/Population!X60)^2*$J$7,AZ62/Population!X60),AZ62/Population!X60) -> 80185.06538 | Y62: =IF($J$4,IF(BA62/Population!Y60<$J$5,BA62/Population!Y60*$J$6+(BA62/Population!Y60)^2*$J$7,BA62/Population!Y60),BA62/Population!Y60) -> 91612.14493 | Z62: SSA | AA62: ALM | AD62: Djibouti | AE62: 547930366.1 | AF62: 606910181.5 | AG62: 618948549.4 | AH62: 709860014.4 | AI62: 875282275 | AJ62: 1238138905 | AK62: 1600995536 | AL62: 2216175919 | AM62: 2831356303 | AN62: 5713321211 | AO62: 8595286120 | AP62: 1.147725103e+10 | AQ62: 1.435921594e+10 | AR62: 1.941155721e+10 | AS62: 2.446389848e+10 | AT62: 2.951623974e+10 | AU62: 3.456858101e+10 | AV62: 3.962092228e+10 | AW62: 4.523656671e+10 | AX62: 5.085221113e+10 | AY62: 5.646785556e+10 | AZ62: 6.208349999e+10 | BA62: 6.769914441e+10 | BB62: SSA | BC62: ALM
B63: Dominican Republic | C63: =IF($J$4,IF(AE63/Population!C61<$J$5,AE63/Population!C61*$J$6+(AE63/Population!C61)^2*$J$7,AE63/Population!C61),AE63/Population!C61) -> 3983.146462 | D63: =IF($J$4,IF(AF63/Population!D61<$J$5,AF63/Population!D61*$J$6+(AF63/Population!D61)^2*$J$7,AF63/Population!D61),AF63/Population!D61) -> 4650.239944 | E63: =IF($J$4,IF(AG63/Population!E61<$J$5,AG63/Population!E61*$J$6+(AG63/Population!E61)^2*$J$7,AG63/Population!E61),AG63/Population!E61) -> 5862.22528 | F63: =IF($J$4,IF(AH63/Population!F61<$J$5,AH63/Population!F61*$J$6+(AH63/Population!F61)^2*$J$7,AH63/Population!F61),AH63/Population!F61) -> 6399.586344 | G63: =IF($J$4,IF(AI63/Population!G61<$J$5,AI63/Population!G61*$J$6+(AI63/Population!G61)^2*$J$7,AI63/Population!G61),AI63/Population!G61) -> 6513.626664 | H63: =IF($J$4,IF(AJ63/Population!H61<$J$5,AJ63/Population!H61*$J$6+(AJ63/Population!H61)^2*$J$7,AJ63/Population!H61),AJ63/Population!H61) -> 9083.796302 | I63: =IF($J$4,IF(AK63/Population!I61<$J$5,AK63/Population!I61*$J$6+(AK63/Population!I61)^2*$J$7,AK63/Population!I61),AK63/Population!I61) -> 11237.44425 | J63: =IF($J$4,IF(AL63/Population!J61<$J$5,AL63/Population!J61*$J$6+(AL63/Population!J61)^2*$J$7,AL63/Population!J61),AL63/Population!J61) -> 15072.44005 | K63: =IF($J$4,IF(AM63/Population!K61<$J$5,AM63/Population!K61*$J$6+(AM63/Population!K61)^2*$J$7,AM63/Population!K61),AM63/Population!K61) -> 18234.23736 | L63: =IF($J$4,IF(AN63/Population!L61<$J$5,AN63/Population!L61*$J$6+(AN63/Population!L61)^2*$J$7,AN63/Population!L61),AN63/Population!L61) -> 20640.40683 | M63: =IF($J$4,IF(AO63/Population!M61<$J$5,AO63/Population!M61*$J$6+(AO63/Population!M61)^2*$J$7,AO63/Population!M61),AO63/Population!M61) -> 22523.31944 | N63: =IF($J$4,IF(AP63/Population!N61<$J$5,AP63/Population!N61*$J$6+(AP63/Population!N61)^2*$J$7,AP63/Population!N61),AP63/Population!N61) -> 23890.33506 | O63: =IF($J$4,IF(AQ63/Population!O61<$J$5,AQ63/Population!O61*$J$6+(AQ63/Population!O61)^2*$J$7,AQ63/Population!O61),AQ63/Population!O61) -> 24710.73382 | P63: =IF($J$4,IF(AR63/Population!P61<$J$5,AR63/Population!P61*$J$6+(AR63/Population!P61)^2*$J$7,AR63/Population!P61),AR63/Population!P61) -> 27246.92341 | Q63: =IF($J$4,IF(AS63/Population!Q61<$J$5,AS63/Population!Q61*$J$6+(AS63/Population!Q61)^2*$J$7,AS63/Population!Q61),AS63/Population!Q61) -> 30589.33711 | R63: =IF($J$4,IF(AT63/Population!R61<$J$5,AT63/Population!R61*$J$6+(AT63/Population!R61)^2*$J$7,AT63/Population!R61),AT63/Population!R61) -> 34164.40895 | S63: =IF($J$4,IF(AU63/Population!S61<$J$5,AU63/Population!S61*$J$6+(AU63/Population!S61)^2*$J$7,AU63/Population!S61),AU63/Population!S61) -> 38003.19032 | T63: =IF($J$4,IF(AV63/Population!T61<$J$5,AV63/Population!T61*$J$6+(AV63/Population!T61)^2*$J$7,AV63/Population!T61),AV63/Population!T61) -> 42118.98061 | U63: =IF($J$4,IF(AW63/Population!U61<$J$5,AW63/Population!U61*$J$6+(AW63/Population!U61)^2*$J$7,AW63/Population!U61),AW63/Population!U61) -> 46545.92137 | V63: =IF($J$4,IF(AX63/Population!V61<$J$5,AX63/Population!V61*$J$6+(AX63/Population!V61)^2*$J$7,AX63/Population!V61),AX63/Population!V61) -> 51352.48804 | W63: =IF($J$4,IF(AY63/Population!W61<$J$5,AY63/Population!W61*$J$6+(AY63/Population!W61)^2*$J$7,AY63/Population!W61),AY63/Population!W61) -> 56747.19365 | X63: =IF($J$4,IF(AZ63/Population!X61<$J$5,AZ63/Population!X61*$J$6+(AZ63/Population!X61)^2*$J$7,AZ63/Population!X61),AZ63/Population!X61) -> 62772.81161 | Y63: =IF($J$4,IF(BA63/Population!Y61<$J$5,BA63/Population!Y61*$J$6+(BA63/Population!Y61)^2*$J$7,BA63/Population!Y61),BA63/Population!Y61) -> 69449.42577 | Z63: LAM | AA63: ALM | AD63: Dominican Republic | AE63: 1.567774854e+10 | AF63: 2.020364774e+10 | AG63: 2.820573719e+10 | AH63: 3.354229815e+10 | AI63: 3.664858034e+10 | AJ63: 5.441041632e+10 | AK63: 7.217225229e+10 | AL63: 1.064218464e+11 | AM63: 1.406714406e+11 | AN63: 1.729841077e+11 | AO63: 2.052967747e+11 | AP63: 2.376094418e+11 | AQ63: 2.699221089e+11 | AR63: 3.043277527e+11 | AS63: 3.387333966e+11 | AT63: 3.731390405e+11 | AU63: 4.075446844e+11 | AV63: 4.419503282e+11 | AW63: 4.761186104e+11 | AX63: 5.102868926e+11 | AY63: 5.444551747e+11 | AZ63: 5.786234569e+11 | BA63: 6.127917391e+11 | BB63: LAM | BC63: ALM
B64: East Timor | C64: =IF($J$4,IF(AE64/Population!C62<$J$5,AE64/Population!C62*$J$6+(AE64/Population!C62)^2*$J$7,AE64/Population!C62),AE64/Population!C62) -> 0 | D64: =IF($J$4,IF(AF64/Population!D62<$J$5,AF64/Population!D62*$J$6+(AF64/Population!D62)^2*$J$7,AF64/Population!D62),AF64/Population!D62) -> 0 | E64: =IF($J$4,IF(AG64/Population!E62<$J$5,AG64/Population!E62*$J$6+(AG64/Population!E62)^2*$J$7,AG64/Population!E62),AG64/Population!E62) -> 0 | F64: =IF($J$4,IF(AH64/Population!F62<$J$5,AH64/Population!F62*$J$6+(AH64/Population!F62)^2*$J$7,AH64/Population!F62),AH64/Population!F62) -> 0 | G64: =IF($J$4,IF(AI64/Population!G62<$J$5,AI64/Population!G62*$J$6+(AI64/Population!G62)^2*$J$7,AI64/Population!G62),AI64/Population!G62) -> 0 | H64: =IF($J$4,IF(AJ64/Population!H62<$J$5,AJ64/Population!H62*$J$6+(AJ64/Population!H62)^2*$J$7,AJ64/Population!H62),AJ64/Population!H62) -> 0 | I64: =IF($J$4,IF(AK64/Population!I62<$J$5,AK64/Population!I62*$J$6+(AK64/Population!I62)^2*$J$7,AK64/Population!I62),AK64/Population!I62) -> 0 | J64: =IF($J$4,IF(AL64/Population!J62<$J$5,AL64/Population!J62*$J$6+(AL64/Population!J62)^2*$J$7,AL64/Population!J62),AL64/Population!J62) -> 0 | K64: =IF($J$4,IF(AM64/Population!K62<$J$5,AM64/Population!K62*$J$6+(AM64/Population!K62)^2*$J$7,AM64/Population!K62),AM64/Population!K62) -> 0 | L64: =IF($J$4,IF(AN64/Population!L62<$J$5,AN64/Population!L62*$J$6+(AN64/Population!L62)^2*$J$7,AN64/Population!L62),AN64/Population!L62) -> 0 | M64: =IF($J$4,IF(AO64/Population!M62<$J$5,AO64/Population!M62*$J$6+(AO64/Population!M62)^2*$J$7,AO64/Population!M62),AO64/Population!M62) -> 0 | N64: =IF($J$4,IF(AP64/Population!N62<$J$5,AP64/Population!N62*$J$6+(AP64/Population!N62)^2*$J$7,AP64/Population!N62),AP64/Population!N62) -> 0 | O64: =IF($J$4,IF(AQ64/Population!O62<$J$5,AQ64/Population!O62*$J$6+(AQ64/Population!O62)^2*$J$7,AQ64/Population!O62),AQ64/Population!O62) -> 0 | P64: =IF($J$4,IF(AR64/Population!P62<$J$5,AR64/Population!P62*$J$6+(AR64/Population!P62)^2*$J$7,AR64/Population!P62),AR64/Population!P62) -> 0 | Q64: =IF($J$4,IF(AS64/Population!Q62<$J$5,AS64/Population!Q62*$J$6+(AS64/Population!Q62)^2*$J$7,AS64/Population!Q62),AS64/Population!Q62) -> 0 | R64: =IF($J$4,IF(AT64/Population!R62<$J$5,AT64/Population!R62*$J$6+(AT64/Population!R62)^2*$J$7,AT64/Population!R62),AT64/Population!R62) -> 0 | S64: =IF($J$4,IF(AU64/Population!S62<$J$5,AU64/Population!S62*$J$6+(AU64/Population!S62)^2*$J$7,AU64/Population!S62),AU64/Population!S62) -> 0 | T64: =IF($J$4,IF(AV64/Population!T62<$J$5,AV64/Population!T62*$J$6+(AV64/Population!T62)^2*$J$7,AV64/Population!T62),AV64/Population!T62) -> 0 | U64: =IF($J$4,IF(AW64/Population!U62<$J$5,AW64/Population!U62*$J$6+(AW64/Population!U62)^2*$J$7,AW64/Population!U62),AW64/Population!U62) -> 0 | V64: =IF($J$4,IF(AX64/Population!V62<$J$5,AX64/Population!V62*$J$6+(AX64/Population!V62)^2*$J$7,AX64/Population!V62),AX64/Population!V62) -> 0 | W64: =IF($J$4,IF(AY64/Population!W62<$J$5,AY64/Population!W62*$J$6+(AY64/Population!W62)^2*$J$7,AY64/Population!W62),AY64/Population!W62) -> 0 | X64: =IF($J$4,IF(AZ64/Population!X62<$J$5,AZ64/Population!X62*$J$6+(AZ64/Population!X62)^2*$J$7,AZ64/Population!X62),AZ64/Population!X62) -> 0 | Y64: =IF($J$4,IF(BA64/Population!Y62<$J$5,BA64/Population!Y62*$J$6+(BA64/Population!Y62)^2*$J$7,BA64/Population!Y62),BA64/Population!Y62) -> 0 | Z64: PAS | AA64: ASIA | AD64: East Timor | AI64: =IFERROR(AH64*(1+AI257)^5,0) -> 0 | AJ64: =IFERROR(AI64*(1+AJ257)^5,0) -> 0 | AK64: 0 | AL64: 0 | AM64: 0 | AN64: 0 | AO64: 0 | AP64: 0 | AQ64: 0 | AR64: 0 | AS64: 0 | AT64: 0 | AU64: 0 | AV64: 0 | AW64: 0 | AX64: 0 | AY64: 0 | AZ64: 0 | BA64: 0 | BB64: PAS | BC64: ASIA
B65: Ecuador | C65: =IF($J$4,IF(AE65/Population!C63<$J$5,AE65/Population!C63*$J$6+(AE65/Population!C63)^2*$J$7,AE65/Population!C63),AE65/Population!C63) -> 4018.628401 | D65: =IF($J$4,IF(AF65/Population!D63<$J$5,AF65/Population!D63*$J$6+(AF65/Population!D63)^2*$J$7,AF65/Population!D63),AF65/Population!D63) -> 4335.48656 | E65: =IF($J$4,IF(AG65/Population!E63<$J$5,AG65/Population!E63*$J$6+(AG65/Population!E63)^2*$J$7,AG65/Population!E63),AG65/Population!E63) -> 4123.112044 | F65: =IF($J$4,IF(AH65/Population!F63<$J$5,AH65/Population!F63*$J$6+(AH65/Population!F63)^2*$J$7,AH65/Population!F63),AH65/Population!F63) -> 4849.530972 | G65: =IF($J$4,IF(AI65/Population!G63<$J$5,AI65/Population!G63*$J$6+(AI65/Population!G63)^2*$J$7,AI65/Population!G63),AI65/Population!G63) -> 4905.563796 | H65: =IF($J$4,IF(AJ65/Population!H63<$J$5,AJ65/Population!H63*$J$6+(AJ65/Population!H63)^2*$J$7,AJ65/Population!H63),AJ65/Population!H63) -> 6630.971043 | I65: =IF($J$4,IF(AK65/Population!I63<$J$5,AK65/Population!I63*$J$6+(AK65/Population!I63)^2*$J$7,AK65/Population!I63),AK65/Population!I63) -> 8152.650015 | J65: =IF($J$4,IF(AL65/Population!J63<$J$5,AL65/Population!J63*$J$6+(AL65/Population!J63)^2*$J$7,AL65/Population!J63),AL65/Population!J63) -> 11009.60872 | K65: =IF($J$4,IF(AM65/Population!K63<$J$5,AM65/Population!K63*$J$6+(AM65/Population!K63)^2*$J$7,AM65/Population!K63),AM65/Population!K63) -> 13443.80289 | L65: =IF($J$4,IF(AN65/Population!L63<$J$5,AN65/Population!L63*$J$6+(AN65/Population!L63)^2*$J$7,AN65/Population!L63),AN65/Population!L63) -> 15435.77815 | M65: =IF($J$4,IF(AO65/Population!M63<$J$5,AO65/Population!M63*$J$6+(AO65/Population!M63)^2*$J$7,AO65/Population!M63),AO65/Population!M63) -> 17201.69272 | N65: =IF($J$4,IF(AP65/Population!N63<$J$5,AP65/Population!N63*$J$6+(AP65/Population!N63)^2*$J$7,AP65/Population!N63),AP65/Population!N63) -> 18786.8864 | O65: =IF($J$4,IF(AQ65/Population!O63<$J$5,AQ65/Population!O63*$J$6+(AQ65/Population!O63)^2*$J$7,AQ65/Population!O63),AQ65/Population!O63) -> 20223.82019 | P65: =IF($J$4,IF(AR65/Population!P63<$J$5,AR65/Population!P63*$J$6+(AR65/Population!P63)^2*$J$7,AR65/Population!P63),AR65/Population!P63) -> 21660.81136 | Q65: =IF($J$4,IF(AS65/Population!Q63<$J$5,AS65/Population!Q63*$J$6+(AS65/Population!Q63)^2*$J$7,AS65/Population!Q63),AS65/Population!Q63) -> 22897.27611 | R65: =IF($J$4,IF(AT65/Population!R63<$J$5,AT65/Population!R63*$J$6+(AT65/Population!R63)^2*$J$7,AT65/Population!R63),AT65/Population!R63) -> 23893.62978 | S65: =IF($J$4,IF(AU65/Population!S63<$J$5,AU65/Population!S63*$J$6+(AU65/Population!S63)^2*$J$7,AU65/Population!S63),AU65/Population!S63) -> 24590.39975 | T65: =IF($J$4,IF(AV65/Population!T63<$J$5,AV65/Population!T63*$J$6+(AV65/Population!T63)^2*$J$7,AV65/Population!T63),AV65/Population!T63) -> 25989.99754 | U65: =IF($J$4,IF(AW65/Population!U63<$J$5,AW65/Population!U63*$J$6+(AW65/Population!U63)^2*$J$7,AW65/Population!U63),AW65/Population!U63) -> 28683.65242 | V65: =IF($J$4,IF(AX65/Population!V63<$J$5,AX65/Population!V63*$J$6+(AX65/Population!V63)^2*$J$7,AX65/Population!V63),AX65/Population!V63) -> 31602.37431 | W65: =IF($J$4,IF(AY65/Population!W63<$J$5,AY65/Population!W63*$J$6+(AY65/Population!W63)^2*$J$7,AY65/Population!W63),AY65/Population!W63) -> 34884.27275 | X65: =IF($J$4,IF(AZ65/Population!X63<$J$5,AZ65/Population!X63*$J$6+(AZ65/Population!X63)^2*$J$7,AZ65/Population!X63),AZ65/Population!X63) -> 38557.20189 | Y65: =IF($J$4,IF(BA65/Population!Y63<$J$5,BA65/Population!Y63*$J$6+(BA65/Population!Y63)^2*$J$7,BA65/Population!Y63),BA65/Population!Y63) -> 42638.91165 | Z65: LAM | AA65: ALM | AD65: Ecuador | AE65: 2.304904636e+10 | AF65: 2.724915795e+10 | AG65: 2.855927541e+10 | AH65: 37186942000 | AI65: 4.075006479e+10 | AJ65: =IFERROR(AI65*(1+AJ258)^5,0) -> 6.049969656e+10 | AK65: 8.024932833e+10 | AL65: 1.183319271e+11 | AM65: 1.564145259e+11 | AN65: 1.923434285e+11 | AO65: 2.282723312e+11 | AP65: 2.642012339e+11 | AQ65: 3.001301366e+11 | AR65: 3.383862492e+11 | AS65: 3.766423618e+11 | AT65: 4.148984744e+11 | AU65: 4.53154587e+11 | AV65: 4.914106997e+11 | AW65: 5.294028865e+11 | AX65: 5.673950734e+11 | AY65: 6.053872602e+11 | AZ65: 6.433794471e+11 | BA65: 6.813716339e+11 | BB65: LAM | BC65: ALM
B66: Egypt | C66: =IF($J$4,IF(AE66/Population!C64<$J$5,AE66/Population!C64*$J$6+(AE66/Population!C64)^2*$J$7,AE66/Population!C64),AE66/Population!C64) -> 1660.604513 | D66: =IF($J$4,IF(AF66/Population!D64<$J$5,AF66/Population!D64*$J$6+(AF66/Population!D64)^2*$J$7,AF66/Population!D64),AF66/Population!D64) -> 1934.631247 | E66: =IF($J$4,IF(AG66/Population!E64<$J$5,AG66/Population!E64*$J$6+(AG66/Population!E64)^2*$J$7,AG66/Population!E64),AG66/Population!E64) -> 2216.598489 | F66: =IF($J$4,IF(AH66/Population!F64<$J$5,AH66/Population!F64*$J$6+(AH66/Population!F64)^2*$J$7,AH66/Population!F64),AH66/Population!F64) -> 2480.376744 | G66: =IF($J$4,IF(AI66/Population!G64<$J$5,AI66/Population!G64*$J$6+(AI66/Population!G64)^2*$J$7,AI66/Population!G64),AI66/Population!G64) -> 2982.864647 | H66: =IF($J$4,IF(AJ66/Population!H64<$J$5,AJ66/Population!H64*$J$6+(AJ66/Population!H64)^2*$J$7,AJ66/Population!H64),AJ66/Population!H64) -> 3884.467518 | I66: =IF($J$4,IF(AK66/Population!I64<$J$5,AK66/Population!I64*$J$6+(AK66/Population!I64)^2*$J$7,AK66/Population!I64),AK66/Population!I64) -> 4741.309609 | J66: =IF($J$4,IF(AL66/Population!J64<$J$5,AL66/Population!J64*$J$6+(AL66/Population!J64)^2*$J$7,AL66/Population!J64),AL66/Population!J64) -> 6317.997223 | K66: =IF($J$4,IF(AM66/Population!K64<$J$5,AM66/Population!K64*$J$6+(AM66/Population!K64)^2*$J$7,AM66/Population!K64),AM66/Population!K64) -> 7705.311376 | L66: =IF($J$4,IF(AN66/Population!L64<$J$5,AN66/Population!L64*$J$6+(AN66/Population!L64)^2*$J$7,AN66/Population!L64),AN66/Population!L64) -> 10230.70201 | M66: =IF($J$4,IF(AO66/Population!M64<$J$5,AO66/Population!M64*$J$6+(AO66/Population!M64)^2*$J$7,AO66/Population!M64),AO66/Population!M64) -> 12431.28662 | N66: =IF($J$4,IF(AP66/Population!N64<$J$5,AP66/Population!N64*$J$6+(AP66/Population!N64)^2*$J$7,AP66/Population!N64),AP66/Population!N64) -> 14369.3993 | O66: =IF($J$4,IF(AQ66/Population!O64<$J$5,AQ66/Population!O64*$J$6+(AQ66/Population!O64)^2*$J$7,AQ66/Population!O64),AQ66/Population!O64) -> 16105.00935 | P66: =IF($J$4,IF(AR66/Population!P64<$J$5,AR66/Population!P64*$J$6+(AR66/Population!P64)^2*$J$7,AR66/Population!P64),AR66/Population!P64) -> 17405.58841 | Q66: =IF($J$4,IF(AS66/Population!Q64<$J$5,AS66/Population!Q64*$J$6+(AS66/Population!Q64)^2*$J$7,AS66/Population!Q64),AS66/Population!Q64) -> 18579.95932 | R66: =IF($J$4,IF(AT66/Population!R64<$J$5,AT66/Population!R64*$J$6+(AT66/Population!R64)^2*$J$7,AT66/Population!R64),AT66/Population!R64) -> 19658.14292 | S66: =IF($J$4,IF(AU66/Population!S64<$J$5,AU66/Population!S64*$J$6+(AU66/Population!S64)^2*$J$7,AU66/Population!S64),AU66/Population!S64) -> 20662.31552 | T66: =IF($J$4,IF(AV66/Population!T64<$J$5,AV66/Population!T64*$J$6+(AV66/Population!T64)^2*$J$7,AV66/Population!T64),AV66/Population!T64) -> 21608.40831 | U66: =IF($J$4,IF(AW66/Population!U64<$J$5,AW66/Population!U64*$J$6+(AW66/Population!U64)^2*$J$7,AW66/Population!U64),AW66/Population!U64) -> 22582.09192 | V66: =IF($J$4,IF(AX66/Population!V64<$J$5,AX66/Population!V64*$J$6+(AX66/Population!V64)^2*$J$7,AX66/Population!V64),AX66/Population!V64) -> 23440.53615 | W66: =IF($J$4,IF(AY66/Population!W64<$J$5,AY66/Population!W64*$J$6+(AY66/Population!W64)^2*$J$7,AY66/Population!W64),AY66/Population!W64) -> 24173.1628 | X66: =IF($J$4,IF(AZ66/Population!X64<$J$5,AZ66/Population!X64*$J$6+(AZ66/Population!X64)^2*$J$7,AZ66/Population!X64),AZ66/Population!X64) -> 24707.16037 | Y66: =IF($J$4,IF(BA66/Population!Y64<$J$5,BA66/Population!Y64*$J$6+(BA66/Population!Y64)^2*$J$7,BA66/Population!Y64),BA66/Population!Y64) -> 26508.50385 | Z66: MEA | AA66: ALM | AD66: Egypt | AE66: 4.938837904e+10 | AF66: 6.194921721e+10 | AG66: 7.869729406e+10 | AH66: 9.832296023e+10 | AI66: 1.318875352e+11 | AJ66: =IFERROR(AI66*(1+AJ259)^5,0) -> 1.946382679e+11 | AK66: 2.573890005e+11 | AL66: 3.720909823e+11 | AM66: 4.86792964e+11 | AN66: 6.965488627e+11 | AO66: 9.063047614e+11 | AP66: 1.11606066e+12 | AQ66: 1.325816559e+12 | AR66: 1.53884514e+12 | AS66: 1.751873721e+12 | AT66: 1.964902302e+12 | AU66: 2.177930884e+12 | AV66: 2.390959465e+12 | AW66: 2.627060357e+12 | AX66: 2.863161249e+12 | AY66: 3.09926214e+12 | AZ66: 3.335363032e+12 | BA66: 3.571463924e+12 | BB66: MEA | BC66: ALM
B67: El Salvador | C67: =IF($J$4,IF(AE67/Population!C65<$J$5,AE67/Population!C65*$J$6+(AE67/Population!C65)^2*$J$7,AE67/Population!C65),AE67/Population!C65) -> 3469.102728 | D67: =IF($J$4,IF(AF67/Population!D65<$J$5,AF67/Population!D65*$J$6+(AF67/Population!D65)^2*$J$7,AF67/Population!D65),AF67/Population!D65) -> 4323.123321 | E67: =IF($J$4,IF(AG67/Population!E65<$J$5,AG67/Population!E65*$J$6+(AG67/Population!E65)^2*$J$7,AG67/Population!E65),AG67/Population!E65) -> 4687.542871 | F67: =IF($J$4,IF(AH67/Population!F65<$J$5,AH67/Population!F65*$J$6+(AH67/Population!F65)^2*$J$7,AH67/Population!F65),AH67/Population!F65) -> 5132.169132 | G67: =IF($J$4,IF(AI67/Population!G65<$J$5,AI67/Population!G65*$J$6+(AI67/Population!G65)^2*$J$7,AI67/Population!G65),AI67/Population!G65) -> 5379.675766 | H67: =IF($J$4,IF(AJ67/Population!H65<$J$5,AJ67/Population!H65*$J$6+(AJ67/Population!H65)^2*$J$7,AJ67/Population!H65),AJ67/Population!H65) -> 6034.626284 | I67: =IF($J$4,IF(AK67/Population!I65<$J$5,AK67/Population!I65*$J$6+(AK67/Population!I65)^2*$J$7,AK67/Population!I65),AK67/Population!I65) -> 7415.690957 | J67: =IF($J$4,IF(AL67/Population!J65<$J$5,AL67/Population!J65*$J$6+(AL67/Population!J65)^2*$J$7,AL67/Population!J65),AL67/Population!J65) -> 10035.19112 | K67: =IF($J$4,IF(AM67/Population!K65<$J$5,AM67/Population!K65*$J$6+(AM67/Population!K65)^2*$J$7,AM67/Population!K65),AM67/Population!K65) -> 12302.18532 | L67: =IF($J$4,IF(AN67/Population!L65<$J$5,AN67/Population!L65*$J$6+(AN67/Population!L65)^2*$J$7,AN67/Population!L65),AN67/Population!L65) -> 14163.31927 | M67: =IF($J$4,IF(AO67/Population!M65<$J$5,AO67/Population!M65*$J$6+(AO67/Population!M65)^2*$J$7,AO67/Population!M65),AO67/Population!M65) -> 15820.89105 | N67: =IF($J$4,IF(AP67/Population!N65<$J$5,AP67/Population!N65*$J$6+(AP67/Population!N65)^2*$J$7,AP67/Population!N65),AP67/Population!N65) -> 17325.81183 | O67: =IF($J$4,IF(AQ67/Population!O65<$J$5,AQ67/Population!O65*$J$6+(AQ67/Population!O65)^2*$J$7,AQ67/Population!O65),AQ67/Population!O65) -> 18727.94456 | P67: =IF($J$4,IF(AR67/Population!P65<$J$5,AR67/Population!P65*$J$6+(AR67/Population!P65)^2*$J$7,AR67/Population!P65),AR67/Population!P65) -> 20247.72905 | Q67: =IF($J$4,IF(AS67/Population!Q65<$J$5,AS67/Population!Q65*$J$6+(AS67/Population!Q65)^2*$J$7,AS67/Population!Q65),AS67/Population!Q65) -> 21628.29074 | R67: =IF($J$4,IF(AT67/Population!R65<$J$5,AT67/Population!R65*$J$6+(AT67/Population!R65)^2*$J$7,AT67/Population!R65),AT67/Population!R65) -> 22840.59899 | S67: =IF($J$4,IF(AU67/Population!S65<$J$5,AU67/Population!S65*$J$6+(AU67/Population!S65)^2*$J$7,AU67/Population!S65),AU67/Population!S65) -> 23834.0476 | T67: =IF($J$4,IF(AV67/Population!T65<$J$5,AV67/Population!T65*$J$6+(AV67/Population!T65)^2*$J$7,AV67/Population!T65),AV67/Population!T65) -> 24549.09619 | U67: =IF($J$4,IF(AW67/Population!U65<$J$5,AW67/Population!U65*$J$6+(AW67/Population!U65)^2*$J$7,AW67/Population!U65),AW67/Population!U65) -> 25764.30433 | V67: =IF($J$4,IF(AX67/Population!V65<$J$5,AX67/Population!V65*$J$6+(AX67/Population!V65)^2*$J$7,AX67/Population!V65),AX67/Population!V65) -> 28430.65856 | W67: =IF($J$4,IF(AY67/Population!W65<$J$5,AY67/Population!W65*$J$6+(AY67/Population!W65)^2*$J$7,AY67/Population!W65),AY67/Population!W65) -> 31414.4056 | X67: =IF($J$4,IF(AZ67/Population!X65<$J$5,AZ67/Population!X65*$J$6+(AZ67/Population!X65)^2*$J$7,AZ67/Population!X65),AZ67/Population!X65) -> 34758.38661 | Y67: =IF($J$4,IF(BA67/Population!Y65<$J$5,BA67/Population!Y65*$J$6+(BA67/Population!Y65)^2*$J$7,BA67/Population!Y65),BA67/Population!Y65) -> 38478.4941 | Z67: LAM | AA67: ALM | AD67: El Salvador | AE67: 9792595884 | AF67: 1.321487449e+10 | AG67: 1.536129467e+10 | AH67: 17214400000 | AI67: 1.838930947e+10 | AJ67: =IFERROR(AI67*(1+AJ260)^5,0) -> 2.730173925e+10 | AK67: 3.621416902e+10 | AL67: 5.339972928e+10 | AM67: 7.058528955e+10 | AN67: 8.679894992e+10 | AO67: 1.030126103e+11 | AP67: 1.192262707e+11 | AQ67: 1.35439931e+11 | AR67: 1.52703793e+11 | AS67: 1.69967655e+11 | AT67: 1.87231517e+11 | AU67: 2.044953789e+11 | AV67: 2.217592409e+11 | AW67: 2.389040009e+11 | AX67: 2.56048761e+11 | AY67: 2.73193521e+11 | AZ67: 2.90338281e+11 | BA67: 3.07483041e+11 | BB67: LAM | BC67: ALM
B68: Equatorial Guinea | C68: =IF($J$4,IF(AE68/Population!C66<$J$5,AE68/Population!C66*$J$6+(AE68/Population!C66)^2*$J$7,AE68/Population!C66),AE68/Population!C66) -> 1639.471424 | D68: =IF($J$4,IF(AF68/Population!D66<$J$5,AF68/Population!D66*$J$6+(AF68/Population!D66)^2*$J$7,AF68/Population!D66),AF68/Population!D66) -> 2158.326814 | E68: =IF($J$4,IF(AG68/Population!E66<$J$5,AG68/Population!E66*$J$6+(AG68/Population!E66)^2*$J$7,AG68/Population!E66),AG68/Population!E66) -> 7566.967171 | F68: =IF($J$4,IF(AH68/Population!F66<$J$5,AH68/Population!F66*$J$6+(AH68/Population!F66)^2*$J$7,AH68/Population!F66),AH68/Population!F66) -> 18147.05248 | G68: =IF($J$4,IF(AI68/Population!G66<$J$5,AI68/Population!G66*$J$6+(AI68/Population!G66)^2*$J$7,AI68/Population!G66),AI68/Population!G66) -> 9623.41018 | H68: =IF($J$4,IF(AJ68/Population!H66<$J$5,AJ68/Population!H66*$J$6+(AJ68/Population!H66)^2*$J$7,AJ68/Population!H66),AJ68/Population!H66) -> 11791.34722 | I68: =IF($J$4,IF(AK68/Population!I66<$J$5,AK68/Population!I66*$J$6+(AK68/Population!I66)^2*$J$7,AK68/Population!I66),AK68/Population!I66) -> 13251.02794 | J68: =IF($J$4,IF(AL68/Population!J66<$J$5,AL68/Population!J66*$J$6+(AL68/Population!J66)^2*$J$7,AL68/Population!J66),AL68/Population!J66) -> 15819.72026 | K68: =IF($J$4,IF(AM68/Population!K66<$J$5,AM68/Population!K66*$J$6+(AM68/Population!K66)^2*$J$7,AM68/Population!K66),AM68/Population!K66) -> 17816.29691 | L68: =IF($J$4,IF(AN68/Population!L66<$J$5,AN68/Population!L66*$J$6+(AN68/Population!L66)^2*$J$7,AN68/Population!L66),AN68/Population!L66) -> 24595.30052 | M68: =IF($J$4,IF(AO68/Population!M66<$J$5,AO68/Population!M66*$J$6+(AO68/Population!M66)^2*$J$7,AO68/Population!M66),AO68/Population!M66) -> 33545.56372 | N68: =IF($J$4,IF(AP68/Population!N66<$J$5,AP68/Population!N66*$J$6+(AP68/Population!N66)^2*$J$7,AP68/Population!N66),AP68/Population!N66) -> 43023.54927 | O68: =IF($J$4,IF(AQ68/Population!O66<$J$5,AQ68/Population!O66*$J$6+(AQ68/Population!O66)^2*$J$7,AQ68/Population!O66),AQ68/Population!O66) -> 52139.89036 | P68: =IF($J$4,IF(AR68/Population!P66<$J$5,AR68/Population!P66*$J$6+(AR68/Population!P66)^2*$J$7,AR68/Population!P66),AR68/Population!P66) -> 68580.34823 | Q68: =IF($J$4,IF(AS68/Population!Q66<$J$5,AS68/Population!Q66*$J$6+(AS68/Population!Q66)^2*$J$7,AS68/Population!Q66),AS68/Population!Q66) -> 84830.69154 | R68: =IF($J$4,IF(AT68/Population!R66<$J$5,AT68/Population!R66*$J$6+(AT68/Population!R66)^2*$J$7,AT68/Population!R66),AT68/Population!R66) -> 101301.8425 | S68: =IF($J$4,IF(AU68/Population!S66<$J$5,AU68/Population!S66*$J$6+(AU68/Population!S66)^2*$J$7,AU68/Population!S66),AU68/Population!S66) -> 118355.3206 | T68: =IF($J$4,IF(AV68/Population!T66<$J$5,AV68/Population!T66*$J$6+(AV68/Population!T66)^2*$J$7,AV68/Population!T66),AV68/Population!T66) -> 136415.3645 | U68: =IF($J$4,IF(AW68/Population!U66<$J$5,AW68/Population!U66*$J$6+(AW68/Population!U66)^2*$J$7,AW68/Population!U66),AW68/Population!U66) -> 157814.428 | V68: =IF($J$4,IF(AX68/Population!V66<$J$5,AX68/Population!V66*$J$6+(AX68/Population!V66)^2*$J$7,AX68/Population!V66),AX68/Population!V66) -> 181152.3629 | W68: =IF($J$4,IF(AY68/Population!W66<$J$5,AY68/Population!W66*$J$6+(AY68/Population!W66)^2*$J$7,AY68/Population!W66),AY68/Population!W66) -> 207261.5793 | X68: =IF($J$4,IF(AZ68/Population!X66<$J$5,AZ68/Population!X66*$J$6+(AZ68/Population!X66)^2*$J$7,AZ68/Population!X66),AZ68/Population!X66) -> 236808.7812 | Y68: =IF($J$4,IF(BA68/Population!Y66<$J$5,BA68/Population!Y66*$J$6+(BA68/Population!Y66)^2*$J$7,BA68/Population!Y66),BA68/Population!Y66) -> 270406.0369 | Z68: SSA | AA68: ALM | AD68: Equatorial Guinea | AE68: 329477496.8 | AF68: 500946902.2 | AG68: 2158994243 | AH68: 7205553646 | AI68: 3739186307 | AJ68: =IFERROR(AI68*(1+AJ261)^5,0) -> 5289301718 | AK68: 6839417129 | AL68: 9467453972 | AM68: 1.209549082e+10 | AN68: 2.440718046e+10 | AO68: 3.671887011e+10 | AP68: 4.903055976e+10 | AQ68: 6.134224941e+10 | AR68: 8.292573834e+10 | AS68: 1.045092273e+11 | AT68: 1.260927162e+11 | AU68: 1.476762051e+11 | AV68: 1.692596941e+11 | AW68: 1.932496015e+11 | AX68: 2.172395089e+11 | AY68: 2.412294163e+11 | AZ68: 2.652193237e+11 | BA68: 2.892092312e+11 | BB68: SSA | BC68: ALM
B69: Eritrea | C69: =IF($J$4,IF(AE69/Population!C67<$J$5,AE69/Population!C67*$J$6+(AE69/Population!C67)^2*$J$7,AE69/Population!C67),AE69/Population!C67) -> 320.8956111 | D69: =IF($J$4,IF(AF69/Population!D67<$J$5,AF69/Population!D67*$J$6+(AF69/Population!D67)^2*$J$7,AF69/Population!D67),AF69/Population!D67) -> 481.2714429 | E69: =IF($J$4,IF(AG69/Population!E67<$J$5,AG69/Population!E67*$J$6+(AG69/Population!E67)^2*$J$7,AG69/Population!E67),AG69/Population!E67) -> 431.2030472 | F69: =IF($J$4,IF(AH69/Population!F67<$J$5,AH69/Population!F67*$J$6+(AH69/Population!F67)^2*$J$7,AH69/Population!F67),AH69/Population!F67) -> 405.2453785 | G69: =IF($J$4,IF(AI69/Population!G67<$J$5,AI69/Population!G67*$J$6+(AI69/Population!G67)^2*$J$7,AI69/Population!G67),AI69/Population!G67) -> 323.7755673 | H69: =IF($J$4,IF(AJ69/Population!H67<$J$5,AJ69/Population!H67*$J$6+(AJ69/Population!H67)^2*$J$7,AJ69/Population!H67),AJ69/Population!H67) -> 0 | I69: =IF($J$4,IF(AK69/Population!I67<$J$5,AK69/Population!I67*$J$6+(AK69/Population!I67)^2*$J$7,AK69/Population!I67),AK69/Population!I67) -> 0 | J69: =IF($J$4,IF(AL69/Population!J67<$J$5,AL69/Population!J67*$J$6+(AL69/Population!J67)^2*$J$7,AL69/Population!J67),AL69/Population!J67) -> 0 | K69: =IF($J$4,IF(AM69/Population!K67<$J$5,AM69/Population!K67*$J$6+(AM69/Population!K67)^2*$J$7,AM69/Population!K67),AM69/Population!K67) -> 0 | L69: =IF($J$4,IF(AN69/Population!L67<$J$5,AN69/Population!L67*$J$6+(AN69/Population!L67)^2*$J$7,AN69/Population!L67),AN69/Population!L67) -> 0 | M69: =IF($J$4,IF(AO69/Population!M67<$J$5,AO69/Population!M67*$J$6+(AO69/Population!M67)^2*$J$7,AO69/Population!M67),AO69/Population!M67) -> 0 | N69: =IF($J$4,IF(AP69/Population!N67<$J$5,AP69/Population!N67*$J$6+(AP69/Population!N67)^2*$J$7,AP69/Population!N67),AP69/Population!N67) -> 0 | O69: =IF($J$4,IF(AQ69/Population!O67<$J$5,AQ69/Population!O67*$J$6+(AQ69/Population!O67)^2*$J$7,AQ69/Population!O67),AQ69/Population!O67) -> 0 | P69: =IF($J$4,IF(AR69/Population!P67<$J$5,AR69/Population!P67*$J$6+(AR69/Population!P67)^2*$J$7,AR69/Population!P67),AR69/Population!P67) -> 0 | Q69: =IF($J$4,IF(AS69/Population!Q67<$J$5,AS69/Population!Q67*$J$6+(AS69/Population!Q67)^2*$J$7,AS69/Population!Q67),AS69/Population!Q67) -> 0 | R69: =IF($J$4,IF(AT69/Population!R67<$J$5,AT69/Population!R67*$J$6+(AT69/Population!R67)^2*$J$7,AT69/Population!R67),AT69/Population!R67) -> 0 | S69: =IF($J$4,IF(AU69/Population!S67<$J$5,AU69/Population!S67*$J$6+(AU69/Population!S67)^2*$J$7,AU69/Population!S67),AU69/Population!S67) -> 0 | T69: =IF($J$4,IF(AV69/Population!T67<$J$5,AV69/Population!T67*$J$6+(AV69/Population!T67)^2*$J$7,AV69/Population!T67),AV69/Population!T67) -> 0 | U69: =IF($J$4,IF(AW69/Population!U67<$J$5,AW69/Population!U67*$J$6+(AW69/Population!U67)^2*$J$7,AW69/Population!U67),AW69/Population!U67) -> 0 | V69: =IF($J$4,IF(AX69/Population!V67<$J$5,AX69/Population!V67*$J$6+(AX69/Population!V67)^2*$J$7,AX69/Population!V67),AX69/Population!V67) -> 0 | W69: =IF($J$4,IF(AY69/Population!W67<$J$5,AY69/Population!W67*$J$6+(AY69/Population!W67)^2*$J$7,AY69/Population!W67),AY69/Population!W67) -> 0 | X69: =IF($J$4,IF(AZ69/Population!X67<$J$5,AZ69/Population!X67*$J$6+(AZ69/Population!X67)^2*$J$7,AZ69/Population!X67),AZ69/Population!X67) -> 0 | Y69: =IF($J$4,IF(BA69/Population!Y67<$J$5,BA69/Population!Y67*$J$6+(BA69/Population!Y67)^2*$J$7,BA69/Population!Y67),BA69/Population!Y67) -> 0 | Z69: SSA | AA69: ALM | AD69: Eritrea | AE69: 537917585.7 | AF69: 918052422.2 | AG69: 967941662.7 | AH69: 1098424709 | AI69: 1002003661 | AJ69: 0 | AK69: 0 | AL69: 0 | AM69: 0 | AN69: 0 | AO69: 0 | AP69: 0 | AQ69: 0 | AR69: 0 | AS69: 0 | AT69: 0 | AU69: 0 | AV69: 0 | AW69: 0 | AX69: 0 | AY69: 0 | AZ69: 0 | BA69: 0 | BB69: SSA | BC69: ALM
B70: Estonia | C70: =IF($J$4,IF(AE70/Population!C68<$J$5,AE70/Population!C68*$J$6+(AE70/Population!C68)^2*$J$7,AE70/Population!C68),AE70/Population!C68) -> 10350.19596 | D70: =IF($J$4,IF(AF70/Population!D68<$J$5,AF70/Population!D68*$J$6+(AF70/Population!D68)^2*$J$7,AF70/Population!D68),AF70/Population!D68) -> 8119.98769 | E70: =IF($J$4,IF(AG70/Population!E68<$J$5,AG70/Population!E68*$J$6+(AG70/Population!E68)^2*$J$7,AG70/Population!E68),AG70/Population!E68) -> 11244.79264 | F70: =IF($J$4,IF(AH70/Population!F68<$J$5,AH70/Population!F68*$J$6+(AH70/Population!F68)^2*$J$7,AH70/Population!F68),AH70/Population!F68) -> 15739.73734 | G70: =IF($J$4,IF(AI70/Population!G68<$J$5,AI70/Population!G68*$J$6+(AI70/Population!G68)^2*$J$7,AI70/Population!G68),AI70/Population!G68) -> 15563.90396 | H70: =IF($J$4,IF(AJ70/Population!H68<$J$5,AJ70/Population!H68*$J$6+(AJ70/Population!H68)^2*$J$7,AJ70/Population!H68),AJ70/Population!H68) -> 19850.87178 | I70: =IF($J$4,IF(AK70/Population!I68<$J$5,AK70/Population!I68*$J$6+(AK70/Population!I68)^2*$J$7,AK70/Population!I68),AK70/Population!I68) -> 23229.67619 | J70: =IF($J$4,IF(AL70/Population!J68<$J$5,AL70/Population!J68*$J$6+(AL70/Population!J68)^2*$J$7,AL70/Population!J68),AL70/Population!J68) -> 29162.43067 | K70: =IF($J$4,IF(AM70/Population!K68<$J$5,AM70/Population!K68*$J$6+(AM70/Population!K68)^2*$J$7,AM70/Population!K68),AM70/Population!K68) -> 39563.62415 | L70: =IF($J$4,IF(AN70/Population!L68<$J$5,AN70/Population!L68*$J$6+(AN70/Population!L68)^2*$J$7,AN70/Population!L68),AN70/Population!L68) -> 55209.74693 | M70: =IF($J$4,IF(AO70/Population!M68<$J$5,AO70/Population!M68*$J$6+(AO70/Population!M68)^2*$J$7,AO70/Population!M68),AO70/Population!M68) -> 72579.67394 | N70: =IF($J$4,IF(AP70/Population!N68<$J$5,AP70/Population!N68*$J$6+(AP70/Population!N68)^2*$J$7,AP70/Population!N68),AP70/Population!N68) -> 92167.75948 | O70: =IF($J$4,IF(AQ70/Population!O68<$J$5,AQ70/Population!O68*$J$6+(AQ70/Population!O68)^2*$J$7,AQ70/Population!O68),AQ70/Population!O68) -> 114492.4801 | P70: =IF($J$4,IF(AR70/Population!P68<$J$5,AR70/Population!P68*$J$6+(AR70/Population!P68)^2*$J$7,AR70/Population!P68),AR70/Population!P68) -> 133542.8444 | Q70: =IF($J$4,IF(AS70/Population!Q68<$J$5,AS70/Population!Q68*$J$6+(AS70/Population!Q68)^2*$J$7,AS70/Population!Q68),AS70/Population!Q68) -> 153273.3967 | R70: =IF($J$4,IF(AT70/Population!R68<$J$5,AT70/Population!R68*$J$6+(AT70/Population!R68)^2*$J$7,AT70/Population!R68),AT70/Population!R68) -> 173815.1481 | S70: =IF($J$4,IF(AU70/Population!S68<$J$5,AU70/Population!S68*$J$6+(AU70/Population!S68)^2*$J$7,AU70/Population!S68),AU70/Population!S68) -> 195608.8294 | T70: =IF($J$4,IF(AV70/Population!T68<$J$5,AV70/Population!T68*$J$6+(AV70/Population!T68)^2*$J$7,AV70/Population!T68),AV70/Population!T68) -> 218693.6642 | U70: =IF($J$4,IF(AW70/Population!U68<$J$5,AW70/Population!U68*$J$6+(AW70/Population!U68)^2*$J$7,AW70/Population!U68),AW70/Population!U68) -> 247812.1523 | V70: =IF($J$4,IF(AX70/Population!V68<$J$5,AX70/Population!V68*$J$6+(AX70/Population!V68)^2*$J$7,AX70/Population!V68),AX70/Population!V68) -> 277603.8662 | W70: =IF($J$4,IF(AY70/Population!W68<$J$5,AY70/Population!W68*$J$6+(AY70/Population!W68)^2*$J$7,AY70/Population!W68),AY70/Population!W68) -> 309470.8319 | X70: =IF($J$4,IF(AZ70/Population!X68<$J$5,AZ70/Population!X68*$J$6+(AZ70/Population!X68)^2*$J$7,AZ70/Population!X68),AZ70/Population!X68) -> 343475.9999 | Y70: =IF($J$4,IF(BA70/Population!Y68<$J$5,BA70/Population!Y68*$J$6+(BA70/Population!Y68)^2*$J$7,BA70/Population!Y68),BA70/Population!Y68) -> 379763.4035 | Z70: FSU | AA70: REF | AD70: Estonia | AE70: 9802529045 | AF70: 6868825165 | AG70: 9492147299 | AH70: 1.3903304e+10 | AI70: 1.326987248e+10 | AJ70: 1.893544948e+10 | AK70: 2.460102647e+10 | AL70: 3.509823692e+10 | AM70: 4.559544736e+10 | AN70: 6.084199515e+10 | AO70: 7.608854293e+10 | AP70: 9.133509071e+10 | AQ70: 1.065816385e+11 | AR70: 1.230338045e+11 | AS70: 1.394859705e+11 | AT70: 1.559381364e+11 | AU70: 1.723903024e+11 | AV70: 1.888424684e+11 | AW70: 2.099059743e+11 | AX70: 2.309694802e+11 | AY70: 2.520329861e+11 | AZ70: 2.73096492e+11 | BA70: 2.941599979e+11 | BB70: FSU | BC70: REF
B71: Ethiopia | C71: =IF($J$4,IF(AE71/Population!C69<$J$5,AE71/Population!C69*$J$6+(AE71/Population!C69)^2*$J$7,AE71/Population!C69),AE71/Population!C69) -> 263.7646445 | D71: =IF($J$4,IF(AF71/Population!D69<$J$5,AF71/Population!D69*$J$6+(AF71/Population!D69)^2*$J$7,AF71/Population!D69),AF71/Population!D69) -> 241.8550055 | E71: =IF($J$4,IF(AG71/Population!E69<$J$5,AG71/Population!E69*$J$6+(AG71/Population!E69)^2*$J$7,AG71/Population!E69),AG71/Population!E69) -> 262.5327621 | F71: =IF($J$4,IF(AH71/Population!F69<$J$5,AH71/Population!F69*$J$6+(AH71/Population!F69)^2*$J$7,AH71/Population!F69),AH71/Population!F69) -> 306.7626372 | G71: =IF($J$4,IF(AI71/Population!G69<$J$5,AI71/Population!G69*$J$6+(AI71/Population!G69)^2*$J$7,AI71/Population!G69),AI71/Population!G69) -> 324.7535885 | H71: =IF($J$4,IF(AJ71/Population!H69<$J$5,AJ71/Population!H69*$J$6+(AJ71/Population!H69)^2*$J$7,AJ71/Population!H69),AJ71/Population!H69) -> 429.9858571 | I71: =IF($J$4,IF(AK71/Population!I69<$J$5,AK71/Population!I69*$J$6+(AK71/Population!I69)^2*$J$7,AK71/Population!I69),AK71/Population!I69) -> 501.1167442 | J71: =IF($J$4,IF(AL71/Population!J69<$J$5,AL71/Population!J69*$J$6+(AL71/Population!J69)^2*$J$7,AL71/Population!J69),AL71/Population!J69) -> 631.9420225 | K71: =IF($J$4,IF(AM71/Population!K69<$J$5,AM71/Population!K69*$J$6+(AM71/Population!K69)^2*$J$7,AM71/Population!K69),AM71/Population!K69) -> 746.7164419 | L71: =IF($J$4,IF(AN71/Population!L69<$J$5,AN71/Population!L69*$J$6+(AN71/Population!L69)^2*$J$7,AN71/Population!L69),AN71/Population!L69) -> 1410.855642 | M71: =IF($J$4,IF(AO71/Population!M69<$J$5,AO71/Population!M69*$J$6+(AO71/Population!M69)^2*$J$7,AO71/Population!M69),AO71/Population!M69) -> 1987.962405 | N71: =IF($J$4,IF(AP71/Population!N69<$J$5,AP71/Population!N69*$J$6+(AP71/Population!N69)^2*$J$7,AP71/Population!N69),AP71/Population!N69) -> 2500.429446 | O71: =IF($J$4,IF(AQ71/Population!O69<$J$5,AQ71/Population!O69*$J$6+(AQ71/Population!O69)^2*$J$7,AQ71/Population!O69),AQ71/Population!O69) -> 2972.575308 | P71: =IF($J$4,IF(AR71/Population!P69<$J$5,AR71/Population!P69*$J$6+(AR71/Population!P69)^2*$J$7,AR71/Population!P69),AR71/Population!P69) -> 3908.79218 | Q71: =IF($J$4,IF(AS71/Population!Q69<$J$5,AS71/Population!Q69*$J$6+(AS71/Population!Q69)^2*$J$7,AS71/Population!Q69),AS71/Population!Q69) -> 4832.211366 | R71: =IF($J$4,IF(AT71/Population!R69<$J$5,AT71/Population!R69*$J$6+(AT71/Population!R69)^2*$J$7,AT71/Population!R69),AT71/Population!R69) -> 5761.726603 | S71: =IF($J$4,IF(AU71/Population!S69<$J$5,AU71/Population!S69*$J$6+(AU71/Population!S69)^2*$J$7,AU71/Population!S69),AU71/Population!S69) -> 6711.301616 | T71: =IF($J$4,IF(AV71/Population!T69<$J$5,AV71/Population!T69*$J$6+(AV71/Population!T69)^2*$J$7,AV71/Population!T69),AV71/Population!T69) -> 7699.033507 | U71: =IF($J$4,IF(AW71/Population!U69<$J$5,AW71/Population!U69*$J$6+(AW71/Population!U69)^2*$J$7,AW71/Population!U69),AW71/Population!U69) -> 8835.916658 | V71: =IF($J$4,IF(AX71/Population!V69<$J$5,AX71/Population!V69*$J$6+(AX71/Population!V69)^2*$J$7,AX71/Population!V69),AX71/Population!V69) -> 10036.16123 | W71: =IF($J$4,IF(AY71/Population!W69<$J$5,AY71/Population!W69*$J$6+(AY71/Population!W69)^2*$J$7,AY71/Population!W69),AY71/Population!W69) -> 11317.40891 | X71: =IF($J$4,IF(AZ71/Population!X69<$J$5,AZ71/Population!X69*$J$6+(AZ71/Population!X69)^2*$J$7,AZ71/Population!X69),AZ71/Population!X69) -> 12687.19802 | Y71: =IF($J$4,IF(BA71/Population!Y69<$J$5,BA71/Population!Y69*$J$6+(BA71/Population!Y69)^2*$J$7,BA71/Population!Y69),BA71/Population!Y69) -> 14145.31672 | Z71: SSA | AA71: ALM | AD71: Ethiopia | AE71: 6815501374 | AF71: 7171365359 | AG71: 8993633486 | AH71: 1.22856368e+10 | AI71: 1.526969686e+10 | AJ71: 2.15998956e+10 | AK71: 2.793009433e+10 | AL71: 3.866219555e+10 | AM71: 4.939429678e+10 | AN71: 9.967148367e+10 | AO71: 1.499486706e+11 | AP71: 2.002258575e+11 | AQ71: 2.505030443e+11 | AR71: 3.386434327e+11 | AS71: 4.26783821e+11 | AT71: 5.149242094e+11 | AU71: 6.030645977e+11 | AV71: 6.912049861e+11 | AW71: 7.891724539e+11 | AX71: 8.871399216e+11 | AY71: 9.851073894e+11 | AZ71: 1.083074857e+12 | BA71: 1.181042325e+12 | BB71: SSA | BC71: ALM
B72: Fiji | C72: =IF($J$4,IF(AE72/Population!C70<$J$5,AE72/Population!C70*$J$6+(AE72/Population!C70)^2*$J$7,AE72/Population!C70),AE72/Population!C70) -> 5146.230025 | D72: =IF($J$4,IF(AF72/Population!D70<$J$5,AF72/Population!D70*$J$6+(AF72/Population!D70)^2*$J$7,AF72/Population!D70),AF72/Population!D70) -> 5454.031581 | E72: =IF($J$4,IF(AG72/Population!E70<$J$5,AG72/Population!E70*$J$6+(AG72/Population!E70)^2*$J$7,AG72/Population!E70),AG72/Population!E70) -> 5819.631757 | F72: =IF($J$4,IF(AH72/Population!F70<$J$5,AH72/Population!F70*$J$6+(AH72/Population!F70)^2*$J$7,AH72/Population!F70),AH72/Population!F70) -> 6292.182488 | G72: =IF($J$4,IF(AI72/Population!G70<$J$5,AI72/Population!G70*$J$6+(AI72/Population!G70)^2*$J$7,AI72/Population!G70),AI72/Population!G70) -> 5690.883242 | H72: =IF($J$4,IF(AJ72/Population!H70<$J$5,AJ72/Population!H70*$J$6+(AJ72/Population!H70)^2*$J$7,AJ72/Population!H70),AJ72/Population!H70) -> 7858.527287 | I72: =IF($J$4,IF(AK72/Population!I70<$J$5,AK72/Population!I70*$J$6+(AK72/Population!I70)^2*$J$7,AK72/Population!I70),AK72/Population!I70) -> 9960.937745 | J72: =IF($J$4,IF(AL72/Population!J70<$J$5,AL72/Population!J70*$J$6+(AL72/Population!J70)^2*$J$7,AL72/Population!J70),AL72/Population!J70) -> 13768.15945 | K72: =IF($J$4,IF(AM72/Population!K70<$J$5,AM72/Population!K70*$J$6+(AM72/Population!K70)^2*$J$7,AM72/Population!K70),AM72/Population!K70) -> 17038.03299 | L72: =IF($J$4,IF(AN72/Population!L70<$J$5,AN72/Population!L70*$J$6+(AN72/Population!L70)^2*$J$7,AN72/Population!L70),AN72/Population!L70) -> 20963.99853 | M72: =IF($J$4,IF(AO72/Population!M70<$J$5,AO72/Population!M70*$J$6+(AO72/Population!M70)^2*$J$7,AO72/Population!M70),AO72/Population!M70) -> 23646.016 | N72: =IF($J$4,IF(AP72/Population!N70<$J$5,AP72/Population!N70*$J$6+(AP72/Population!N70)^2*$J$7,AP72/Population!N70),AP72/Population!N70) -> 25475.07631 | O72: =IF($J$4,IF(AQ72/Population!O70<$J$5,AQ72/Population!O70*$J$6+(AQ72/Population!O70)^2*$J$7,AQ72/Population!O70),AQ72/Population!O70) -> 30931.47848 | P72: =IF($J$4,IF(AR72/Population!P70<$J$5,AR72/Population!P70*$J$6+(AR72/Population!P70)^2*$J$7,AR72/Population!P70),AR72/Population!P70) -> 40962.36291 | Q72: =IF($J$4,IF(AS72/Population!Q70<$J$5,AS72/Population!Q70*$J$6+(AS72/Population!Q70)^2*$J$7,AS72/Population!Q70),AS72/Population!Q70) -> 51421.29207 | R72: =IF($J$4,IF(AT72/Population!R70<$J$5,AT72/Population!R70*$J$6+(AT72/Population!R70)^2*$J$7,AT72/Population!R70),AT72/Population!R70) -> 62539.67972 | S72: =IF($J$4,IF(AU72/Population!S70<$J$5,AU72/Population!S70*$J$6+(AU72/Population!S70)^2*$J$7,AU72/Population!S70),AU72/Population!S70) -> 74500.72273 | T72: =IF($J$4,IF(AV72/Population!T70<$J$5,AV72/Population!T70*$J$6+(AV72/Population!T70)^2*$J$7,AV72/Population!T70),AV72/Population!T70) -> 87386.87808 | U72: =IF($J$4,IF(AW72/Population!U70<$J$5,AW72/Population!U70*$J$6+(AW72/Population!U70)^2*$J$7,AW72/Population!U70),AW72/Population!U70) -> 100341.4503 | V72: =IF($J$4,IF(AX72/Population!V70<$J$5,AX72/Population!V70*$J$6+(AX72/Population!V70)^2*$J$7,AX72/Population!V70),AX72/Population!V70) -> 114601.2832 | W72: =IF($J$4,IF(AY72/Population!W70<$J$5,AY72/Population!W70*$J$6+(AY72/Population!W70)^2*$J$7,AY72/Population!W70),AY72/Population!W70) -> 130927.9883 | X72: =IF($J$4,IF(AZ72/Population!X70<$J$5,AZ72/Population!X70*$J$6+(AZ72/Population!X70)^2*$J$7,AZ72/Population!X70),AZ72/Population!X70) -> 149498.6706 | Y72: =IF($J$4,IF(BA72/Population!Y70<$J$5,BA72/Population!Y70*$J$6+(BA72/Population!Y70)^2*$J$7,BA72/Population!Y70),BA72/Population!Y70) -> 170585.8407 | Z72: PAS | AA72: ASIA | AD72: Fiji | AE72: 2143828806 | AF72: 2381881123 | AG72: 2659967028 | AH72: 3006416132 | AI72: 2826277699 | AJ72: 4222310643 | AK72: 5618343586 | AL72: 8329556474 | AM72: 1.104076936e+10 | AN72: 1.511237852e+10 | AO72: 1.918398768e+10 | AP72: 2.325559684e+10 | AQ72: 2.732720599e+10 | AR72: 3.605804707e+10 | AS72: 4.478888815e+10 | AT72: 5.351972923e+10 | AU72: 6.225057031e+10 | AV72: 7.098141139e+10 | AW72: 7.891522787e+10 | AX72: 8.684904435e+10 | AY72: 9.478286082e+10 | AZ72: 1.027166773e+11 | BA72: 1.106504938e+11 | BB72: PAS | BC72: ASIA
B73: Finland | C73: =IF($J$4,IF(AE73/Population!C71<$J$5,AE73/Population!C71*$J$6+(AE73/Population!C71)^2*$J$7,AE73/Population!C71),AE73/Population!C71) -> 28118.77628 | D73: =IF($J$4,IF(AF73/Population!D71<$J$5,AF73/Population!D71*$J$6+(AF73/Population!D71)^2*$J$7,AF73/Population!D71),AF73/Population!D71) -> 26624.27238 | E73: =IF($J$4,IF(AG73/Population!E71<$J$5,AG73/Population!E71*$J$6+(AG73/Population!E71)^2*$J$7,AG73/Population!E71),AG73/Population!E71) -> 33250.88292 | F73: =IF($J$4,IF(AH73/Population!F71<$J$5,AH73/Population!F71*$J$6+(AH73/Population!F71)^2*$J$7,AH73/Population!F71),AH73/Population!F71) -> 37451.60273 | G73: =IF($J$4,IF(AI73/Population!G71<$J$5,AI73/Population!G71*$J$6+(AI73/Population!G71)^2*$J$7,AI73/Population!G71),AI73/Population!G71) -> 39099.94133 | H73: =IF($J$4,IF(AJ73/Population!H71<$J$5,AJ73/Population!H71*$J$6+(AJ73/Population!H71)^2*$J$7,AJ73/Population!H71),AJ73/Population!H71) -> 43248.67581 | I73: =IF($J$4,IF(AK73/Population!I71<$J$5,AK73/Population!I71*$J$6+(AK73/Population!I71)^2*$J$7,AK73/Population!I71),AK73/Population!I71) -> 47280.92831 | J73: =IF($J$4,IF(AL73/Population!J71<$J$5,AL73/Population!J71*$J$6+(AL73/Population!J71)^2*$J$7,AL73/Population!J71),AL73/Population!J71) -> 52222.24064 | K73: =IF($J$4,IF(AM73/Population!K71<$J$5,AM73/Population!K71*$J$6+(AM73/Population!K71)^2*$J$7,AM73/Population!K71),AM73/Population!K71) -> 57309.57685 | L73: =IF($J$4,IF(AN73/Population!L71<$J$5,AN73/Population!L71*$J$6+(AN73/Population!L71)^2*$J$7,AN73/Population!L71),AN73/Population!L71) -> 63362.0587 | M73: =IF($J$4,IF(AO73/Population!M71<$J$5,AO73/Population!M71*$J$6+(AO73/Population!M71)^2*$J$7,AO73/Population!M71),AO73/Population!M71) -> 69825.33472 | N73: =IF($J$4,IF(AP73/Population!N71<$J$5,AP73/Population!N71*$J$6+(AP73/Population!N71)^2*$J$7,AP73/Population!N71),AP73/Population!N71) -> 76608.82932 | O73: =IF($J$4,IF(AQ73/Population!O71<$J$5,AQ73/Population!O71*$J$6+(AQ73/Population!O71)^2*$J$7,AQ73/Population!O71),AQ73/Population!O71) -> 83550.64 | P73: =IF($J$4,IF(AR73/Population!P71<$J$5,AR73/Population!P71*$J$6+(AR73/Population!P71)^2*$J$7,AR73/Population!P71),AR73/Population!P71) -> 92624.62106 | Q73: =IF($J$4,IF(AS73/Population!Q71<$J$5,AS73/Population!Q71*$J$6+(AS73/Population!Q71)^2*$J$7,AS73/Population!Q71),AS73/Population!Q71) -> 102052.2944 | R73: =IF($J$4,IF(AT73/Population!R71<$J$5,AT73/Population!R71*$J$6+(AT73/Population!R71)^2*$J$7,AT73/Population!R71),AT73/Population!R71) -> 111805.0605 | S73: =IF($J$4,IF(AU73/Population!S71<$J$5,AU73/Population!S71*$J$6+(AU73/Population!S71)^2*$J$7,AU73/Population!S71),AU73/Population!S71) -> 121565.7567 | T73: =IF($J$4,IF(AV73/Population!T71<$J$5,AV73/Population!T71*$J$6+(AV73/Population!T71)^2*$J$7,AV73/Population!T71),AV73/Population!T71) -> 131193.7022 | U73: =IF($J$4,IF(AW73/Population!U71<$J$5,AW73/Population!U71*$J$6+(AW73/Population!U71)^2*$J$7,AW73/Population!U71),AW73/Population!U71) -> 144218.9507 | V73: =IF($J$4,IF(AX73/Population!V71<$J$5,AX73/Population!V71*$J$6+(AX73/Population!V71)^2*$J$7,AX73/Population!V71),AX73/Population!V71) -> 157140.3808 | W73: =IF($J$4,IF(AY73/Population!W71<$J$5,AY73/Population!W71*$J$6+(AY73/Population!W71)^2*$J$7,AY73/Population!W71),AY73/Population!W71) -> 171008.988 | X73: =IF($J$4,IF(AZ73/Population!X71<$J$5,AZ73/Population!X71*$J$6+(AZ73/Population!X71)^2*$J$7,AZ73/Population!X71),AZ73/Population!X71) -> 185601.9319 | Y73: =IF($J$4,IF(BA73/Population!Y71<$J$5,BA73/Population!Y71*$J$6+(BA73/Population!Y71)^2*$J$7,BA73/Population!Y71),BA73/Population!Y71) -> 200520.6109 | Z73: WEU | AA73: OECD90 | AD73: Finland | AE73: 1.402123377e+11 | AF73: 1.359076985e+11 | AG73: 1.718603472e+11 | AH73: 1.956262747e+11 | AI73: 2.054728505e+11 | AJ73: 2.285062712e+11 | AK73: 2.515396919e+11 | AL73: 2.795353165e+11 | AM73: 3.075309411e+11 | AN73: 3.392651557e+11 | AO73: 3.709993703e+11 | AP73: 4.027335849e+11 | AQ73: 4.344677995e+11 | AR73: 4.797067259e+11 | AS73: 5.249456523e+11 | AT73: 5.701845787e+11 | AU73: 6.154235051e+11 | AV73: 6.606624315e+11 | AW73: 7.240288169e+11 | AX73: 7.873952022e+11 | AY73: 8.507615876e+11 | AZ73: 9.14127973e+11 | BA73: 9.774943584e+11 | BB73: WEU | BC73: OECD90
B74: France | C74: =IF($J$4,IF(AE74/Population!C72<$J$5,AE74/Population!C72*$J$6+(AE74/Population!C72)^2*$J$7,AE74/Population!C72),AE74/Population!C72) -> 27935.18543 | D74: =IF($J$4,IF(AF74/Population!D72<$J$5,AF74/Population!D72*$J$6+(AF74/Population!D72)^2*$J$7,AF74/Population!D72),AF74/Population!D72) -> 28819.40915 | E74: =IF($J$4,IF(AG74/Population!E72<$J$5,AG74/Population!E72*$J$6+(AG74/Population!E72)^2*$J$7,AG74/Population!E72),AG74/Population!E72) -> 32327.27347 | F74: =IF($J$4,IF(AH74/Population!F72<$J$5,AH74/Population!F72*$J$6+(AH74/Population!F72)^2*$J$7,AH74/Population!F72),AH74/Population!F72) -> 34119.82839 | G74: =IF($J$4,IF(AI74/Population!G72<$J$5,AI74/Population!G72*$J$6+(AI74/Population!G72)^2*$J$7,AI74/Population!G72),AI74/Population!G72) -> 34528.59215 | H74: =IF($J$4,IF(AJ74/Population!H72<$J$5,AJ74/Population!H72*$J$6+(AJ74/Population!H72)^2*$J$7,AJ74/Population!H72),AJ74/Population!H72) -> 39290.07519 | I74: =IF($J$4,IF(AK74/Population!I72<$J$5,AK74/Population!I72*$J$6+(AK74/Population!I72)^2*$J$7,AK74/Population!I72),AK74/Population!I72) -> 42514.82116 | J74: =IF($J$4,IF(AL74/Population!J72<$J$5,AL74/Population!J72*$J$6+(AL74/Population!J72)^2*$J$7,AL74/Population!J72),AL74/Population!J72) -> 46524.19011 | K74: =IF($J$4,IF(AM74/Population!K72<$J$5,AM74/Population!K72*$J$6+(AM74/Population!K72)^2*$J$7,AM74/Population!K72),AM74/Population!K72) -> 50453.62126 | L74: =IF($J$4,IF(AN74/Population!L72<$J$5,AN74/Population!L72*$J$6+(AN74/Population!L72)^2*$J$7,AN74/Population!L72),AN74/Population!L72) -> 54904.2378 | M74: =IF($J$4,IF(AO74/Population!M72<$J$5,AO74/Population!M72*$J$6+(AO74/Population!M72)^2*$J$7,AO74/Population!M72),AO74/Population!M72) -> 59422.46803 | N74: =IF($J$4,IF(AP74/Population!N72<$J$5,AP74/Population!N72*$J$6+(AP74/Population!N72)^2*$J$7,AP74/Population!N72),AP74/Population!N72) -> 64127.65911 | O74: =IF($J$4,IF(AQ74/Population!O72<$J$5,AQ74/Population!O72*$J$6+(AQ74/Population!O72)^2*$J$7,AQ74/Population!O72),AQ74/Population!O72) -> 69046.14691 | P74: =IF($J$4,IF(AR74/Population!P72<$J$5,AR74/Population!P72*$J$6+(AR74/Population!P72)^2*$J$7,AR74/Population!P72),AR74/Population!P72) -> 76530.41251 | Q74: =IF($J$4,IF(AS74/Population!Q72<$J$5,AS74/Population!Q72*$J$6+(AS74/Population!Q72)^2*$J$7,AS74/Population!Q72),AS74/Population!Q72) -> 84258.5665 | R74: =IF($J$4,IF(AT74/Population!R72<$J$5,AT74/Population!R72*$J$6+(AT74/Population!R72)^2*$J$7,AT74/Population!R72),AT74/Population!R72) -> 92211.0874 | S74: =IF($J$4,IF(AU74/Population!S72<$J$5,AU74/Population!S72*$J$6+(AU74/Population!S72)^2*$J$7,AU74/Population!S72),AU74/Population!S72) -> 100203.0616 | T74: =IF($J$4,IF(AV74/Population!T72<$J$5,AV74/Population!T72*$J$6+(AV74/Population!T72)^2*$J$7,AV74/Population!T72),AV74/Population!T72) -> 108121.4851 | U74: =IF($J$4,IF(AW74/Population!U72<$J$5,AW74/Population!U72*$J$6+(AW74/Population!U72)^2*$J$7,AW74/Population!U72),AW74/Population!U72) -> 118792.1353 | V74: =IF($J$4,IF(AX74/Population!V72<$J$5,AX74/Population!V72*$J$6+(AX74/Population!V72)^2*$J$7,AX74/Population!V72),AX74/Population!V72) -> 129324.4842 | W74: =IF($J$4,IF(AY74/Population!W72<$J$5,AY74/Population!W72*$J$6+(AY74/Population!W72)^2*$J$7,AY74/Population!W72),AY74/Population!W72) -> 140621.0802 | X74: =IF($J$4,IF(AZ74/Population!X72<$J$5,AZ74/Population!X72*$J$6+(AZ74/Population!X72)^2*$J$7,AZ74/Population!X72),AZ74/Population!X72) -> 152541.3212 | Y74: =IF($J$4,IF(BA74/Population!Y72<$J$5,BA74/Population!Y72*$J$6+(BA74/Population!Y72)^2*$J$7,BA74/Population!Y72),BA74/Population!Y72) -> 164767.0878 | Z74: WEU | AA74: OECD90 | AD74: France | AE74: 1.624938336e+12 | AF74: 1.720870553e+12 | AG74: 1.97637713e+12 | AH74: 2.146530369e+12 | AI74: 2.236361288e+12 | AJ74: 2.487056454e+12 | AK74: 2.73775162e+12 | AL74: 3.042455287e+12 | AM74: 3.347158955e+12 | AN74: 3.692553341e+12 | AO74: 4.037947727e+12 | AP74: 4.383342113e+12 | AQ74: 4.728736499e+12 | AR74: 5.221115825e+12 | AS74: 5.713495152e+12 | AT74: 6.205874478e+12 | AU74: 6.698253804e+12 | AV74: 7.190633131e+12 | AW74: 7.88031126e+12 | AX74: 8.56998939e+12 | AY74: 9.25966752e+12 | AZ74: 9.949345649e+12 | BA74: 1.063902378e+13 | BB74: WEU | BC74: OECD90
B75: French Polynesia | C75: =IF($J$4,IF(AE75/Population!C73<$J$5,AE75/Population!C73*$J$6+(AE75/Population!C73)^2*$J$7,AE75/Population!C73),AE75/Population!C73) -> 18691.30782 | D75: =IF($J$4,IF(AF75/Population!D73<$J$5,AF75/Population!D73*$J$6+(AF75/Population!D73)^2*$J$7,AF75/Population!D73),AF75/Population!D73) -> 18121.51322 | E75: =IF($J$4,IF(AG75/Population!E73<$J$5,AG75/Population!E73*$J$6+(AG75/Population!E73)^2*$J$7,AG75/Population!E73),AG75/Population!E73) -> 18945.31403 | F75: =IF($J$4,IF(AH75/Population!F73<$J$5,AH75/Population!F73*$J$6+(AH75/Population!F73)^2*$J$7,AH75/Population!F73),AH75/Population!F73) -> 19096.63494 | G75: =IF($J$4,IF(AI75/Population!G73<$J$5,AI75/Population!G73*$J$6+(AI75/Population!G73)^2*$J$7,AI75/Population!G73),AI75/Population!G73) -> 24735.42602 | H75: =IF($J$4,IF(AJ75/Population!H73<$J$5,AJ75/Population!H73*$J$6+(AJ75/Population!H73)^2*$J$7,AJ75/Population!H73),AJ75/Population!H73) -> 36669.19367 | I75: =IF($J$4,IF(AK75/Population!I73<$J$5,AK75/Population!I73*$J$6+(AK75/Population!I73)^2*$J$7,AK75/Population!I73),AK75/Population!I73) -> 46260.18047 | J75: =IF($J$4,IF(AL75/Population!J73<$J$5,AL75/Population!J73*$J$6+(AL75/Population!J73)^2*$J$7,AL75/Population!J73),AL75/Population!J73) -> 65555.46353 | K75: =IF($J$4,IF(AM75/Population!K73<$J$5,AM75/Population!K73*$J$6+(AM75/Population!K73)^2*$J$7,AM75/Population!K73),AM75/Population!K73) -> 83641.0189 | L75: =IF($J$4,IF(AN75/Population!L73<$J$5,AN75/Population!L73*$J$6+(AN75/Population!L73)^2*$J$7,AN75/Population!L73),AN75/Population!L73) -> 110950.8608 | M75: =IF($J$4,IF(AO75/Population!M73<$J$5,AO75/Population!M73*$J$6+(AO75/Population!M73)^2*$J$7,AO75/Population!M73),AO75/Population!M73) -> 137481.7002 | N75: =IF($J$4,IF(AP75/Population!N73<$J$5,AP75/Population!N73*$J$6+(AP75/Population!N73)^2*$J$7,AP75/Population!N73),AP75/Population!N73) -> 163927.3997 | O75: =IF($J$4,IF(AQ75/Population!O73<$J$5,AQ75/Population!O73*$J$6+(AQ75/Population!O73)^2*$J$7,AQ75/Population!O73),AQ75/Population!O73) -> 190924.1192 | P75: =IF($J$4,IF(AR75/Population!P73<$J$5,AR75/Population!P73*$J$6+(AR75/Population!P73)^2*$J$7,AR75/Population!P73),AR75/Population!P73) -> 252603.6253 | Q75: =IF($J$4,IF(AS75/Population!Q73<$J$5,AS75/Population!Q73*$J$6+(AS75/Population!Q73)^2*$J$7,AS75/Population!Q73),AS75/Population!Q73) -> 316963.4886 | R75: =IF($J$4,IF(AT75/Population!R73<$J$5,AT75/Population!R73*$J$6+(AT75/Population!R73)^2*$J$7,AT75/Population!R73),AT75/Population!R73) -> 385167.7142 | S75: =IF($J$4,IF(AU75/Population!S73<$J$5,AU75/Population!S73*$J$6+(AU75/Population!S73)^2*$J$7,AU75/Population!S73),AU75/Population!S73) -> 457647.999 | T75: =IF($J$4,IF(AV75/Population!T73<$J$5,AV75/Population!T73*$J$6+(AV75/Population!T73)^2*$J$7,AV75/Population!T73),AV75/Population!T73) -> 535382.1824 | U75: =IF($J$4,IF(AW75/Population!U73<$J$5,AW75/Population!U73*$J$6+(AW75/Population!U73)^2*$J$7,AW75/Population!U73),AW75/Population!U73) -> 613519.8628 | V75: =IF($J$4,IF(AX75/Population!V73<$J$5,AX75/Population!V73*$J$6+(AX75/Population!V73)^2*$J$7,AX75/Population!V73),AX75/Population!V73) -> 699251.4931 | W75: =IF($J$4,IF(AY75/Population!W73<$J$5,AY75/Population!W73*$J$6+(AY75/Population!W73)^2*$J$7,AY75/Population!W73),AY75/Population!W73) -> 797188.7898 | X75: =IF($J$4,IF(AZ75/Population!X73<$J$5,AZ75/Population!X73*$J$6+(AZ75/Population!X73)^2*$J$7,AZ75/Population!X73),AZ75/Population!X73) -> 908609.8561 | Y75: =IF($J$4,IF(BA75/Population!Y73<$J$5,BA75/Population!Y73*$J$6+(BA75/Population!Y73)^2*$J$7,BA75/Population!Y73),BA75/Population!Y73) -> 1035047.13 | Z75: PAS | AA75: ASIA | AD75: French Polynesia | AE75: 2678279322 | AF75: 2874638021 | AG75: 3374811345 | AH75: 3711622904 | AI75: 7056178430 | AJ75: 1.054156047e+10 | AK75: 1.402694252e+10 | AL75: 2.079584633e+10 | AM75: 2.756475015e+10 | AN75: 3.773006431e+10 | AO75: 4.789537847e+10 | AP75: 5.806069263e+10 | AQ75: 6.822600679e+10 | AR75: 9.002371355e+10 | AS75: 1.118214203e+11 | AT75: 1.336191271e+11 | AU75: 1.554168338e+11 | AV75: 1.772145406e+11 | AW75: 1.970223693e+11 | AX75: 2.168301981e+11 | AY75: 2.366380269e+11 | AZ75: 2.564458556e+11 | BA75: 2.762536844e+11 | BB75: PAS | BC75: ASIA
B76: Gabon | C76: =IF($J$4,IF(AE76/Population!C74<$J$5,AE76/Population!C74*$J$6+(AE76/Population!C74)^2*$J$7,AE76/Population!C74),AE76/Population!C74) -> 12806.92867 | D76: =IF($J$4,IF(AF76/Population!D74<$J$5,AF76/Population!D74*$J$6+(AF76/Population!D74)^2*$J$7,AF76/Population!D74),AF76/Population!D74) -> 13047.33839 | E76: =IF($J$4,IF(AG76/Population!E74<$J$5,AG76/Population!E74*$J$6+(AG76/Population!E74)^2*$J$7,AG76/Population!E74),AG76/Population!E74) -> 11512.86354 | F76: =IF($J$4,IF(AH76/Population!F74<$J$5,AH76/Population!F74*$J$6+(AH76/Population!F74)^2*$J$7,AH76/Population!F74),AH76/Population!F74) -> 11102.5473 | G76: =IF($J$4,IF(AI76/Population!G74<$J$5,AI76/Population!G74*$J$6+(AI76/Population!G74)^2*$J$7,AI76/Population!G74),AI76/Population!G74) -> 10094.20798 | H76: =IF($J$4,IF(AJ76/Population!H74<$J$5,AJ76/Population!H74*$J$6+(AJ76/Population!H74)^2*$J$7,AJ76/Population!H74),AJ76/Population!H74) -> 11617.02964 | I76: =IF($J$4,IF(AK76/Population!I74<$J$5,AK76/Population!I74*$J$6+(AK76/Population!I74)^2*$J$7,AK76/Population!I74),AK76/Population!I74) -> 13248.61271 | J76: =IF($J$4,IF(AL76/Population!J74<$J$5,AL76/Population!J74*$J$6+(AL76/Population!J74)^2*$J$7,AL76/Population!J74),AL76/Population!J74) -> 16001.87385 | K76: =IF($J$4,IF(AM76/Population!K74<$J$5,AM76/Population!K74*$J$6+(AM76/Population!K74)^2*$J$7,AM76/Population!K74),AM76/Population!K74) -> 18193.07795 | L76: =IF($J$4,IF(AN76/Population!L74<$J$5,AN76/Population!L74*$J$6+(AN76/Population!L74)^2*$J$7,AN76/Population!L74),AN76/Population!L74) -> 24786.12322 | M76: =IF($J$4,IF(AO76/Population!M74<$J$5,AO76/Population!M74*$J$6+(AO76/Population!M74)^2*$J$7,AO76/Population!M74),AO76/Population!M74) -> 35658.191 | N76: =IF($J$4,IF(AP76/Population!N74<$J$5,AP76/Population!N74*$J$6+(AP76/Population!N74)^2*$J$7,AP76/Population!N74),AP76/Population!N74) -> 46192.44577 | O76: =IF($J$4,IF(AQ76/Population!O74<$J$5,AQ76/Population!O74*$J$6+(AQ76/Population!O74)^2*$J$7,AQ76/Population!O74),AQ76/Population!O74) -> 56141.0037 | P76: =IF($J$4,IF(AR76/Population!P74<$J$5,AR76/Population!P74*$J$6+(AR76/Population!P74)^2*$J$7,AR76/Population!P74),AR76/Population!P74) -> 73584.08787 | Q76: =IF($J$4,IF(AS76/Population!Q74<$J$5,AS76/Population!Q74*$J$6+(AS76/Population!Q74)^2*$J$7,AS76/Population!Q74),AS76/Population!Q74) -> 90680.4728 | R76: =IF($J$4,IF(AT76/Population!R74<$J$5,AT76/Population!R74*$J$6+(AT76/Population!R74)^2*$J$7,AT76/Population!R74),AT76/Population!R74) -> 107849.0324 | S76: =IF($J$4,IF(AU76/Population!S74<$J$5,AU76/Population!S74*$J$6+(AU76/Population!S74)^2*$J$7,AU76/Population!S74),AU76/Population!S74) -> 125454.8248 | T76: =IF($J$4,IF(AV76/Population!T74<$J$5,AV76/Population!T74*$J$6+(AV76/Population!T74)^2*$J$7,AV76/Population!T74),AV76/Population!T74) -> 143973.3137 | U76: =IF($J$4,IF(AW76/Population!U74<$J$5,AW76/Population!U74*$J$6+(AW76/Population!U74)^2*$J$7,AW76/Population!U74),AW76/Population!U74) -> 165858.1044 | V76: =IF($J$4,IF(AX76/Population!V74<$J$5,AX76/Population!V74*$J$6+(AX76/Population!V74)^2*$J$7,AX76/Population!V74),AX76/Population!V74) -> 189557.3262 | W76: =IF($J$4,IF(AY76/Population!W74<$J$5,AY76/Population!W74*$J$6+(AY76/Population!W74)^2*$J$7,AY76/Population!W74),AY76/Population!W74) -> 215917.0887 | X76: =IF($J$4,IF(AZ76/Population!X74<$J$5,AZ76/Population!X74*$J$6+(AZ76/Population!X74)^2*$J$7,AZ76/Population!X74),AZ76/Population!X74) -> 245669.8785 | Y76: =IF($J$4,IF(BA76/Population!Y74<$J$5,BA76/Population!Y74*$J$6+(BA76/Population!Y74)^2*$J$7,BA76/Population!Y74),BA76/Population!Y74) -> 279557.2967 | Z76: SSA | AA76: ALM | AD76: Gabon | AE76: 7538514640 | AF76: 8788360629 | AG76: 8745053054 | AH76: 9458884044 | AI76: 9377934086 | AJ76: 1.326564627e+10 | AK76: 1.715335845e+10 | AL76: 2.374451338e+10 | AM76: 3.033566832e+10 | AN76: 6.121356649e+10 | AO76: 9.209146465e+10 | AP76: 1.229693628e+11 | AQ76: 1.53847261e+11 | AR76: 2.079789677e+11 | AS76: 2.621106744e+11 | AT76: 3.162423811e+11 | AU76: 3.703740878e+11 | AV76: 4.245057946e+11 | AW76: 4.846728341e+11 | AX76: 5.448398737e+11 | AY76: 6.050069133e+11 | AZ76: 6.651739529e+11 | BA76: 7.253409924e+11 | BB76: SSA | BC76: ALM
B77: Gambia | C77: =IF($J$4,IF(AE77/Population!C75<$J$5,AE77/Population!C75*$J$6+(AE77/Population!C75)^2*$J$7,AE77/Population!C75),AE77/Population!C75) -> 808.5285799 | D77: =IF($J$4,IF(AF77/Population!D75<$J$5,AF77/Population!D75*$J$6+(AF77/Population!D75)^2*$J$7,AF77/Population!D75),AF77/Population!D75) -> 751.5570134 | E77: =IF($J$4,IF(AG77/Population!E75<$J$5,AG77/Population!E75*$J$6+(AG77/Population!E75)^2*$J$7,AG77/Population!E75),AG77/Population!E75) -> 776.9759132 | F77: =IF($J$4,IF(AH77/Population!F75<$J$5,AH77/Population!F75*$J$6+(AH77/Population!F75)^2*$J$7,AH77/Population!F75),AH77/Population!F75) -> 735.8483758 | G77: =IF($J$4,IF(AI77/Population!G75<$J$5,AI77/Population!G75*$J$6+(AI77/Population!G75)^2*$J$7,AI77/Population!G75),AI77/Population!G75) -> 419.9421101 | H77: =IF($J$4,IF(AJ77/Population!H75<$J$5,AJ77/Population!H75*$J$6+(AJ77/Population!H75)^2*$J$7,AJ77/Population!H75),AJ77/Population!H75) -> 572.8404946 | I77: =IF($J$4,IF(AK77/Population!I75<$J$5,AK77/Population!I75*$J$6+(AK77/Population!I75)^2*$J$7,AK77/Population!I75),AK77/Population!I75) -> 686.6812579 | J77: =IF($J$4,IF(AL77/Population!J75<$J$5,AL77/Population!J75*$J$6+(AL77/Population!J75)^2*$J$7,AL77/Population!J75),AL77/Population!J75) -> 895.9337508 | K77: =IF($J$4,IF(AM77/Population!K75<$J$5,AM77/Population!K75*$J$6+(AM77/Population!K75)^2*$J$7,AM77/Population!K75),AM77/Population!K75) -> 1100.634124 | L77: =IF($J$4,IF(AN77/Population!L75<$J$5,AN77/Population!L75*$J$6+(AN77/Population!L75)^2*$J$7,AN77/Population!L75),AN77/Population!L75) -> 2158.690979 | M77: =IF($J$4,IF(AO77/Population!M75<$J$5,AO77/Population!M75*$J$6+(AO77/Population!M75)^2*$J$7,AO77/Population!M75),AO77/Population!M75) -> 3174.368752 | N77: =IF($J$4,IF(AP77/Population!N75<$J$5,AP77/Population!N75*$J$6+(AP77/Population!N75)^2*$J$7,AP77/Population!N75),AP77/Population!N75) -> 4154.459436 | O77: =IF($J$4,IF(AQ77/Population!O75<$J$5,AQ77/Population!O75*$J$6+(AQ77/Population!O75)^2*$J$7,AQ77/Population!O75),AQ77/Population!O75) -> 5115.796918 | P77: =IF($J$4,IF(AR77/Population!P75<$J$5,AR77/Population!P75*$J$6+(AR77/Population!P75)^2*$J$7,AR77/Population!P75),AR77/Population!P75) -> 6512.427598 | Q77: =IF($J$4,IF(AS77/Population!Q75<$J$5,AS77/Population!Q75*$J$6+(AS77/Population!Q75)^2*$J$7,AS77/Population!Q75),AS77/Population!Q75) -> 7804.47139 | R77: =IF($J$4,IF(AT77/Population!R75<$J$5,AT77/Population!R75*$J$6+(AT77/Population!R75)^2*$J$7,AT77/Population!R75),AT77/Population!R75) -> 9032.94781 | S77: =IF($J$4,IF(AU77/Population!S75<$J$5,AU77/Population!S75*$J$6+(AU77/Population!S75)^2*$J$7,AU77/Population!S75),AU77/Population!S75) -> 10229.28488 | T77: =IF($J$4,IF(AV77/Population!T75<$J$5,AV77/Population!T75*$J$6+(AV77/Population!T75)^2*$J$7,AV77/Population!T75),AV77/Population!T75) -> 11429.6064 | U77: =IF($J$4,IF(AW77/Population!U75<$J$5,AW77/Population!U75*$J$6+(AW77/Population!U75)^2*$J$7,AW77/Population!U75),AW77/Population!U75) -> 12789.72776 | V77: =IF($J$4,IF(AX77/Population!V75<$J$5,AX77/Population!V75*$J$6+(AX77/Population!V75)^2*$J$7,AX77/Population!V75),AX77/Population!V75) -> 14185.09316 | W77: =IF($J$4,IF(AY77/Population!W75<$J$5,AY77/Population!W75*$J$6+(AY77/Population!W75)^2*$J$7,AY77/Population!W75),AY77/Population!W75) -> 15646.79997 | X77: =IF($J$4,IF(AZ77/Population!X75<$J$5,AZ77/Population!X75*$J$6+(AZ77/Population!X75)^2*$J$7,AZ77/Population!X75),AZ77/Population!X75) -> 17176.26152 | Y77: =IF($J$4,IF(BA77/Population!Y75<$J$5,BA77/Population!Y75*$J$6+(BA77/Population!Y75)^2*$J$7,BA77/Population!Y75),BA77/Population!Y75) -> 18759.64516 | Z77: SSA | AA77: ALM | AD77: Gambia | AE77: 412124113.4 | AF77: 463661674.6 | AG77: 570550626.1 | AH77: 629452037.3 | AI77: 409636358.8 | AJ77: 579455025.3 | AK77: 749273691.8 | AL77: 1037181101 | AM77: 1325088511 | AN77: 2673862095 | AO77: 4022635679 | AP77: 5371409263 | AQ77: 6720182848 | AR77: 9084703117 | AS77: 1.144922339e+10 | AT77: 1.381374366e+10 | AU77: 1.617826393e+10 | AV77: 1.854278419e+10 | AW77: 2.117093308e+10 | AX77: 2.379908196e+10 | AY77: 2.642723085e+10 | AZ77: 2.905537973e+10 | BA77: 3.168352862e+10 | BB77: SSA | BC77: ALM
B78: Georgia | C78: =IF($J$4,IF(AE78/Population!C76<$J$5,AE78/Population!C76*$J$6+(AE78/Population!C76)^2*$J$7,AE78/Population!C76),AE78/Population!C76) -> 3960.928826 | D78: =IF($J$4,IF(AF78/Population!D76<$J$5,AF78/Population!D76*$J$6+(AF78/Population!D76)^2*$J$7,AF78/Population!D76),AF78/Population!D76) -> 1253.177016 | E78: =IF($J$4,IF(AG78/Population!E76<$J$5,AG78/Population!E76*$J$6+(AG78/Population!E76)^2*$J$7,AG78/Population!E76),AG78/Population!E76) -> 1738.093578 | F78: =IF($J$4,IF(AH78/Population!F76<$J$5,AH78/Population!F76*$J$6+(AH78/Population!F76)^2*$J$7,AH78/Population!F76),AH78/Population!F76) -> 2507.564235 | G78: =IF($J$4,IF(AI78/Population!G76<$J$5,AI78/Population!G76*$J$6+(AI78/Population!G76)^2*$J$7,AI78/Population!G76),AI78/Population!G76) -> 3247.401581 | H78: =IF($J$4,IF(AJ78/Population!H76<$J$5,AJ78/Population!H76*$J$6+(AJ78/Population!H76)^2*$J$7,AJ78/Population!H76),AJ78/Population!H76) -> 4047.402906 | I78: =IF($J$4,IF(AK78/Population!I76<$J$5,AK78/Population!I76*$J$6+(AK78/Population!I76)^2*$J$7,AK78/Population!I76),AK78/Population!I76) -> 5301.246518 | J78: =IF($J$4,IF(AL78/Population!J76<$J$5,AL78/Population!J76*$J$6+(AL78/Population!J76)^2*$J$7,AL78/Population!J76),AL78/Population!J76) -> 7555.750087 | K78: =IF($J$4,IF(AM78/Population!K76<$J$5,AM78/Population!K76*$J$6+(AM78/Population!K76)^2*$J$7,AM78/Population!K76),AM78/Population!K76) -> 9806.55577 | L78: =IF($J$4,IF(AN78/Population!L76<$J$5,AN78/Population!L76*$J$6+(AN78/Population!L76)^2*$J$7,AN78/Population!L76),AN78/Population!L76) -> 12898.49963 | M78: =IF($J$4,IF(AO78/Population!M76<$J$5,AO78/Population!M76*$J$6+(AO78/Population!M76)^2*$J$7,AO78/Population!M76),AO78/Population!M76) -> 15903.24712 | N78: =IF($J$4,IF(AP78/Population!N76<$J$5,AP78/Population!N76*$J$6+(AP78/Population!N76)^2*$J$7,AP78/Population!N76),AP78/Population!N76) -> 18770.04554 | O78: =IF($J$4,IF(AQ78/Population!O76<$J$5,AQ78/Population!O76*$J$6+(AQ78/Population!O76)^2*$J$7,AQ78/Population!O76),AQ78/Population!O76) -> 21375.84181 | P78: =IF($J$4,IF(AR78/Population!P76<$J$5,AR78/Population!P76*$J$6+(AR78/Population!P76)^2*$J$7,AR78/Population!P76),AR78/Population!P76) -> 23035.52784 | Q78: =IF($J$4,IF(AS78/Population!Q76<$J$5,AS78/Population!Q76*$J$6+(AS78/Population!Q76)^2*$J$7,AS78/Population!Q76),AS78/Population!Q76) -> 24194.26594 | R78: =IF($J$4,IF(AT78/Population!R76<$J$5,AT78/Population!R76*$J$6+(AT78/Population!R76)^2*$J$7,AT78/Population!R76),AT78/Population!R76) -> 24884.52274 | S78: =IF($J$4,IF(AU78/Population!S76<$J$5,AU78/Population!S76*$J$6+(AU78/Population!S76)^2*$J$7,AU78/Population!S76),AU78/Population!S76) -> 27915.80784 | T78: =IF($J$4,IF(AV78/Population!T76<$J$5,AV78/Population!T76*$J$6+(AV78/Population!T76)^2*$J$7,AV78/Population!T76),AV78/Population!T76) -> 31137.21687 | U78: =IF($J$4,IF(AW78/Population!U76<$J$5,AW78/Population!U76*$J$6+(AW78/Population!U76)^2*$J$7,AW78/Population!U76),AW78/Population!U76) -> 35285.09449 | V78: =IF($J$4,IF(AX78/Population!V76<$J$5,AX78/Population!V76*$J$6+(AX78/Population!V76)^2*$J$7,AX78/Population!V76),AX78/Population!V76) -> 39497.537 | W78: =IF($J$4,IF(AY78/Population!W76<$J$5,AY78/Population!W76*$J$6+(AY78/Population!W76)^2*$J$7,AY78/Population!W76),AY78/Population!W76) -> 43983.64543 | X78: =IF($J$4,IF(AZ78/Population!X76<$J$5,AZ78/Population!X76*$J$6+(AZ78/Population!X76)^2*$J$7,AZ78/Population!X76),AZ78/Population!X76) -> 48749.76558 | Y78: =IF($J$4,IF(BA78/Population!Y76<$J$5,BA78/Population!Y76*$J$6+(BA78/Population!Y76)^2*$J$7,BA78/Population!Y76),BA78/Population!Y76) -> 53853.06849 | Z78: FSU | AA78: REF | AD78: Georgia | AE78: 1.193947479e+10 | AF78: 3388261791 | AG78: 4501229533 | AH78: 6410967217 | AI78: 8233244671 | AJ78: 1.174843155e+10 | AK78: 1.526361843e+10 | AL78: 2.177657491e+10 | AM78: 2.828953139e+10 | AN78: 3.774919715e+10 | AO78: 4.720886291e+10 | AP78: 5.666852867e+10 | AQ78: 6.612819443e+10 | AR78: 7.633588166e+10 | AS78: 8.65435689e+10 | AT78: 9.675125613e+10 | AU78: 1.069589434e+11 | AV78: 1.171666306e+11 | AW78: 1.302354071e+11 | AX78: 1.433041836e+11 | AY78: 1.563729601e+11 | AZ78: 1.694417367e+11 | BA78: 1.825105132e+11 | BB78: FSU | BC78: REF
B79: Germany | C79: =IF($J$4,IF(AE79/Population!C77<$J$5,AE79/Population!C77*$J$6+(AE79/Population!C77)^2*$J$7,AE79/Population!C77),AE79/Population!C77) -> 27693.5353 | D79: =IF($J$4,IF(AF79/Population!D77<$J$5,AF79/Population!D77*$J$6+(AF79/Population!D77)^2*$J$7,AF79/Population!D77),AF79/Population!D77) -> 30015.02488 | E79: =IF($J$4,IF(AG79/Population!E77<$J$5,AG79/Population!E77*$J$6+(AG79/Population!E77)^2*$J$7,AG79/Population!E77),AG79/Population!E77) -> 32935.64445 | F79: =IF($J$4,IF(AH79/Population!F77<$J$5,AH79/Population!F77*$J$6+(AH79/Population!F77)^2*$J$7,AH79/Population!F77),AH79/Population!F77) -> 33826.79575 | G79: =IF($J$4,IF(AI79/Population!G77<$J$5,AI79/Population!G77*$J$6+(AI79/Population!G77)^2*$J$7,AI79/Population!G77),AI79/Population!G77) -> 35741.54447 | H79: =IF($J$4,IF(AJ79/Population!H77<$J$5,AJ79/Population!H77*$J$6+(AJ79/Population!H77)^2*$J$7,AJ79/Population!H77),AJ79/Population!H77) -> 39711.87761 | I79: =IF($J$4,IF(AK79/Population!I77<$J$5,AK79/Population!I77*$J$6+(AK79/Population!I77)^2*$J$7,AK79/Population!I77),AK79/Population!I77) -> 43725.18139 | J79: =IF($J$4,IF(AL79/Population!J77<$J$5,AL79/Population!J77*$J$6+(AL79/Population!J77)^2*$J$7,AL79/Population!J77),AL79/Population!J77) -> 48616.76376 | K79: =IF($J$4,IF(AM79/Population!K77<$J$5,AM79/Population!K77*$J$6+(AM79/Population!K77)^2*$J$7,AM79/Population!K77),AM79/Population!K77) -> 53606.54797 | L79: =IF($J$4,IF(AN79/Population!L77<$J$5,AN79/Population!L77*$J$6+(AN79/Population!L77)^2*$J$7,AN79/Population!L77),AN79/Population!L77) -> 59370.02003 | M79: =IF($J$4,IF(AO79/Population!M77<$J$5,AO79/Population!M77*$J$6+(AO79/Population!M77)^2*$J$7,AO79/Population!M77),AO79/Population!M77) -> 65377.60255 | N79: =IF($J$4,IF(AP79/Population!N77<$J$5,AP79/Population!N77*$J$6+(AP79/Population!N77)^2*$J$7,AP79/Population!N77),AP79/Population!N77) -> 71660.48418 | O79: =IF($J$4,IF(AQ79/Population!O77<$J$5,AQ79/Population!O77*$J$6+(AQ79/Population!O77)^2*$J$7,AQ79/Population!O77),AQ79/Population!O77) -> 78289.74754 | P79: =IF($J$4,IF(AR79/Population!P77<$J$5,AR79/Population!P77*$J$6+(AR79/Population!P77)^2*$J$7,AR79/Population!P77),AR79/Population!P77) -> 86705.70373 | Q79: =IF($J$4,IF(AS79/Population!Q77<$J$5,AS79/Population!Q77*$J$6+(AS79/Population!Q77)^2*$J$7,AS79/Population!Q77),AS79/Population!Q77) -> 95591.90031 | R79: =IF($J$4,IF(AT79/Population!R77<$J$5,AT79/Population!R77*$J$6+(AT79/Population!R77)^2*$J$7,AT79/Population!R77),AT79/Population!R77) -> 104726.0589 | S79: =IF($J$4,IF(AU79/Population!S77<$J$5,AU79/Population!S77*$J$6+(AU79/Population!S77)^2*$J$7,AU79/Population!S77),AU79/Population!S77) -> 113758.4456 | T79: =IF($J$4,IF(AV79/Population!T77<$J$5,AV79/Population!T77*$J$6+(AV79/Population!T77)^2*$J$7,AV79/Population!T77),AV79/Population!T77) -> 122678.5754 | U79: =IF($J$4,IF(AW79/Population!U77<$J$5,AW79/Population!U77*$J$6+(AW79/Population!U77)^2*$J$7,AW79/Population!U77),AW79/Population!U77) -> 134875.6762 | V79: =IF($J$4,IF(AX79/Population!V77<$J$5,AX79/Population!V77*$J$6+(AX79/Population!V77)^2*$J$7,AX79/Population!V77),AX79/Population!V77) -> 147063.251 | W79: =IF($J$4,IF(AY79/Population!W77<$J$5,AY79/Population!W77*$J$6+(AY79/Population!W77)^2*$J$7,AY79/Population!W77),AY79/Population!W77) -> 160183.6843 | X79: =IF($J$4,IF(AZ79/Population!X77<$J$5,AZ79/Population!X77*$J$6+(AZ79/Population!X77)^2*$J$7,AZ79/Population!X77),AZ79/Population!X77) -> 173956.9382 | Y79: =IF($J$4,IF(BA79/Population!Y77<$J$5,BA79/Population!Y77*$J$6+(BA79/Population!Y77)^2*$J$7,BA79/Population!Y77),BA79/Population!Y77) -> 188008.2039 | Z79: WEU | AA79: OECD90 | AD79: Germany | AE79: 2.198323743e+12 | AF79: 2.450837897e+12 | AG79: 2.706911749e+12 | AH79: 2.788389793e+12 | AI79: 2.940921075e+12 | AJ79: 3.270597098e+12 | AK79: 3.600273122e+12 | AL79: 4.000972884e+12 | AM79: 4.401672646e+12 | AN79: 4.855882632e+12 | AO79: 5.310092618e+12 | AP79: 5.764302604e+12 | AQ79: 6.21851259e+12 | AR79: 6.866014738e+12 | AS79: 7.513516886e+12 | AT79: 8.161019033e+12 | AU79: 8.808521181e+12 | AV79: 9.456023329e+12 | AW79: 1.036298275e+13 | AX79: 1.126994218e+13 | AY79: 1.21769016e+13 | AZ79: 1.308386103e+13 | BA79: 1.399082045e+13 | BB79: WEU | BC79: OECD90
B80: Ghana | C80: =IF($J$4,IF(AE80/Population!C78<$J$5,AE80/Population!C78*$J$6+(AE80/Population!C78)^2*$J$7,AE80/Population!C78),AE80/Population!C78) -> 665.9446049 | D80: =IF($J$4,IF(AF80/Population!D78<$J$5,AF80/Population!D78*$J$6+(AF80/Population!D78)^2*$J$7,AF80/Population!D78),AF80/Population!D78) -> 713.5846996 | E80: =IF($J$4,IF(AG80/Population!E78<$J$5,AG80/Population!E78*$J$6+(AG80/Population!E78)^2*$J$7,AG80/Population!E78),AG80/Population!E78) -> 789.9890229 | F80: =IF($J$4,IF(AH80/Population!F78<$J$5,AH80/Population!F78*$J$6+(AH80/Population!F78)^2*$J$7,AH80/Population!F78),AH80/Population!F78) -> 905.1469859 | G80: =IF($J$4,IF(AI80/Population!G78<$J$5,AI80/Population!G78*$J$6+(AI80/Population!G78)^2*$J$7,AI80/Population!G78),AI80/Population!G78) -> 1046.757257 | H80: =IF($J$4,IF(AJ80/Population!H78<$J$5,AJ80/Population!H78*$J$6+(AJ80/Population!H78)^2*$J$7,AJ80/Population!H78),AJ80/Population!H78) -> 1284.831502 | I80: =IF($J$4,IF(AK80/Population!I78<$J$5,AK80/Population!I78*$J$6+(AK80/Population!I78)^2*$J$7,AK80/Population!I78),AK80/Population!I78) -> 1527.93507 | J80: =IF($J$4,IF(AL80/Population!J78<$J$5,AL80/Population!J78*$J$6+(AL80/Population!J78)^2*$J$7,AL80/Population!J78),AL80/Population!J78) -> 1980.197237 | K80: =IF($J$4,IF(AM80/Population!K78<$J$5,AM80/Population!K78*$J$6+(AM80/Population!K78)^2*$J$7,AM80/Population!K78),AM80/Population!K78) -> 2416.302499 | L80: =IF($J$4,IF(AN80/Population!L78<$J$5,AN80/Population!L78*$J$6+(AN80/Population!L78)^2*$J$7,AN80/Population!L78),AN80/Population!L78) -> 4631.198835 | M80: =IF($J$4,IF(AO80/Population!M78<$J$5,AO80/Population!M78*$J$6+(AO80/Population!M78)^2*$J$7,AO80/Population!M78),AO80/Population!M78) -> 6633.470349 | N80: =IF($J$4,IF(AP80/Population!N78<$J$5,AP80/Population!N78*$J$6+(AP80/Population!N78)^2*$J$7,AP80/Population!N78),AP80/Population!N78) -> 8477.069799 | O80: =IF($J$4,IF(AQ80/Population!O78<$J$5,AQ80/Population!O78*$J$6+(AQ80/Population!O78)^2*$J$7,AQ80/Population!O78),AQ80/Population!O78) -> 10220.42694 | P80: =IF($J$4,IF(AR80/Population!P78<$J$5,AR80/Population!P78*$J$6+(AR80/Population!P78)^2*$J$7,AR80/Population!P78),AR80/Population!P78) -> 12625.06335 | Q80: =IF($J$4,IF(AS80/Population!Q78<$J$5,AS80/Population!Q78*$J$6+(AS80/Population!Q78)^2*$J$7,AS80/Population!Q78),AS80/Population!Q78) -> 14696.34892 | R80: =IF($J$4,IF(AT80/Population!R78<$J$5,AT80/Population!R78*$J$6+(AT80/Population!R78)^2*$J$7,AT80/Population!R78),AT80/Population!R78) -> 16521.13099 | S80: =IF($J$4,IF(AU80/Population!S78<$J$5,AU80/Population!S78*$J$6+(AU80/Population!S78)^2*$J$7,AU80/Population!S78),AU80/Population!S78) -> 18161.93391 | T80: =IF($J$4,IF(AV80/Population!T78<$J$5,AV80/Population!T78*$J$6+(AV80/Population!T78)^2*$J$7,AV80/Population!T78),AV80/Population!T78) -> 19663.62583 | U80: =IF($J$4,IF(AW80/Population!U78<$J$5,AW80/Population!U78*$J$6+(AW80/Population!U78)^2*$J$7,AW80/Population!U78),AW80/Population!U78) -> 21197.9325 | V80: =IF($J$4,IF(AX80/Population!V78<$J$5,AX80/Population!V78*$J$6+(AX80/Population!V78)^2*$J$7,AX80/Population!V78),AX80/Population!V78) -> 22561.24089 | W80: =IF($J$4,IF(AY80/Population!W78<$J$5,AY80/Population!W78*$J$6+(AY80/Population!W78)^2*$J$7,AY80/Population!W78),AY80/Population!W78) -> 23734.14097 | X80: =IF($J$4,IF(AZ80/Population!X78<$J$5,AZ80/Population!X78*$J$6+(AZ80/Population!X78)^2*$J$7,AZ80/Population!X78),AZ80/Population!X78) -> 24588.39858 | Y80: =IF($J$4,IF(BA80/Population!Y78<$J$5,BA80/Population!Y78*$J$6+(BA80/Population!Y78)^2*$J$7,BA80/Population!Y78),BA80/Population!Y78) -> 26606.86139 | Z80: SSA | AA80: ALM | AD80: Ghana | AE80: 5500641115 | AF80: 6775893511 | AG80: 8375535098 | AH80: 1.073186415e+10 | AI80: 1.371206874e+10 | AJ80: 1.939653786e+10 | AK80: 2.508100697e+10 | AL80: 3.47183502e+10 | AM80: 4.435569344e+10 | AN80: 8.950421532e+10 | AO80: 1.346527372e+11 | AP80: 1.798012591e+11 | AQ80: 2.24949781e+11 | AR80: 3.040991626e+11 | AS80: 3.832485442e+11 | AT80: 4.623979258e+11 | AU80: 5.415473074e+11 | AV80: 6.20696689e+11 | AW80: 7.086707113e+11 | AX80: 7.966447337e+11 | AY80: 8.84618756e+11 | AZ80: 9.725927783e+11 | BA80: 1.060566801e+12 | BB80: SSA | BC80: ALM
B81: Greece | C81: =IF($J$4,IF(AE81/Population!C79<$J$5,AE81/Population!C79*$J$6+(AE81/Population!C79)^2*$J$7,AE81/Population!C79),AE81/Population!C79) -> 20661.05077 | D81: =IF($J$4,IF(AF81/Population!D79<$J$5,AF81/Population!D79*$J$6+(AF81/Population!D79)^2*$J$7,AF81/Population!D79),AF81/Population!D79) -> 21022.35162 | E81: =IF($J$4,IF(AG81/Population!E79<$J$5,AG81/Population!E79*$J$6+(AG81/Population!E79)^2*$J$7,AG81/Population!E79),AG81/Population!E79) -> 22814.70268 | F81: =IF($J$4,IF(AH81/Population!F79<$J$5,AH81/Population!F79*$J$6+(AH81/Population!F79)^2*$J$7,AH81/Population!F79),AH81/Population!F79) -> 24402.19157 | G81: =IF($J$4,IF(AI81/Population!G79<$J$5,AI81/Population!G79*$J$6+(AI81/Population!G79)^2*$J$7,AI81/Population!G79),AI81/Population!G79) -> 23910.21302 | H81: =IF($J$4,IF(AJ81/Population!H79<$J$5,AJ81/Population!H79*$J$6+(AJ81/Population!H79)^2*$J$7,AJ81/Population!H79),AJ81/Population!H79) -> 24638.43359 | I81: =IF($J$4,IF(AK81/Population!I79<$J$5,AK81/Population!I79*$J$6+(AK81/Population!I79)^2*$J$7,AK81/Population!I79),AK81/Population!I79) -> 26220.73756 | J81: =IF($J$4,IF(AL81/Population!J79<$J$5,AL81/Population!J79*$J$6+(AL81/Population!J79)^2*$J$7,AL81/Population!J79),AL81/Population!J79) -> 29315.09458 | K81: =IF($J$4,IF(AM81/Population!K79<$J$5,AM81/Population!K79*$J$6+(AM81/Population!K79)^2*$J$7,AM81/Population!K79),AM81/Population!K79) -> 32461.40985 | L81: =IF($J$4,IF(AN81/Population!L79<$J$5,AN81/Population!L79*$J$6+(AN81/Population!L79)^2*$J$7,AN81/Population!L79),AN81/Population!L79) -> 36047.98015 | M81: =IF($J$4,IF(AO81/Population!M79<$J$5,AO81/Population!M79*$J$6+(AO81/Population!M79)^2*$J$7,AO81/Population!M79),AO81/Population!M79) -> 39784.20322 | N81: =IF($J$4,IF(AP81/Population!N79<$J$5,AP81/Population!N79*$J$6+(AP81/Population!N79)^2*$J$7,AP81/Population!N79),AP81/Population!N79) -> 43734.52041 | O81: =IF($J$4,IF(AQ81/Population!O79<$J$5,AQ81/Population!O79*$J$6+(AQ81/Population!O79)^2*$J$7,AQ81/Population!O79),AQ81/Population!O79) -> 47974.2352 | P81: =IF($J$4,IF(AR81/Population!P79<$J$5,AR81/Population!P79*$J$6+(AR81/Population!P79)^2*$J$7,AR81/Population!P79),AR81/Population!P79) -> 53236.60794 | Q81: =IF($J$4,IF(AS81/Population!Q79<$J$5,AS81/Population!Q79*$J$6+(AS81/Population!Q79)^2*$J$7,AS81/Population!Q79),AS81/Population!Q79) -> 58668.51326 | R81: =IF($J$4,IF(AT81/Population!R79<$J$5,AT81/Population!R79*$J$6+(AT81/Population!R79)^2*$J$7,AT81/Population!R79),AT81/Population!R79) -> 64269.99129 | S81: =IF($J$4,IF(AU81/Population!S79<$J$5,AU81/Population!S79*$J$6+(AU81/Population!S79)^2*$J$7,AU81/Population!S79),AU81/Population!S79) -> 69921.18017 | T81: =IF($J$4,IF(AV81/Population!T79<$J$5,AV81/Population!T79*$J$6+(AV81/Population!T79)^2*$J$7,AV81/Population!T79),AV81/Population!T79) -> 75566.21938 | U81: =IF($J$4,IF(AW81/Population!U79<$J$5,AW81/Population!U79*$J$6+(AW81/Population!U79)^2*$J$7,AW81/Population!U79),AW81/Population!U79) -> 83201.34338 | V81: =IF($J$4,IF(AX81/Population!V79<$J$5,AX81/Population!V79*$J$6+(AX81/Population!V79)^2*$J$7,AX81/Population!V79),AX81/Population!V79) -> 90788.60615 | W81: =IF($J$4,IF(AY81/Population!W79<$J$5,AY81/Population!W79*$J$6+(AY81/Population!W79)^2*$J$7,AY81/Population!W79),AY81/Population!W79) -> 98898.38387 | X81: =IF($J$4,IF(AZ81/Population!X79<$J$5,AZ81/Population!X79*$J$6+(AZ81/Population!X79)^2*$J$7,AZ81/Population!X79),AZ81/Population!X79) -> 107412.4004 | Y81: =IF($J$4,IF(BA81/Population!Y79<$J$5,BA81/Population!Y79*$J$6+(BA81/Population!Y79)^2*$J$7,BA81/Population!Y79),BA81/Population!Y79) -> 116147.9887 | Z81: WEU | AA81: OECD90 | AD81: Greece | AE81: 1.576872662e+11 | AF81: 1.677662435e+11 | AG81: 1.987640313e+11 | AH81: 2.422757797e+11 | AI81: 2.278388375e+11 | AJ81: 2.53379476e+11 | AK81: 2.789201144e+11 | AL81: 3.099630992e+11 | AM81: 3.410060839e+11 | AN81: 3.76194609e+11 | AO81: 4.113831342e+11 | AP81: 4.465716593e+11 | AQ81: 4.817601844e+11 | AR81: 5.319234268e+11 | AS81: 5.820866692e+11 | AT81: 6.322499115e+11 | AU81: 6.824131539e+11 | AV81: 7.325763963e+11 | AW81: 8.028402951e+11 | AX81: 8.731041939e+11 | AY81: 9.433680928e+11 | AZ81: 1.013631992e+12 | BA81: 1.08389589e+12 | BB81: WEU | BC81: OECD90
B82: Guadeloupe | C82: =IF($J$4,IF(AE82/Population!C80<$J$5,AE82/Population!C80*$J$6+(AE82/Population!C80)^2*$J$7,AE82/Population!C80),AE82/Population!C80) -> 0 | D82: =IF($J$4,IF(AF82/Population!D80<$J$5,AF82/Population!D80*$J$6+(AF82/Population!D80)^2*$J$7,AF82/Population!D80),AF82/Population!D80) -> 0 | E82: =IF($J$4,IF(AG82/Population!E80<$J$5,AG82/Population!E80*$J$6+(AG82/Population!E80)^2*$J$7,AG82/Population!E80),AG82/Population!E80) -> 0 | F82: =IF($J$4,IF(AH82/Population!F80<$J$5,AH82/Population!F80*$J$6+(AH82/Population!F80)^2*$J$7,AH82/Population!F80),AH82/Population!F80) -> 0 | G82: =IF($J$4,IF(AI82/Population!G80<$J$5,AI82/Population!G80*$J$6+(AI82/Population!G80)^2*$J$7,AI82/Population!G80),AI82/Population!G80) -> 0 | H82: =IF($J$4,IF(AJ82/Population!H80<$J$5,AJ82/Population!H80*$J$6+(AJ82/Population!H80)^2*$J$7,AJ82/Population!H80),AJ82/Population!H80) -> 0 | I82: =IF($J$4,IF(AK82/Population!I80<$J$5,AK82/Population!I80*$J$6+(AK82/Population!I80)^2*$J$7,AK82/Population!I80),AK82/Population!I80) -> 0 | J82: =IF($J$4,IF(AL82/Population!J80<$J$5,AL82/Population!J80*$J$6+(AL82/Population!J80)^2*$J$7,AL82/Population!J80),AL82/Population!J80) -> 0 | K82: =IF($J$4,IF(AM82/Population!K80<$J$5,AM82/Population!K80*$J$6+(AM82/Population!K80)^2*$J$7,AM82/Population!K80),AM82/Population!K80) -> 0 | L82: =IF($J$4,IF(AN82/Population!L80<$J$5,AN82/Population!L80*$J$6+(AN82/Population!L80)^2*$J$7,AN82/Population!L80),AN82/Population!L80) -> 0 | M82: =IF($J$4,IF(AO82/Population!M80<$J$5,AO82/Population!M80*$J$6+(AO82/Population!M80)^2*$J$7,AO82/Population!M80),AO82/Population!M80) -> 0 | N82: =IF($J$4,IF(AP82/Population!N80<$J$5,AP82/Population!N80*$J$6+(AP82/Population!N80)^2*$J$7,AP82/Population!N80),AP82/Population!N80) -> 0 | O82: =IF($J$4,IF(AQ82/Population!O80<$J$5,AQ82/Population!O80*$J$6+(AQ82/Population!O80)^2*$J$7,AQ82/Population!O80),AQ82/Population!O80) -> 0 | P82: =IF($J$4,IF(AR82/Population!P80<$J$5,AR82/Population!P80*$J$6+(AR82/Population!P80)^2*$J$7,AR82/Population!P80),AR82/Population!P80) -> 0 | Q82: =IF($J$4,IF(AS82/Population!Q80<$J$5,AS82/Population!Q80*$J$6+(AS82/Population!Q80)^2*$J$7,AS82/Population!Q80),AS82/Population!Q80) -> 0 | R82: =IF($J$4,IF(AT82/Population!R80<$J$5,AT82/Population!R80*$J$6+(AT82/Population!R80)^2*$J$7,AT82/Population!R80),AT82/Population!R80) -> 0 | S82: =IF($J$4,IF(AU82/Population!S80<$J$5,AU82/Population!S80*$J$6+(AU82/Population!S80)^2*$J$7,AU82/Population!S80),AU82/Population!S80) -> 0 | T82: =IF($J$4,IF(AV82/Population!T80<$J$5,AV82/Population!T80*$J$6+(AV82/Population!T80)^2*$J$7,AV82/Population!T80),AV82/Population!T80) -> 0 | U82: =IF($J$4,IF(AW82/Population!U80<$J$5,AW82/Population!U80*$J$6+(AW82/Population!U80)^2*$J$7,AW82/Population!U80),AW82/Population!U80) -> 0 | V82: =IF($J$4,IF(AX82/Population!V80<$J$5,AX82/Population!V80*$J$6+(AX82/Population!V80)^2*$J$7,AX82/Population!V80),AX82/Population!V80) -> 0 | W82: =IF($J$4,IF(AY82/Population!W80<$J$5,AY82/Population!W80*$J$6+(AY82/Population!W80)^2*$J$7,AY82/Population!W80),AY82/Population!W80) -> 0 | X82: =IF($J$4,IF(AZ82/Population!X80<$J$5,AZ82/Population!X80*$J$6+(AZ82/Population!X80)^2*$J$7,AZ82/Population!X80),AZ82/Population!X80) -> 0 | Y82: =IF($J$4,IF(BA82/Population!Y80<$J$5,BA82/Population!Y80*$J$6+(BA82/Population!Y80)^2*$J$7,BA82/Population!Y80),BA82/Population!Y80) -> 0 | Z82: LAM | AA82: ALM | AD82: Guadeloupe | AI82: =IFERROR(AH82*(1+AI275)^5,0) -> 0 | AJ82: =IFERROR(AI82*(1+AJ275)^5,0) -> 0 | AK82: 0 | AL82: 0 | AM82: 0 | AN82: 0 | AO82: 0 | AP82: 0 | AQ82: 0 | AR82: 0 | AS82: 0 | AT82: 0 | AU82: 0 | AV82: 0 | AW82: 0 | AX82: 0 | AY82: 0 | AZ82: 0 | BA82: 0 | BB82: LAM | BC82: ALM
